Workbook

Sheet Select county
... 4 more rows

Sheet Adams
B1: County | C1: Adams
B2: Number of households | C2: ='WTP Values '!C2 -> 38269 | E2: CLICK HERE TO GO BACK TO COUNTY LIST
B3: Percent of county forested | C3: ='WTP Values '!DA2 -> 0.3724121372
B4: Square miles of surface water | C4: ='WTP Values '!BU2 -> 0.3296608932
B5: Miles of major rivers | C5: ='WTP Values '!BV2 -> 175.9802305
B6: Miles of tributaries | C6: ='WTP Values '!BW2 -> 1012.003889
... 7 more rows

Sheet Adams NPV 1% (hidden)
C1: ACRES all conservation strategies | U1: Countywide demand= all conservation strategies | AM1: Acre value of acquisition and easements | BE1: countywide demand for acquisition and easements
A2: year | B2: rate % | C2: All surface waters PV | D2: (Low 95% CI) PV | E2: (High 95% CI) PV | F2: All surface waters NPV | G2: (Low 95% CI) NPV | H2: (High 95% CI) NPV | I2: Protect Rivers only PV | J2: (Low 95% CI) PV | K2: (High 95% CI) PV | L2: Protect Rivers only NPV | M2: (Low 95% CI) NPV | N2: (High 95% CI) NPV | O2: Protect single site PV | P2: (Low 95% CI) PV | Q2: (High 95% CI) PV | R2: Protect single site NPV | S2: (Low 95% CI) NPV | T2: (High 95% CI) NPV | U2: All surface waters PV | V2: (Low 95% CI) PV | W2: (High 95% CI) PV | X2: All surface waters NPV | Y2: (Low 95% CI) NPV | Z2: (High 95% CI) NPV | AA2: Protect Rivers only PV | AB2: (Low 95% CI) PV | AC2: (High 95% CI) PV | AD2: Protect Rivers only NPV | AE2: (Low 95% CI) NPV | AF2: (High 95% CI) NPV | AG2: Protect single site PV | AH2: (Low 95% CI) PV | AI2: (High 95% CI) PV | AJ2: Protect single site NPV | AK2: (Low 95% CI) NPV | AL2: (High 95% CI) NPV | AM2: All surface waters PV | AN2: (Low 95% CI) PV | AO2: (High 95% CI) PV | AP2: All surface waters NPV | AQ2: (Low 95% CI) NPV | AR2: (High 95% CI) NPV | AS2: Protect Rivers only PV | AT2: (Low 95% CI) PV | AU2: (High 95% CI) PV | AV2: Protect Rivers only NPV | AW2: (Low 95% CI) NPV | AX2: (High 95% CI) NPV | AY2: Protect single site PV | AZ2: (Low 95% CI) PV | BA2: (High 95% CI) PV | BB2: Protect single site NPV | BC2: (Low 95% CI) NPV | BD2: (High 95% CI) NPV | BE2: All surface waters PV | BF2: (Low 95% CI) PV | BG2: (High 95% CI) PV | BH2: All surface waters NPV | BI2: (Low 95% CI) NPV | BJ2: (High 95% CI) NPV | BK2: Protect Rivers only PV | BL2: (Low 95% CI) PV | BM2: (High 95% CI) PV | BN2: Protect Rivers only NPV | BO2: (Low 95% CI) NPV | BP2: (High 95% CI) NPV | BQ2: Protect single site PV | BR2: (Low 95% CI) PV | BS2: (High 95% CI) PV | BT2: Protect single site NPV | BU2: (Low 95% CI) NPV | BV2: (High 95% CI) NPV
A3: 1 | B3: 0.01 | C3: ='WTP Values '!CU2 -> 308.0213692 | D3: ='WTP Values '!CV2 -> 281.1605731 | E3: ='WTP Values '!CW2 -> 337.4484583 | F3: =C3 -> 308.0213692 | G3: =D3 -> 281.1605731 | H3: =E3 -> 337.4484583 | I3: ='WTP Values '!CC2 -> 115.7492039 | J3: ='WTP Values '!CD2 -> 105.6563055 | K3: ='WTP Values '!CE2 -> 126.8063824 | L3: =I3 -> 115.7492039 | M3: =J3 -> 105.6563055 | N3: =K3 -> 126.8063824 | O3: ='WTP Values '!CI2 -> 92.68075061 | P3: ='WTP Values '!CJ2 -> 84.59961795 | Q3: ='WTP Values '!CK2 -> 101.5339584 | R3: =O3 -> 92.68075061 | S3: =P3 -> 84.59961795 | T3: 101.5339584 | U3: ='WTP Values '!BH2 -> 38292856.68 | V3: ='WTP Values '!BI2 -> 34953553.9 | W3: ='WTP Values '!BJ2 -> 41951198.01 | X3: =U3 -> 38292856.68 | Y3: =V3 -> 34953553.9 | Z3: =W3 -> 41951198.01 | AA3: ='WTP Values '!AV2 -> 14389805.77 | AB3: ='WTP Values '!AW2 -> 13135068.44 | AC3: ='WTP Values '!AX2 -> 15764421.28 | AD3: =AA3 -> 14389805.77 | AE3: =AB3 -> 13135068.44 | AF3: 15764421.28 | AG3: ='WTP Values '!BB2 -> 11521962.61 | AH3: ='WTP Values '!BC2 -> 10517325.64 | AI3: ='WTP Values '!BD2 -> 12622583.06 | AJ3: =AG3 -> 11521962.61 | AK3: =AH3 -> 10517325.64 | AL3: 12622583.06 | AM3: ='WTP Values '!CX2 -> 15.49283639 | AN3: ='WTP Values '!CY2 -> 14.14302101 | AO3: ='WTP Values '!CZ2 -> 16.97161377 | AP3: =AM3 -> 15.49283639 | AQ3: =AN3 -> 14.14302101 | AR3: =AO3 -> 16.97161377 | AS3: ='WTP Values '!CF2 -> 5.832106366 | AT3: ='WTP Values '!CG2 -> 5.324915537 | AU3: ='WTP Values '!CH2 -> 6.387754443 | AV3: =AS3 -> 5.832106366 | AW3: =AT3 -> 5.324915537 | AX3: 6.387754443 | AY3: ='WTP Values '!CL2 -> 4.672864735 | AZ3: ='WTP Values '!CM2 -> 4.266769654 | BA3: ='WTP Values '!CN2 -> 5.117758329 | BB3: =AY3 -> 4.672864735 | BC3: =AZ3 -> 4.266769654 | BD3: 5.117758329 | BE3: ='WTP Values '!BK2 -> 1926051.316 | BF3: ='WTP Values '!BL2 -> 1758243.845 | BG3: ='WTP Values '!BM2 -> 2109891.191 | BH3: =BE3 -> 1926051.316 | BI3: =BF3 -> 1758243.845 | BJ3: 2109891.191 | BK3: ='WTP Values '!AY2 -> 725040.6483 | BL3: ='WTP Values '!AZ2 -> 661987.2771 | BM3: ='WTP Values '!BA2 -> 794118.1679 | BN3: =BK3 -> 725040.6483 | BO3: =BL3 -> 661987.2771 | BP3: 794118.1679 | BQ3: ='WTP Values '!BE2 -> 580925.0834 | BR3: ='WTP Values '!BF2 -> 530439.8175 | BS3: ='WTP Values '!BG2 -> 636233.7351 | BT3: =BQ3 -> 580925.0834 | BU3: =BR3 -> 530439.8175 | BV3: 636233.7351
A4: 2 | B4: 0.01 | C4: =C3/(1+B4)^A4 -> 301.9521314 | D4: =D3/(1+B4)^A4 -> 275.6205991 | E4: =E3/(1+B4)^A4 -> 330.7993905 | F4: =F3+C4 -> 609.9735006 | G4: =G3+D4 -> 556.7811722 | H4: =H3+E4 -> 668.2478488 | I4: =I3/(1+B4)^A4 -> 113.4684873 | J4: =J3/(1+B4)^A4 -> 103.5744589 | K4: =K3/(1+B4)^A4 -> 124.3077957 | L4: =L3+I4 -> 229.2176912 | M4: =M3+J4 -> 209.2307644 | N4: =N3+K4 -> 251.1141781 | O4: =O3/(1+B4)^A4 -> 90.85457368 | P4: =P3/(1+B4)^A4 -> 82.93267126 | Q4: =Q3/(1+B4)^A4 -> 99.53333833 | R4: =R3+O4 -> 183.5353243 | S4: =S3+P4 -> 167.5322892 | T4: =T3+Q4 -> 201.0672968 | U4: =U3/(1+B4)^A4 -> 37538336.13 | V4: =V3/(1+B4)^A4 -> 34264830.8 | W4: =W3/(1+B4)^A4 -> 41124593.67 | X4: =X3+U4 -> 75831192.81 | Y4: =Y3+V4 -> 69218384.69 | Z4: =Z3+W4 -> 83075791.68 | AA4: =AA3/(1+B4)^A4 -> 14106269.75 | AB4: =AB3/(1+B4)^A4 -> 12876255.7 | AC4: =AC3/(1+B4)^A4 -> 15453799.9 | AD4: =AD3+AA4 -> 28496075.51 | AE4: =AE3+AB4 -> 26011324.14 | AF4: =AF3+AC4 -> 31218221.19 | AG4: =AG3/(1+B4)^A4 -> 11294934.43 | AH4: =AH3/(1+B4)^A4 -> 10310092.78 | AI4: =AI3/(1+B4)^A4 -> 12373868.31 | AJ4: =AJ3+AG4 -> 22816897.04 | AK4: =AK3+AH4 -> 20827418.42 | AL4: =AL3+AI4 -> 24996451.37 | AM4: =AM3/(1+B4)^A4 -> 15.18756631 | AN4: =AN3/(1+B4)^A4 -> 13.86434762 | AO4: =AO3/(1+B4)^A4 -> 16.63720593 | AP4: =AP3+AM4 -> 30.68040271 | AQ4: =AQ3+AN4 -> 28.00736863 | AR4: =AR3+AO4 -> 33.60881969 | AS4: =AS3/(1+B4)^A4 -> 5.717190831 | AT4: =AT3/(1+B4)^A4 -> 5.219993664 | AU4: =AU3/(1+B4)^A4 -> 6.261890445 | AV4: =AV3+AS4 -> 11.5492972 | AW4: =AW3+AT4 -> 10.5449092 | AX4: =AX3+AU4 -> 12.64964489 | AY4: =AY3/(1+B4)^A4 -> 4.58079084 | AZ4: =AZ3/(1+B4)^A4 -> 4.182697436 | BA4: =BA3/(1+B4)^A4 -> 5.016918272 | BB4: =BB3+AY4 -> 9.253655575 | BC4: =BC3+AZ4 -> 8.44946709 | BD4: =BD3+BA4 -> 10.1346766 | BE4: =BE3/(1+B4)^A4 -> 1888100.496 | BF4: =BF3/(1+B4)^A4 -> 1723599.495 | BG4: =BG3/(1+B4)^A4 -> 2068317.999 | BH4: =BH3+BE4 -> 3814151.813 | BI4: =BI3+BF4 -> 3481843.34 | BJ4: =BJ3+BG4 -> 4178209.19 | BK4: =BK3/(1+B4)^A4 -> 710754.4832 | BL4: =BL3/(1+B4)^A4 -> 648943.5125 | BM4: =BM3/(1+B4)^A4 -> 778470.9027 | BN4: =BN3+BK4 -> 1435795.132 | BO4: =BO3+BL4 -> 1310930.79 | BP4: =BP3+BM4 -> 1572589.071 | BQ4: =BQ3/(1+B4)^A4 -> 569478.5643 | BR4: =BR3/(1+B4)^A4 -> 519988.0575 | BS4: =BS3/(1+B4)^A4 -> 623697.417 | BT4: =BT3+BQ4 -> 1150403.648 | BU4: =BU3+BR4 -> 1050427.875 | BV4: =BV3+BS4 -> 1259931.152
A5: 3 | B5: 0.01 | C5: =C4/(1+B5)^A5 -> 293.0717639 | D5: =D4/(1+B5)^A5 -> 267.514638 | E5: =E4/(1+B5)^A5 -> 321.0706294 | F5: =F4+C5 -> 903.0452645 | G5: 824.2958102 | H5: 989.3184782 | I5: =I4/(1+B5)^A5 -> 110.1313959 | J5: =J4/(1+B5)^A5 -> 100.5283494 | K5: =K4/(1+B5)^A5 -> 120.6519218 | L5: =L4+I5 -> 339.349087 | M5: 309.7591138 | N5: 371.7661 | O5: =O4/(1+B5)^A5 -> 88.18255411 | P5: =P4/(1+B5)^A5 -> 80.49363367 | Q5: =Q4/(1+B5)^A5 -> 96.60607757 | R5: =R4+O5 -> 271.7178784 | S5: 248.0259229 | T5: 297.6733743 | U5: =U4/(1+B5)^A5 -> 36434339.21 | V5: =V4/(1+B5)^A5 -> 33257107.19 | W5: =W4/(1+B5)^A5 -> 39915125.46 | X5: =X4+U5 -> 112265532 | Y5: 102475491.9 | Z5: 122990917.1 | AA5: =AA4/(1+B5)^A5 -> 13691406.44 | AB5: =AB4/(1+B5)^A5 -> 12497566.92 | AC5: =AC4/(1+B5)^A5 -> 14999305.94 | AD5: =AD4+AA5 -> 42187481.95 | AE5: 38508891.06 | AF5: 46217527.12 | AG5: =AG4/(1+B5)^A5 -> 10962752.08 | AH5: =AH4/(1+B5)^A5 -> 10006874.48 | AI5: =AI4/(1+B5)^A5 -> 12009954.67 | AJ5: =AJ4+AG5 -> 33779649.13 | AK5: 30834292.9 | AL5: 37006406.05 | AM5: =AM4/(1+B5)^A5 -> 14.74090223 | AN5: =AN4/(1+B5)^A5 -> 13.45659921 | AO5: =AO4/(1+B5)^A5 -> 16.14790816 | AP5: =AP4+AM5 -> 45.42130494 | AQ5: 41.46396784 | AR5: 49.75672785 | AS5: =AS4/(1+B5)^A5 -> 5.549049094 | AT5: =AT4/(1+B5)^A5 -> 5.066474423 | AU5: =AU4/(1+B5)^A5 -> 6.077729173 | AV5: =AV4+AS5 -> 17.09834629 | AW5: 15.61138362 | AX5: 18.72737406 | AY5: =AY4/(1+B5)^A5 -> 4.446070459 | AZ5: =AZ4/(1+B5)^A5 -> 4.059684923 | BA5: =BA4/(1+B5)^A5 -> 4.869371447 | BB5: =BB4+AY5 -> 13.69972603 | BC5: 12.50915201 | BD5: 15.00404805 | BE5: =BE4/(1+B5)^A5 -> 1832571.74 | BF5: =BF4/(1+B5)^A5 -> 1672908.689 | BG5: =BG4/(1+B5)^A5 -> 2007489.073 | BH5: =BH4+BE5 -> 5646723.553 | BI5: 5154752.03 | BJ5: 6185698.263 | BK5: =BK4/(1+B5)^A5 -> 689851.299 | BL5: =BL4/(1+B5)^A5 -> 629858.1798 | BM5: =BM4/(1+B5)^A5 -> 755576.1886 | BN5: =BN4+BK5 -> 2125646.431 | BO5: 1940788.969 | BP5: 2328165.259 | BQ5: =BQ4/(1+B5)^A5 -> 552730.2839 | BR5: =BR4/(1+B5)^A5 -> 504695.2857 | BS5: =BS4/(1+B5)^A5 -> 605354.5682 | BT5: =BT4+BQ5 -> 1703133.932 | BU5: 1555123.161 | BV5: 1865285.72
A6: 4 | B6: 0.01 | C6: 281.6362046 | D6: 257.076309 | E6: 308.542564 | F6: 1184.681469 | G6: 1081.372119 | H6: 1297.861042 | I6: 105.8341067 | J6: 96.60576783 | K6: 115.9441254 | L6: 445.1831938 | M6: 406.3648816 | N6: 487.7102254 | O6: 84.74170122 | P6: 77.35279981 | Q6: 92.8365417 | R6: 356.4595796 | S6: 325.3787227 | T6: 390.509916 | U6: 35012683.85 | V6: 31959426.33 | W6: 38357651.01 | X6: 147278215.9 | Y6: 134434918.2 | Z6: 161348568.1 | AA6: 13157172.48 | AB6: 12009916.17 | AC6: 14414038.18 | AD6: 55344654.43 | AE6: 50518807.23 | AF6: 60631565.31 | AG6: 10534989.27 | AH6: 9616409.681 | AI6: 11541330.38 | AJ6: 44314638.4 | AK6: 40450702.58 | AL6: 48547736.43 | AM6: 14.16571731 | AN6: 12.93152734 | AO6: 15.51782235 | AP6: 59.58702224 | AQ6: 54.39549519 | AR6: 65.2745502 | AS6: 5.33252711 | AT6: 4.868782336 | AU6: 5.840578274 | AV6: 22.4308734 | AW6: 20.48016596 | AX6: 24.56795233 | AY6: 4.272586321 | AZ6: 3.901277416 | BA6: 4.679370251 | BB6: 17.97231235 | BC6: 16.41042943 | BD6: 19.6834183 | BE6: 1761065.422 | BF6: 1607632.368 | BG6: 1929157.541 | BH6: 7407788.975 | BI6: 6762384.398 | BJ6: 8114855.804 | BK6: 662933.539 | BL6: 605281.3306 | BM6: 726093.866 | BN6: 2788579.97 | BO6: 2546070.3 | BP6: 3054259.125 | BQ6: 531162.9387 | BR6: 485002.2495 | BS6: 581733.8415 | BT6: 2234296.87 | BU6: 2040125.41 | BV6: 2447019.562
A7: 5 | B7: 0.01 | C7: 267.9671851 | D7: 244.5992871 | E7: 293.5676628 | F7: 1452.648654 | G7: 1325.971406 | H7: 1591.428705 | I7: 100.6975211 | J7: 91.91707331 | K7: 110.316857 | L7: 545.8807149 | M7: 498.281955 | N7: 598.0270824 | O7: 80.62882102 | P7: 73.59853486 | Q7: 88.33078399 | R7: 437.0884006 | S7: 398.9772576 | T7: 478.8407 | U7: 33313367.31 | V7: 30408297.55 | W7: 36495988.79 | X7: 180591583.2 | Y7: 164843215.8 | Z7: 197844556.9 | AA7: 12518598.16 | AB7: 11427023.14 | AC7: 13714462.75 | AD7: 67863252.58 | AE7: 61945830.37 | AF7: 74346028.06 | AG7: 10023680.81 | AH7: 9149683.85 | AI7: 10981179.85 | AJ7: 54338319.21 | AK7: 49600386.43 | AL7: 59528916.28 | AM7: 13.47819396 | AN7: 12.30390456 | AO7: 14.76467551 | AP7: 73.0652162 | AQ7: 66.69939975 | AR7: 80.03922571 | AS7: 5.073716573 | AT7: 4.632479333 | AU7: 5.557109824 | AV7: 27.50458997 | AW7: 25.11264529 | AX7: 30.12506216 | AY7: 4.065219282 | AZ7: 3.711931599 | BA7: 4.452260233 | BB7: 22.03753164 | BC7: 20.12236103 | BD7: 24.13567853 | BE7: 1675593.323 | BF7: 1529607.037 | BG7: 1835527.206 | BH7: 9083382.298 | BI7: 8291991.435 | BJ7: 9950383.01 | BK7: 630758.5155 | BL7: 575904.4174 | BM7: 690853.3995 | BN7: 3419338.485 | BO7: 3121974.717 | BP7: 3745112.525 | BQ7: 505383.3107 | BR7: 461462.9988 | BS7: 553499.7895 | BT7: 2739680.181 | BU7: 2501588.409 | BV7: 3000519.351
... 8 more rows

Sheet Adams NPV 2% (hidden)
C1: ACRES all conservation strategies | U1: Countywide demand= all conservation strategies | AM1: Acre value of acquisition and easements | BE1: countywide demand for acquisition and easements
A2: year | B2: rate % | C2: All surface waters PV | D2: (Low 95% CI) PV | E2: (High 95% CI) PV | F2: All surface waters NPV | G2: (Low 95% CI) NPV | H2: (High 95% CI) NPV | I2: Protect Rivers only PV | J2: (Low 95% CI) PV | K2: (High 95% CI) PV | L2: Protect Rivers only NPV | M2: (Low 95% CI) NPV | N2: (High 95% CI) NPV | O2: Protect single site PV | P2: (Low 95% CI) PV | Q2: (High 95% CI) PV | R2: Protect single site NPV | S2: (Low 95% CI) NPV | T2: (High 95% CI) NPV | U2: All surface waters PV | V2: (Low 95% CI) PV | W2: (High 95% CI) PV | X2: All surface waters NPV | Y2: (Low 95% CI) NPV | Z2: (High 95% CI) NPV | AA2: Protect Rivers only PV | AB2: (Low 95% CI) PV | AC2: (High 95% CI) PV | AD2: Protect Rivers only NPV | AE2: (Low 95% CI) NPV | AF2: (High 95% CI) NPV | AG2: Protect single site PV | AH2: (Low 95% CI) PV | AI2: (High 95% CI) PV | AJ2: Protect single site NPV | AK2: (Low 95% CI) NPV | AL2: (High 95% CI) NPV | AM2: All surface waters PV | AN2: (Low 95% CI) PV | AO2: (High 95% CI) PV | AP2: All surface waters NPV | AQ2: (Low 95% CI) NPV | AR2: (High 95% CI) NPV | AS2: Protect Rivers only PV | AT2: (Low 95% CI) PV | AU2: (High 95% CI) PV | AV2: Protect Rivers only NPV | AW2: (Low 95% CI) NPV | AX2: (High 95% CI) NPV | AY2: Protect single site PV | AZ2: (Low 95% CI) PV | BA2: (High 95% CI) PV | BB2: Protect single site NPV | BC2: (Low 95% CI) NPV | BD2: (High 95% CI) NPV | BE2: All surface waters PV | BF2: (Low 95% CI) PV | BG2: (High 95% CI) PV | BH2: All surface waters NPV | BI2: (Low 95% CI) NPV | BJ2: (High 95% CI) NPV | BK2: Protect Rivers only PV | BL2: (Low 95% CI) PV | BM2: (High 95% CI) PV | BN2: Protect Rivers only NPV | BO2: (Low 95% CI) NPV | BP2: (High 95% CI) NPV | BQ2: Protect single site PV | BR2: (Low 95% CI) PV | BS2: (High 95% CI) PV | BT2: Protect single site NPV | BU2: (Low 95% CI) NPV | BV2: (High 95% CI) NPV
A3: 1 | B3: 0.02 | C3: ='WTP Values '!CU2 -> 308.0213692 | D3: ='WTP Values '!CV2 -> 281.1605731 | E3: ='WTP Values '!CW2 -> 337.4484583 | F3: =C3 -> 308.0213692 | G3: =D3 -> 281.1605731 | H3: =E3 -> 337.4484583 | I3: ='WTP Values '!CC2 -> 115.7492039 | J3: ='WTP Values '!CD2 -> 105.6563055 | K3: ='WTP Values '!CE2 -> 126.8063824 | L3: =I3 -> 115.7492039 | M3: =J3 -> 105.6563055 | N3: =K3 -> 126.8063824 | O3: ='WTP Values '!CI2 -> 92.68075061 | P3: ='WTP Values '!CJ2 -> 84.59961795 | Q3: ='WTP Values '!CK2 -> 101.5339584 | R3: =O3 -> 92.68075061 | S3: =P3 -> 84.59961795 | T3: 101.5339584 | U3: ='WTP Values '!BH2 -> 38292856.68 | V3: ='WTP Values '!BI2 -> 34953553.9 | W3: ='WTP Values '!BJ2 -> 41951198.01 | X3: =U3 -> 38292856.68 | Y3: =V3 -> 34953553.9 | Z3: =W3 -> 41951198.01 | AA3: ='WTP Values '!AV2 -> 14389805.77 | AB3: ='WTP Values '!AW2 -> 13135068.44 | AC3: ='WTP Values '!AX2 -> 15764421.28 | AD3: =AA3 -> 14389805.77 | AE3: =AB3 -> 13135068.44 | AF3: 15764421.28 | AG3: ='WTP Values '!BB2 -> 11521962.61 | AH3: ='WTP Values '!BC2 -> 10517325.64 | AI3: ='WTP Values '!BD2 -> 12622583.06 | AJ3: =AG3 -> 11521962.61 | AK3: =AH3 -> 10517325.64 | AL3: 12622583.06 | AM3: ='WTP Values '!CX2 -> 15.49283639 | AN3: ='WTP Values '!CY2 -> 14.14302101 | AO3: ='WTP Values '!CZ2 -> 16.97161377 | AP3: =AM3 -> 15.49283639 | AQ3: =AN3 -> 14.14302101 | AR3: =AO3 -> 16.97161377 | AS3: ='WTP Values '!CF2 -> 5.832106366 | AT3: ='WTP Values '!CG2 -> 5.324915537 | AU3: ='WTP Values '!CH2 -> 6.387754443 | AV3: =AS3 -> 5.832106366 | AW3: =AT3 -> 5.324915537 | AX3: 6.387754443 | AY3: ='WTP Values '!CL2 -> 4.672864735 | AZ3: ='WTP Values '!CM2 -> 4.266769654 | BA3: ='WTP Values '!CN2 -> 5.117758329 | BB3: =AY3 -> 4.672864735 | BC3: =AZ3 -> 4.266769654 | BD3: 5.117758329 | BE3: ='WTP Values '!BK2 -> 1926051.316 | BF3: ='WTP Values '!BL2 -> 1758243.845 | BG3: ='WTP Values '!BM2 -> 2109891.191 | BH3: =BE3 -> 1926051.316 | BI3: =BF3 -> 1758243.845 | BJ3: 2109891.191 | BK3: ='WTP Values '!AY2 -> 725040.6483 | BL3: ='WTP Values '!AZ2 -> 661987.2771 | BM3: ='WTP Values '!BA2 -> 794118.1679 | BN3: =BK3 -> 725040.6483 | BO3: =BL3 -> 661987.2771 | BP3: 794118.1679 | BQ3: ='WTP Values '!BE2 -> 580925.0834 | BR3: ='WTP Values '!BF2 -> 530439.8175 | BS3: ='WTP Values '!BG2 -> 636233.7351 | BT3: =BQ3 -> 580925.0834 | BU3: =BR3 -> 530439.8175 | BV3: 636233.7351
A4: 2 | B4: 0.02 | C4: =C3/(1+B4)^A4 -> 296.0605241 | D4: =D3/(1+B4)^A4 -> 270.2427654 | E4: =E3/(1+B4)^A4 -> 324.3449234 | F4: =F3+C4 -> 604.0818933 | G4: =G3+D4 -> 551.4033385 | H4: =H3+E4 -> 661.7933816 | I4: =I3/(1+B4)^A4 -> 111.2545212 | J4: =J3/(1+B4)^A4 -> 101.5535424 | K4: =K3/(1+B4)^A4 -> 121.882336 | L4: =L3+I4 -> 227.0037251 | M4: =M3+J4 -> 207.2098479 | N4: =N3+K4 -> 248.6887185 | O4: =O3/(1+B4)^A4 -> 89.08184411 | P4: =P3/(1+B4)^A4 -> 81.31451168 | Q4: =Q3/(1+B4)^A4 -> 97.59127108 | R4: =R3+O4 -> 181.7625947 | S4: =S3+P4 -> 165.9141296 | T4: =T3+Q4 -> 199.1252295 | U4: =U3/(1+B4)^A4 -> 36805898.39 | V4: =V3/(1+B4)^A4 -> 33596264.8 | W4: =W3/(1+B4)^A4 -> 40322181.86 | X4: =X3+U4 -> 75098755.07 | Y4: =Y3+V4 -> 68549818.7 | Z4: =Z3+W4 -> 82273379.86 | AA4: =AA3/(1+B4)^A4 -> 13831032.07 | AB4: =AB3/(1+B4)^A4 -> 12625017.72 | AC4: =AC3/(1+B4)^A4 -> 15152269.59 | AD4: =AD3+AA4 -> 28220837.84 | AE4: =AE3+AB4 -> 25760086.16 | AF4: =AF3+AC4 -> 30916690.87 | AG4: =AG3/(1+B4)^A4 -> 11074550.76 | AH4: =AH3/(1+B4)^A4 -> 10108925.07 | AI4: =AI3/(1+B4)^A4 -> 12132432.78 | AJ4: =AJ3+AG4 -> 22596513.38 | AK4: =AK3+AH4 -> 20626250.72 | AL4: =AL3+AI4 -> 24755015.84 | AM4: =AM3/(1+B4)^A4 -> 14.89123068 | AN4: =AN3/(1+B4)^A4 -> 13.59383027 | AO4: =AO3/(1+B4)^A4 -> 16.31258532 | AP4: =AP3+AM4 -> 30.38406707 | AQ4: =AQ3+AN4 -> 27.73685128 | AR4: =AR3+AO4 -> 33.28419909 | AS4: =AS3/(1+B4)^A4 -> 5.605638568 | AT4: =AT3/(1+B4)^A4 -> 5.118142577 | AU4: =AU3/(1+B4)^A4 -> 6.139710153 | AV4: =AV3+AS4 -> 11.43774493 | AW4: =AW3+AT4 -> 10.44305811 | AX4: =AX3+AU4 -> 12.5274646 | AY4: =AY3/(1+B4)^A4 -> 4.491411703 | AZ4: =AZ3/(1+B4)^A4 -> 4.101085789 | BA4: =BA3/(1+B4)^A4 -> 4.919029536 | BB4: =BB3+AY4 -> 9.164276438 | BC4: =BC3+AZ4 -> 8.367855443 | BD4: =BD3+BA4 -> 10.03678786 | BE4: =BE3/(1+B4)^A4 -> 1851260.396 | BF4: =BF3/(1+B4)^A4 -> 1689969.094 | BG4: =BG3/(1+B4)^A4 -> 2027961.545 | BH4: =BH3+BE4 -> 3777311.713 | BI4: =BI3+BF4 -> 3448212.939 | BJ4: =BJ3+BG4 -> 4137852.736 | BK4: =BK3/(1+B4)^A4 -> 696886.4363 | BL4: =BL3/(1+B4)^A4 -> 636281.5043 | BM4: =BM3/(1+B4)^A4 -> 763281.5916 | BN4: =BN3+BK4 -> 1421927.085 | BO4: =BO3+BL4 -> 1298268.781 | BP4: =BP3+BM4 -> 1557399.759 | BQ4: =BQ3/(1+B4)^A4 -> 558367.0544 | BR4: =BR3/(1+B4)^A4 -> 509842.1929 | BS4: =BS3/(1+B4)^A4 -> 611528.0037 | BT4: =BT3+BQ4 -> 1139292.138 | BU4: =BU3+BR4 -> 1040282.01 | BV4: =BV3+BS4 -> 1247761.739
A5: 3 | B5: 0.02 | C5: =C4/(1+B5)^A5 -> 278.9844442 | D5: =D4/(1+B5)^A5 -> 254.6557936 | E5: =E4/(1+B5)^A5 -> 305.6374654 | F5: =F4+C5 -> 883.0663375 | G5: 806.0591321 | H5: 967.430847 | I5: =I4/(1+B5)^A5 -> 104.8376202 | J5: =J4/(1+B5)^A5 -> 95.69617117 | K5: =K4/(1+B5)^A5 -> 114.8524474 | L5: =L4+I5 -> 331.8413453 | M5: 302.9060191 | N5: 363.5411659 | O5: =O4/(1+B5)^A5 -> 83.94381131 | P5: =P4/(1+B5)^A5 -> 76.62448048 | Q5: =Q4/(1+B5)^A5 -> 91.96243439 | R5: =R4+O5 -> 265.706406 | S5: 242.5386101 | T5: 291.0876639 | U5: =U4/(1+B5)^A5 -> 34683020.09 | V5: =V4/(1+B5)^A5 -> 31658510.68 | W5: =W4/(1+B5)^A5 -> 37996492.54 | X5: =X4+U5 -> 109781775.2 | Y5: 100208329.4 | Z5: 120269872.4 | AA5: =AA4/(1+B5)^A5 -> 13033290.43 | AB5: =AB4/(1+B5)^A5 -> 11896836.17 | AC5: =AC4/(1+B5)^A5 -> 14278322.05 | AD5: =AD4+AA5 -> 41254128.27 | AE5: 37656922.33 | AF5: 45195012.93 | AG5: =AG4/(1+B5)^A5 -> 10435796.53 | AH5: =AH4/(1+B5)^A5 -> 9525865.873 | AI5: =AI4/(1+B5)^A5 -> 11432662.38 | AJ5: =AJ4+AG5 -> 33032309.9 | AK5: 30152116.59 | AL5: 36187678.22 | AM5: =AM4/(1+B5)^A5 -> 14.03233925 | AN5: =AN4/(1+B5)^A5 -> 12.80976987 | AO5: =AO4/(1+B5)^A5 -> 15.37171348 | AP5: =AP4+AM5 -> 44.41640632 | AQ5: 40.54662115 | AR5: 48.65591257 | AS5: =AS4/(1+B5)^A5 -> 5.282318422 | AT5: =AT4/(1+B5)^A5 -> 4.822940062 | AU5: =AU4/(1+B5)^A5 -> 5.785586004 | AV5: =AV4+AS5 -> 16.72006336 | AW5: 15.26599818 | AX5: 18.3130506 | AY5: =AY4/(1+B5)^A5 -> 4.232357561 | AZ5: =AZ4/(1+B5)^A5 -> 3.864544734 | BA5: =BA4/(1+B5)^A5 -> 4.635311396 | BB5: =BB4+AY5 -> 13.396634 | BC5: 12.23240018 | BD5: 14.67209926 | BE5: =BE4/(1+B5)^A5 -> 1744484.019 | BF5: =BF4/(1+B5)^A5 -> 1592495.622 | BG5: =BG4/(1+B5)^A5 -> 1910993.457 | BH5: =BH4+BE5 -> 5521795.731 | BI5: 5040708.561 | BJ5: 6048846.193 | BK5: =BK4/(1+B5)^A5 -> 656691.6536 | BL5: =BL4/(1+B5)^A5 -> 599582.2726 | BM5: =BM4/(1+B5)^A5 -> 719257.2913 | BN5: =BN4+BK5 -> 2078618.738 | BO5: 1897851.054 | BP5: 2276657.051 | BQ5: =BQ4/(1+B5)^A5 -> 526161.7463 | BR5: =BR4/(1+B5)^A5 -> 480435.6855 | BS5: =BS4/(1+B5)^A5 -> 576256.4961 | BT5: =BT4+BQ5 -> 1665453.884 | BU5: 1520717.696 | BV5: 1824018.235
A6: 4 | B6: 0.02 | C6: 257.7385027 | D6: 235.2625901 | E6: 282.3617744 | F6: 1140.80484 | G6: 1041.321722 | H6: 1249.792621 | I6: 96.85375587 | J6: 88.40847002 | K6: 106.1059082 | L6: 428.6951011 | M6: 391.3144891 | N6: 469.6470741 | O6: 77.55110612 | P6: 70.78917581 | Q6: 84.95907438 | R6: 343.2575121 | S6: 313.3277859 | T6: 376.0467383 | U6: 32041749.47 | V6: 29247570.28 | W6: 35102885.84 | X6: 141823524.6 | Y6: 129455899.7 | Z6: 155372758.2 | AA6: 12040745.75 | AB6: 10990837.68 | AC6: 13190962.52 | AD6: 53294874.02 | AE6: 48647760.02 | AF6: 58385975.45 | AG6: 9641062.89 | AH6: 8800427.616 | AI6: 10562012.85 | AJ6: 42673372.79 | AK6: 38952544.21 | AL6: 46749691.07 | AM6: 12.96371244 | AN6: 11.83424731 | AO6: 14.20108719 | AP6: 57.38011876 | AQ6: 52.38086846 | AR6: 62.85699975 | AS6: 4.880045713 | AT6: 4.455651116 | AU6: 5.344987167 | AV6: 21.60010907 | AW6: 19.72164929 | AX6: 23.65803777 | AY6: 3.910044174 | AZ6: 3.570241977 | BA6: 4.282311231 | BB6: 17.30667817 | BC6: 15.80264215 | BD6: 18.95441049 | BE6: 1611633.581 | BF6: 1471219.796 | BG6: 1765462.565 | BH6: 7133429.312 | BI6: 6511928.357 | BJ6: 7814308.758 | BK6: 606681.5805 | BL6: 553921.3401 | BM6: 664482.5587 | BN6: 2685300.319 | BO6: 2451772.394 | BP6: 2941139.609 | BQ6: 486092.1226 | BR6: 443848.3105 | BS6: 532371.9281 | BT6: 2151546.007 | BU6: 1964566.006 | BV6: 2356390.163
A7: 5 | B7: 0.02 | C7: 233.4417028 | D7: 213.0845763 | E7: 255.7437586 | F7: 1374.246543 | G7: 1254.406298 | H7: 1505.53638 | I7: 87.72343074 | J7: 80.07427515 | K7: 96.10339019 | L7: 516.4185319 | M7: 471.3887643 | N7: 565.7504643 | O7: 70.24042615 | P7: 64.11593754 | Q7: 76.95005124 | R7: 413.4979383 | S7: 377.4437235 | T7: 452.9967895 | U7: 29021199.7 | V7: 26490425.52 | W7: 31793765.22 | X7: 170844724.3 | Y7: 155946325.2 | Z7: 187166523.5 | AA7: 10905674.4 | AB7: 9954740.315 | AC7: 11947461.17 | AD7: 64200548.42 | AE7: 58602500.33 | AF7: 70333436.62 | AG7: 8732207.699 | AH7: 7970818.432 | AI7: 9566340.45 | AJ7: 51405580.49 | AK7: 46923362.64 | AL7: 56316031.52 | AM7: 11.74163376 | AN7: 10.7186424 | AO7: 12.8623622 | AP7: 69.12175252 | AQ7: 63.09951085 | AR7: 75.71936195 | AS7: 4.420007756 | AT7: 4.035620494 | AU7: 4.841119555 | AV7: 26.02011683 | AW7: 23.75726978 | AX7: 28.49915732 | AY7: 3.541447476 | AZ7: 3.233678157 | BA7: 3.878621219 | BB7: 20.84812565 | BC7: 19.03632031 | BD7: 22.83303171 | BE7: 1459706.189 | BF7: 1332529.097 | BG7: 1599033.838 | BH7: 8593135.501 | BI7: 7844457.454 | BJ7: 9413342.596 | BK7: 549490.1992 | BL7: 501703.6239 | BM7: 601842.326 | BN7: 3234790.518 | BO7: 2953476.018 | BP7: 3542981.935 | BQ7: 440268.6119 | BR7: 402007.0897 | BS7: 482185.6576 | BT7: 2591814.619 | BU7: 2366573.096 | BV7: 2838575.821
... 8 more rows

Sheet Adams NPV 3% (hidden)
C1: ACRES all conservation strategies | U1: Countywide demand= all conservation strategies | AM1: Acre value of acquisition and easements | BE1: countywide demand for acquisition and easements
A2: year | B2: rate % | C2: All surface waters PV | D2: (Low 95% CI) PV | E2: (High 95% CI) PV | F2: All surface waters NPV | G2: (Low 95% CI) NPV | H2: (High 95% CI) NPV | I2: Protect Rivers only PV | J2: (Low 95% CI) PV | K2: (High 95% CI) PV | L2: Protect Rivers only NPV | M2: (Low 95% CI) NPV | N2: (High 95% CI) NPV | O2: Protect single site PV | P2: (Low 95% CI) PV | Q2: (High 95% CI) PV | R2: Protect single site NPV | S2: (Low 95% CI) NPV | T2: (High 95% CI) NPV | U2: All surface waters PV | V2: (Low 95% CI) PV | W2: (High 95% CI) PV | X2: All surface waters NPV | Y2: (Low 95% CI) NPV | Z2: (High 95% CI) NPV | AA2: Protect Rivers only PV | AB2: (Low 95% CI) PV | AC2: (High 95% CI) PV | AD2: Protect Rivers only NPV | AE2: (Low 95% CI) NPV | AF2: (High 95% CI) NPV | AG2: Protect single site PV | AH2: (Low 95% CI) PV | AI2: (High 95% CI) PV | AJ2: Protect single site NPV | AK2: (Low 95% CI) NPV | AL2: (High 95% CI) NPV | AM2: All surface waters PV | AN2: (Low 95% CI) PV | AO2: (High 95% CI) PV | AP2: All surface waters NPV | AQ2: (Low 95% CI) NPV | AR2: (High 95% CI) NPV | AS2: Protect Rivers only PV | AT2: (Low 95% CI) PV | AU2: (High 95% CI) PV | AV2: Protect Rivers only NPV | AW2: (Low 95% CI) NPV | AX2: (High 95% CI) NPV | AY2: Protect single site PV | AZ2: (Low 95% CI) PV | BA2: (High 95% CI) PV | BB2: Protect single site NPV | BC2: (Low 95% CI) NPV | BD2: (High 95% CI) NPV | BE2: All surface waters PV | BF2: (Low 95% CI) PV | BG2: (High 95% CI) PV | BH2: All surface waters NPV | BI2: (Low 95% CI) NPV | BJ2: (High 95% CI) NPV | BK2: Protect Rivers only PV | BL2: (Low 95% CI) PV | BM2: (High 95% CI) PV | BN2: Protect Rivers only NPV | BO2: (Low 95% CI) NPV | BP2: (High 95% CI) NPV | BQ2: Protect single site PV | BR2: (Low 95% CI) PV | BS2: (High 95% CI) PV | BT2: Protect single site NPV | BU2: (Low 95% CI) NPV | BV2: (High 95% CI) NPV
A3: 1 | B3: 0.03 | C3: ='WTP Values '!CU2 -> 308.0213692 | D3: ='WTP Values '!CV2 -> 281.1605731 | E3: ='WTP Values '!CW2 -> 337.4484583 | F3: =C3 -> 308.0213692 | G3: =D3 -> 281.1605731 | H3: =E3 -> 337.4484583 | I3: ='WTP Values '!CC2 -> 115.7492039 | J3: ='WTP Values '!CD2 -> 105.6563055 | K3: ='WTP Values '!CE2 -> 126.8063824 | L3: =I3 -> 115.7492039 | M3: =J3 -> 105.6563055 | N3: =K3 -> 126.8063824 | O3: ='WTP Values '!CI2 -> 92.68075061 | P3: ='WTP Values '!CJ2 -> 84.59961795 | Q3: ='WTP Values '!CK2 -> 101.5339584 | R3: =O3 -> 92.68075061 | S3: =P3 -> 84.59961795 | T3: 101.5339584 | U3: ='WTP Values '!BH2 -> 38292856.68 | V3: ='WTP Values '!BI2 -> 34953553.9 | W3: ='WTP Values '!BJ2 -> 41951198.01 | X3: =U3 -> 38292856.68 | Y3: =V3 -> 34953553.9 | Z3: =W3 -> 41951198.01 | AA3: ='WTP Values '!AV2 -> 14389805.77 | AB3: ='WTP Values '!AW2 -> 13135068.44 | AC3: ='WTP Values '!AX2 -> 15764421.28 | AD3: =AA3 -> 14389805.77 | AE3: =AB3 -> 13135068.44 | AF3: 15764421.28 | AG3: ='WTP Values '!BB2 -> 11521962.61 | AH3: ='WTP Values '!BC2 -> 10517325.64 | AI3: ='WTP Values '!BD2 -> 12622583.06 | AJ3: =AG3 -> 11521962.61 | AK3: =AH3 -> 10517325.64 | AL3: 12622583.06 | AM3: ='WTP Values '!CX2 -> 15.49283639 | AN3: ='WTP Values '!CY2 -> 14.14302101 | AO3: ='WTP Values '!CZ2 -> 16.97161377 | AP3: =AM3 -> 15.49283639 | AQ3: =AN3 -> 14.14302101 | AR3: =AO3 -> 16.97161377 | AS3: ='WTP Values '!CF2 -> 5.832106366 | AT3: ='WTP Values '!CG2 -> 5.324915537 | AU3: ='WTP Values '!CH2 -> 6.387754443 | AV3: =AS3 -> 5.832106366 | AW3: =AT3 -> 5.324915537 | AX3: 6.387754443 | AY3: ='WTP Values '!CL2 -> 4.672864735 | AZ3: ='WTP Values '!CM2 -> 4.266769654 | BA3: ='WTP Values '!CN2 -> 5.117758329 | BB3: =AY3 -> 4.672864735 | BC3: =AZ3 -> 4.266769654 | BD3: 5.117758329 | BE3: ='WTP Values '!BK2 -> 1926051.316 | BF3: ='WTP Values '!BL2 -> 1758243.845 | BG3: ='WTP Values '!BM2 -> 2109891.191 | BH3: =BE3 -> 1926051.316 | BI3: =BF3 -> 1758243.845 | BJ3: 2109891.191 | BK3: ='WTP Values '!AY2 -> 725040.6483 | BL3: ='WTP Values '!AZ2 -> 661987.2771 | BM3: ='WTP Values '!BA2 -> 794118.1679 | BN3: =BK3 -> 725040.6483 | BO3: =BL3 -> 661987.2771 | BP3: 794118.1679 | BQ3: ='WTP Values '!BE2 -> 580925.0834 | BR3: ='WTP Values '!BF2 -> 530439.8175 | BS3: ='WTP Values '!BG2 -> 636233.7351 | BT3: =BQ3 -> 580925.0834 | BU3: =BR3 -> 530439.8175 | BV3: 636233.7351
A4: 2 | B4: 0.03 | C4: =C3/(1+B4)^A4 -> 290.3396826 | D4: =D3/(1+B4)^A4 -> 265.020806 | E4: =E3/(1+B4)^A4 -> 318.0775363 | F4: =F3+C4 -> 598.3610518 | G4: =G3+D4 -> 546.1813791 | H4: =H3+E4 -> 655.5259946 | I4: =I3/(1+B4)^A4 -> 109.1047261 | J4: =J3/(1+B4)^A4 -> 99.59120136 | K4: =K3/(1+B4)^A4 -> 119.5271773 | L4: =L3+I4 -> 224.8539299 | M4: =M3+J4 -> 205.2475069 | N4: =N3+K4 -> 246.3335597 | O4: =O3/(1+B4)^A4 -> 87.36049638 | P4: =P3/(1+B4)^A4 -> 79.7432538 | Q4: =Q3/(1+B4)^A4 -> 95.70549385 | R4: =R3+O4 -> 180.041247 | S4: =S3+P4 -> 164.3428718 | T4: =T3+Q4 -> 197.2394523 | U4: =U3/(1+B4)^A4 -> 36094690.06 | V4: =V3/(1+B4)^A4 -> 32947076.91 | W4: =W3/(1+B4)^A4 -> 39543027.62 | X4: =X3+U4 -> 74387546.74 | Y4: =Y3+V4 -> 67900630.81 | Z4: =Z3+W4 -> 81494225.63 | AA4: =AA3/(1+B4)^A4 -> 13563772.05 | AB4: =AB3/(1+B4)^A4 -> 12381061.78 | AC4: =AC3/(1+B4)^A4 -> 14859479.01 | AD4: =AD3+AA4 -> 27953577.82 | AE4: =AE3+AB4 -> 25516130.21 | AF4: =AF3+AC4 -> 30623900.29 | AG4: =AG3/(1+B4)^A4 -> 10860554.82 | AH4: =AH3/(1+B4)^A4 -> 9913588.128 | AI4: =AI3/(1+B4)^A4 -> 11897995.16 | AJ4: =AJ3+AG4 -> 22382517.44 | AK4: =AK3+AH4 -> 20430913.77 | AL4: =AL3+AI4 -> 24520578.22 | AM4: =AM3/(1+B4)^A4 -> 14.60348421 | AN4: =AN3/(1+B4)^A4 -> 13.33115375 | AO4: =AO3/(1+B4)^A4 -> 15.99737371 | AP4: =AP3+AM4 -> 30.0963206 | AQ4: =AQ3+AN4 -> 27.47417476 | AR4: =AR3+AO4 -> 32.96898747 | AS4: =AS3/(1+B4)^A4 -> 5.497319603 | AT4: =AT3/(1+B4)^A4 -> 5.019243602 | AU4: =AU3/(1+B4)^A4 -> 6.021071206 | AV4: =AV3+AS4 -> 11.32942597 | AW4: =AW3+AT4 -> 10.34415914 | AX4: =AX3+AU4 -> 12.40882565 | AY4: =AY3/(1+B4)^A4 -> 4.404623184 | AZ4: =AZ3/(1+B4)^A4 -> 4.021839621 | BA4: =BA3/(1+B4)^A4 -> 4.823978065 | BB4: =BB3+AY4 -> 9.077487919 | BC4: =BC3+AZ4 -> 8.288609276 | BD4: =BD3+BA4 -> 9.941736394 | BE4: =BE3/(1+B4)^A4 -> 1815488.092 | BF4: =BF3/(1+B4)^A4 -> 1657313.456 | BG4: =BG3/(1+B4)^A4 -> 1988774.805 | BH4: =BH3+BE4 -> 3741539.408 | BI4: =BI3+BF4 -> 3415557.301 | BJ4: =BJ3+BG4 -> 4098665.997 | BK4: =BK3/(1+B4)^A4 -> 683420.3491 | BL4: =BL3/(1+B4)^A4 -> 623986.4993 | BM4: =BM3/(1+B4)^A4 -> 748532.5364 | BN4: =BN3+BK4 -> 1408460.997 | BO4: =BO3+BL4 -> 1285973.776 | BP4: =BP3+BM4 -> 1542650.704 | BQ4: =BQ3/(1+B4)^A4 -> 547577.6071 | BR4: =BR3/(1+B4)^A4 -> 499990.402 | BS4: =BS3/(1+B4)^A4 -> 599711.3159 | BT4: =BT3+BQ4 -> 1128502.691 | BU4: =BU3+BR4 -> 1030430.219 | BV4: =BV3+BS4 -> 1235945.051
A5: 3 | B5: 0.03 | C5: =C4/(1+B5)^A5 -> 265.7019389 | D5: =D4/(1+B5)^A5 -> 242.5315802 | E5: =E4/(1+B5)^A5 -> 291.0860044 | F5: =F4+C5 -> 864.0629907 | G5: 788.7129593 | H5: 946.611999 | I5: =I4/(1+B5)^A5 -> 99.84628005 | J5: =J4/(1+B5)^A5 -> 91.14005727 | K5: =K4/(1+B5)^A5 -> 109.3842994 | L5: =L4+I5 -> 324.70021 | M5: 296.3875642 | N5: 355.7178591 | O5: =O4/(1+B5)^A5 -> 79.94722962 | P5: =P4/(1+B5)^A5 -> 72.9763736 | Q5: =Q4/(1+B5)^A5 -> 87.58408445 | R5: =R4+O5 -> 259.9884766 | S5: 237.3192454 | T5: 284.8235367 | U5: =U4/(1+B5)^A5 -> 33031754.55 | V5: =V4/(1+B5)^A5 -> 30151242.64 | W5: =W4/(1+B5)^A5 -> 36187471.91 | X5: =X4+U5 -> 107419301.3 | Y5: 98051873.45 | Z5: 117681697.5 | AA5: =AA4/(1+B5)^A5 -> 12412772.86 | AB5: =AB4/(1+B5)^A5 -> 11330425.42 | AC5: =AC4/(1+B5)^A5 -> 13598528.28 | AD5: =AD4+AA5 -> 40366350.68 | AE5: 36846555.63 | AF5: 44222428.57 | AG5: =AG4/(1+B5)^A5 -> 9938946.164 | AH5: =AH4/(1+B5)^A5 -> 9072337.489 | AI5: =AI4/(1+B5)^A5 -> 10888351.03 | AJ5: =AJ4+AG5 -> 32321463.6 | AK5: 29503251.26 | AL5: 35408929.26 | AM5: =AM4/(1+B5)^A5 -> 13.36425677 | AN5: =AN4/(1+B5)^A5 -> 12.19989416 | AO5: =AO4/(1+B5)^A5 -> 14.63986312 | AP5: =AP4+AM5 -> 43.46057737 | AQ5: 39.67406892 | AR5: 47.60885059 | AS5: =AS4/(1+B5)^A5 -> 5.030826183 | AT5: =AT4/(1+B5)^A5 -> 4.593318918 | AU5: =AU4/(1+B5)^A5 -> 5.510133095 | AV5: =AV4+AS5 -> 16.36025215 | AW5: 14.93747806 | AX5: 17.91895874 | AY5: =AY4/(1+B5)^A5 -> 4.030854169 | AZ5: =AZ4/(1+B5)^A5 -> 3.680552985 | BA5: =BA4/(1+B5)^A5 -> 4.414623291 | BB5: =BB4+AY5 -> 13.10834209 | BC5: 11.96916226 | BD5: 14.35635968 | BE5: =BE4/(1+B5)^A5 -> 1661428.785 | BF5: =BF4/(1+B5)^A5 -> 1516676.586 | BG5: =BG4/(1+B5)^A5 -> 1820010.676 | BH5: =BH4+BE5 -> 5402968.193 | BI5: 4932233.887 | BJ5: 5918676.672 | BK5: =BK4/(1+B5)^A5 -> 625426.4323 | BL5: =BL4/(1+B5)^A5 -> 571036.0404 | BM5: =BM4/(1+B5)^A5 -> 685013.3075 | BN5: =BN4+BK5 -> 2033887.43 | BO5: 1857009.817 | BP5: 2227664.012 | BQ5: =BQ4/(1+B5)^A5 -> 501111.08 | BR5: =BR4/(1+B5)^A5 -> 457562.0461 | BS5: =BS4/(1+B5)^A5 -> 548820.8088 | BT5: =BT4+BQ5 -> 1629613.771 | BU5: 1487992.266 | BV5: 1784765.86
A6: 4 | B6: 0.03 | C6: 236.0727313 | D6: 215.4861677 | E6: 258.6261447 | F6: 1100.135722 | G6: 1004.199127 | H6: 1205.238144 | I6: 88.71212661 | J6: 80.97676043 | K6: 97.18653326 | L6: 413.4123366 | M6: 377.3643246 | N6: 452.9043924 | O6: 71.03207803 | P6: 64.83856275 | Q6: 77.81732464 | R6: 331.0205546 | S6: 302.1578081 | T6: 362.6408614 | U6: 29348286.09 | V6: 26788988.56 | W6: 32152100.09 | X6: 136767587.4 | Y6: 124840862 | Z6: 149833797.6 | AA6: 11028587.92 | AB6: 10066936.23 | AC6: 12082116.25 | AD6: 51394938.59 | AE6: 46913491.86 | AF6: 56304544.82 | AG6: 8830624.936 | AH6: 8060654.354 | AI6: 9674158.866 | AJ6: 41152088.54 | AK6: 37563905.62 | AL6: 45083088.12 | AM6: 11.87396904 | AN6: 10.83944795 | AO6: 13.00732877 | AP6: 55.33454641 | AQ6: 50.51351687 | AR6: 60.61617936 | AS6: 4.469823904 | AT6: 4.081104366 | AU6: 4.895681887 | AV6: 20.83007606 | AW6: 19.01858242 | AX6: 22.81464063 | AY6: 3.581361721 | AZ6: 3.270123656 | BA6: 3.922335615 | BB6: 16.68970381 | BC6: 15.23928592 | BD6: 18.2786953 | BE6: 1476157.956 | BF6: 1347547.502 | BG6: 1617055.912 | BH6: 6879126.149 | BI6: 6279781.389 | BJ6: 7535732.585 | BK6: 555683.2845 | BL6: 507358.1258 | BM6: 608625.4513 | BN6: 2589570.714 | BO6: 2364367.943 | BP6: 2836289.463 | BQ6: 445230.7042 | BR6: 406537.9516 | BS6: 487620.1802 | BT6: 2074844.475 | BU6: 1894530.217 | BV6: 2272386.04
A7: 5 | B7: 0.03 | C7: 203.6384118 | D7: 185.8802612 | E7: 223.0931843 | F7: 1303.774134 | G7: 1190.079388 | H7: 1428.331328 | I7: 76.52385969 | J7: 69.85126488 | K7: 83.83395731 | L7: 489.9361963 | M7: 447.2155895 | N7: 536.7383497 | O7: 61.27289449 | P7: 55.93031379 | Q7: 67.12590781 | R7: 392.2934491 | S7: 358.0881219 | T7: 429.7667692 | U7: 25316089.39 | V7: 23108416.86 | W7: 27734683.98 | X7: 162083676.8 | Y7: 147949278.9 | Z7: 177568481.6 | AA7: 9513356.815 | AB7: 8683827.625 | AC7: 10422139.61 | AD7: 60908295.41 | AE7: 55597319.49 | AF7: 66726684.43 | AG7: 7617374.642 | AH7: 6953191.253 | AI7: 8345014.419 | AJ7: 48769463.18 | AK7: 44517096.87 | AL7: 53428102.54 | AM7: 10.24259 | AN7: 9.350203018 | AO7: 11.22023605 | AP7: 65.57713642 | AQ7: 59.86371989 | AR7: 71.83641541 | AS7: 3.855709364 | AT7: 3.520396476 | AU7: 4.223058201 | AV7: 24.68578542 | AW7: 22.5389789 | AX7: 27.03769883 | AY7: 3.089314081 | AZ7: 2.820837392 | BA7: 3.383441157 | BB7: 19.77901789 | BC7: 18.06012331 | BD7: 21.66213646 | BE7: 1273346.82 | BF7: 1162406.313 | BG7: 1394886.635 | BH7: 8152472.969 | BI7: 7442187.702 | BJ7: 8930619.219 | BK7: 479337.2826 | BL7: 437651.5761 | BM7: 525005.6607 | BN7: 3068907.997 | BO7: 2802019.519 | BP7: 3361295.124 | BQ7: 384059.9165 | BR7: 350683.2083 | BS7: 420625.4509 | BT7: 2458904.391 | BU7: 2245213.425 | BV7: 2693011.491
... 8 more rows

Sheet Adams NPV 4% (hidden)
C1: ACRES all conservation strategies | U1: Countywide demand= all conservation strategies | AM1: Acre value of acquisition and easements | BE1: countywide demand for acquisition and easements
A2: year | B2: rate % | C2: All surface waters PV | D2: (Low 95% CI) PV | E2: (High 95% CI) PV | F2: All surface waters NPV | G2: (Low 95% CI) NPV | H2: (High 95% CI) NPV | I2: Protect Rivers only PV | J2: (Low 95% CI) PV | K2: (High 95% CI) PV | L2: Protect Rivers only NPV | M2: (Low 95% CI) NPV | N2: (High 95% CI) NPV | O2: Protect single site PV | P2: (Low 95% CI) PV | Q2: (High 95% CI) PV | R2: Protect single site NPV | S2: (Low 95% CI) NPV | T2: (High 95% CI) NPV | U2: All surface waters PV | V2: (Low 95% CI) PV | W2: (High 95% CI) PV | X2: All surface waters NPV | Y2: (Low 95% CI) NPV | Z2: (High 95% CI) NPV | AA2: Protect Rivers only PV | AB2: (Low 95% CI) PV | AC2: (High 95% CI) PV | AD2: Protect Rivers only NPV | AE2: (Low 95% CI) NPV | AF2: (High 95% CI) NPV | AG2: Protect single site PV | AH2: (Low 95% CI) PV | AI2: (High 95% CI) PV | AJ2: Protect single site NPV | AK2: (Low 95% CI) NPV | AL2: (High 95% CI) NPV | AM2: All surface waters PV | AN2: (Low 95% CI) PV | AO2: (High 95% CI) PV | AP2: All surface waters NPV | AQ2: (Low 95% CI) NPV | AR2: (High 95% CI) NPV | AS2: Protect Rivers only PV | AT2: (Low 95% CI) PV | AU2: (High 95% CI) PV | AV2: Protect Rivers only NPV | AW2: (Low 95% CI) NPV | AX2: (High 95% CI) NPV | AY2: Protect single site PV | AZ2: (Low 95% CI) PV | BA2: (High 95% CI) PV | BB2: Protect single site NPV | BC2: (Low 95% CI) NPV | BD2: (High 95% CI) NPV | BE2: All surface waters PV | BF2: (Low 95% CI) PV | BG2: (High 95% CI) PV | BH2: All surface waters NPV | BI2: (Low 95% CI) NPV | BJ2: (High 95% CI) NPV | BK2: Protect Rivers only PV | BL2: (Low 95% CI) PV | BM2: (High 95% CI) PV | BN2: Protect Rivers only NPV | BO2: (Low 95% CI) NPV | BP2: (High 95% CI) NPV | BQ2: Protect single site PV | BR2: (Low 95% CI) PV | BS2: (High 95% CI) PV | BT2: Protect single site NPV | BU2: (Low 95% CI) NPV | BV2: (High 95% CI) NPV
A3: 1 | B3: 0.04 | C3: ='WTP Values '!CU2 -> 308.0213692 | D3: ='WTP Values '!CV2 -> 281.1605731 | E3: ='WTP Values '!CW2 -> 337.4484583 | F3: =C3 -> 308.0213692 | G3: =D3 -> 281.1605731 | H3: =E3 -> 337.4484583 | I3: ='WTP Values '!CC2 -> 115.7492039 | J3: ='WTP Values '!CD2 -> 105.6563055 | K3: ='WTP Values '!CE2 -> 126.8063824 | L3: =I3 -> 115.7492039 | M3: =J3 -> 105.6563055 | N3: =K3 -> 126.8063824 | O3: ='WTP Values '!CI2 -> 92.68075061 | P3: ='WTP Values '!CJ2 -> 84.59961795 | Q3: ='WTP Values '!CK2 -> 101.5339584 | R3: =O3 -> 92.68075061 | S3: =P3 -> 84.59961795 | T3: 101.5339584 | U3: ='WTP Values '!BH2 -> 38292856.68 | V3: ='WTP Values '!BI2 -> 34953553.9 | W3: ='WTP Values '!BJ2 -> 41951198.01 | X3: =U3 -> 38292856.68 | Y3: =V3 -> 34953553.9 | Z3: =W3 -> 41951198.01 | AA3: ='WTP Values '!AV2 -> 14389805.77 | AB3: ='WTP Values '!AW2 -> 13135068.44 | AC3: ='WTP Values '!AX2 -> 15764421.28 | AD3: =AA3 -> 14389805.77 | AE3: =AB3 -> 13135068.44 | AF3: 15764421.28 | AG3: ='WTP Values '!BB2 -> 11521962.61 | AH3: ='WTP Values '!BC2 -> 10517325.64 | AI3: ='WTP Values '!BD2 -> 12622583.06 | AJ3: =AG3 -> 11521962.61 | AK3: =AH3 -> 10517325.64 | AL3: 12622583.06 | AM3: ='WTP Values '!CX2 -> 15.49283639 | AN3: ='WTP Values '!CY2 -> 14.14302101 | AO3: ='WTP Values '!CZ2 -> 16.97161377 | AP3: =AM3 -> 15.49283639 | AQ3: =AN3 -> 14.14302101 | AR3: =AO3 -> 16.97161377 | AS3: ='WTP Values '!CF2 -> 5.832106366 | AT3: ='WTP Values '!CG2 -> 5.324915537 | AU3: ='WTP Values '!CH2 -> 6.387754443 | AV3: =AS3 -> 5.832106366 | AW3: =AT3 -> 5.324915537 | AX3: 6.387754443 | AY3: ='WTP Values '!CL2 -> 4.672864735 | AZ3: ='WTP Values '!CM2 -> 4.266769654 | BA3: ='WTP Values '!CN2 -> 5.117758329 | BB3: =AY3 -> 4.672864735 | BC3: =AZ3 -> 4.266769654 | BD3: 5.117758329 | BE3: ='WTP Values '!BK2 -> 1926051.316 | BF3: ='WTP Values '!BL2 -> 1758243.845 | BG3: ='WTP Values '!BM2 -> 2109891.191 | BH3: =BE3 -> 1926051.316 | BI3: =BF3 -> 1758243.845 | BJ3: 2109891.191 | BK3: ='WTP Values '!AY2 -> 725040.6483 | BL3: ='WTP Values '!AZ2 -> 661987.2771 | BM3: ='WTP Values '!BA2 -> 794118.1679 | BN3: =BK3 -> 725040.6483 | BO3: =BL3 -> 661987.2771 | BP3: 794118.1679 | BQ3: ='WTP Values '!BE2 -> 580925.0834 | BR3: ='WTP Values '!BF2 -> 530439.8175 | BS3: ='WTP Values '!BG2 -> 636233.7351 | BT3: =BQ3 -> 580925.0834 | BU3: =BR3 -> 530439.8175 | BV3: 636233.7351
A4: 2 | B4: 0.04 | C4: =C3/(1+B4)^A4 -> 284.7830707 | D4: =D3/(1+B4)^A4 -> 259.9487547 | E4: =E3/(1+B4)^A4 -> 311.9900687 | F4: =F3+C4 -> 592.8044399 | G4: =G3+D4 -> 541.1093278 | H4: =H3+E4 -> 649.4385269 | I4: =I3/(1+B4)^A4 -> 107.0166456 | J4: =J3/(1+B4)^A4 -> 97.68519372 | K4: =K3/(1+B4)^A4 -> 117.2396287 | L4: =L3+I4 -> 222.7658495 | M4: =M3+J4 -> 203.3414992 | N4: =N3+K4 -> 244.0460111 | O4: =O3/(1+B4)^A4 -> 85.6885638 | P4: =P3/(1+B4)^A4 -> 78.2171024 | Q4: =Q3/(1+B4)^A4 -> 93.8738521 | R4: =R3+O4 -> 178.3693144 | S4: =S3+P4 -> 162.8167204 | T4: =T3+Q4 -> 195.4078105 | U4: =U3/(1+B4)^A4 -> 35403898.56 | V4: =V3/(1+B4)^A4 -> 32316525.42 | W4: =W3/(1+B4)^A4 -> 38786240.76 | X4: =X3+U4 -> 73696755.24 | Y4: =Y3+V4 -> 67270079.32 | Z4: =Z3+W4 -> 80737438.76 | AA4: =AA3/(1+B4)^A4 -> 13304184.33 | AB4: =AB3/(1+B4)^A4 -> 12144109.13 | AC4: =AC3/(1+B4)^A4 -> 14575093.64 | AD4: =AD3+AA4 -> 27693990.09 | AE4: =AE3+AB4 -> 25279177.57 | AF4: =AF3+AC4 -> 30339514.92 | AG4: =AG3/(1+B4)^A4 -> 10652702.12 | AH4: =AH3/(1+B4)^A4 -> 9723858.769 | AI4: =AI3/(1+B4)^A4 -> 11670287.6 | AJ4: =AJ3+AG4 -> 22174664.73 | AK4: =AK3+AH4 -> 20241184.41 | AL4: =AL3+AI4 -> 24292870.66 | AM4: =AM3/(1+B4)^A4 -> 14.32399815 | AN4: =AN3/(1+B4)^A4 -> 13.07601795 | AO4: =AO3/(1+B4)^A4 -> 15.69121095 | AP4: =AP3+AM4 -> 29.81683454 | AQ4: =AQ3+AN4 -> 27.21903896 | AR4: =AR3+AO4 -> 32.66282472 | AS4: =AS3/(1+B4)^A4 -> 5.392110176 | AT4: =AT3/(1+B4)^A4 -> 4.923183743 | AU4: =AU3/(1+B4)^A4 -> 5.905838057 | AV4: =AV3+AS4 -> 11.22421654 | AW4: =AW3+AT4 -> 10.24809928 | AX4: =AX3+AU4 -> 12.2935925 | AY4: =AY3/(1+B4)^A4 -> 4.320326124 | AZ4: =AZ3/(1+B4)^A4 -> 3.944868393 | BA4: =BA3/(1+B4)^A4 -> 4.73165526 | BB4: =BB3+AY4 -> 8.993190859 | BC4: =BC3+AZ4 -> 8.211638048 | BD4: =BD3+BA4 -> 9.849413589 | BE4: =BE3/(1+B4)^A4 -> 1780742.711 | BF4: =BF3/(1+B4)^A4 -> 1625595.271 | BG4: =BG3/(1+B4)^A4 -> 1950713.01 | BH4: =BH3+BE4 -> 3706794.027 | BI4: =BI3+BF4 -> 3383839.116 | BJ4: =BJ3+BG4 -> 4060604.201 | BK4: =BK3/(1+B4)^A4 -> 670340.8361 | BL4: =BL3/(1+B4)^A4 -> 612044.45 | BM4: =BM3/(1+B4)^A4 -> 734206.886 | BN4: =BN3+BK4 -> 1395381.484 | BO4: =BO3+BL4 -> 1274031.727 | BP4: =BP3+BM4 -> 1528325.054 | BQ4: =BQ3/(1+B4)^A4 -> 537097.8952 | BR4: =BR3/(1+B4)^A4 -> 490421.4289 | BS4: =BS3/(1+B4)^A4 -> 588233.8527 | BT4: =BT3+BQ4 -> 1118022.979 | BU4: =BU3+BR4 -> 1020861.246 | BV4: =BV3+BS4 -> 1224467.588
A5: 3 | B5: 0.04 | C5: =C4/(1+B5)^A5 -> 253.1711128 | D5: =D4/(1+B5)^A5 -> 231.0934964 | E5: =E4/(1+B5)^A5 -> 277.358035 | F5: =F4+C5 -> 845.9755527 | G5: =G4+D5 -> 772.2028242 | H5: =H4+E5 -> 926.7965619 | I5: =I4/(1+B5)^A5 -> 95.13740825 | J5: =J4/(1+B5)^A5 -> 86.84178151 | K5: =K4/(1+B5)^A5 -> 104.225603 | L5: =L4+I5 -> 317.9032577 | M5: =M4+J5 -> 290.1832808 | N5: =N4+K5 -> 348.2716142 | O5: =O4/(1+B5)^A5 -> 76.1768212 | P5: =P4/(1+B5)^A5 -> 69.53471922 | Q5: =Q4/(1+B5)^A5 -> 83.45351269 | R5: =R4+O5 -> 254.5461356 | S5: =S4+P5 -> 232.3514396 | T5: =T4+Q5 -> 278.8613232 | U5: =U4/(1+B5)^A5 -> 31473936.9 | V5: =V4/(1+B5)^A5 -> 28729273.43 | W5: =W4/(1+B5)^A5 -> 34480826.8 | X5: =X4+U5 -> 105170692.1 | Y5: =Y4+V5 -> 95999352.74 | Z5: =Z4+W5 -> 115218265.6 | AA5: =AA4/(1+B5)^A5 -> 11827371.42 | AB5: =AB4/(1+B5)^A5 -> 10796068.8 | AC5: =AC4/(1+B5)^A5 -> 12957205.17 | AD5: =AD4+AA5 -> 39521361.51 | AE5: =AE4+AB5 -> 36075246.37 | AF5: =AF4+AC5 -> 43296720.1 | AG5: =AG4/(1+B5)^A5 -> 9470213.395 | AH5: =AH4/(1+B5)^A5 -> 8644475.038 | AI5: =AI4/(1+B5)^A5 -> 10374843.18 | AJ5: =AJ4+AG5 -> 31644878.13 | AK5: =AK4+AH5 -> 28885659.45 | AL5: =AL4+AI5 -> 34667713.84 | AM5: =AM4/(1+B5)^A5 -> 12.73398219 | AN5: =AN4/(1+B5)^A5 -> 11.62453234 | AO5: =AO4/(1+B5)^A5 -> 13.9494294 | AP5: =AP4+AM5 -> 42.55081673 | AQ5: =AQ4+AN5 -> 38.8435713 | AR5: =AR4+AO5 -> 46.61225412 | AS5: =AS4/(1+B5)^A5 -> 4.793566312 | AT5: =AT4/(1+B5)^A5 -> 4.376692421 | AU5: =AU4/(1+B5)^A5 -> 5.250268528 | AV5: =AV4+AS5 -> 16.01778285 | AW5: =AW4+AT5 -> 14.6247917 | AX5: =AX4+AU5 -> 17.54386103 | AY5: =AY4/(1+B5)^A5 -> 3.840754192 | AZ5: =AZ4/(1+B5)^A5 -> 3.506973637 | BA5: =BA4/(1+B5)^A5 -> 4.206424296 | BB5: =BB4+AY5 -> 12.83394505 | BC5: =BC4+AZ5 -> 11.71861169 | BD5: =BD4+BA5 -> 14.05583788 | BE5: =BE4/(1+B5)^A5 -> 1583073.786 | BF5: =BF4/(1+B5)^A5 -> 1445148.277 | BG5: =BG4/(1+B5)^A5 -> 1734176.762 | BH5: =BH4+BE5 -> 5289867.813 | BI5: =BI4+BF5 -> 4828987.393 | BJ5: =BJ4+BG5 -> 5794780.963 | BK5: =BK4/(1+B5)^A5 -> 595930.5624 | BL5: =BL4/(1+B5)^A5 -> 544105.2874 | BM5: =BM4/(1+B5)^A5 -> 652707.2481 | BN5: =BN4+BK5 -> 1991312.047 | BO5: =BO4+BL5 -> 1818137.014 | BP5: =BP4+BM5 -> 2181032.302 | BQ5: =BQ4/(1+B5)^A5 -> 477478.0731 | BR5: =BR4/(1+B5)^A5 -> 435982.8645 | BS5: =BS4/(1+B5)^A5 -> 522937.7531 | BT5: =BT4+BQ5 -> 1595501.052 | BU5: =BU4+BR5 -> 1456844.111 | BV5: =BV4+BS5 -> 1747405.341
A6: 4 | B6: 0.04 | C6: 216.4117283 | D6: 197.5396892 | E6: 237.0868107 | F6: 1062.387281 | G6: 969.7425134 | H6: 1163.883373 | I6: 81.3238553 | J6: 74.23271879 | K6: 89.09248228 | L6: 399.227113 | M6: 364.4159996 | N6: 437.3640964 | O6: 65.11626602 | P6: 59.43856941 | Q6: 71.3364124 | R6: 319.6624016 | S6: 291.790009 | T6: 350.1977356 | U6: 26904053.17 | V6: 24557903.33 | W6: 29474355.26 | X6: 132074745.3 | Y6: 120557256.1 | Z6: 144692620.8 | AA6: 10110086.66 | AB6: 9228524.856 | AC6: 11075873.29 | AD6: 49631448.17 | AE6: 45303771.22 | AF6: 54372593.38 | AG6: 8095178.1 | AH6: 7389333.492 | AI6: 8868459.429 | AJ6: 39740056.23 | AK6: 36274992.94 | AL6: 43536173.27 | AM6: 10.88506135 | AN6: 9.936698963 | AO6: 11.92403071 | AP6: 53.43587808 | AQ6: 48.78027026 | AR6: 58.53628483 | AS6: 4.097560573 | AT6: 3.741215024 | AU6: 4.487951542 | AV6: 20.11534343 | AW6: 18.36600673 | AX6: 22.03181257 | AY6: 3.28309278 | AZ6: 2.997775763 | BA6: 3.595669118 | BB6: 16.11703783 | BC6: 14.71638745 | BD6: 17.651507 | BE6: 1353218.107 | BF6: 1235318.804 | BG6: 1482381.564 | BH6: 6643085.92 | BI6: 6064306.196 | BJ6: 7277162.527 | BK6: 509403.9423 | BL6: 465103.48 | BM6: 557936.8912 | BN6: 2500715.989 | BO6: 2283240.494 | BP6: 2738969.193 | BQ6: 408150.258 | BR6: 372679.9798 | BS6: 447009.383 | BT6: 2003651.31 | BU6: 1829524.091 | BV6: 2194414.724
A7: 5 | B7: 0.04 | C7: 177.8746657 | D7: 162.3632252 | E7: 194.8680764 | F7: 1240.261947 | G7: 1132.105739 | H7: 1358.751449 | I7: 66.8422811 | J7: 61.01388379 | K7: 73.22752619 | L7: 466.0693941 | M7: 425.4298833 | N7: 510.5916226 | O7: 53.52082413 | P7: 48.85417138 | Q7: 58.63333105 | R7: 373.1832258 | S7: 340.6441804 | T7: 408.8310667 | U7: 22113170.58 | V7: 20184806.43 | W7: 24225771.54 | X7: 154187915.9 | Y7: 140742062.5 | Z7: 168918392.4 | AA7: 8309754.277 | AB7: 7585174.734 | AC7: 9103560.486 | AD7: 57941202.45 | AE7: 52888945.96 | AF7: 63476153.87 | AG7: 6653646.314 | AH7: 6073493.498 | AI7: 7289227.2 | AJ7: 46393702.54 | AK7: 42348486.44 | AL7: 50825400.47 | AM7: 8.94672698 | AN7: 8.167242229 | AO7: 9.800684065 | AP7: 62.38260506 | AQ7: 56.94751249 | AR7: 68.3369689 | AS7: 3.367896107 | AT7: 3.075006041 | AU7: 3.688769026 | AV7: 23.48323953 | AW7: 21.44101277 | AX7: 25.7205816 | AY7: 2.69846295 | AZ7: 2.46395316 | BA7: 2.955377915 | BB7: 18.81550078 | BC7: 17.18034061 | BD7: 20.60688492 | BE7: 1112246.643 | BF7: 1015342.01 | BG7: 1218409.59 | BH7: 7755332.564 | BI7: 7079648.206 | BJ7: 8495572.118 | BK7: 418692.9084 | BL7: 382281.1577 | BM7: 458583.4548 | BN7: 2919408.898 | BO7: 2665521.652 | BP7: 3197552.648 | BQ7: 335469.7607 | BR7: 306315.7775 | BS7: 367409.1289 | BT7: 2339121.07 | BU7: 2135839.868 | BV7: 2561823.853
... 8 more rows

Sheet Adams NPV 5% (hidden)
C1: ACRES all conservation strategies | U1: Countywide demand= all conservation strategies | AM1: Acre value of acquisition and easements | BE1: countywide demand for acquisition and easements
A2: year | B2: rate % | C2: All surface waters PV | D2: (Low 95% CI) PV | E2: (High 95% CI) PV | F2: All surface waters NPV | G2: (Low 95% CI) NPV | H2: (High 95% CI) NPV | I2: Protect Rivers only PV | J2: (Low 95% CI) PV | K2: (High 95% CI) PV | L2: Protect Rivers only NPV | M2: (Low 95% CI) NPV | N2: (High 95% CI) NPV | O2: Protect single site PV | P2: (Low 95% CI) PV | Q2: (High 95% CI) PV | R2: Protect single site NPV | S2: (Low 95% CI) NPV | T2: (High 95% CI) NPV | U2: All surface waters PV | V2: (Low 95% CI) PV | W2: (High 95% CI) PV | X2: All surface waters NPV | Y2: (Low 95% CI) NPV | Z2: (High 95% CI) NPV | AA2: Protect Rivers only PV | AB2: (Low 95% CI) PV | AC2: (High 95% CI) PV | AD2: Protect Rivers only NPV | AE2: (Low 95% CI) NPV | AF2: (High 95% CI) NPV | AG2: Protect single site PV | AH2: (Low 95% CI) PV | AI2: (High 95% CI) PV | AJ2: Protect single site NPV | AK2: (Low 95% CI) NPV | AL2: (High 95% CI) NPV | AM2: All surface waters PV | AN2: (Low 95% CI) PV | AO2: (High 95% CI) PV | AP2: All surface waters NPV | AQ2: (Low 95% CI) NPV | AR2: (High 95% CI) NPV | AS2: Protect Rivers only PV | AT2: (Low 95% CI) PV | AU2: (High 95% CI) PV | AV2: Protect Rivers only NPV | AW2: (Low 95% CI) NPV | AX2: (High 95% CI) NPV | AY2: Protect single site PV | AZ2: (Low 95% CI) PV | BA2: (High 95% CI) PV | BB2: Protect single site NPV | BC2: (Low 95% CI) NPV | BD2: (High 95% CI) NPV | BE2: All surface waters PV | BF2: (Low 95% CI) PV | BG2: (High 95% CI) PV | BH2: All surface waters NPV | BI2: (Low 95% CI) NPV | BJ2: (High 95% CI) NPV | BK2: Protect Rivers only PV | BL2: (Low 95% CI) PV | BM2: (High 95% CI) PV | BN2: Protect Rivers only NPV | BO2: (Low 95% CI) NPV | BP2: (High 95% CI) NPV | BQ2: Protect single site PV | BR2: (Low 95% CI) PV | BS2: (High 95% CI) PV | BT2: Protect single site NPV | BU2: (Low 95% CI) NPV | BV2: (High 95% CI) NPV
A3: 1 | B3: 0.05 | C3: ='WTP Values '!CU2 -> 308.0213692 | D3: ='WTP Values '!CV2 -> 281.1605731 | E3: ='WTP Values '!CW2 -> 337.4484583 | F3: =C3 -> 308.0213692 | G3: =D3 -> 281.1605731 | H3: =E3 -> 337.4484583 | I3: ='WTP Values '!CC2 -> 115.7492039 | J3: ='WTP Values '!CD2 -> 105.6563055 | K3: ='WTP Values '!CE2 -> 126.8063824 | L3: =I3 -> 115.7492039 | M3: =J3 -> 105.6563055 | N3: =K3 -> 126.8063824 | O3: ='WTP Values '!CI2 -> 92.68075061 | P3: ='WTP Values '!CJ2 -> 84.59961795 | Q3: ='WTP Values '!CK2 -> 101.5339584 | R3: =O3 -> 92.68075061 | S3: =P3 -> 84.59961795 | T3: 101.5339584 | U3: ='WTP Values '!BH2 -> 38292856.68 | V3: ='WTP Values '!BI2 -> 34953553.9 | W3: ='WTP Values '!BJ2 -> 41951198.01 | X3: =U3 -> 38292856.68 | Y3: =V3 -> 34953553.9 | Z3: =W3 -> 41951198.01 | AA3: ='WTP Values '!AV2 -> 14389805.77 | AB3: ='WTP Values '!AW2 -> 13135068.44 | AC3: ='WTP Values '!AX2 -> 15764421.28 | AD3: =AA3 -> 14389805.77 | AE3: =AB3 -> 13135068.44 | AF3: 15764421.28 | AG3: ='WTP Values '!BB2 -> 11521962.61 | AH3: ='WTP Values '!BC2 -> 10517325.64 | AI3: ='WTP Values '!BD2 -> 12622583.06 | AJ3: =AG3 -> 11521962.61 | AK3: =AH3 -> 10517325.64 | AL3: 12622583.06 | AM3: ='WTP Values '!CX2 -> 15.49283639 | AN3: ='WTP Values '!CY2 -> 14.14302101 | AO3: ='WTP Values '!CZ2 -> 16.97161377 | AP3: =AM3 -> 15.49283639 | AQ3: =AN3 -> 14.14302101 | AR3: =AO3 -> 16.97161377 | AS3: ='WTP Values '!CF2 -> 5.832106366 | AT3: ='WTP Values '!CG2 -> 5.324915537 | AU3: ='WTP Values '!CH2 -> 6.387754443 | AV3: =AS3 -> 5.832106366 | AW3: =AT3 -> 5.324915537 | AX3: 6.387754443 | AY3: ='WTP Values '!CL2 -> 4.672864735 | AZ3: ='WTP Values '!CM2 -> 4.266769654 | BA3: ='WTP Values '!CN2 -> 5.117758329 | BB3: =AY3 -> 4.672864735 | BC3: =AZ3 -> 4.266769654 | BD3: 5.117758329 | BE3: ='WTP Values '!BK2 -> 1926051.316 | BF3: ='WTP Values '!BL2 -> 1758243.845 | BG3: ='WTP Values '!BM2 -> 2109891.191 | BH3: =BE3 -> 1926051.316 | BI3: =BF3 -> 1758243.845 | BJ3: 2109891.191 | BK3: ='WTP Values '!AY2 -> 725040.6483 | BL3: ='WTP Values '!AZ2 -> 661987.2771 | BM3: ='WTP Values '!BA2 -> 794118.1679 | BN3: =BK3 -> 725040.6483 | BO3: =BL3 -> 661987.2771 | BP3: 794118.1679 | BQ3: ='WTP Values '!BE2 -> 580925.0834 | BR3: ='WTP Values '!BF2 -> 530439.8175 | BS3: ='WTP Values '!BG2 -> 636233.7351 | BT3: =BQ3 -> 580925.0834 | BU3: =BR3 -> 530439.8175 | BV3: 636233.7351
A4: 2 | B4: 0.05 | C4: =C3/(1+B4)^A4 -> 279.3844619 | D4: =D3/(1+B4)^A4 -> 255.020928 | E4: =E3/(1+B4)^A4 -> 306.0756991 | F4: =F3+C4 -> 587.4058311 | G4: =G3+D4 -> 536.1815011 | H4: =H3+E4 -> 643.5241574 | I4: =I3/(1+B4)^A4 -> 104.98794 | J4: =J3/(1+B4)^A4 -> 95.8333837 | K4: =K3/(1+B4)^A4 -> 115.0171269 | L4: =L3+I4 -> 220.7371439 | M4: =M3+J4 -> 201.4896892 | N4: =N3+K4 -> 241.8235093 | O4: =O3/(1+B4)^A4 -> 84.06417289 | P4: =P3/(1+B4)^A4 -> 76.73434735 | Q4: =Q3/(1+B4)^A4 -> 92.09429336 | R4: =R3+O4 -> 176.7449235 | S4: =S3+P4 -> 161.3339653 | T4: =T3+Q4 -> 193.6282518 | U4: =U3/(1+B4)^A4 -> 34732749.83 | V4: =V3/(1+B4)^A4 -> 31703903.76 | W4: =W3/(1+B4)^A4 -> 38050973.25 | X4: =X3+U4 -> 73025606.51 | Y4: =Y3+V4 -> 66657457.66 | Z4: =Z3+W4 -> 80002171.25 | AA4: =AA3/(1+B4)^A4 -> 13051978.02 | AB4: =AB3/(1+B4)^A4 -> 11913894.27 | AC4: =AC3/(1+B4)^A4 -> 14298794.81 | AD4: =AD3+AA4 -> 27441783.79 | AE4: =AE3+AB4 -> 25048962.71 | AF4: =AF3+AC4 -> 30063216.1 | AG4: =AG3/(1+B4)^A4 -> 10450759.74 | AH4: =AH3/(1+B4)^A4 -> 9539524.394 | AI4: =AI3/(1+B4)^A4 -> 11449054.93 | AJ4: =AJ3+AG4 -> 21972722.35 | AK4: =AK3+AH4 -> 20056850.04 | AL4: =AL3+AI4 -> 24071638 | AM4: =AM3/(1+B4)^A4 -> 14.05245931 | AN4: =AN3/(1+B4)^A4 -> 12.82813697 | AO4: =AO3/(1+B4)^A4 -> 15.39375398 | AP4: =AP3+AM4 -> 29.54529571 | AQ4: =AQ3+AN4 -> 26.97115798 | AR4: =AR3+AO4 -> 32.36536775 | AS4: =AS3/(1+B4)^A4 -> 5.289892396 | AT4: =AT3/(1+B4)^A4 -> 4.829855362 | AU4: =AU3/(1+B4)^A4 -> 5.793881581 | AV4: =AV3+AS4 -> 11.12199876 | AW4: =AW3+AT4 -> 10.1547709 | AX4: =AX3+AU4 -> 12.18163602 | AY4: =AY3/(1+B4)^A4 -> 4.238426064 | AZ4: =AZ3/(1+B4)^A4 -> 3.870085854 | BA4: =BA3/(1+B4)^A4 -> 4.641957668 | BB4: =BB3+AY4 -> 8.911290799 | BC4: =BC3+AZ4 -> 8.136855509 | BD4: =BD3+BA4 -> 9.759715997 | BE4: =BE3/(1+B4)^A4 -> 1746985.321 | BF4: =BF3/(1+B4)^A4 -> 1594778.998 | BG4: =BG3/(1+B4)^A4 -> 1913733.507 | BH4: =BH3+BE4 -> 3673036.637 | BI4: =BI3+BF4 -> 3353022.843 | BJ4: =BJ3+BG4 -> 4023624.698 | BK4: =BK3/(1+B4)^A4 -> 657633.2411 | BL4: =BL3/(1+B4)^A4 -> 600441.9747 | BM4: =BM3/(1+B4)^A4 -> 720288.5876 | BN4: =BN3+BK4 -> 1382673.889 | BO4: =BO3+BL4 -> 1262429.252 | BP4: =BP3+BM4 -> 1514406.756 | BQ4: =BQ3/(1+B4)^A4 -> 526916.1754 | BR4: =BR3/(1+B4)^A4 -> 481124.551 | BS4: =BS3/(1+B4)^A4 -> 577082.7529 | BT4: =BT3+BQ4 -> 1107841.259 | BU4: =BU3+BR4 -> 1011564.368 | BV4: =BV3+BS4 -> 1213316.488
A5: 3 | B5: 0.05 | C5: =C4/(1+B5)^A5 -> 241.3428026 | D5: =D4/(1+B5)^A5 -> 220.296666 | E5: =E4/(1+B5)^A5 -> 264.3996969 | F5: =F4+C5 -> 828.7486337 | G5: 756.4781671 | H5: 907.9238543 | I5: =I4/(1+B5)^A5 -> 90.69252999 | J5: =J4/(1+B5)^A5 -> 82.78448003 | K5: =K4/(1+B5)^A5 -> 99.3561187 | L5: =L4+I5 -> 311.4296739 | M5: 284.2741693 | N5: 341.179628 | O5: =O4/(1+B5)^A5 -> 72.61779323 | P5: =P4/(1+B5)^A5 -> 66.28601434 | Q5: =Q4/(1+B5)^A5 -> 79.55451321 | R5: =R4+O5 -> 249.3627167 | S5: 227.6199796 | T5: 273.182765 | U5: =U4/(1+B5)^A5 -> 30003455.2 | V5: =V4/(1+B5)^A5 -> 27387024.09 | W5: =W4/(1+B5)^A5 -> 32869861.35 | X5: =X4+U5 -> 103029061.7 | Y5: 94044481.75 | Z5: 112872032.6 | AA5: =AA4/(1+B5)^A5 -> 11274789.35 | AB5: =AB4/(1+B5)^A5 -> 10291669.82 | AC5: =AC4/(1+B5)^A5 -> 12351836.57 | AD5: =AD4+AA5 -> 38716573.14 | AE5: 35340632.53 | AF5: 42415052.67 | AG5: =AG4/(1+B5)^A5 -> 9027759.197 | AH5: =AH4/(1+B5)^A5 -> 8240599.844 | AI5: =AI4/(1+B5)^A5 -> 9890124.119 | AJ5: =AJ4+AG5 -> 31000481.55 | AK5: 28297449.88 | AL5: 33961762.12 | AM5: =AM4/(1+B5)^A5 -> 12.13904271 | AN5: =AN4/(1+B5)^A5 -> 11.08142703 | AO5: =AO4/(1+B5)^A5 -> 13.29770347 | AP5: =AP4+AM5 -> 41.68433842 | AQ5: 38.05258502 | AR5: 45.66307122 | AS5: =AS4/(1+B5)^A5 -> 4.569607944 | AT5: =AT4/(1+B5)^A5 -> 4.172210657 | AU5: =AU4/(1+B5)^A5 -> 5.004972751 | AV5: =AV4+AS5 -> 15.69160671 | AW5: 14.32698156 | AX5: 17.18660877 | AY5: =AY4/(1+B5)^A5 -> 3.661311793 | AZ5: =AZ4/(1+B5)^A5 -> 3.34312567 | BA5: =BA4/(1+B5)^A5 -> 4.009897564 | BB5: =BB4+AY5 -> 12.57260259 | BC5: 11.47998118 | BD5: 13.76961356 | BE5: =BE4/(1+B5)^A5 -> 1509111.604 | BF5: =BF4/(1+B5)^A5 -> 1377630.06 | BG5: =BG4/(1+B5)^A5 -> 1653154.957 | BH5: =BH4+BE5 -> 5182148.242 | BI5: 4730652.903 | BJ5: 5676779.654 | BK5: =BK4/(1+B5)^A5 -> 568088.3197 | BL5: =BL4/(1+B5)^A5 -> 518684.3535 | BM5: =BM4/(1+B5)^A5 -> 622212.3638 | BN5: =BN4+BK5 -> 1950762.209 | BO5: 1781113.605 | BP5: 2136619.119 | BQ5: =BQ4/(1+B5)^A5 -> 455170.0036 | BR5: =BR4/(1+B5)^A5 -> 415613.4767 | BS5: =BS4/(1+B5)^A5 -> 498505.7794 | BT5: =BT4+BQ5 -> 1563011.262 | BU5: 1427177.845 | BV5: 1711822.267
A6: 4 | B6: 0.05 | C6: 198.553321 | D6: 181.2386123 | E6: 217.522285 | F6: 1027.301955 | G6: 937.7167794 | H6: 1125.446139 | I6: 74.61296887 | J6: 68.1069966 | K6: 81.74052474 | L6: 386.0426428 | M6: 352.3811659 | N6: 422.9201528 | O6: 59.74283821 | P6: 54.53366804 | Q6: 65.4496949 | R6: 309.1055549 | S6: 282.1536477 | T6: 338.6324599 | U6: 24683916.85 | V6: 22531372.5 | W6: 27042116.28 | X6: 127712978.6 | Y6: 116575854.2 | Z6: 139914148.9 | AA6: 9275797.1 | AB6: 8466982.23 | AC6: 10161886.52 | AD6: 47992370.24 | AE6: 43807614.76 | AF6: 52576939.19 | AG6: 7427159.833 | AH6: 6779561.885 | AI6: 8136629.589 | AJ6: 38427641.38 | AK6: 35077011.77 | AL6: 42098391.71 | AM6: 9.986820477 | AN6: 9.116717446 | AO6: 10.94005356 | AP6: 51.67115889 | AQ6: 47.16930246 | AR6: 56.60312478 | AS6: 3.759427764 | AT6: 3.432488033 | AU6: 4.117603468 | AV6: 19.45103447 | AW6: 17.75946959 | AX6: 21.30421224 | AY6: 3.012170273 | AZ6: 2.750397763 | BA6: 3.29895265 | BB6: 15.58477286 | BC6: 14.23037894 | BD6: 17.06856621 | BE6: 1241549.852 | BF6: 1133379.659 | BG6: 1360054.674 | BH6: 6423698.093 | BI6: 5864032.562 | BJ6: 7036834.329 | BK6: 467367.6665 | BL6: 426722.9012 | BM6: 511895.6515 | BN6: 2418129.876 | BO6: 2207836.507 | BP6: 2648514.771 | BQ6: 374469.4884 | BR6: 341926.2359 | BS6: 410121.9384 | BT6: 1937480.751 | BU6: 1769104.081 | BV6: 2121944.206
A7: 5 | B7: 0.05 | C7: 155.5717224 | D7: 142.0051951 | E7: 170.4344021 | F7: 1182.873677 | G7: 1079.721975 | H7: 1295.880541 | I7: 58.46121346 | J7: 53.36361395 | K7: 64.04584 | L7: 444.5038562 | M7: 405.7447798 | N7: 486.9659928 | O7: 46.81007699 | P7: 42.72855586 | Q7: 51.28154854 | R7: 355.9156319 | S7: 324.8822035 | T7: 389.9140084 | U7: 19340494.74 | V7: 17653919.92 | W7: 21188205.7 | X7: 147053473.3 | Y7: 134229774.2 | Z7: 161102354.6 | AA7: 7267829.743 | AB7: 6634102.128 | AC7: 7962103.987 | AD7: 55260199.98 | AE7: 50441716.89 | AF7: 60539043.18 | AG7: 5819374.072 | AH7: 5311964.134 | AI7: 6375262.19 | AJ7: 44247015.45 | AK7: 40388975.9 | AL7: 48473653.89 | AM7: 7.824935164 | AN7: 7.143186671 | AO7: 8.571818224 | AP7: 59.49609406 | AQ7: 54.31248913 | AR7: 65.174943 | AS7: 2.945610024 | AT7: 2.68944419 | AU7: 3.226250061 | AV7: 22.39664449 | AW7: 20.44891378 | AX7: 24.5304623 | AY7: 2.360114227 | AZ7: 2.155008615 | BA7: 2.584815723 | BB7: 17.94488709 | BC7: 16.38538756 | BD7: 19.65338193 | BE7: 972786.7957 | BF7: 888032.6197 | BG7: 1065638.425 | BH7: 7396484.889 | BI7: 6752065.182 | BJ7: 8102472.754 | BK7: 366194.7961 | BL7: 334348.559 | BM7: 401083.6375 | BN7: 2784324.672 | BO7: 2542185.065 | BP7: 3049598.408 | BQ7: 293406.6427 | BR7: 267908.1528 | BS7: 321341.2702 | BT7: 2230887.394 | BU7: 2037012.234 | BV7: 2443285.476
... 8 more rows

Sheet Allegheny (hidden)
B1: County | C1: Allegheny
B2: Number of households | C2: ='WTP Values '!C3 -> 531075 | E2: CLICK HERE TO GO BACK TO COUNTY LIST
B3: Percent of county forested | C3: ='WTP Values '!DA3 -> 0.3541910694
B4: Square miles of surface water | C4: ='WTP Values '!BU3 -> 0.1465268447
B5: Miles of major rivers | C5: ='WTP Values '!BV3 -> 322.5899764
B6: Miles of tributaries | C6: ='WTP Values '!BW3 -> 1008.747007
... 7 more rows

Sheet Allegheny NPV 1% (hidden)
C1: ACRES all conservation strategies | U1: Countywide demand= all conservation strategies | AM1: Acre value of acquisition and easements | BE1: countywide demand for acquisition and easements
A2: year | B2: rate % | C2: All surface waters PV | D2: (Low 95% CI) PV | E2: (High 95% CI) PV | F2: All surface waters NPV | G2: (Low 95% CI) NPV | H2: (High 95% CI) NPV | I2: Protect Rivers only PV | J2: (Low 95% CI) PV | K2: (High 95% CI) PV | L2: Protect Rivers only NPV | M2: (Low 95% CI) NPV | N2: (High 95% CI) NPV | O2: Protect single site PV | P2: (Low 95% CI) PV | Q2: (High 95% CI) PV | R2: Protect single site NPV | S2: (Low 95% CI) NPV | T2: (High 95% CI) NPV | U2: All surface waters PV | V2: (Low 95% CI) PV | W2: (High 95% CI) PV | X2: All surface waters NPV | Y2: (Low 95% CI) NPV | Z2: (High 95% CI) NPV | AA2: Protect Rivers only PV | AB2: (Low 95% CI) PV | AC2: (High 95% CI) PV | AD2: Protect Rivers only NPV | AE2: (Low 95% CI) NPV | AF2: (High 95% CI) NPV | AG2: Protect single site PV | AH2: (Low 95% CI) PV | AI2: (High 95% CI) PV | AJ2: Protect single site NPV | AK2: (Low 95% CI) NPV | AL2: (High 95% CI) NPV | AM2: All surface waters PV | AN2: (Low 95% CI) PV | AO2: (High 95% CI) PV | AP2: All surface waters NPV | AQ2: (Low 95% CI) NPV | AR2: (High 95% CI) NPV | AS2: Protect Rivers only PV | AT2: (Low 95% CI) PV | AU2: (High 95% CI) PV | AV2: Protect Rivers only NPV | AW2: (Low 95% CI) NPV | AX2: (High 95% CI) NPV | AY2: Protect single site PV | AZ2: (Low 95% CI) PV | BA2: (High 95% CI) PV | BB2: Protect single site NPV | BC2: (Low 95% CI) NPV | BD2: (High 95% CI) NPV | BE2: All surface waters PV | BF2: (Low 95% CI) PV | BG2: (High 95% CI) PV | BH2: All surface waters NPV | BI2: (Low 95% CI) NPV | BJ2: (High 95% CI) NPV | BK2: Protect Rivers only PV | BL2: (Low 95% CI) PV | BM2: (High 95% CI) PV | BN2: Protect Rivers only NPV | BO2: (Low 95% CI) NPV | BP2: (High 95% CI) NPV | BQ2: Protect single site PV | BR2: (Low 95% CI) PV | BS2: (High 95% CI) PV | BT2: Protect single site NPV | BU2: (Low 95% CI) NPV | BV2: (High 95% CI) NPV
A3: 1 | B3: 0.01 | C3: ='WTP Values '!CU3 -> 2022.59197 | D3: ='WTP Values '!CV3 -> 1846.217925 | E3: ='WTP Values '!CW3 -> 2215.816872 | F3: =C3 -> 2022.59197 | G3: =D3 -> 1846.217925 | H3: =E3 -> 2215.816872 | I3: ='WTP Values '!CC3 -> 760.1133119 | J3: ='WTP Values '!CD3 -> 693.8394582 | K3: ='WTP Values '!CF3 -> 38.35536104 | L3: =I3 -> 760.1133119 | M3: =J3 -> 693.8394582 | N3: =K3 -> 38.35536104 | O3: ='WTP Values '!CI3 -> 608.6369726 | P3: ='WTP Values '!CJ3 -> 555.5731465 | Q3: ='WTP Values '!CK3 -> 666.7705412 | R3: =O3 -> 608.6369726 | S3: =P3 -> 555.5731465 | T3: =Q3 -> 666.7705412 | U3: ='WTP Values '!BH3 -> 341273429.7 | V3: ='WTP Values '!BI3 -> 311513707.4 | W3: ='WTP Values '!BJ3 -> 373876409.6 | X3: =U3 -> 341273429.7 | Y3: =V3 -> 311513707.4 | Z3: =W3 -> 373876409.6 | AA3: ='WTP Values '!AV3 -> 128254477.8 | AB3: ='WTP Values '!AW3 -> 117072041.8 | AC3: ='WTP Values '!AX3 -> 140505289 | AD3: =AA3 -> 128254477.8 | AE3: =AB3 -> 117072041.8 | AF3: =AC3 -> 140505289 | AG3: ='WTP Values '!BB3 -> 102695763.7 | AH3: ='WTP Values '!BC3 -> 93742265.36 | AI3: ='WTP Values '!BD3 -> 112504683.5 | AJ3: =AG3 -> 102695763.7 | AK3: =AH3 -> 93742265.36 | AL3: =AI3 -> 112504683.5 | AM3: ='WTP Values '!CX3 -> 101.7836534 | AN3: ='WTP Values '!CY3 -> 92.92046119 | AO3: ='WTP Values '!CZ3 -> 111.4936391 | AP3: =AM3 -> 101.7836534 | AQ3: =AN3 -> 92.92046119 | AR3: =AO3 -> 111.4936391 | AS3: ='WTP Values '!CF3 -> 38.35536104 | AT3: ='WTP Values '!CG3 -> 35.02495092 | AU3: ='WTP Values '!CH3 -> 42.00396008 | AV3: =AS3 -> 38.35536104 | AW3: =AT3 -> 35.02495092 | AX3: =AU3 -> 42.00396008 | AY3: ='WTP Values '!CL3 -> 30.74333449 | AZ3: ='WTP Values '!CM3 -> 28.07675795 | BA3: ='WTP Values '!CN3 -> 33.66467699 | BB3: =AY3 -> 30.74333449 | BC3: =AZ3 -> 28.07675795 | BD3: =BA3 -> 33.66467699 | BE3: ='WTP Values '!BK3 -> 17174030.65 | BF3: ='WTP Values '!BL3 -> 15678537.71 | BG3: ='WTP Values '!BM3 -> 18812403.68 | BH3: =BE3 -> 17174030.65 | BI3: =BF3 -> 15678537.71 | BJ3: =BG3 -> 18812403.68 | BK3: ='WTP Values '!AY3 -> 6471728.26 | BL3: ='WTP Values '!AZ3 -> 5909785.713 | BM3: ='WTP Values '!BA3 -> 7087359.058 | BN3: =BK3 -> 6471728.26 | BO3: =BL3 -> 5909785.713 | BP3: =BM3 -> 7087359.058 | BQ3: ='WTP Values '!BE3 -> 5187345.426 | BR3: ='WTP Values '!BF3 -> 4737412.006 | BS3: ='WTP Values '!BG3 -> 5680265.693 | BT3: =BQ3 -> 5187345.426 | BU3: =BR3 -> 4737412.006 | BV3: =BS3 -> 5680265.693
A4: 2 | B4: 0.01 | C4: =C3/(1+B4)^A4 -> 1982.738917 | D4: =D3/(1+B4)^A4 -> 1809.840138 | E4: =E3/(1+B4)^A4 -> 2172.156526 | F4: =F3+C4 -> 4005.330887 | G4: =G3+D4 -> 3656.058063 | H4: =H3+E4 -> 4387.973399 | I4: =I3/(1+B4)^A4 -> 745.1360767 | J4: =J3/(1+B4)^A4 -> 680.1680798 | K4: =K3/(1+B4)^A4 -> 37.5996089 | L4: =L3+I4 -> 1505.249389 | M4: =M3+J4 -> 1374.007538 | N4: =N3+K4 -> 75.95496994 | O4: =O3/(1+B4)^A4 -> 596.6444197 | P4: =P3/(1+B4)^A4 -> 544.6261606 | Q4: =Q3/(1+B4)^A4 -> 653.6325274 | R4: =R3+O4 -> 1205.281392 | S4: =S3+P4 -> 1100.199307 | T4: =T3+Q4 -> 1320.403069 | U4: =U3/(1+B4)^A4 -> 334548994.9 | V4: =V3/(1+B4)^A4 -> 305375656.7 | W4: =W3/(1+B4)^A4 -> 366509567.3 | X4: =X3+U4 -> 675822424.5 | Y4: =Y3+V4 -> 616889364.2 | Z4: =Z3+W4 -> 740385976.8 | AA4: =AA3/(1+B4)^A4 -> 125727357.9 | AB4: =AB3/(1+B4)^A4 -> 114765260 | AC4: =AC3/(1+B4)^A4 -> 137736779.7 | AD4: =AD3+AA4 -> 253981835.7 | AE4: =AE3+AB4 -> 231837301.8 | AF4: =AF3+AC4 -> 278242068.7 | AG4: =AG3/(1+B4)^A4 -> 100672251.5 | AH4: =AH3/(1+B4)^A4 -> 91895172.39 | AI4: =AI3/(1+B4)^A4 -> 110287896.8 | AJ4: =AJ3+AG4 -> 203368015.2 | AK4: =AK3+AH4 -> 185637437.8 | AL4: =AL3+AI4 -> 222792580.3 | AM4: =AM3/(1+B4)^A4 -> 99.77811332 | AN4: =AN3/(1+B4)^A4 -> 91.08956101 | AO4: =AO3/(1+B4)^A4 -> 109.296774 | AP4: =AP3+AM4 -> 201.5617667 | AQ4: =AQ3+AN4 -> 184.0100222 | AR4: =AR3+AO4 -> 220.7904131 | AS4: =AS3/(1+B4)^A4 -> 37.5996089 | AT4: =AT3/(1+B4)^A4 -> 34.33482102 | AU4: =AU3/(1+B4)^A4 -> 41.17631613 | AV4: =AV3+AS4 -> 75.95496994 | AW4: =AW3+AT4 -> 69.35977194 | AX4: =AX3+AU4 -> 83.18027621 | AY4: =AY3/(1+B4)^A4 -> 30.13756935 | AZ4: =AZ3/(1+B4)^A4 -> 27.5235349 | BA4: =BA3/(1+B4)^A4 -> 33.00134986 | BB4: =BB3+AY4 -> 60.88090384 | BC4: =BC3+AZ4 -> 55.60029285 | BD4: =BD3+BA4 -> 66.66602685 | BE4: =BE3/(1+B4)^A4 -> 16835634.4 | BF4: =BF3/(1+B4)^A4 -> 15369608.58 | BG4: =BG3/(1+B4)^A4 -> 18441725 | BH4: =BH3+BE4 -> 34009665.05 | BI4: =BI3+BF4 -> 31048146.3 | BJ4: =BJ3+BG4 -> 37254128.68 | BK4: =BK3/(1+B4)^A4 -> 6344209.646 | BL4: =BL3/(1+B4)^A4 -> 5793339.587 | BM4: =BM3/(1+B4)^A4 -> 6947710.086 | BN4: =BN3+BK4 -> 12815937.91 | BO4: =BO3+BL4 -> 11703125.3 | BP4: =BP3+BM4 -> 14035069.14 | BQ4: =BQ3/(1+B4)^A4 -> 5085134.228 | BR4: =BR3/(1+B4)^A4 -> 4644066.274 | BS4: =BS3/(1+B4)^A4 -> 5568342.018 | BT4: =BT3+BQ4 -> 10272479.65 | BU4: =BU3+BR4 -> 9381478.28 | BV4: =BV3+BS4 -> 11248607.71
A5: 3 | B5: 0.01 | C5: =C4/(1+B5)^A5 -> 1924.426859 | D5: =D4/(1+B5)^A5 -> 1756.613007 | E5: =E4/(1+B5)^A5 -> 2108.273724 | F5: =F4+C5 -> 5929.757746 | G5: 5412.67107 | H5: 6496.247123 | I5: =I4/(1+B5)^A5 -> 723.2217349 | J5: =J4/(1+B5)^A5 -> 660.1644372 | K5: =K4/(1+B5)^A5 -> 36.49380996 | L5: =L4+I5 -> 2228.471124 | M5: 2034.171975 | N5: 112.4487799 | O5: =O4/(1+B5)^A5 -> 579.0971956 | P5: =P4/(1+B5)^A5 -> 528.6087858 | Q5: =Q4/(1+B5)^A5 -> 634.4092915 | R5: =R4+O5 -> 1784.378588 | S5: 1628.808093 | T5: 1954.81236 | U5: =U4/(1+B5)^A5 -> 324709958.4 | V5: =V4/(1+B5)^A5 -> 296394603.8 | W5: =W4/(1+B5)^A5 -> 355730575.1 | X5: =X4+U5 -> 1000532383 | Y5: 913283968 | Z5: 1096116552 | AA5: =AA4/(1+B5)^A5 -> 122029734.9 | AB5: =AB4/(1+B5)^A5 -> 111390030.7 | AC5: =AC4/(1+B5)^A5 -> 133685961.4 | AD5: =AD4+AA5 -> 376011570.6 | AE5: 343227332.5 | AF5: 411928030.1 | AG5: =AG4/(1+B5)^A5 -> 97711495.46 | AH5: =AH4/(1+B5)^A5 -> 89192548.97 | AI5: =AI4/(1+B5)^A5 -> 107044346 | AJ5: =AJ4+AG5 -> 301079510.7 | AK5: 274829986.7 | AL5: 329836926.3 | AM5: =AM4/(1+B5)^A5 -> 96.84365377 | AN5: =AN4/(1+B5)^A5 -> 88.4106305 | AO5: =AO4/(1+B5)^A5 -> 106.082372 | AP5: =AP4+AM5 -> 298.4054205 | AQ5: 272.4206527 | AR5: 326.8727851 | AS5: =AS4/(1+B5)^A5 -> 36.49380996 | AT5: =AT4/(1+B5)^A5 -> 33.32503901 | AU5: =AU4/(1+B5)^A5 -> 39.96532676 | AV5: =AV4+AS5 -> 112.4487799 | AW5: 102.6848109 | AX5: 123.145603 | AY5: =AY4/(1+B5)^A5 -> 29.25122789 | AZ5: =AZ4/(1+B5)^A5 -> 26.71407181 | BA5: =BA4/(1+B5)^A5 -> 32.03078504 | BB5: =BB4+AY5 -> 90.13213173 | BC5: 82.31436466 | BD5: 98.69681189 | BE5: =BE4/(1+B5)^A5 -> 16340500.88 | BF5: =BF4/(1+B5)^A5 -> 14917590.67 | BG5: =BG4/(1+B5)^A5 -> 17899356.6 | BH5: =BH4+BE5 -> 50350165.93 | BI5: 45965736.96 | BJ5: 55153485.28 | BK5: =BK4/(1+B5)^A5 -> 6157627.379 | BL5: =BL4/(1+B5)^A5 -> 5622958.327 | BM5: =BM4/(1+B5)^A5 -> 6743378.96 | BN5: =BN4+BK5 -> 18973565.28 | BO5: 17326083.63 | BP5: 20778448.1 | BQ5: =BQ4/(1+B5)^A5 -> 4935581.182 | BR5: =BR4/(1+B5)^A5 -> 4507484.972 | BS5: =BS4/(1+B5)^A5 -> 5404577.903 | BT5: =BT4+BQ5 -> 15208060.84 | BU5: 13888963.25 | BV5: 16653185.61
A6: 4 | B6: 0.01 | C6: 1849.336386 | D6: 1688.070573 | E6: 2026.00961 | F6: 7779.094132 | G6: 7100.741643 | H6: 8522.256733 | I6: 695.001872 | J6: 634.4050483 | K6: 35.06983407 | L6: 2923.472996 | M6: 2668.577024 | N6: 147.518614 | O6: 556.5010225 | P6: 507.9826531 | Q6: 609.6548594 | R6: 2340.87961 | S6: 2136.790746 | T6: 2564.46722 | U6: 312039887.7 | V6: 284829388.5 | W6: 341850090.6 | X6: 1312572271 | Y6: 1198113357 | Z6: 1437966643 | AA6: 117268176.7 | AB6: 107043630.1 | AC6: 128469581.2 | AD6: 493279747.3 | AE6: 450270962.6 | AF6: 540397611.3 | AG6: 93898826.57 | AH6: 85712286.43 | AI6: 102867512.5 | AJ6: 394978337.2 | AK6: 360542273.2 | AL6: 432704438.9 | AM6: 93.06484776 | AN6: 84.96087815 | AO6: 101.9430744 | AP6: 391.4702683 | AQ6: 357.3815308 | AR6: 428.8158594 | AS6: 35.06983407 | AT6: 32.02470747 | AU6: 38.40589348 | AV6: 147.518614 | AW6: 134.7095184 | AX6: 161.5514965 | AY6: 28.10985506 | AZ6: 25.67169793 | BA6: 30.78095484 | BB6: 118.2419868 | BC6: 107.9860626 | BD6: 129.4777667 | BE6: 15702900.17 | BF6: 14335511.42 | BG6: 17200929.87 | BH6: 66053066.1 | BI6: 60301248.38 | BJ6: 72354415.15 | BK6: 5917358.88 | BL6: 5403552.43 | BM6: 6480254.636 | BN6: 24890924.16 | BO6: 22729636.06 | BP6: 27258702.74 | BQ6: 4742996.505 | BR6: 4331604.461 | BS6: 5193693.135 | BT6: 19951057.34 | BU6: 18220567.71 | BV6: 21846878.75
A7: 5 | B7: 0.01 | C7: 1759.580116 | D7: 1606.141228 | E7: 1927.678626 | F7: 9538.674248 | G7: 8706.882871 | H7: 10449.93536 | I7: 661.270434 | J7: 603.6146355 | K7: 33.36774379 | L7: 3584.74343 | M7: 3272.191659 | N7: 180.8863578 | O7: 529.491628 | P7: 483.3280643 | Q7: 580.06568 | R7: 2870.371238 | S7: 2620.11881 | T7: 3144.5329 | U7: 296895246.3 | V7: 271005390 | W7: 325258631.5 | X7: 1609467517 | Y7: 1469118747 | Z7: 1763225274 | AA7: 111576646.4 | AB7: 101848341.1 | AC7: 122234398.4 | AD7: 604856393.7 | AE7: 552119303.8 | AF7: 662632009.7 | AG7: 89341511.58 | AH7: 81552299.55 | AI7: 97874908.55 | AJ7: 484319848.8 | AK7: 442094572.7 | AL7: 530579347.4 | AM7: 88.54800937 | AN7: 80.83736035 | AO7: 96.99533737 | AP7: 480.0182776 | AQ7: 438.2188912 | AR7: 525.8111968 | AS7: 33.36774379 | AT7: 30.47041031 | AU7: 36.54188985 | AV7: 180.8863578 | AW7: 165.1799287 | AX7: 198.0933863 | AY7: 26.74556257 | AZ7: 24.42573972 | BA7: 29.28702237 | BB7: 144.9875494 | BC7: 132.4118023 | BD7: 158.7647891 | BE7: 14940770.7 | BF7: 13639747.23 | BG7: 16366094.57 | BH7: 80993836.81 | BI7: 73940995.61 | BJ7: 88720509.72 | BK7: 5630163.935 | BL7: 5141294.728 | BM7: 6165739.933 | BN7: 30521088.1 | BO7: 27870930.78 | BP7: 33424442.67 | BQ7: 4512798.431 | BR7: 4121373.017 | BS7: 4941620.81 | BT7: 24463855.77 | BU7: 22341940.73 | BV7: 26788499.56
... 8 more rows

Sheet Allegheny NPV 2% (hidden)
C1: ACRES all conservation strategies | U1: Countywide demand= all conservation strategies | AM1: Acre value of acquisition and easements | BE1: countywide demand for acquisition and easements
A2: year | B2: rate % | C2: All surface waters PV | D2: (Low 95% CI) PV | E2: (High 95% CI) PV | F2: All surface waters NPV | G2: (Low 95% CI) NPV | H2: (High 95% CI) NPV | I2: Protect Rivers only PV | J2: (Low 95% CI) PV | K2: (High 95% CI) PV | L2: Protect Rivers only NPV | M2: (Low 95% CI) NPV | N2: (High 95% CI) NPV | O2: Protect single site PV | P2: (Low 95% CI) PV | Q2: (High 95% CI) PV | R2: Protect single site NPV | S2: (Low 95% CI) NPV | T2: (High 95% CI) NPV | U2: All surface waters PV | V2: (Low 95% CI) PV | W2: (High 95% CI) PV | X2: All surface waters NPV | Y2: (Low 95% CI) NPV | Z2: (High 95% CI) NPV | AA2: Protect Rivers only PV | AB2: (Low 95% CI) PV | AC2: (High 95% CI) PV | AD2: Protect Rivers only NPV | AE2: (Low 95% CI) NPV | AF2: (High 95% CI) NPV | AG2: Protect single site PV | AH2: (Low 95% CI) PV | AI2: (High 95% CI) PV | AJ2: Protect single site NPV | AK2: (Low 95% CI) NPV | AL2: (High 95% CI) NPV | AM2: All surface waters PV | AN2: (Low 95% CI) PV | AO2: (High 95% CI) PV | AP2: All surface waters NPV | AQ2: (Low 95% CI) NPV | AR2: (High 95% CI) NPV | AS2: Protect Rivers only PV | AT2: (Low 95% CI) PV | AU2: (High 95% CI) PV | AV2: Protect Rivers only NPV | AW2: (Low 95% CI) NPV | AX2: (High 95% CI) NPV | AY2: Protect single site PV | AZ2: (Low 95% CI) PV | BA2: (High 95% CI) PV | BB2: Protect single site NPV | BC2: (Low 95% CI) NPV | BD2: (High 95% CI) NPV | BE2: All surface waters PV | BF2: (Low 95% CI) PV | BG2: (High 95% CI) PV | BH2: All surface waters NPV | BI2: (Low 95% CI) NPV | BJ2: (High 95% CI) NPV | BK2: Protect Rivers only PV | BL2: (Low 95% CI) PV | BM2: (High 95% CI) PV | BN2: Protect Rivers only NPV | BO2: (Low 95% CI) NPV | BP2: (High 95% CI) NPV | BQ2: Protect single site PV | BR2: (Low 95% CI) PV | BS2: (High 95% CI) PV | BT2: Protect single site NPV | BU2: (Low 95% CI) NPV | BV2: (High 95% CI) NPV
A3: 1 | B3: 0.02 | C3: ='WTP Values '!CU3 -> 2022.59197 | D3: ='WTP Values '!CV3 -> 1846.217925 | E3: ='WTP Values '!CW3 -> 2215.816872 | F3: =C3 -> 2022.59197 | G3: =D3 -> 1846.217925 | H3: =E3 -> 2215.816872 | I3: ='WTP Values '!CC3 -> 760.1133119 | J3: ='WTP Values '!CD3 -> 693.8394582 | K3: ='WTP Values '!CF3 -> 38.35536104 | L3: =I3 -> 760.1133119 | M3: =J3 -> 693.8394582 | N3: =K3 -> 38.35536104 | O3: ='WTP Values '!CI3 -> 608.6369726 | P3: ='WTP Values '!CJ3 -> 555.5731465 | Q3: ='WTP Values '!CK3 -> 666.7705412 | R3: =O3 -> 608.6369726 | S3: =P3 -> 555.5731465 | T3: =Q3 -> 666.7705412 | U3: ='WTP Values '!BH3 -> 341273429.7 | V3: ='WTP Values '!BI3 -> 311513707.4 | W3: ='WTP Values '!BJ3 -> 373876409.6 | X3: =U3 -> 341273429.7 | Y3: =V3 -> 311513707.4 | Z3: =W3 -> 373876409.6 | AA3: ='WTP Values '!AV3 -> 128254477.8 | AB3: ='WTP Values '!AW3 -> 117072041.8 | AC3: ='WTP Values '!AX3 -> 140505289 | AD3: =AA3 -> 128254477.8 | AE3: =AB3 -> 117072041.8 | AF3: =AC3 -> 140505289 | AG3: ='WTP Values '!BB3 -> 102695763.7 | AH3: ='WTP Values '!BC3 -> 93742265.36 | AI3: ='WTP Values '!BD3 -> 112504683.5 | AJ3: =AG3 -> 102695763.7 | AK3: =AH3 -> 93742265.36 | AL3: =AI3 -> 112504683.5 | AM3: ='WTP Values '!CX3 -> 101.7836534 | AN3: ='WTP Values '!CY3 -> 92.92046119 | AO3: ='WTP Values '!CZ3 -> 111.4936391 | AP3: =AM3 -> 101.7836534 | AQ3: =AN3 -> 92.92046119 | AR3: =AO3 -> 111.4936391 | AS3: ='WTP Values '!CF3 -> 38.35536104 | AT3: ='WTP Values '!CG3 -> 35.02495092 | AU3: ='WTP Values '!CH3 -> 42.00396008 | AV3: =AS3 -> 38.35536104 | AW3: =AT3 -> 35.02495092 | AX3: =AU3 -> 42.00396008 | AY3: ='WTP Values '!CL3 -> 30.74333449 | AZ3: ='WTP Values '!CM3 -> 28.07675795 | BA3: ='WTP Values '!CN3 -> 33.66467699 | BB3: =AY3 -> 30.74333449 | BC3: =AZ3 -> 28.07675795 | BD3: =BA3 -> 33.66467699 | BE3: ='WTP Values '!BK3 -> 17174030.65 | BF3: ='WTP Values '!BL3 -> 15678537.71 | BG3: ='WTP Values '!BM3 -> 18812403.68 | BH3: =BE3 -> 17174030.65 | BI3: =BF3 -> 15678537.71 | BJ3: =BG3 -> 18812403.68 | BK3: ='WTP Values '!AY3 -> 6471728.26 | BL3: ='WTP Values '!AZ3 -> 5909785.713 | BM3: ='WTP Values '!BA3 -> 7087359.058 | BN3: =BK3 -> 6471728.26 | BO3: =BL3 -> 5909785.713 | BP3: =BM3 -> 7087359.058 | BQ3: ='WTP Values '!BE3 -> 5187345.426 | BR3: ='WTP Values '!BF3 -> 4737412.006 | BS3: ='WTP Values '!BG3 -> 5680265.693 | BT3: =BQ3 -> 5187345.426 | BU3: =BR3 -> 4737412.006 | BV3: =BS3 -> 5680265.693
A4: 2 | B4: 0.02 | C4: =C3/(1+B4)^A4 -> 1944.052258 | D4: =D3/(1+B4)^A4 -> 1774.527033 | E4: =E3/(1+B4)^A4 -> 2129.774003 | F4: =F3+C4 -> 3966.644228 | G4: =G3+D4 -> 3620.744957 | H4: =H3+E4 -> 4345.590875 | I4: =I3/(1+B4)^A4 -> 730.5971856 | J4: =J3/(1+B4)^A4 -> 666.8968265 | K4: =K3/(1+B4)^A4 -> 36.86597562 | L4: =L3+I4 -> 1490.710497 | M4: =M3+J4 -> 1360.736285 | N4: =N3+K4 -> 75.22133666 | O4: =O3/(1+B4)^A4 -> 585.0028571 | P4: =P3/(1+B4)^A4 -> 533.9995641 | Q4: =Q3/(1+B4)^A4 -> 640.8790285 | R4: =R3+O4 -> 1193.63983 | S4: =S3+P4 -> 1089.572711 | T4: =T3+Q4 -> 1307.64957 | U4: =U3/(1+B4)^A4 -> 328021366.5 | V4: =V3/(1+B4)^A4 -> 299417250.5 | W4: =W3/(1+B4)^A4 -> 359358332.9 | X4: =X3+U4 -> 669294796.1 | Y4: =Y3+V4 -> 610930958 | Z4: =Z3+W4 -> 733234742.5 | AA4: =AA3/(1+B4)^A4 -> 123274200.1 | AB4: =AB3/(1+B4)^A4 -> 112525991.7 | AC4: =AC3/(1+B4)^A4 -> 135049297.4 | AD4: =AD3+AA4 -> 251528677.9 | AE4: =AE3+AB4 -> 229598033.5 | AF4: =AF3+AC4 -> 275554586.3 | AG4: =AG3/(1+B4)^A4 -> 98707962.07 | AH4: =AH3/(1+B4)^A4 -> 90102138.95 | AI4: =AI3/(1+B4)^A4 -> 108135989.5 | AJ4: =AJ3+AG4 -> 201403725.8 | AK4: =AK3+AH4 -> 183844404.3 | AL4: =AL3+AI4 -> 220640673 | AM4: =AM3/(1+B4)^A4 -> 97.83127009 | AN4: =AN3/(1+B4)^A4 -> 89.31224643 | AO4: =AO3/(1+B4)^A4 -> 107.1642052 | AP4: =AP3+AM4 -> 199.6149235 | AQ4: =AQ3+AN4 -> 182.2327076 | AR4: =AR3+AO4 -> 218.6578443 | AS4: =AS3/(1+B4)^A4 -> 36.86597562 | AT4: =AT3/(1+B4)^A4 -> 33.66488939 | AU4: =AU3/(1+B4)^A4 -> 40.37289512 | AV4: =AV3+AS4 -> 75.22133666 | AW4: =AW3+AT4 -> 68.68984031 | AX4: =AX3+AU4 -> 82.3768552 | AY4: =AY3/(1+B4)^A4 -> 29.54953335 | AZ4: =AZ3/(1+B4)^A4 -> 26.98650322 | BA4: =BA3/(1+B4)^A4 -> 32.35743655 | BB4: =BB3+AY4 -> 60.29286784 | BC4: =BC3+AZ4 -> 55.06326117 | BD4: =BD3+BA4 -> 66.02211355 | BE4: =BE3/(1+B4)^A4 -> 16507142.11 | BF4: =BF3/(1+B4)^A4 -> 15069720.99 | BG4: =BG3/(1+B4)^A4 -> 18081895.11 | BH4: =BH3+BE4 -> 33681172.76 | BI4: =BI3+BF4 -> 30748258.7 | BJ4: =BJ3+BG4 -> 36894298.79 | BK4: =BK3/(1+B4)^A4 -> 6220423.164 | BL4: =BL3/(1+B4)^A4 -> 5680301.531 | BM4: =BM3/(1+B4)^A4 -> 6812148.268 | BN4: =BN3+BK4 -> 12692151.42 | BO4: =BO3+BL4 -> 11590087.24 | BP4: =BP3+BM4 -> 13899507.33 | BQ4: =BQ3/(1+B4)^A4 -> 4985914.481 | BR4: =BR3/(1+B4)^A4 -> 4553452.524 | BS4: =BS3/(1+B4)^A4 -> 5459694.053 | BT4: =BT3+BQ4 -> 10173259.91 | BU4: =BU3+BR4 -> 9290864.53 | BV4: =BV3+BS4 -> 11139959.75
A5: 3 | B5: 0.02 | C5: =C4/(1+B5)^A5 -> 1831.923863 | D5: =D4/(1+B5)^A5 -> 1672.176456 | E5: =E4/(1+B5)^A5 -> 2006.93361 | F5: =F4+C5 -> 5798.56809 | G5: 5292.921413 | H5: 6352.524486 | I5: =I4/(1+B5)^A5 -> 688.4580455 | J5: =J4/(1+B5)^A5 -> 628.4317744 | K5: =K4/(1+B5)^A5 -> 34.73963221 | L5: =L4+I5 -> 2179.168543 | M5: 1989.168059 | N5: 109.9609689 | O5: =O4/(1+B5)^A5 -> 551.261258 | P5: =P4/(1+B5)^A5 -> 503.1997159 | Q5: =Q4/(1+B5)^A5 -> 603.9146223 | R5: =R4+O5 -> 1744.901088 | S5: 1592.772426 | T5: 1911.564192 | U5: =U4/(1+B5)^A5 -> 309101859.8 | V5: =V4/(1+B5)^A5 -> 282147562.5 | W5: =W4/(1+B5)^A5 -> 338631383.2 | X5: =X4+U5 -> 978396656 | Y5: 893078520.5 | Z5: 1071866126 | AA5: =AA4/(1+B5)^A5 -> 116164032.1 | AB5: =AB4/(1+B5)^A5 -> 106035755.2 | AC5: =AC4/(1+B5)^A5 -> 127259969.2 | AD5: =AD4+AA5 -> 367692710 | AE5: 335633788.7 | AF5: 402814555.5 | AG5: =AG4/(1+B5)^A5 -> 93014717.26 | AH5: =AH4/(1+B5)^A5 -> 84905257.92 | AI5: =AI4/(1+B5)^A5 -> 101898958.1 | AJ5: =AJ4+AG5 -> 294418443.1 | AK5: 268749662.2 | AL5: 322539631.1 | AM5: =AM4/(1+B5)^A5 -> 92.18859082 | AN5: =AN4/(1+B5)^A5 -> 84.16092456 | AO5: =AO4/(1+B5)^A5 -> 100.983224 | AP5: =AP4+AM5 -> 291.8035143 | AQ5: 266.3936322 | AR5: 319.6410684 | AS5: =AS4/(1+B5)^A5 -> 34.73963221 | AT5: =AT4/(1+B5)^A5 -> 31.72317716 | AU5: =AU4/(1+B5)^A5 -> 38.04428078 | AV5: =AV4+AS5 -> 109.9609689 | AW5: 100.4130175 | AX5: 120.421136 | AY5: =AY4/(1+B5)^A5 -> 27.84518525 | AZ5: =AZ4/(1+B5)^A5 -> 25.42998472 | BA5: =BA4/(1+B5)^A5 -> 30.49113515 | BB5: =BB4+AY5 -> 88.13805308 | BC5: 80.49324589 | BD5: 96.5132487 | BE5: =BE4/(1+B5)^A5 -> 15555048.69 | BF5: =BF4/(1+B5)^A5 -> 14200534.66 | BG5: =BG4/(1+B5)^A5 -> 17038973.62 | BH5: =BH4+BE5 -> 49236221.45 | BI5: 44948793.36 | BJ5: 53933272.41 | BK5: =BK4/(1+B5)^A5 -> 5861643.678 | BL5: =BL4/(1+B5)^A5 -> 5352674.999 | BM5: =BM4/(1+B5)^A5 -> 6419239.459 | BN5: =BN4+BK5 -> 18553795.1 | BO5: 16942762.24 | BP5: 20318746.79 | BQ5: =BQ4/(1+B5)^A5 -> 4698338.573 | BR5: =BR4/(1+B5)^A5 -> 4290820.013 | BS5: =BS4/(1+B5)^A5 -> 5144791.646 | BT5: =BT4+BQ5 -> 14871598.48 | BU5: 13581684.54 | BV5: 16284751.39
A6: 4 | B6: 0.02 | C6: 1692.414481 | D6: 1544.83257 | E6: 1854.096436 | F6: 7490.982572 | G6: 6837.753984 | H6: 8206.620922 | I6: 636.0288164 | J6: 580.5738204 | K6: 32.09405032 | L6: 2815.197359 | M6: 2569.741879 | N6: 142.0550192 | O6: 509.2801918 | P6: 464.8787559 | Q6: 557.9237615 | R6: 2254.18128 | S6: 2057.651182 | T6: 2469.487953 | U6: 285562339.4 | V6: 260660735.1 | W6: 312843054.5 | X6: 1263958995 | Y6: 1153739256 | Z6: 1384709180 | AA6: 107317609.7 | AB6: 97960647.44 | AC6: 117568540.4 | AD6: 475010319.7 | AE6: 433594436.1 | AF6: 520383095.9 | AG6: 85931221.09 | AH6: 78439334.17 | AI6: 94138886.36 | AJ6: 380349664.2 | AK6: 347188996.4 | AL6: 416678517.5 | AM6: 85.16800796 | AN6: 77.75168521 | AO6: 93.29288964 | AP6: 376.9715223 | AQ6: 344.1453174 | AR6: 412.933958 | AS6: 32.09405032 | AT6: 29.30731212 | AU6: 35.14703479 | AV6: 142.0550192 | AW6: 129.7203296 | AX6: 155.5681708 | AY6: 25.72464703 | AZ6: 23.49337507 | BA6: 28.16909575 | BB6: 113.8627001 | BC6: 103.986621 | BD6: 124.6823444 | BE6: 14370460.58 | BF6: 13119098.99 | BG6: 15741377.84 | BH6: 63606682.03 | BI6: 58067892.35 | BJ6: 69674650.25 | BK6: 5415252.701 | BL6: 4945044.315 | BM6: 5930385.013 | BN6: 23969047.8 | BO6: 21887806.56 | BP6: 26249131.8 | BQ6: 4340538.601 | BR6: 3964054.443 | BS6: 4752992.23 | BT6: 19212137.08 | BU6: 17545738.99 | BV6: 21037743.62
A7: 5 | B7: 0.02 | C7: 1532.871939 | D7: 1399.202455 | E7: 1679.312267 | F7: 9023.85451 | G7: 8236.956439 | H7: 9885.933189 | I7: 576.0708949 | J7: 525.8435965 | K7: 29.06857019 | L7: 3391.268254 | M7: 3095.585476 | N7: 171.1235894 | O7: 461.2707605 | P7: 421.055012 | Q7: 505.3287403 | R7: 2715.45204 | S7: 2478.706194 | T7: 2974.816694 | U7: 258642608.9 | V7: 236088458.7 | W7: 283351593.1 | X7: 1522601604 | Y7: 1389827714 | Z7: 1668060773 | AA7: 97200865.52 | AB7: 88725976.54 | AC7: 106485449.3 | AD7: 572211185.2 | AE7: 522320412.7 | AF7: 626868545.3 | AG7: 77830554.47 | AH7: 71044921.66 | AI7: 85264489.78 | AJ7: 458180218.6 | AK7: 418233918.1 | AL7: 501943007.3 | AM7: 77.13928882 | AN7: 70.42209681 | AO7: 84.49824448 | AP7: 454.1108111 | AQ7: 414.5674142 | AR7: 497.4322025 | AS7: 29.06857019 | AT7: 26.54453554 | AU7: 31.83375228 | AV7: 171.1235894 | AW7: 156.2648651 | AX7: 187.401923 | AY7: 23.29960538 | AZ7: 21.27867362 | BA7: 25.5136179 | BB7: 137.1623055 | BC7: 125.2652946 | BD7: 150.1959623 | BE7: 13015768.9 | BF7: 11882372.16 | BG7: 14257450.9 | BH7: 76622450.94 | BI7: 69950264.51 | BJ7: 83932101.15 | BK7: 4904761.214 | BL7: 4478878.992 | BM7: 5371332.421 | BN7: 28873809.02 | BO7: 26366685.55 | BP7: 31620464.22 | BQ7: 3931359.542 | BR7: 3590366.241 | BS7: 4304931.502 | BT7: 23143496.62 | BU7: 21136105.23 | BV7: 25342675.12
... 8 more rows

Sheet Allegheny NPV 3% (hidden)
C1: ACRES all conservation strategies | U1: Countywide demand= all conservation strategies | AM1: Acre value of acquisition and easements | BE1: countywide demand for acquisition and easements
A2: year | B2: rate % | C2: All surface waters PV | D2: (Low 95% CI) PV | E2: (High 95% CI) PV | F2: All surface waters NPV | G2: (Low 95% CI) NPV | H2: (High 95% CI) NPV | I2: Protect Rivers only PV | J2: (Low 95% CI) PV | K2: (High 95% CI) PV | L2: Protect Rivers only NPV | M2: (Low 95% CI) NPV | N2: (High 95% CI) NPV | O2: Protect single site PV | P2: (Low 95% CI) PV | Q2: (High 95% CI) PV | R2: Protect single site NPV | S2: (Low 95% CI) NPV | T2: (High 95% CI) NPV | U2: All surface waters PV | V2: (Low 95% CI) PV | W2: (High 95% CI) PV | X2: All surface waters NPV | Y2: (Low 95% CI) NPV | Z2: (High 95% CI) NPV | AA2: Protect Rivers only PV | AB2: (Low 95% CI) PV | AC2: (High 95% CI) PV | AD2: Protect Rivers only NPV | AE2: (Low 95% CI) NPV | AF2: (High 95% CI) NPV | AG2: Protect single site PV | AH2: (Low 95% CI) PV | AI2: (High 95% CI) PV | AJ2: Protect single site NPV | AK2: (Low 95% CI) NPV | AL2: (High 95% CI) NPV | AM2: All surface waters PV | AN2: (Low 95% CI) PV | AO2: (High 95% CI) PV | AP2: All surface waters NPV | AQ2: (Low 95% CI) NPV | AR2: (High 95% CI) NPV | AS2: Protect Rivers only PV | AT2: (Low 95% CI) PV | AU2: (High 95% CI) PV | AV2: Protect Rivers only NPV | AW2: (Low 95% CI) NPV | AX2: (High 95% CI) NPV | AY2: Protect single site PV | AZ2: (Low 95% CI) PV | BA2: (High 95% CI) PV | BB2: Protect single site NPV | BC2: (Low 95% CI) NPV | BD2: (High 95% CI) NPV | BE2: All surface waters PV | BF2: (Low 95% CI) PV | BG2: (High 95% CI) PV | BH2: All surface waters NPV | BI2: (Low 95% CI) NPV | BJ2: (High 95% CI) NPV | BK2: Protect Rivers only PV | BL2: (Low 95% CI) PV | BM2: (High 95% CI) PV | BN2: Protect Rivers only NPV | BO2: (Low 95% CI) NPV | BP2: (High 95% CI) NPV | BQ2: Protect single site PV | BR2: (Low 95% CI) PV | BS2: (High 95% CI) PV | BT2: Protect single site NPV | BU2: (Low 95% CI) NPV | BV2: (High 95% CI) NPV
A3: 1 | B3: 0.03 | C3: ='WTP Values '!CU3 -> 2022.59197 | D3: ='WTP Values '!CV3 -> 1846.217925 | E3: ='WTP Values '!CW3 -> 2215.816872 | F3: =C3 -> 2022.59197 | G3: =D3 -> 1846.217925 | H3: =E3 -> 2215.816872 | I3: ='WTP Values '!CC3 -> 760.1133119 | J3: ='WTP Values '!CD3 -> 693.8394582 | K3: ='WTP Values '!CF3 -> 38.35536104 | L3: =I3 -> 760.1133119 | M3: =J3 -> 693.8394582 | N3: =K3 -> 38.35536104 | O3: ='WTP Values '!CI3 -> 608.6369726 | P3: ='WTP Values '!CJ3 -> 555.5731465 | Q3: ='WTP Values '!CK3 -> 666.7705412 | R3: =O3 -> 608.6369726 | S3: =P3 -> 555.5731465 | T3: =Q3 -> 666.7705412 | U3: ='WTP Values '!BH3 -> 341273429.7 | V3: ='WTP Values '!BI3 -> 311513707.4 | W3: ='WTP Values '!BJ3 -> 373876409.6 | X3: =U3 -> 341273429.7 | Y3: =V3 -> 311513707.4 | Z3: =W3 -> 373876409.6 | AA3: ='WTP Values '!AV3 -> 128254477.8 | AB3: ='WTP Values '!AW3 -> 117072041.8 | AC3: ='WTP Values '!AX3 -> 140505289 | AD3: =AA3 -> 128254477.8 | AE3: =AB3 -> 117072041.8 | AF3: =AC3 -> 140505289 | AG3: ='WTP Values '!BB3 -> 102695763.7 | AH3: ='WTP Values '!BC3 -> 93742265.36 | AI3: ='WTP Values '!BD3 -> 112504683.5 | AJ3: =AG3 -> 102695763.7 | AK3: =AH3 -> 93742265.36 | AL3: =AI3 -> 112504683.5 | AM3: ='WTP Values '!CX3 -> 101.7836534 | AN3: ='WTP Values '!CY3 -> 92.92046119 | AO3: ='WTP Values '!CZ3 -> 111.4936391 | AP3: =AM3 -> 101.7836534 | AQ3: =AN3 -> 92.92046119 | AR3: =AO3 -> 111.4936391 | AS3: ='WTP Values '!CF3 -> 38.35536104 | AT3: ='WTP Values '!CG3 -> 35.02495092 | AU3: ='WTP Values '!CH3 -> 42.00396008 | AV3: =AS3 -> 38.35536104 | AW3: =AT3 -> 35.02495092 | AX3: =AU3 -> 42.00396008 | AY3: ='WTP Values '!CL3 -> 30.74333449 | AZ3: ='WTP Values '!CM3 -> 28.07675795 | BA3: ='WTP Values '!CN3 -> 33.66467699 | BB3: =AY3 -> 30.74333449 | BC3: =AZ3 -> 28.07675795 | BD3: =BA3 -> 33.66467699 | BE3: ='WTP Values '!BK3 -> 17174030.65 | BF3: ='WTP Values '!BL3 -> 15678537.71 | BG3: ='WTP Values '!BM3 -> 18812403.68 | BH3: =BE3 -> 17174030.65 | BI3: =BF3 -> 15678537.71 | BJ3: =BG3 -> 18812403.68 | BK3: ='WTP Values '!AY3 -> 6471728.26 | BL3: ='WTP Values '!AZ3 -> 5909785.713 | BM3: ='WTP Values '!BA3 -> 7087359.058 | BN3: =BK3 -> 6471728.26 | BO3: =BL3 -> 5909785.713 | BP3: =BM3 -> 7087359.058 | BQ3: ='WTP Values '!BE3 -> 5187345.426 | BR3: ='WTP Values '!BF3 -> 4737412.006 | BS3: ='WTP Values '!BG3 -> 5680265.693 | BT3: =BQ3 -> 5187345.426 | BU3: =BR3 -> 4737412.006 | BV3: =BS3 -> 5680265.693
A4: 2 | B4: 0.03 | C4: =C3/(1+B4)^A4 -> 1906.486916 | D4: =D3/(1+B4)^A4 -> 1740.237463 | E4: =E3/(1+B4)^A4 -> 2088.619919 | F4: =F3+C4 -> 3929.078886 | G4: =G3+D4 -> 3586.455388 | H4: =H3+E4 -> 4304.436792 | I4: =I3/(1+B4)^A4 -> 716.4796983 | J4: =J3/(1+B4)^A4 -> 654.0102349 | K4: =K3/(1+B4)^A4 -> 36.15360641 | L4: =L3+I4 -> 1476.59301 | M4: =M3+J4 -> 1347.849693 | N4: =N3+K4 -> 74.50896744 | O4: =O3/(1+B4)^A4 -> 573.6987205 | P4: =P3/(1+B4)^A4 -> 523.6809751 | Q4: =Q3/(1+B4)^A4 -> 628.4951845 | R4: =R3+O4 -> 1182.335693 | S4: =S3+P4 -> 1079.254122 | T4: =T3+Q4 -> 1295.265726 | U4: =U3/(1+B4)^A4 -> 321682938.7 | V4: =V3/(1+B4)^A4 -> 293631546.3 | W4: =W3/(1+B4)^A4 -> 352414374.2 | X4: =X3+U4 -> 662956368.4 | Y4: =Y3+V4 -> 605145253.7 | Z4: =Z3+W4 -> 726290783.7 | AA4: =AA3/(1+B4)^A4 -> 120892146.1 | AB4: =AB3/(1+B4)^A4 -> 110351627.7 | AC4: =AC3/(1+B4)^A4 -> 132439710.6 | AD4: =AD3+AA4 -> 249146623.9 | AE4: =AE3+AB4 -> 227423669.4 | AF4: =AF3+AC4 -> 272944999.6 | AG4: =AG3/(1+B4)^A4 -> 96800606.79 | AH4: =AH3/(1+B4)^A4 -> 88361075.84 | AI4: =AI3/(1+B4)^A4 -> 106046454.4 | AJ4: =AJ3+AG4 -> 199496370.5 | AK4: =AK3+AH4 -> 182103341.2 | AL4: =AL3+AI4 -> 218551137.9 | AM4: =AM3/(1+B4)^A4 -> 95.94085531 | AN4: =AN3/(1+B4)^A4 -> 87.58644659 | AO4: =AO3/(1+B4)^A4 -> 105.0934481 | AP4: =AP3+AM4 -> 197.7245087 | AQ4: =AQ3+AN4 -> 180.5069078 | AR4: =AR3+AO4 -> 216.5870872 | AS4: =AS3/(1+B4)^A4 -> 36.15360641 | AT4: =AT3/(1+B4)^A4 -> 33.01437545 | AU4: =AU3/(1+B4)^A4 -> 39.59276094 | AV4: =AV3+AS4 -> 74.50896744 | AW4: =AW3+AT4 -> 68.03932637 | AX4: =AX3+AU4 -> 81.59672102 | AY4: =AY3/(1+B4)^A4 -> 28.97854133 | AZ4: =AZ3/(1+B4)^A4 -> 26.46503719 | BA4: =BA3/(1+B4)^A4 -> 31.73218681 | BB4: =BB3+AY4 -> 59.72187582 | BC4: =BC3+AZ4 -> 54.54179514 | BD4: =BD3+BA4 -> 65.39686381 | BE4: =BE3/(1+B4)^A4 -> 16188171.04 | BF4: =BF3/(1+B4)^A4 -> 14778525.51 | BG4: =BG3/(1+B4)^A4 -> 17732494.75 | BH4: =BH3+BE4 -> 33362201.69 | BI4: =BI3+BF4 -> 30457063.22 | BJ4: =BJ3+BG4 -> 36544898.42 | BK4: =BK3/(1+B4)^A4 -> 6100224.583 | BL4: =BL3/(1+B4)^A4 -> 5570539.837 | BM4: =BM3/(1+B4)^A4 -> 6680515.655 | BN4: =BN3+BK4 -> 12571952.84 | BO4: =BO3+BL4 -> 11480325.55 | BP4: =BP3+BM4 -> 13767874.71 | BQ4: =BQ3/(1+B4)^A4 -> 4889570.578 | BR4: =BR3/(1+B4)^A4 -> 4465465.177 | BS4: =BS3/(1+B4)^A4 -> 5354195.205 | BT4: =BT3+BQ4 -> 10076916 | BU4: =BU3+BR4 -> 9202877.183 | BV4: =BV3+BS4 -> 11034460.9
A5: 3 | B5: 0.03 | C5: =C4/(1+B5)^A5 -> 1744.7056 | D5: =D4/(1+B5)^A5 -> 1592.5638 | E5: =E4/(1+B5)^A5 -> 1911.383099 | F5: =F4+C5 -> 5673.784486 | G5: 5179.019188 | H5: 6215.819891 | I5: =I4/(1+B5)^A5 -> 655.68042 | J5: =J4/(1+B5)^A5 -> 598.5120116 | K5: =K4/(1+B5)^A5 -> 33.08567136 | L5: =L4+I5 -> 2132.27343 | M5: 1946.361705 | N5: 107.5946388 | O5: =O4/(1+B5)^A5 -> 525.015599 | P5: =P4/(1+B5)^A5 -> 479.2422765 | Q5: =Q4/(1+B5)^A5 -> 575.162126 | R5: =R4+O5 -> 1707.351292 | S5: 1558.496398 | T5: 1870.427852 | U5: =U4/(1+B5)^A5 -> 294385458.3 | V5: =V4/(1+B5)^A5 -> 268714460.5 | W5: =W4/(1+B5)^A5 -> 322509075.2 | X5: =X4+U5 -> 957341826.7 | Y5: 873859714.2 | Z5: 1048799859 | AA5: =AA4/(1+B5)^A5 -> 110633439.2 | AB5: =AB4/(1+B5)^A5 -> 100987371.6 | AC5: =AC4/(1+B5)^A5 -> 121201096.5 | AD5: =AD4+AA5 -> 359780063.1 | AE5: 328411041.1 | AF5: 394146096.1 | AG5: =AG4/(1+B5)^A5 -> 88586267.92 | AH5: =AH4/(1+B5)^A5 -> 80862901.57 | AI5: =AI4/(1+B5)^A5 -> 97047528.28 | AJ5: =AJ4+AG5 -> 288082638.4 | AK5: 262966242.8 | AL5: 315598666.2 | AM5: =AM4/(1+B5)^A5 -> 87.79947353 | AN5: =AN4/(1+B5)^A5 -> 80.15400607 | AO5: =AO4/(1+B5)^A5 -> 96.1753925 | AP5: =AP4+AM5 -> 285.5239822 | AQ5: 260.6609138 | AR5: 312.7624797 | AS5: =AS4/(1+B5)^A5 -> 33.08567136 | AT5: =AT4/(1+B5)^A5 -> 30.21283034 | AU5: =AU4/(1+B5)^A5 -> 36.23298495 | AV5: =AV4+AS5 -> 107.5946388 | AW5: 98.25215671 | AX5: 117.829706 | AY5: =AY4/(1+B5)^A5 -> 26.51947039 | AZ5: =AZ4/(1+B5)^A5 -> 24.21925805 | BA5: =BA4/(1+B5)^A5 -> 29.0394461 | BB5: =BB4+AY5 -> 86.24134621 | BC5: 78.76105319 | BD5: 94.4363099 | BE5: =BE4/(1+B5)^A5 -> 14814469.7 | BF5: =BF4/(1+B5)^A5 -> 13524444.36 | BG5: =BG4/(1+B5)^A5 -> 16227744.67 | BH5: =BH4+BE5 -> 48176671.39 | BI5: 43981507.58 | BJ5: 52772643.09 | BK5: =BK4/(1+B5)^A5 -> 5582569.647 | BL5: =BL4/(1+B5)^A5 -> 5097833.07 | BM5: =BM4/(1+B5)^A5 -> 6113618.182 | BN5: =BN4+BK5 -> 18154522.49 | BO5: 16578158.62 | BP5: 19881492.9 | BQ5: =BQ4/(1+B5)^A5 -> 4474649.732 | BR5: =BR4/(1+B5)^A5 -> 4086533.212 | BS5: =BS4/(1+B5)^A5 -> 4899847.084 | BT5: =BT4+BQ5 -> 14551565.74 | BU5: 13289410.39 | BV5: 15934307.98
A6: 4 | B6: 0.03 | C6: 1550.148328 | D6: 1414.972309 | E6: 1698.239127 | F6: 7223.932814 | G6: 6593.991497 | H6: 7914.059017 | I6: 582.5635607 | J6: 531.7701704 | K6: 29.39619047 | L6: 2714.836991 | M6: 2478.131875 | N6: 136.9908293 | O6: 466.4695597 | P6: 425.8005555 | Q6: 511.0240994 | R6: 2173.820852 | S6: 1984.296954 | T6: 2381.451951 | U6: 261557666.8 | V6: 238749317.7 | W6: 286545136.1 | X6: 1218899493 | Y6: 1112609032 | Z6: 1335344995 | AA6: 98296377.79 | AB6: 89725971.71 | AC6: 107685604.5 | AD6: 458076440.9 | AE6: 418137012.8 | AF6: 501831700.5 | AG6: 78707751.67 | AH6: 71845640.7 | AI6: 86225471.91 | AJ6: 366790390.1 | AK6: 334811883.5 | AL6: 401824138.1 | AM6: 78.00869505 | AN6: 71.21579623 | AO6: 85.45059056 | AP6: 363.5326773 | AQ6: 331.8767101 | AR6: 398.2130703 | AS6: 29.39619047 | AT6: 26.84370843 | AU6: 32.19253783 | AV6: 136.9908293 | AW6: 125.0958651 | AX6: 150.0222438 | AY6: 23.56220596 | AZ6: 21.51849708 | BA6: 25.80117174 | BB6: 109.8035522 | BC6: 100.2795503 | BD6: 120.2374816 | BE6: 13162464.45 | BF6: 12016293.64 | BG6: 14418140.95 | BH6: 61339135.84 | BI6: 55997801.23 | BJ6: 67190784.04 | BK6: 4960040.825 | BL6: 4529358.655 | BM6: 5431870.57 | BN6: 23114563.31 | BO6: 21107517.27 | BP6: 25313363.47 | BQ6: 3975668.331 | BR6: 3630831.83 | BS6: 4353450.671 | BT6: 18527234.07 | BU6: 16920242.22 | BV6: 20287758.65
A7: 5 | B7: 0.03 | C7: 1337.171565 | D7: 1220.567543 | E7: 1464.915989 | F7: 8561.104379 | G7: 7814.55904 | H7: 9378.975006 | I7: 502.5244449 | J7: 458.7096202 | K7: 25.35741213 | L7: 3217.361436 | M7: 2936.841495 | N7: 162.3482414 | O7: 402.3807398 | P7: 367.2992996 | Q7: 440.8138772 | R7: 2576.201592 | S7: 2351.596253 | T7: 2822.265828 | U7: 225621941 | V7: 205947258.7 | W7: 247176351.5 | X7: 1444521434 | Y7: 1318556291 | Z7: 1582521347 | AA7: 84791318.96 | AB7: 77398411.38 | AC7: 92890548.35 | AD7: 542867759.9 | AE7: 495535424.2 | AF7: 594722248.9 | AG7: 67893997.99 | AH7: 61974680.79 | AI7: 74378849.5 | AJ7: 434684388.1 | AK7: 396786564.2 | AL7: 476202987.6 | AM7: 67.2909856 | AN7: 61.43137142 | AO7: 73.71043005 | AP7: 430.8236629 | AQ7: 393.3080815 | AR7: 471.9235003 | AS7: 25.35741213 | AT7: 23.1556187 | AU7: 27.76956593 | AV7: 162.3482414 | AW7: 148.2514838 | AX7: 177.7918097 | AY7: 20.32496584 | AZ7: 18.56204461 | BA7: 22.25631739 | BB7: 130.128518 | BC7: 118.8415949 | BD7: 142.493799 | BE7: 11354057.46 | BF7: 10365360.45 | BG7: 12437215.04 | BH7: 72693193.3 | BI7: 66363161.68 | BJ7: 79627999.08 | BK7: 4278574.787 | BL7: 3907064.563 | BM7: 4685579.27 | BN7: 27393138.1 | BO7: 25014581.84 | BP7: 29998942.74 | BQ7: 3429446.426 | BR7: 3131987.431 | BS7: 3755324.791 | BT7: 21956680.49 | BU7: 20052229.66 | BV7: 24043083.44
... 8 more rows

Sheet Allegheny NPV 4% (hidden)
C1: ACRES all conservation strategies | U1: Countywide demand= all conservation strategies | AM1: Acre value of acquisition and easements | BE1: countywide demand for acquisition and easements
A2: year | B2: rate % | C2: All surface waters PV | D2: (Low 95% CI) PV | E2: (High 95% CI) PV | F2: All surface waters NPV | G2: (Low 95% CI) NPV | H2: (High 95% CI) NPV | I2: Protect Rivers only PV | J2: (Low 95% CI) PV | K2: (High 95% CI) PV | L2: Protect Rivers only NPV | M2: (Low 95% CI) NPV | N2: (High 95% CI) NPV | O2: Protect single site PV | P2: (Low 95% CI) PV | Q2: (High 95% CI) PV | R2: Protect single site NPV | S2: (Low 95% CI) NPV | T2: (High 95% CI) NPV | U2: All surface waters PV | V2: (Low 95% CI) PV | W2: (High 95% CI) PV | X2: All surface waters NPV | Y2: (Low 95% CI) NPV | Z2: (High 95% CI) NPV | AA2: Protect Rivers only PV | AB2: (Low 95% CI) PV | AC2: (High 95% CI) PV | AD2: Protect Rivers only NPV | AE2: (Low 95% CI) NPV | AF2: (High 95% CI) NPV | AG2: Protect single site PV | AH2: (Low 95% CI) PV | AI2: (High 95% CI) PV | AJ2: Protect single site NPV | AK2: (Low 95% CI) NPV | AL2: (High 95% CI) NPV | AM2: All surface waters PV | AN2: (Low 95% CI) PV | AO2: (High 95% CI) PV | AP2: All surface waters NPV | AQ2: (Low 95% CI) NPV | AR2: (High 95% CI) NPV | AS2: Protect Rivers only PV | AT2: (Low 95% CI) PV | AU2: (High 95% CI) PV | AV2: Protect Rivers only NPV | AW2: (Low 95% CI) NPV | AX2: (High 95% CI) NPV | AY2: Protect single site PV | AZ2: (Low 95% CI) PV | BA2: (High 95% CI) PV | BB2: Protect single site NPV | BC2: (Low 95% CI) NPV | BD2: (High 95% CI) NPV | BE2: All surface waters PV | BF2: (Low 95% CI) PV | BG2: (High 95% CI) PV | BH2: All surface waters NPV | BI2: (Low 95% CI) NPV | BJ2: (High 95% CI) NPV | BK2: Protect Rivers only PV | BL2: (Low 95% CI) PV | BM2: (High 95% CI) PV | BN2: Protect Rivers only NPV | BO2: (Low 95% CI) NPV | BP2: (High 95% CI) NPV | BQ2: Protect single site PV | BR2: (Low 95% CI) PV | BS2: (High 95% CI) PV | BT2: Protect single site NPV | BU2: (Low 95% CI) NPV | BV2: (High 95% CI) NPV
A3: 1 | B3: 0.04 | C3: ='WTP Values '!CU3 -> 2022.59197 | D3: ='WTP Values '!CV3 -> 1846.217925 | E3: ='WTP Values '!CW3 -> 2215.816872 | F3: =C3 -> 2022.59197 | G3: =D3 -> 1846.217925 | H3: =E3 -> 2215.816872 | I3: ='WTP Values '!CC3 -> 760.1133119 | J3: ='WTP Values '!CD3 -> 693.8394582 | K3: ='WTP Values '!CF3 -> 38.35536104 | L3: =I3 -> 760.1133119 | M3: =J3 -> 693.8394582 | N3: =K3 -> 38.35536104 | O3: ='WTP Values '!CI3 -> 608.6369726 | P3: ='WTP Values '!CJ3 -> 555.5731465 | Q3: ='WTP Values '!CK3 -> 666.7705412 | R3: =O3 -> 608.6369726 | S3: =P3 -> 555.5731465 | T3: =Q3 -> 666.7705412 | U3: ='WTP Values '!BH3 -> 341273429.7 | V3: ='WTP Values '!BI3 -> 311513707.4 | W3: ='WTP Values '!BJ3 -> 373876409.6 | X3: =U3 -> 341273429.7 | Y3: =V3 -> 311513707.4 | Z3: =W3 -> 373876409.6 | AA3: ='WTP Values '!AV3 -> 128254477.8 | AB3: ='WTP Values '!AW3 -> 117072041.8 | AC3: ='WTP Values '!AX3 -> 140505289 | AD3: =AA3 -> 128254477.8 | AE3: =AB3 -> 117072041.8 | AF3: =AC3 -> 140505289 | AG3: ='WTP Values '!BB3 -> 102695763.7 | AH3: ='WTP Values '!BC3 -> 93742265.36 | AI3: ='WTP Values '!BD3 -> 112504683.5 | AJ3: =AG3 -> 102695763.7 | AK3: =AH3 -> 93742265.36 | AL3: =AI3 -> 112504683.5 | AM3: ='WTP Values '!CX3 -> 101.7836534 | AN3: ='WTP Values '!CY3 -> 92.92046119 | AO3: ='WTP Values '!CZ3 -> 111.4936391 | AP3: =AM3 -> 101.7836534 | AQ3: =AN3 -> 92.92046119 | AR3: =AO3 -> 111.4936391 | AS3: ='WTP Values '!CF3 -> 38.35536104 | AT3: ='WTP Values '!CG3 -> 35.02495092 | AU3: ='WTP Values '!CH3 -> 42.00396008 | AV3: =AS3 -> 38.35536104 | AW3: =AT3 -> 35.02495092 | AX3: =AU3 -> 42.00396008 | AY3: ='WTP Values '!CL3 -> 30.74333449 | AZ3: ='WTP Values '!CM3 -> 28.07675795 | BA3: ='WTP Values '!CN3 -> 33.66467699 | BB3: =AY3 -> 30.74333449 | BC3: =AZ3 -> 28.07675795 | BD3: =BA3 -> 33.66467699 | BE3: ='WTP Values '!BK3 -> 17174030.65 | BF3: ='WTP Values '!BL3 -> 15678537.71 | BG3: ='WTP Values '!BM3 -> 18812403.68 | BH3: =BE3 -> 17174030.65 | BI3: =BF3 -> 15678537.71 | BJ3: =BG3 -> 18812403.68 | BK3: ='WTP Values '!AY3 -> 6471728.26 | BL3: ='WTP Values '!AZ3 -> 5909785.713 | BM3: ='WTP Values '!BA3 -> 7087359.058 | BN3: =BK3 -> 6471728.26 | BO3: =BL3 -> 5909785.713 | BP3: =BM3 -> 7087359.058 | BQ3: ='WTP Values '!BE3 -> 5187345.426 | BR3: ='WTP Values '!BF3 -> 4737412.006 | BS3: ='WTP Values '!BG3 -> 5680265.693 | BT3: =BQ3 -> 5187345.426 | BU3: =BR3 -> 4737412.006 | BV3: =BS3 -> 5680265.693
A4: 2 | B4: 0.04 | C4: =C3/(1+B4)^A4 -> 1869.999972 | D4: =D3/(1+B4)^A4 -> 1706.932253 | E4: =E3/(1+B4)^A4 -> 2048.647256 | F4: =F3+C4 -> 3892.591941 | G4: =G3+D4 -> 3553.150178 | H4: =H3+E4 -> 4264.464129 | I4: =I3/(1+B4)^A4 -> 702.7674851 | J4: =J3/(1+B4)^A4 -> 641.493582 | K4: =K3/(1+B4)^A4 -> 35.46168735 | L4: =L3+I4 -> 1462.880797 | M4: =M3+J4 -> 1335.33304 | N4: =N3+K4 -> 73.81704839 | O4: =O3/(1+B4)^A4 -> 562.7190944 | P4: =P3/(1+B4)^A4 -> 513.6586043 | Q4: =Q3/(1+B4)^A4 -> 616.4668465 | R4: =R3+O4 -> 1171.356067 | S4: =S3+P4 -> 1069.231751 | T4: =T3+Q4 -> 1283.237388 | U4: =U3/(1+B4)^A4 -> 315526469.7 | V4: =V3/(1+B4)^A4 -> 288011933.7 | W4: =W3/(1+B4)^A4 -> 345669757.4 | X4: =X3+U4 -> 656799899.4 | Y4: =Y3+V4 -> 599525641.1 | Z4: =Z3+W4 -> 719546166.9 | AA4: =AA3/(1+B4)^A4 -> 118578474.3 | AB4: =AB3/(1+B4)^A4 -> 108239683.6 | AC4: =AC3/(1+B4)^A4 -> 129905037.9 | AD4: =AD3+AA4 -> 246832952.1 | AE4: =AE3+AB4 -> 225311725.4 | AF4: =AF3+AC4 -> 270410326.9 | AG4: =AG3/(1+B4)^A4 -> 94948006.41 | AH4: =AH3/(1+B4)^A4 -> 86669993.86 | AI4: =AI3/(1+B4)^A4 -> 104016904.1 | AJ4: =AJ3+AG4 -> 197643770.2 | AK4: =AK3+AH4 -> 180412259.2 | AL4: =AL3+AI4 -> 216521587.6 | AM4: =AM3/(1+B4)^A4 -> 94.10470914 | AN4: =AN3/(1+B4)^A4 -> 85.91018971 | AO4: =AO3/(1+B4)^A4 -> 103.0821368 | AP4: =AP3+AM4 -> 195.8883625 | AQ4: =AQ3+AN4 -> 178.8306509 | AR4: =AR3+AO4 -> 214.5757759 | AS4: =AS3/(1+B4)^A4 -> 35.46168735 | AT4: =AT3/(1+B4)^A4 -> 32.38253598 | AU4: =AU3/(1+B4)^A4 -> 38.83502227 | AV4: =AV3+AS4 -> 73.81704839 | AW4: =AW3+AT4 -> 67.4074869 | AX4: =AX3+AU4 -> 80.83898235 | AY4: =AY3/(1+B4)^A4 -> 28.42394091 | AZ4: =AZ3/(1+B4)^A4 -> 25.95854101 | BA4: =BA3/(1+B4)^A4 -> 31.12488627 | BB4: =BB3+AY4 -> 59.16727541 | BC4: =BC3+AZ4 -> 54.03529896 | BD4: =BD3+BA4 -> 64.78956326 | BE4: =BE3/(1+B4)^A4 -> 15878356.74 | BF4: =BF3/(1+B4)^A4 -> 14495689.45 | BG4: =BG3/(1+B4)^A4 -> 17393124.7 | BH4: =BH3+BE4 -> 33052387.39 | BI4: =BI3+BF4 -> 30174227.17 | BJ4: =BJ3+BG4 -> 36205528.38 | BK4: =BK3/(1+B4)^A4 -> 5983476.571 | BL4: =BL3/(1+B4)^A4 -> 5463929.098 | BM4: =BM3/(1+B4)^A4 -> 6552661.851 | BN4: =BN3+BK4 -> 12455204.83 | BO4: =BO3+BL4 -> 11373714.81 | BP4: =BP3+BM4 -> 13640020.91 | BQ4: =BQ3/(1+B4)^A4 -> 4795992.442 | BR4: =BR3/(1+B4)^A4 -> 4380003.704 | BS4: =BS3/(1+B4)^A4 -> 5251724.938 | BT4: =BT3+BQ4 -> 9983337.868 | BU4: =BU3+BR4 -> 9117415.71 | BV4: =BV3+BS4 -> 10931990.63
A5: 3 | B5: 0.04 | C5: =C4/(1+B5)^A5 -> 1662.423166 | D5: =D4/(1+B5)^A5 -> 1517.456557 | E5: =E4/(1+B5)^A5 -> 1821.239951 | F5: =F4+C5 -> 5555.015107 | G5: =G4+D5 -> 5070.606735 | H5: =H4+E5 -> 6085.70408 | I5: =I4/(1+B5)^A5 -> 624.7577352 | J5: =J4/(1+B5)^A5 -> 570.2854585 | K5: =K4/(1+B5)^A5 -> 31.52531093 | L5: =L4+I5 -> 2087.638532 | M5: =M4+J5 -> 1905.618499 | N5: =N4+K5 -> 105.3423593 | O5: =O4/(1+B5)^A5 -> 500.2552259 | P5: =P4/(1+B5)^A5 -> 456.6406289 | Q5: =Q4/(1+B5)^A5 -> 548.0367818 | R5: =R4+O5 -> 1671.611293 | S5: =S4+P5 -> 1525.87238 | T5: =T4+Q5 -> 1831.27417 | U5: =U4/(1+B5)^A5 -> 280501882.7 | V5: =V4/(1+B5)^A5 -> 256041560.3 | W5: =W4/(1+B5)^A5 -> 307299155.6 | X5: =X4+U5 -> 937301782.1 | Y5: =Y4+V5 -> 855567201.4 | Z5: =Z4+W5 -> 1026845323 | AA5: =AA4/(1+B5)^A5 -> 105415831.9 | AB5: =AB4/(1+B5)^A5 -> 96224684.58 | AC5: =AC4/(1+B5)^A5 -> 115485105.6 | AD5: =AD4+AA5 -> 352248784 | AE5: =AE4+AB5 -> 321536409.9 | AF5: =AF4+AC5 -> 385895432.5 | AG5: =AG4/(1+B5)^A5 -> 84408431.97 | AH5: =AH4/(1+B5)^A5 -> 77049308.95 | AI5: =AI4/(1+B5)^A5 -> 92470649.01 | AJ5: =AJ4+AG5 -> 282052202.1 | AK5: =AK4+AH5 -> 257461568.2 | AL5: =AL4+AI5 -> 308992236.6 | AM5: =AM4/(1+B5)^A5 -> 83.65874376 | AN5: =AN4/(1+B5)^A5 -> 76.37384582 | AO5: =AO4/(1+B5)^A5 -> 91.63964422 | AP5: =AP4+AM5 -> 279.5471063 | AQ5: =AQ4+AN5 -> 255.2044967 | AR5: =AR4+AO5 -> 306.2154201 | AS5: =AS4/(1+B5)^A5 -> 31.52531093 | AT5: =AT4/(1+B5)^A5 -> 28.78795657 | AU5: =AU4/(1+B5)^A5 -> 34.52419338 | AV5: =AV4+AS5 -> 105.3423593 | AW5: =AW4+AT5 -> 96.19544348 | AX5: =AX4+AU5 -> 115.3631757 | AY5: =AY4/(1+B5)^A5 -> 25.26877997 | AZ5: =AZ4/(1+B5)^A5 -> 23.07704843 | BA5: =BA4/(1+B5)^A5 -> 27.66991056 | BB5: =BB4+AY5 -> 84.43605538 | BC5: =BC4+AZ5 -> 77.11234739 | BD5: =BD4+BA5 -> 92.45947382 | BE5: =BE4/(1+B5)^A5 -> 14115801.32 | BF5: =BF4/(1+B5)^A5 -> 12886615.14 | BG5: =BG4/(1+B5)^A5 -> 15462424.53 | BH5: =BH4+BE5 -> 47168188.72 | BI5: =BI4+BF5 -> 43060842.31 | BJ5: =BJ4+BG5 -> 51667952.9 | BK5: =BK4/(1+B5)^A5 -> 5319288.884 | BL5: =BL4/(1+B5)^A5 -> 4857413.072 | BM5: =BM4/(1+B5)^A5 -> 5825292.525 | BN5: =BN4+BK5 -> 17774493.72 | BO5: =BO4+BL5 -> 16231127.88 | BP5: =BP4+BM5 -> 19465313.43 | BQ5: =BQ4/(1+B5)^A5 -> 4263619.818 | BR5: =BR4/(1+B5)^A5 -> 3893807.344 | BS5: =BS4/(1+B5)^A5 -> 4668764.347 | BT5: =BT4+BQ5 -> 14246957.69 | BU5: =BU4+BR5 -> 13011223.05 | BV5: =BV4+BS5 -> 15600754.98
A6: 4 | B6: 0.04 | C6: 1421.046289 | D6: 1297.128225 | E6: 1556.803543 | F6: 6976.061396 | G6: 6367.73496 | H6: 7642.507623 | I6: 534.0455305 | J6: 487.4824 | K6: 26.9479679 | L6: 2621.684063 | M6: 2393.100899 | N6: 132.2903272 | O6: 427.6202637 | P6: 390.3383233 | Q6: 468.4641379 | R6: 2099.231557 | S6: 1916.210703 | T6: 2299.738307 | U6: 239774184.9 | V6: 218865398.8 | W6: 262680606.1 | X6: 1177075967 | Y6: 1074432600 | Z6: 1289525929 | AA6: 90109894.89 | AB6: 82253263.66 | AC6: 98717152.31 | AD6: 442358678.9 | AE6: 403789673.6 | AF6: 484612584.8 | AG6: 72152681.4 | AH6: 65862072.2 | AI6: 79044298.32 | AJ6: 354204883.5 | AK6: 323323640.4 | AL6: 388036535 | AM6: 71.51184478 | AN6: 65.28468349 | AO6: 78.33395194 | AP6: 351.0589511 | AQ6: 320.4891802 | AR6: 384.549372 | AS6: 26.9479679 | AT6: 24.60806593 | AU6: 29.5114252 | AV6: 132.2903272 | AW6: 120.8035094 | AX6: 144.8746009 | AY6: 21.59985902 | AZ6: 19.72635772 | BA6: 23.65235551 | BB6: 106.0359144 | BC6: 96.8387051 | BD6: 116.1118293 | BE6: 12066246.13 | BF6: 11015532.63 | BG6: 13217345.29 | BH6: 59234434.85 | BI6: 54076374.94 | BJ6: 64885298.19 | BK6: 4546950.432 | BL6: 4152137.052 | BM6: 4979484.465 | BN6: 22321444.15 | BO6: 20383264.93 | BP6: 24444797.9 | BQ6: 3644560.089 | BR6: 3328442.837 | BS6: 3990879.33 | BT6: 17891517.77 | BU6: 16339665.89 | BV6: 19591634.31
A7: 5 | B7: 0.04 | C7: 1167.996465 | D7: 1066.144849 | E7: 1279.579032 | F7: 8144.057862 | G7: 7433.879809 | H7: 8922.086655 | I7: 438.9464977 | J7: 400.6749986 | K7: 22.14926529 | L7: 3060.63056 | M7: 2793.775897 | N7: 154.4395925 | O7: 351.4726861 | P7: 320.8296488 | Q7: 385.0433735 | R7: 2450.704243 | S7: 2237.040352 | T7: 2684.781681 | U7: 197076902.1 | V7: 179891404 | W7: 215904310.6 | X7: 1374152869 | Y7: 1254324004 | Z7: 1505430239 | AA7: 74063765.2 | AB7: 67606187.02 | AC7: 81138303.39 | AD7: 516422444.1 | AE7: 471395860.6 | AF7: 565750888.2 | AG7: 59304244.67 | AH7: 54133822.45 | AI7: 64968651.42 | AJ7: 413509128.2 | AK7: 377457462.8 | AL7: 453005186.4 | AM7: 58.77752368 | AN7: 53.65925102 | AO7: 64.38479848 | AP7: 409.8364747 | AQ7: 374.1484312 | AR7: 448.9341705 | AS7: 22.14926529 | AT7: 20.22603643 | AU7: 24.25624033 | AV7: 154.4395925 | AW7: 141.0295458 | AX7: 169.1308413 | AY7: 17.75350963 | AZ7: 16.21362812 | BA7: 19.44051213 | BB7: 123.789424 | BC7: 113.0523332 | BD7: 135.5523415 | BE7: 9917574.773 | BF7: 9053964.865 | BG7: 10863694.37 | BH7: 69152009.62 | BI7: 63130339.81 | BJ7: 75748992.56 | BK7: 3737261.813 | BL7: 3412753.994 | BM7: 4092773.259 | BN7: 26058705.96 | BO7: 23796018.93 | BP7: 28537571.16 | BQ7: 2995562.729 | BR7: 2735737.391 | BS7: 3280211.901 | BT7: 20887080.5 | BU7: 19075403.28 | BV7: 22871846.21
... 8 more rows

Sheet Allegheny NPV 5% (hidden)
C1: ACRES all conservation strategies | U1: Countywide demand= all conservation strategies | AM1: Acre value of acquisition and easements | BE1: countywide demand for acquisition and easements
A2: year | B2: rate % | C2: All surface waters PV | D2: (Low 95% CI) PV | E2: (High 95% CI) PV | F2: All surface waters NPV | G2: (Low 95% CI) NPV | H2: (High 95% CI) NPV | I2: Protect Rivers only PV | J2: (Low 95% CI) PV | K2: (High 95% CI) PV | L2: Protect Rivers only NPV | M2: (Low 95% CI) NPV | N2: (High 95% CI) NPV | O2: Protect single site PV | P2: (Low 95% CI) PV | Q2: (High 95% CI) PV | R2: Protect single site NPV | S2: (Low 95% CI) NPV | T2: (High 95% CI) NPV | U2: All surface waters PV | V2: (Low 95% CI) PV | W2: (High 95% CI) PV | X2: All surface waters NPV | Y2: (Low 95% CI) NPV | Z2: (High 95% CI) NPV | AA2: Protect Rivers only PV | AB2: (Low 95% CI) PV | AC2: (High 95% CI) PV | AD2: Protect Rivers only NPV | AE2: (Low 95% CI) NPV | AF2: (High 95% CI) NPV | AG2: Protect single site PV | AH2: (Low 95% CI) PV | AI2: (High 95% CI) PV | AJ2: Protect single site NPV | AK2: (Low 95% CI) NPV | AL2: (High 95% CI) NPV | AM2: All surface waters PV | AN2: (Low 95% CI) PV | AO2: (High 95% CI) PV | AP2: All surface waters NPV | AQ2: (Low 95% CI) NPV | AR2: (High 95% CI) NPV | AS2: Protect Rivers only PV | AT2: (Low 95% CI) PV | AU2: (High 95% CI) PV | AV2: Protect Rivers only NPV | AW2: (Low 95% CI) NPV | AX2: (High 95% CI) NPV | AY2: Protect single site PV | AZ2: (Low 95% CI) PV | BA2: (High 95% CI) PV | BB2: Protect single site NPV | BC2: (Low 95% CI) NPV | BD2: (High 95% CI) NPV | BE2: All surface waters PV | BF2: (Low 95% CI) PV | BG2: (High 95% CI) PV | BH2: All surface waters NPV | BI2: (Low 95% CI) NPV | BJ2: (High 95% CI) NPV | BK2: Protect Rivers only PV | BL2: (Low 95% CI) PV | BM2: (High 95% CI) PV | BN2: Protect Rivers only NPV | BO2: (Low 95% CI) NPV | BP2: (High 95% CI) NPV | BQ2: Protect single site PV | BR2: (Low 95% CI) PV | BS2: (High 95% CI) PV | BT2: Protect single site NPV | BU2: (Low 95% CI) NPV | BV2: (High 95% CI) NPV
A3: 1 | B3: 0.05 | C3: ='WTP Values '!CU3 -> 2022.59197 | D3: ='WTP Values '!CV3 -> 1846.217925 | E3: ='WTP Values '!CW3 -> 2215.816872 | F3: =C3 -> 2022.59197 | G3: =D3 -> 1846.217925 | H3: =E3 -> 2215.816872 | I3: ='WTP Values '!CC3 -> 760.1133119 | J3: ='WTP Values '!CD3 -> 693.8394582 | K3: ='WTP Values '!CF3 -> 38.35536104 | L3: =I3 -> 760.1133119 | M3: =J3 -> 693.8394582 | N3: =K3 -> 38.35536104 | O3: ='WTP Values '!CI3 -> 608.6369726 | P3: ='WTP Values '!CJ3 -> 555.5731465 | Q3: ='WTP Values '!CK3 -> 666.7705412 | R3: =O3 -> 608.6369726 | S3: =P3 -> 555.5731465 | T3: =Q3 -> 666.7705412 | U3: ='WTP Values '!BH3 -> 341273429.7 | V3: ='WTP Values '!BI3 -> 311513707.4 | W3: ='WTP Values '!BJ3 -> 373876409.6 | X3: =U3 -> 341273429.7 | Y3: =V3 -> 311513707.4 | Z3: =W3 -> 373876409.6 | AA3: ='WTP Values '!AV3 -> 128254477.8 | AB3: ='WTP Values '!AW3 -> 117072041.8 | AC3: ='WTP Values '!AX3 -> 140505289 | AD3: =AA3 -> 128254477.8 | AE3: =AB3 -> 117072041.8 | AF3: =AC3 -> 140505289 | AG3: ='WTP Values '!BB3 -> 102695763.7 | AH3: ='WTP Values '!BC3 -> 93742265.36 | AI3: ='WTP Values '!BD3 -> 112504683.5 | AJ3: =AG3 -> 102695763.7 | AK3: =AH3 -> 93742265.36 | AL3: =AI3 -> 112504683.5 | AM3: ='WTP Values '!CX3 -> 101.7836534 | AN3: ='WTP Values '!CY3 -> 92.92046119 | AO3: ='WTP Values '!CZ3 -> 111.4936391 | AP3: =AM3 -> 101.7836534 | AQ3: =AN3 -> 92.92046119 | AR3: =AO3 -> 111.4936391 | AS3: ='WTP Values '!CF3 -> 38.35536104 | AT3: ='WTP Values '!CG3 -> 35.02495092 | AU3: ='WTP Values '!CH3 -> 42.00396008 | AV3: =AS3 -> 38.35536104 | AW3: =AT3 -> 35.02495092 | AX3: =AU3 -> 42.00396008 | AY3: ='WTP Values '!CL3 -> 30.74333449 | AZ3: ='WTP Values '!CM3 -> 28.07675795 | BA3: ='WTP Values '!CN3 -> 33.66467699 | BB3: =AY3 -> 30.74333449 | BC3: =AZ3 -> 28.07675795 | BD3: =BA3 -> 33.66467699 | BE3: ='WTP Values '!BK3 -> 17174030.65 | BF3: ='WTP Values '!BL3 -> 15678537.71 | BG3: ='WTP Values '!BM3 -> 18812403.68 | BH3: =BE3 -> 17174030.65 | BI3: =BF3 -> 15678537.71 | BJ3: =BG3 -> 18812403.68 | BK3: ='WTP Values '!AY3 -> 6471728.26 | BL3: ='WTP Values '!AZ3 -> 5909785.713 | BM3: ='WTP Values '!BA3 -> 7087359.058 | BN3: =BK3 -> 6471728.26 | BO3: =BL3 -> 5909785.713 | BP3: =BM3 -> 7087359.058 | BQ3: ='WTP Values '!BE3 -> 5187345.426 | BR3: ='WTP Values '!BF3 -> 4737412.006 | BS3: ='WTP Values '!BG3 -> 5680265.693 | BT3: =BQ3 -> 5187345.426 | BU3: =BR3 -> 4737412.006 | BV3: =BS3 -> 5680265.693
A4: 2 | B4: 0.05 | C4: =C3/(1+B4)^A4 -> 1834.550539 | D4: =D3/(1+B4)^A4 -> 1674.574081 | E4: =E3/(1+B4)^A4 -> 2009.811222 | F4: =F3+C4 -> 3857.142509 | G4: =G3+D4 -> 3520.792006 | H4: =H3+E4 -> 4225.628095 | I4: =I3/(1+B4)^A4 -> 689.4451808 | J4: =J3/(1+B4)^A4 -> 629.3328419 | K4: =K3/(1+B4)^A4 -> 34.78944312 | L4: =L3+I4 -> 1449.558493 | M4: =M3+J4 -> 1323.1723 | N4: =N3+K4 -> 73.14480416 | O4: =O3/(1+B4)^A4 -> 552.0516758 | P4: =P3/(1+B4)^A4 -> 503.9212213 | Q4: =Q3/(1+B4)^A4 -> 604.7805362 | R4: =R3+O4 -> 1160.688648 | S4: =S3+P4 -> 1059.494368 | T4: =T3+Q4 -> 1271.551077 | U4: =U3/(1+B4)^A4 -> 309545060.9 | V4: =V3/(1+B4)^A4 -> 282552115.6 | W4: =W3/(1+B4)^A4 -> 339116924.8 | X4: =X3+U4 -> 650818490.6 | Y4: =Y3+V4 -> 594065823 | Z4: =Z3+W4 -> 712993334.3 | AA4: =AA3/(1+B4)^A4 -> 116330592.1 | AB4: =AB3/(1+B4)^A4 -> 106187793 | AC4: =AC3/(1+B4)^A4 -> 127442439 | AD4: =AD3+AA4 -> 244585069.9 | AE4: =AE3+AB4 -> 223259834.8 | AF4: =AF3+AC4 -> 267947727.9 | AG4: =AG3/(1+B4)^A4 -> 93148085.02 | AH4: =AH3/(1+B4)^A4 -> 85026998.06 | AI4: =AI3/(1+B4)^A4 -> 102045064.4 | AJ4: =AJ3+AG4 -> 195843848.8 | AK4: =AK3+AH4 -> 178769263.4 | AL4: =AL3+AI4 -> 214549747.9 | AM4: =AM3/(1+B4)^A4 -> 92.32077406 | AN4: =AN3/(1+B4)^A4 -> 84.28159745 | AO4: =AO3/(1+B4)^A4 -> 101.1280173 | AP4: =AP3+AM4 -> 194.1044275 | AQ4: =AQ3+AN4 -> 177.2020586 | AR4: =AR3+AO4 -> 212.6216564 | AS4: =AS3/(1+B4)^A4 -> 34.78944312 | AT4: =AT3/(1+B4)^A4 -> 31.76866297 | AU4: =AU3/(1+B4)^A4 -> 38.09883001 | AV4: =AV3+AS4 -> 73.14480416 | AW4: =AW3+AT4 -> 66.79361388 | AX4: =AX3+AU4 -> 80.10279009 | AY4: =AY3/(1+B4)^A4 -> 27.88511065 | AZ4: =AZ3/(1+B4)^A4 -> 25.46644712 | BA4: =BA3/(1+B4)^A4 -> 30.53485441 | BB4: =BB3+AY4 -> 58.62844514 | BC4: =BC3+AZ4 -> 53.54320507 | BD4: =BD3+BA4 -> 64.19953141 | BE4: =BE3/(1+B4)^A4 -> 15577352.06 | BF4: =BF3/(1+B4)^A4 -> 14220895.89 | BG4: =BG3/(1+B4)^A4 -> 17063404.7 | BH4: =BH3+BE4 -> 32751382.72 | BI4: =BI3+BF4 -> 29899433.6 | BJ4: =BJ3+BG4 -> 35875808.37 | BK4: =BK3/(1+B4)^A4 -> 5870048.308 | BL4: =BL3/(1+B4)^A4 -> 5360349.853 | BM4: =BM3/(1+B4)^A4 -> 6428443.59 | BN4: =BN3+BK4 -> 12341776.57 | BO4: =BO3+BL4 -> 11270135.57 | BP4: =BP3+BM4 -> 13515802.65 | BQ4: =BQ3/(1+B4)^A4 -> 4705075.216 | BR4: =BR3/(1+B4)^A4 -> 4296972.341 | BS4: =BS3/(1+B4)^A4 -> 5152168.429 | BT4: =BT3+BQ4 -> 9892420.642 | BU4: =BU3+BR4 -> 9034384.347 | BV4: =BV3+BS4 -> 10832434.12
A5: 3 | B5: 0.05 | C5: =C4/(1+B5)^A5 -> 1584.753732 | D5: =D4/(1+B5)^A5 -> 1446.560053 | E5: =E4/(1+B5)^A5 -> 1736.1505 | F5: =F4+C5 -> 5441.896241 | G5: 4967.352059 | H5: 5961.778594 | I5: =I4/(1+B5)^A5 -> 595.5686693 | J5: =J4/(1+B5)^A5 -> 543.6413709 | K5: =K4/(1+B5)^A5 -> 30.052429 | L5: =L4+I5 -> 2045.127162 | M5: 1866.813671 | N5: 103.1972332 | O5: =O4/(1+B5)^A5 -> 476.8829939 | P5: =P4/(1+B5)^A5 -> 435.3060976 | Q5: =Q4/(1+B5)^A5 -> 522.4321661 | R5: =R4+O5 -> 1637.571642 | S5: 1494.800465 | T5: 1793.983243 | U5: =U4/(1+B5)^A5 -> 267396662.1 | V5: =V4/(1+B5)^A5 -> 244079141 | W5: =W4/(1+B5)^A5 -> 292941949.9 | X5: =X4+U5 -> 918215152.7 | Y5: 838144964 | Z5: 1005935284 | AA5: =AA4/(1+B5)^A5 -> 100490739.3 | AB5: =AB4/(1+B5)^A5 -> 91729008.09 | AC5: =AC4/(1+B5)^A5 -> 110089570.4 | AD5: =AD4+AA5 -> 345075809.3 | AE5: 314988842.9 | AF5: 378037298.4 | AG5: =AG4/(1+B5)^A5 -> 80464818.07 | AH5: =AH4/(1+B5)^A5 -> 73449517.81 | AI5: =AI4/(1+B5)^A5 -> 88150363.38 | AJ5: =AJ4+AG5 -> 276308666.8 | AK5: 252218781.2 | AL5: 302700111.3 | AM5: =AM4/(1+B5)^A5 -> 79.75015576 | AN5: =AN4/(1+B5)^A5 -> 72.80561274 | AO5: =AO4/(1+B5)^A5 -> 87.35818364 | AP5: =AP4+AM5 -> 273.8545832 | AQ5: 250.0076714 | AR5: 299.9798401 | AS5: =AS4/(1+B5)^A5 -> 30.052429 | AT5: =AT4/(1+B5)^A5 -> 27.44296552 | AU5: =AU4/(1+B5)^A5 -> 32.91120182 | AV5: =AV4+AS5 -> 103.1972332 | AW5: 94.23657941 | AX5: 113.0139919 | AY5: =AY4/(1+B5)^A5 -> 24.08820702 | AZ5: =AZ4/(1+B5)^A5 -> 21.99887453 | BA5: =BA4/(1+B5)^A5 -> 26.37715531 | BB5: =BB4+AY5 -> 82.71665216 | BC5: 75.5420796 | BD5: 90.57668671 | BE5: =BE4/(1+B5)^A5 -> 13456302.4 | BF5: =BF4/(1+B5)^A5 -> 12284544.55 | BG5: =BG4/(1+B5)^A5 -> 14740010.53 | BH5: =BH4+BE5 -> 46207685.11 | BI5: 42183978.15 | BJ5: 50615818.91 | BK5: =BK4/(1+B5)^A5 -> 5070768.434 | BL5: =BL4/(1+B5)^A5 -> 4630471.744 | BM5: =BM4/(1+B5)^A5 -> 5553131.273 | BN5: =BN4+BK5 -> 17412545 | BO5: 15900607.31 | BP5: 19068933.92 | BQ5: =BQ4/(1+B5)^A5 -> 4064420.876 | BR5: =BR4/(1+B5)^A5 -> 3711886.268 | BS5: =BS4/(1+B5)^A5 -> 4450636.803 | BT5: =BT4+BQ5 -> 13956841.52 | BU5: 12746270.62 | BV5: 15283070.92
A6: 4 | B6: 0.05 | C6: 1303.780817 | D6: 1190.088536 | E6: 1428.335313 | F6: 6745.677059 | G6: 6157.440595 | H6: 7390.113907 | I6: 489.9758182 | J6: 447.2551012 | K6: 24.72420771 | L6: 2535.10298 | M6: 2314.068772 | N6: 127.9214409 | O6: 392.3328192 | P6: 358.1274038 | Q6: 429.8062359 | R6: 2029.904461 | S6: 1852.927869 | T6: 2223.789479 | U6: 219987895.6 | V6: 200804513.3 | W6: 241004067.2 | X6: 1138203048 | Y6: 1038949477 | Z6: 1246939351 | AA6: 82673979.94 | AB6: 75465681.97 | AC6: 90570962.05 | AD6: 427749789.2 | AE6: 390454524.8 | AF6: 468608260.4 | AG6: 66198604.96 | AH6: 60427100.08 | AI6: 72521522.1 | AJ6: 342507271.8 | AK6: 312645881.3 | AL6: 375221633.4 | AM6: 65.61065051 | AN6: 59.89735778 | AO6: 71.86979387 | AP6: 339.4652337 | AQ6: 309.9050292 | AR6: 371.849634 | AS6: 24.72420771 | AT6: 22.57739565 | AU6: 27.07612719 | AV6: 127.9214409 | AW6: 116.8139751 | AX6: 140.0901191 | AY6: 19.81742753 | AZ6: 18.09852851 | BA6: 21.70055095 | BB6: 102.5340797 | BC6: 93.64060811 | BD6: 112.2772377 | BE6: 11070533.29 | BF6: 10106525.2 | BG6: 12126643.15 | BH6: 57278218.4 | BI6: 52290503.35 | BJ6: 62742462.05 | BK6: 4171733.74 | BL6: 3809500.563 | BM6: 4568574.841 | BN6: 21584278.74 | BO6: 19710107.87 | BP6: 23637508.76 | BQ6: 3343809.113 | BR6: 3053778.019 | BS6: 3661549.912 | BT6: 17300650.63 | BU6: 15800048.63 | BV6: 18944620.84
A7: 5 | B7: 0.05 | C7: 1021.546386 | D7: 932.465508 | E7: 1119.138092 | F7: 7767.223444 | G7: 7089.906103 | H7: 8509.251999 | I7: 383.9088745 | J7: 350.4360749 | K7: 19.37206369 | L7: 2919.011855 | M7: 2664.504847 | N7: 147.2935045 | O7: 307.4030298 | P7: 280.6021918 | Q7: 336.7644324 | R7: 2337.307491 | S7: 2133.530061 | T7: 2560.553912 | U7: 172366272.5 | V7: 157335590.5 | W7: 188832992.8 | X7: 1310569321 | Y7: 1196285068 | Z7: 1435772344 | AA7: 64777226.57 | AB7: 59129336.49 | AC7: 70964718.69 | AD7: 492527015.8 | AE7: 449583861.3 | AF7: 539572979.1 | AG7: 51868339.17 | AH7: 47346214.07 | AI7: 56822510.2 | AJ7: 394375611 | AK7: 359992095.4 | AL7: 432044143.6 | AM7: 51.40766147 | AN7: 46.93114712 | AO7: 56.31186408 | AP7: 390.8728952 | AQ7: 356.8361763 | AR7: 428.161498 | AS7: 19.37206369 | AT7: 17.68998026 | AU7: 21.21485414 | AV7: 147.2935045 | AW7: 134.5039553 | AX7: 161.3049732 | AY7: 15.52747302 | AZ7: 14.18067067 | BA7: 17.0029495 | BB7: 118.0615527 | BC7: 107.8212788 | BD7: 129.2801872 | BE7: 8674052.506 | BF7: 7918726.949 | BG7: 9501542.216 | BH7: 65952270.91 | BI7: 60209230.3 | BJ7: 72244004.27 | BK7: 3268662.544 | BL7: 2984843.373 | BM7: 3579597.932 | BN7: 24852941.29 | BO7: 22694951.25 | BP7: 27217106.7 | BQ7: 2619961.936 | BR7: 2392714.984 | BS7: 2868920.166 | BT7: 19920612.57 | BU7: 18192763.62 | BV7: 21813541
... 8 more rows

Sheet Armstrong (hidden)
B1: County | C1: Armstrong
B2: Number of households | C2: ='WTP Values '!C4 -> 28250 | E2: CLICK HERE TO GO BACK TO COUNTY LIST
B3: Percent of county forested | C3: ='WTP Values '!DA4 -> 0.4861351323
B4: Square miles of surface water | C4: ='WTP Values '!BU4 -> 2.614538298
B5: Miles of major rivers | C5: ='WTP Values '!BV4 -> 452.7230315
B6: Miles of tributaries | C6: ='WTP Values '!BW4 -> 1034.968304
... 7 more rows

Sheet Armstrong NPV 1% (hidden)
C1: ACRES all conservation strategies | U1: Countywide demand= all conservation strategies | AM1: Acre value of acquisition and easements | BE1: countywide demand for acquisition and easements
A2: year | B2: rate % | C2: All surface waters PV | D2: (Low 95% CI) PV | E2: (High 95% CI) PV | F2: All surface waters NPV | G2: (Low 95% CI) NPV | H2: (High 95% CI) NPV | I2: Protect Rivers only PV | J2: (Low 95% CI) PV | K2: (High 95% CI) PV | L2: Protect Rivers only NPV | M2: (Low 95% CI) NPV | N2: (High 95% CI) NPV | O2: Protect single site PV | P2: (Low 95% CI) PV | Q2: (High 95% CI) PV | R2: Protect single site NPV | S2: (Low 95% CI) NPV | T2: (High 95% CI) NPV | U2: All surface waters PV | V2: (Low 95% CI) PV | W2: (High 95% CI) PV | X2: All surface waters NPV | Y2: (Low 95% CI) NPV | Z2: (High 95% CI) NPV | AA2: Protect Rivers only PV | AB2: (Low 95% CI) PV | AC2: (High 95% CI) PV | AD2: Protect Rivers only NPV | AE2: (Low 95% CI) NPV | AF2: (High 95% CI) NPV | AG2: Protect single site PV | AH2: (Low 95% CI) PV | AI2: (High 95% CI) PV | AJ2: Protect single site NPV | AK2: (Low 95% CI) NPV | AL2: (High 95% CI) NPV | AM2: All surface waters PV | AN2: (Low 95% CI) PV | AO2: (High 95% CI) PV | AP2: All surface waters NPV | AQ2: (Low 95% CI) NPV | AR2: (High 95% CI) NPV | AS2: Protect Rivers only PV | AT2: (Low 95% CI) PV | AU2: (High 95% CI) PV | AV2: Protect Rivers only NPV | AW2: (Low 95% CI) NPV | AX2: (High 95% CI) NPV | AY2: Protect single site PV | AZ2: (Low 95% CI) PV | BA2: (High 95% CI) PV | BB2: Protect single site NPV | BC2: (Low 95% CI) NPV | BD2: (High 95% CI) NPV | BE2: All surface waters PV | BF2: (Low 95% CI) PV | BG2: (High 95% CI) PV | BH2: All surface waters NPV | BI2: (Low 95% CI) NPV | BJ2: (High 95% CI) NPV | BK2: Protect Rivers only PV | BL2: (Low 95% CI) PV | BM2: (High 95% CI) PV | BN2: Protect Rivers only NPV | BO2: (Low 95% CI) NPV | BP2: (High 95% CI) NPV | BQ2: Protect single site PV | BR2: (Low 95% CI) PV | BS2: (High 95% CI) PV | BT2: Protect single site NPV | BU2: (Low 95% CI) NPV | BV2: (High 95% CI) NPV
A3: 1 | B3: 0.01 | C3: ='WTP Values '!CU4 -> 53.38382204 | D3: ='WTP Values '!CV4 -> 48.72887036 | E3: ='WTP Values '!CW4 -> 58.48350997 | F3: =C3 -> 53.38382204 | G3: =D3 -> 48.72887036 | H3: =E3 -> 58.48350997 | I3: ='WTP Values '!CC4 -> 20.0641455 | J3: ='WTP Values '!CD4 -> 18.31500964 | K3: ='WTP Values '!CF4 -> 1.01511412 | L3: =I3 -> 20.0641455 | M3: =J3 -> 18.31500964 | N3: =K3 -> 1.01511412 | O3: ='WTP Values '!CI4 -> 16.06629894 | P3: ='WTP Values '!CJ4 -> 14.66580936 | Q3: ='WTP Values '!CK4 -> 17.60059194 | R3: =O3 -> 16.06629894 | S3: =P3 -> 14.66580936 | T3: =Q3 -> 17.60059194 | U3: ='WTP Values '!BH4 -> 11055824.65 | V3: ='WTP Values '!BI4 -> 10091781.1 | W3: ='WTP Values '!BJ4 -> 12111973.38 | X3: =U3 -> 11055824.65 | Y3: =V3 -> 10091781.1 | Z3: =W3 -> 12111973.38 | AA3: ='WTP Values '!AV4 -> 4155297.729 | AB3: ='WTP Values '!AW4 -> 3793050.541 | AC3: ='WTP Values '!AX4 -> 4552154.182 | AD3: =AA3 -> 4155297.729 | AE3: =AB3 -> 3793050.541 | AF3: =AC3 -> 4552154.182 | AG3: ='WTP Values '!BB4 -> 3327341.077 | AH3: ='WTP Values '!BC4 -> 3037298.765 | AI3: ='WTP Values '!BD4 -> 3645094.167 | AJ3: =AG3 -> 3327341.077 | AK3: =AH3 -> 3037298.765 | AL3: =AI3 -> 3645094.167 | AM3: ='WTP Values '!CX4 -> 2.688891762 | AN3: ='WTP Values '!CY4 -> 2.454969976 | AO3: ='WTP Values '!CZ4 -> 2.945162543 | AP3: =AM3 -> 2.688891762 | AQ3: =AN3 -> 2.454969976 | AR3: =AO3 -> 2.945162543 | AS3: ='WTP Values '!CF4 -> 1.01511412 | AT3: ='WTP Values '!CG4 -> 0.9272161107 | AU3: ='WTP Values '!CH4 -> 1.111409945 | AV3: =AS3 -> 1.01511412 | AW3: =AT3 -> 0.9272161107 | AX3: =AU3 -> 1.111409945 | AY3: ='WTP Values '!CL4 -> 0.8142133435 | AZ3: ='WTP Values '!CM4 -> 0.7438355941 | BA3: ='WTP Values '!CN4 -> 0.8913150158 | BB3: =AY3 -> 0.8142133435 | BC3: =AZ3 -> 0.7438355941 | BD3: =BA3 -> 0.8913150158 | BE3: ='WTP Values '!BK4 -> 556871.2523 | BF3: ='WTP Values '!BL4 -> 508425.8967 | BG3: ='WTP Values '!BM4 -> 609945.0997 | BH3: =BE3 -> 556871.2523 | BI3: =BF3 -> 508425.8967 | BJ3: =BG3 -> 609945.0997 | BK3: ='WTP Values '!AY4 -> 210230.8018 | BL3: ='WTP Values '!AZ4 -> 192027.0664 | BM3: ='WTP Values '!BA4 -> 230173.7306 | BN3: =BK3 -> 210230.8018 | BO3: =BL3 -> 192027.0664 | BP3: =BM3 -> 230173.7306 | BQ3: ='WTP Values '!BE4 -> 168624.119 | BR3: ='WTP Values '!BF4 -> 154048.8408 | BS3: ='WTP Values '!BG4 -> 184591.926 | BT3: =BQ3 -> 168624.119 | BU3: =BR3 -> 154048.8408 | BV3: =BS3 -> 184591.926
A4: 2 | B4: 0.01 | C4: =C3/(1+B4)^A4 -> 52.33194985 | D4: =D3/(1+B4)^A4 -> 47.7687191 | E4: =E3/(1+B4)^A4 -> 57.33115378 | F4: =F3+C4 -> 105.7157719 | G4: =G3+D4 -> 96.49758946 | H4: =H3+E4 -> 115.8146637 | I4: =I3/(1+B4)^A4 -> 19.66880257 | J4: =J3/(1+B4)^A4 -> 17.95413159 | K4: =K3/(1+B4)^A4 -> 0.9951123613 | L4: =L3+I4 -> 39.73294807 | M4: =M3+J4 -> 36.26914123 | N4: =N3+K4 -> 2.010226481 | O4: =O3/(1+B4)^A4 -> 15.74972938 | P4: =P3/(1+B4)^A4 -> 14.37683498 | Q4: =Q3/(1+B4)^A4 -> 17.25379075 | R4: =R3+O4 -> 31.81602832 | S4: =S3+P4 -> 29.04264434 | T4: =T3+Q4 -> 34.85438269 | U4: =U3/(1+B4)^A4 -> 10837981.23 | V4: =V3/(1+B4)^A4 -> 9892933.143 | W4: =W3/(1+B4)^A4 -> 11873319.65 | X4: =X3+U4 -> 21893805.89 | Y4: =Y3+V4 -> 19984714.24 | Z4: =Z3+W4 -> 23985293.03 | AA4: =AA3/(1+B4)^A4 -> 4073421.948 | AB4: =AB3/(1+B4)^A4 -> 3718312.461 | AC4: =AC3/(1+B4)^A4 -> 4462458.761 | AD4: =AD3+AA4 -> 8228719.678 | AE4: =AE3+AB4 -> 7511363.002 | AF4: =AF3+AC4 -> 9014612.943 | AG4: =AG3/(1+B4)^A4 -> 3261779.313 | AH4: =AH3/(1+B4)^A4 -> 2977451.98 | AI4: =AI3/(1+B4)^A4 -> 3573271.412 | AJ4: =AJ3+AG4 -> 6589120.391 | AK4: =AK3+AH4 -> 6014750.744 | AL4: =AL3+AI4 -> 7218365.579 | AM4: =AM3/(1+B4)^A4 -> 2.635909971 | AN4: =AN3/(1+B4)^A4 -> 2.406597369 | AO4: =AO3/(1+B4)^A4 -> 2.887131206 | AP4: =AP3+AM4 -> 5.324801733 | AQ4: =AQ3+AN4 -> 4.861567345 | AR4: =AR3+AO4 -> 5.832293749 | AS4: =AS3/(1+B4)^A4 -> 0.9951123613 | AT4: =AT3/(1+B4)^A4 -> 0.9089462903 | AU4: =AU3/(1+B4)^A4 -> 1.089510779 | AV4: =AV3+AS4 -> 2.010226481 | AW4: =AW3+AT4 -> 1.836162401 | AX4: =AX3+AU4 -> 2.200920724 | AY4: =AY3/(1+B4)^A4 -> 0.798170124 | AZ4: =AZ3/(1+B4)^A4 -> 0.7291790943 | BA4: =BA3/(1+B4)^A4 -> 0.8737525887 | BB4: =BB3+AY4 -> 1.612383468 | BC4: =BC3+AZ4 -> 1.473014688 | BD4: =BD3+BA4 -> 1.765067604 | BE4: =BE3/(1+B4)^A4 -> 545898.6887 | BF4: =BF3/(1+B4)^A4 -> 498407.8979 | BG4: =BG3/(1+B4)^A4 -> 597926.7716 | BH4: =BH3+BE4 -> 1102769.941 | BI4: =BI3+BF4 -> 1006833.795 | BJ4: =BJ3+BG4 -> 1207871.871 | BK4: =BK3/(1+B4)^A4 -> 206088.4245 | BL4: =BL3/(1+B4)^A4 -> 188243.3745 | BM4: =BM3/(1+B4)^A4 -> 225638.3988 | BN4: =BN3+BK4 -> 416319.2263 | BO4: =BO3+BL4 -> 380270.4409 | BP4: =BP3+BM4 -> 455812.1294 | BQ4: =BQ3/(1+B4)^A4 -> 165301.5576 | BR4: =BR3/(1+B4)^A4 -> 151013.47 | BS4: =BS3/(1+B4)^A4 -> 180954.7358 | BT4: =BT3+BQ4 -> 333925.6766 | BU4: =BU3+BR4 -> 305062.3108 | BV4: =BV3+BS4 -> 365546.6618
A5: 3 | B5: 0.01 | C5: =C4/(1+B5)^A5 -> 50.79287494 | D5: =D4/(1+B5)^A5 -> 46.36384814 | E5: =E4/(1+B5)^A5 -> 55.64505302 | F5: =F4+C5 -> 156.5086468 | G5: 142.8614376 | H5: 171.4597168 | I5: =I4/(1+B5)^A5 -> 19.090346 | J5: =J4/(1+B5)^A5 -> 17.42610324 | K5: =K4/(1+B5)^A5 -> 0.9658462539 | L5: =L4+I5 -> 58.82329407 | M5: 53.69524446 | N5: 2.976072735 | O5: =O4/(1+B5)^A5 -> 15.28653217 | P5: =P4/(1+B5)^A5 -> 13.95401439 | Q5: =Q4/(1+B5)^A5 -> 16.74635932 | R5: =R4+O5 -> 47.10256049 | S5: 42.99665873 | T5: 51.60074201 | U5: =U4/(1+B5)^A5 -> 10519237.81 | V5: =V4/(1+B5)^A5 -> 9601983.443 | W5: =W4/(1+B5)^A5 -> 11524127.08 | X5: =X4+U5 -> 32413043.69 | Y5: 29586697.69 | Z5: 35509420.11 | AA5: =AA4/(1+B5)^A5 -> 3953623.211 | AB5: =AB4/(1+B5)^A5 -> 3608957.442 | AC5: =AC4/(1+B5)^A5 -> 4331218.509 | AD5: =AD4+AA5 -> 12182342.89 | AE5: 11120320.44 | AF5: 13345831.45 | AG5: =AG4/(1+B5)^A5 -> 3165850.866 | AH5: =AH4/(1+B5)^A5 -> 2889885.557 | AI5: =AI4/(1+B5)^A5 -> 3468182.028 | AJ5: =AJ4+AG5 -> 9754971.257 | AK5: 8904636.302 | AL5: 10686547.61 | AM5: =AM4/(1+B5)^A5 -> 2.558388249 | AN5: =AN4/(1+B5)^A5 -> 2.335819696 | AO5: =AO4/(1+B5)^A5 -> 2.802221104 | AP5: =AP4+AM5 -> 7.883189982 | AQ5: 7.197387041 | AR5: 8.634514854 | AS5: =AS4/(1+B5)^A5 -> 0.9658462539 | AT5: =AT4/(1+B5)^A5 -> 0.8822143144 | AU5: =AU4/(1+B5)^A5 -> 1.057468428 | AV5: =AV4+AS5 -> 2.976072735 | AW5: 2.718376715 | AX5: 3.258389152 | AY5: =AY4/(1+B5)^A5 -> 0.7746960588 | AZ5: =AZ4/(1+B5)^A5 -> 0.707734045 | BA5: =BA4/(1+B5)^A5 -> 0.8480556543 | BB5: =BB4+AY5 -> 2.387079526 | BC5: 2.180748734 | BD5: 2.613123259 | BE5: =BE4/(1+B5)^A5 -> 529843.889 | BF5: =BF4/(1+B5)^A5 -> 483749.7954 | BG5: =BG4/(1+B5)^A5 -> 580341.8337 | BH5: =BH4+BE5 -> 1632613.83 | BI5: 1490583.59 | BJ5: 1788213.705 | BK5: =BK4/(1+B5)^A5 -> 200027.3944 | BL5: =BL4/(1+B5)^A5 -> 182707.1647 | BM5: =BM4/(1+B5)^A5 -> 219002.4069 | BN5: =BN4+BK5 -> 616346.6207 | BO5: 562977.6056 | BP5: 674814.5363 | BQ5: =BQ4/(1+B5)^A5 -> 160440.0633 | BR5: =BR4/(1+B5)^A5 -> 146572.1862 | BS5: =BS4/(1+B5)^A5 -> 175632.8838 | BT5: =BT4+BQ5 -> 494365.7399 | BU5: 451634.497 | BV5: 541179.5455
A6: 4 | B6: 0.01 | C6: 48.81095446 | D6: 44.55474676 | E6: 53.47380222 | F6: 205.3196013 | G6: 187.4161844 | H6: 224.933519 | I6: 18.34544727 | J6: 16.74614269 | K6: 0.9281592658 | L6: 77.16874134 | M6: 70.44138716 | N6: 3.904232001 | O6: 14.69005695 | P6: 13.40953355 | Q6: 16.09292214 | R6: 61.79261744 | S6: 56.40619228 | T6: 67.69366415 | U6: 10108780.77 | V6: 9227317.357 | W6: 11074459.61 | X6: 42521824.47 | Y6: 38814015.04 | Z6: 46583879.72 | AA6: 3799354.196 | AB6: 3468137.165 | AC6: 4162215.855 | AD6: 15981697.08 | AE6: 14588457.61 | AF6: 17508047.31 | AG6: 3042320.456 | AH6: 2777123.219 | AI6: 3332854.76 | AJ6: 12797291.71 | AK6: 11681759.52 | AL6: 14019402.37 | AM6: 2.458560821 | AN6: 2.244676816 | AO6: 2.692879402 | AP6: 10.3417508 | AQ6: 9.442063857 | AR6: 11.32739426 | AS6: 0.9281592658 | AT6: 0.8477906157 | AU6: 1.016206374 | AV6: 3.904232001 | AW6: 3.566167331 | AX6: 4.274595526 | AY6: 0.7444676854 | AZ6: 0.6801185064 | BA6: 0.8149648148 | BB6: 3.131547212 | BC6: 2.86086724 | BD6: 3.428088074 | BE6: 509169.563 | BF6: 464874.045 | BG6: 557697.0953 | BH6: 2141783.393 | BI6: 1955457.635 | BJ6: 2345910.8 | BK6: 192222.3944 | BL6: 175577.9941 | BM6: 210457.0084 | BN6: 808569.0151 | BO6: 738555.5997 | BP6: 885271.5447 | BQ6: 154179.7473 | BR6: 140852.99 | BS6: 168779.7492 | BT6: 648545.4872 | BU6: 592487.487 | BV6: 709959.2947
A7: 5 | B7: 0.01 | C7: 46.44194835 | D7: 42.39231276 | E7: 50.878488 | F7: 251.7615496 | G7: 229.8084971 | H7: 275.812007 | I7: 17.4550636 | J7: 15.93338017 | K7: 0.883111694 | L7: 94.62380494 | M7: 86.37476733 | N7: 4.787343695 | O7: 13.97708514 | P7: 12.75871106 | Q7: 15.31186323 | R7: 75.76970258 | S7: 69.16490335 | T7: 83.00552738 | U7: 9618158.048 | V7: 8779475.853 | W7: 10536968.33 | X7: 52139982.51 | Y7: 47593490.9 | Z7: 57120848.05 | AA7: 3614955.152 | AB7: 3299813.513 | AC7: 3960205.57 | AD7: 19596652.24 | AE7: 17888271.12 | AF7: 21468252.88 | AG7: 2894663.524 | AH7: 2642337.453 | AI7: 3171096.946 | AJ7: 15691955.24 | AK7: 14324096.97 | AL7: 17190499.31 | AM7: 2.339236262 | AN7: 2.135732971 | AO7: 2.562182352 | AP7: 12.68098706 | AQ7: 11.57779683 | AR7: 13.88957661 | AS7: 0.883111694 | AT7: 0.8066436811 | AU7: 0.9668854964 | AV7: 4.787343695 | AW7: 4.372811012 | AX7: 5.241481022 | AY7: 0.7083354582 | AZ7: 0.6471094224 | BA7: 0.7754110579 | BB7: 3.83988267 | BC7: 3.507976662 | BD7: 4.203499132 | BE7: 484457.3683 | BF7: 442311.7029 | BG7: 530629.6503 | BH7: 2626240.761 | BI7: 2397769.338 | BJ7: 2876540.451 | BK7: 182893.0127 | BL7: 167056.4369 | BM7: 200242.6222 | BN7: 991462.0278 | BO7: 905612.0366 | BP7: 1085514.167 | BQ7: 146696.7393 | BR7: 134016.787 | BS7: 160588.1401 | BT7: 795242.2264 | BU7: 726504.2739 | BV7: 870547.4348
... 8 more rows

Sheet Armstrong NPV 2% (hidden)
C1: ACRES all conservation strategies | U1: Countywide demand= all conservation strategies | AM1: Acre value of acquisition and easements | BE1: countywide demand for acquisition and easements
A2: year | B2: rate % | C2: All surface waters PV | D2: (Low 95% CI) PV | E2: (High 95% CI) PV | F2: All surface waters NPV | G2: (Low 95% CI) NPV | H2: (High 95% CI) NPV | I2: Protect Rivers only PV | J2: (Low 95% CI) PV | K2: (High 95% CI) PV | L2: Protect Rivers only NPV | M2: (Low 95% CI) NPV | N2: (High 95% CI) NPV | O2: Protect single site PV | P2: (Low 95% CI) PV | Q2: (High 95% CI) PV | R2: Protect single site NPV | S2: (Low 95% CI) NPV | T2: (High 95% CI) NPV | U2: All surface waters PV | V2: (Low 95% CI) PV | W2: (High 95% CI) PV | X2: All surface waters NPV | Y2: (Low 95% CI) NPV | Z2: (High 95% CI) NPV | AA2: Protect Rivers only PV | AB2: (Low 95% CI) PV | AC2: (High 95% CI) PV | AD2: Protect Rivers only NPV | AE2: (Low 95% CI) NPV | AF2: (High 95% CI) NPV | AG2: Protect single site PV | AH2: (Low 95% CI) PV | AI2: (High 95% CI) PV | AJ2: Protect single site NPV | AK2: (Low 95% CI) NPV | AL2: (High 95% CI) NPV | AM2: All surface waters PV | AN2: (Low 95% CI) PV | AO2: (High 95% CI) PV | AP2: All surface waters NPV | AQ2: (Low 95% CI) NPV | AR2: (High 95% CI) NPV | AS2: Protect Rivers only PV | AT2: (Low 95% CI) PV | AU2: (High 95% CI) PV | AV2: Protect Rivers only NPV | AW2: (Low 95% CI) NPV | AX2: (High 95% CI) NPV | AY2: Protect single site PV | AZ2: (Low 95% CI) PV | BA2: (High 95% CI) PV | BB2: Protect single site NPV | BC2: (Low 95% CI) NPV | BD2: (High 95% CI) NPV | BE2: All surface waters PV | BF2: (Low 95% CI) PV | BG2: (High 95% CI) PV | BH2: All surface waters NPV | BI2: (Low 95% CI) NPV | BJ2: (High 95% CI) NPV | BK2: Protect Rivers only PV | BL2: (Low 95% CI) PV | BM2: (High 95% CI) PV | BN2: Protect Rivers only NPV | BO2: (Low 95% CI) NPV | BP2: (High 95% CI) NPV | BQ2: Protect single site PV | BR2: (Low 95% CI) PV | BS2: (High 95% CI) PV | BT2: Protect single site NPV | BU2: (Low 95% CI) NPV | BV2: (High 95% CI) NPV
A3: 1 | B3: 0.02 | C3: ='WTP Values '!CU4 -> 53.38382204 | D3: ='WTP Values '!CV4 -> 48.72887036 | E3: ='WTP Values '!CW4 -> 58.48350997 | F3: =C3 -> 53.38382204 | G3: =D3 -> 48.72887036 | H3: =E3 -> 58.48350997 | I3: ='WTP Values '!CC4 -> 20.0641455 | J3: ='WTP Values '!CD4 -> 18.31500964 | K3: ='WTP Values '!CF4 -> 1.01511412 | L3: =I3 -> 20.0641455 | M3: =J3 -> 18.31500964 | N3: =K3 -> 1.01511412 | O3: ='WTP Values '!CI4 -> 16.06629894 | P3: ='WTP Values '!CJ4 -> 14.66580936 | Q3: ='WTP Values '!CK4 -> 17.60059194 | R3: =O3 -> 16.06629894 | S3: =P3 -> 14.66580936 | T3: =Q3 -> 17.60059194 | U3: ='WTP Values '!BH4 -> 11055824.65 | V3: ='WTP Values '!BI4 -> 10091781.1 | W3: ='WTP Values '!BJ4 -> 12111973.38 | X3: =U3 -> 11055824.65 | Y3: =V3 -> 10091781.1 | Z3: =W3 -> 12111973.38 | AA3: ='WTP Values '!AV4 -> 4155297.729 | AB3: ='WTP Values '!AW4 -> 3793050.541 | AC3: ='WTP Values '!AX4 -> 4552154.182 | AD3: =AA3 -> 4155297.729 | AE3: =AB3 -> 3793050.541 | AF3: =AC3 -> 4552154.182 | AG3: ='WTP Values '!BB4 -> 3327341.077 | AH3: ='WTP Values '!BC4 -> 3037298.765 | AI3: ='WTP Values '!BD4 -> 3645094.167 | AJ3: =AG3 -> 3327341.077 | AK3: =AH3 -> 3037298.765 | AL3: =AI3 -> 3645094.167 | AM3: ='WTP Values '!CX4 -> 2.688891762 | AN3: ='WTP Values '!CY4 -> 2.454969976 | AO3: ='WTP Values '!CZ4 -> 2.945162543 | AP3: =AM3 -> 2.688891762 | AQ3: =AN3 -> 2.454969976 | AR3: =AO3 -> 2.945162543 | AS3: ='WTP Values '!CF4 -> 1.01511412 | AT3: ='WTP Values '!CG4 -> 0.9272161107 | AU3: ='WTP Values '!CH4 -> 1.111409945 | AV3: =AS3 -> 1.01511412 | AW3: =AT3 -> 0.9272161107 | AX3: =AU3 -> 1.111409945 | AY3: ='WTP Values '!CL4 -> 0.8142133435 | AZ3: ='WTP Values '!CM4 -> 0.7438355941 | BA3: ='WTP Values '!CN4 -> 0.8913150158 | BB3: =AY3 -> 0.8142133435 | BC3: =AZ3 -> 0.7438355941 | BD3: =BA3 -> 0.8913150158 | BE3: ='WTP Values '!BK4 -> 556871.2523 | BF3: ='WTP Values '!BL4 -> 508425.8967 | BG3: ='WTP Values '!BM4 -> 609945.0997 | BH3: =BE3 -> 556871.2523 | BI3: =BF3 -> 508425.8967 | BJ3: =BG3 -> 609945.0997 | BK3: ='WTP Values '!AY4 -> 210230.8018 | BL3: ='WTP Values '!AZ4 -> 192027.0664 | BM3: ='WTP Values '!BA4 -> 230173.7306 | BN3: =BK3 -> 210230.8018 | BO3: =BL3 -> 192027.0664 | BP3: =BM3 -> 230173.7306 | BQ3: ='WTP Values '!BE4 -> 168624.119 | BR3: ='WTP Values '!BF4 -> 154048.8408 | BS3: ='WTP Values '!BG4 -> 184591.926 | BT3: =BQ3 -> 168624.119 | BU3: =BR3 -> 154048.8408 | BV3: =BS3 -> 184591.926
A4: 2 | B4: 0.02 | C4: =C3/(1+B4)^A4 -> 51.31086317 | D4: =D3/(1+B4)^A4 -> 46.83666893 | E4: =E3/(1+B4)^A4 -> 56.212524 | F4: =F3+C4 -> 104.6946852 | G4: =G3+D4 -> 95.56553929 | H4: =H3+E4 -> 114.696034 | I4: =I3/(1+B4)^A4 -> 19.28503028 | J4: =J3/(1+B4)^A4 -> 17.60381549 | K4: =K3/(1+B4)^A4 -> 0.9756960013 | L4: =L3+I4 -> 39.34917578 | M4: =M3+J4 -> 35.91882513 | N4: =N3+K4 -> 1.990810121 | O4: =O3/(1+B4)^A4 -> 15.44242497 | P4: =P3/(1+B4)^A4 -> 14.09631811 | Q4: =Q3/(1+B4)^A4 -> 16.91713951 | R4: =R3+O4 -> 31.50872391 | S4: =S3+P4 -> 28.76212747 | T4: =T3+Q4 -> 34.51773145 | U4: =U3/(1+B4)^A4 -> 10626513.51 | V4: =V3/(1+B4)^A4 -> 9699904.94 | W4: =W3/(1+B4)^A4 -> 11641650.69 | X4: =X3+U4 -> 21682338.16 | Y4: =Y3+V4 -> 19791686.04 | Z4: =Z3+W4 -> 23753624.07 | AA4: =AA3/(1+B4)^A4 -> 3993942.454 | AB4: =AB3/(1+B4)^A4 -> 3645761.766 | AC4: =AC3/(1+B4)^A4 -> 4375388.487 | AD4: =AD3+AA4 -> 8149240.184 | AE4: =AE3+AB4 -> 7438812.307 | AF4: =AF3+AC4 -> 8927542.669 | AG4: =AG3/(1+B4)^A4 -> 3198136.368 | AH4: =AH3/(1+B4)^A4 -> 2919356.752 | AI4: =AI3/(1+B4)^A4 -> 3503550.718 | AJ4: =AJ3+AG4 -> 6525477.445 | AK4: =AK3+AH4 -> 5956655.516 | AL4: =AL3+AI4 -> 7148644.886 | AM4: =AM3/(1+B4)^A4 -> 2.584478817 | AN4: =AN3/(1+B4)^A4 -> 2.3596405 | AO4: =AO3/(1+B4)^A4 -> 2.830798292 | AP4: =AP3+AM4 -> 5.273370579 | AQ4: =AQ3+AN4 -> 4.814610476 | AR4: =AR3+AO4 -> 5.775960836 | AS4: =AS3/(1+B4)^A4 -> 0.9756960013 | AT4: =AT3/(1+B4)^A4 -> 0.8912111791 | AU4: =AU3/(1+B4)^A4 -> 1.068252543 | AV4: =AV3+AS4 -> 1.990810121 | AW4: =AW3+AT4 -> 1.81842729 | AX4: =AX3+AU4 -> 2.179662488 | AY4: =AY3/(1+B4)^A4 -> 0.7825964471 | AZ4: =AZ3/(1+B4)^A4 -> 0.7149515515 | BA4: =BA3/(1+B4)^A4 -> 0.8567041674 | BB4: =BB3+AY4 -> 1.596809791 | BC4: =BC3+AZ4 -> 1.458787146 | BD4: =BD3+BA4 -> 1.748019183 | BE4: =BE3/(1+B4)^A4 -> 535247.2629 | BF4: =BF3/(1+B4)^A4 -> 488683.0994 | BG4: =BG3/(1+B4)^A4 -> 586260.1881 | BH4: =BH3+BE4 -> 1092118.515 | BI4: =BI3+BF4 -> 997108.9961 | BJ4: =BJ3+BG4 -> 1196205.288 | BK4: =BK3/(1+B4)^A4 -> 202067.2836 | BL4: =BL3/(1+B4)^A4 -> 184570.4213 | BM4: =BM3/(1+B4)^A4 -> 221235.8041 | BN4: =BN3+BK4 -> 412298.0854 | BO4: =BO3+BL4 -> 376597.4877 | BP4: =BP3+BM4 -> 451409.5348 | BQ4: =BQ3/(1+B4)^A4 -> 162076.2389 | BR4: =BR3/(1+B4)^A4 -> 148066.9365 | BS4: =BS3/(1+B4)^A4 -> 177423.9965 | BT4: =BT3+BQ4 -> 330700.3579 | BU4: =BU3+BR4 -> 302115.7773 | BV4: =BV3+BS4 -> 362015.9225
A5: 3 | B5: 0.02 | C5: =C4/(1+B5)^A5 -> 48.35137237 | D5: =D4/(1+B5)^A5 -> 44.13523921 | E5: =E4/(1+B5)^A5 -> 52.97031684 | F5: =F4+C5 -> 153.0460576 | G5: 139.7007785 | H5: 167.6663508 | I5: =I4/(1+B5)^A5 -> 18.17271475 | J5: =J4/(1+B5)^A5 -> 16.58846851 | K5: =K4/(1+B5)^A5 -> 0.9194201337 | L5: =L4+I5 -> 57.52189053 | M5: 52.50729364 | N5: 2.910230255 | O5: =O4/(1+B5)^A5 -> 14.55174195 | P5: =P4/(1+B5)^A5 -> 13.28327539 | Q5: =Q4/(1+B5)^A5 -> 15.94139839 | R5: =R4+O5 -> 46.06046586 | S5: 42.04540286 | T5: 50.45912984 | U5: =U4/(1+B5)^A5 -> 10013601.02 | V5: =V4/(1+B5)^A5 -> 9140437.068 | W5: =W4/(1+B5)^A5 -> 10970187.46 | X5: =X4+U5 -> 31695939.18 | Y5: 28932123.11 | Z5: 34723811.53 | AA5: =AA4/(1+B5)^A5 -> 3763581.178 | AB5: =AB4/(1+B5)^A5 -> 3435482.739 | AC5: =AC4/(1+B5)^A5 -> 4123026.294 | AD5: =AD4+AA5 -> 11912821.36 | AE5: 10874295.05 | AF5: 13050568.96 | AG5: =AG4/(1+B5)^A5 -> 3013675.329 | AH5: =AH4/(1+B5)^A5 -> 2750975.07 | AI5: =AI4/(1+B5)^A5 -> 3301474.092 | AJ5: =AJ4+AG5 -> 9539152.774 | AK5: 8707630.586 | AL5: 10450118.98 | AM5: =AM4/(1+B5)^A5 -> 2.435412113 | AN5: =AN4/(1+B5)^A5 -> 2.223541944 | AO5: =AO4/(1+B5)^A5 -> 2.667524455 | AP5: =AP4+AM5 -> 7.708782692 | AQ5: 7.03815242 | AR5: 8.443485291 | AS5: =AS4/(1+B5)^A5 -> 0.9194201337 | AT5: =AT4/(1+B5)^A5 -> 0.8398081989 | AU5: =AU4/(1+B5)^A5 -> 1.00663823 | AV5: =AV4+AS5 -> 2.910230255 | AW5: 2.658235489 | AX5: 3.186300718 | AY5: =AY4/(1+B5)^A5 -> 0.737458111 | AZ5: =AZ4/(1+B5)^A5 -> 0.6737148151 | BA5: =BA4/(1+B5)^A5 -> 0.807291471 | BB5: =BB4+AY5 -> 2.334267902 | BC5: 2.132501961 | BD5: 2.555310654 | BE5: =BE4/(1+B5)^A5 -> 504375.4503 | BF5: =BF4/(1+B5)^A5 -> 460496.9991 | BG5: =BG4/(1+B5)^A5 -> 552446.0691 | BH5: =BH4+BE5 -> 1596493.966 | BI5: 1457605.995 | BJ5: 1748651.357 | BK5: =BK4/(1+B5)^A5 -> 190412.5144 | BL5: =BL4/(1+B5)^A5 -> 173924.8303 | BM5: =BM4/(1+B5)^A5 -> 208475.4394 | BN5: =BN4+BK5 -> 602710.5998 | BO5: 550522.318 | BP5: 659884.9742 | BQ5: =BQ4/(1+B5)^A5 -> 152728.0598 | BR5: =BR4/(1+B5)^A5 -> 139526.7813 | BS5: =BS4/(1+B5)^A5 -> 167190.5946 | BT5: =BT4+BQ5 -> 483428.4177 | BU5: 441642.5586 | BV5: 529206.5171
A6: 4 | B6: 0.02 | C6: 44.6691942 | D6: 40.77413887 | E6: 48.93638493 | F6: 197.7152518 | G6: 180.4749174 | H6: 216.6027357 | I6: 16.7887794 | J6: 15.32518076 | K6: 0.8494020851 | L6: 74.31066994 | M6: 67.83247439 | N6: 3.75963234 | O6: 13.44356024 | P6: 12.27169321 | Q6: 14.72738799 | R6: 59.5040261 | S6: 54.31709607 | T6: 65.18651784 | U6: 9251019.498 | V6: 8444350.977 | W6: 10134757.5 | X6: 40946958.68 | Y6: 37376474.08 | Z6: 44858569.03 | AA6: 3476967.256 | AB6: 3173855.014 | AC6: 3809038.983 | AD6: 15389788.62 | AE6: 14048150.06 | AF6: 16859607.95 | AG6: 2784170.168 | AH6: 2541475.735 | AI6: 3050051.739 | AJ6: 12323322.94 | AK6: 11249106.32 | AL6: 13500170.72 | AM6: 2.249944341 | AN6: 2.054209055 | AO6: 2.464380267 | AP6: 9.958727033 | AQ6: 9.092361475 | AR6: 10.90786556 | AS6: 0.8494020851 | AT6: 0.7758529633 | AU6: 0.9299781242 | AV6: 3.75963234 | AW6: 3.434088452 | AX6: 4.116278842 | AY6: 0.6812973028 | AZ6: 0.6224083503 | BA6: 0.745812533 | BB6: 3.015565204 | BC6: 2.754910311 | BD6: 3.301123187 | BE6: 465964.9528 | BF6: 425428.0463 | BG6: 510374.7741 | BH6: 2062458.918 | BI6: 1883034.042 | BJ6: 2259026.131 | BK6: 175911.7305 | BL6: 160679.659 | BM6: 192599.0812 | BN6: 778622.3303 | BO6: 711201.977 | BP6: 852484.0554 | BQ6: 141097.1195 | BR6: 128901.1787 | BS6: 154458.2661 | BT6: 624525.5372 | BU6: 570543.7373 | BV6: 683664.7832
A7: 5 | B7: 0.02 | C7: 40.45826544 | D7: 36.93039382 | E7: 44.32319155 | F7: 238.1735172 | G7: 217.4053112 | H7: 260.9259273 | I7: 15.20611477 | J7: 13.88048838 | K7: 0.7693296384 | L7: 89.5167847 | M7: 81.71296277 | N7: 4.528961978 | O7: 12.1762467 | P7: 11.11485063 | Q7: 13.33904905 | R7: 71.68027281 | S7: 65.43194671 | T7: 78.52556689 | U7: 8378933.382 | V7: 7648308.849 | W7: 9179362.122 | X7: 49325892.06 | Y7: 45024782.93 | Z7: 54037931.15 | AA7: 3149196.369 | AB7: 2874658.272 | AC7: 3449963.962 | AD7: 18538984.99 | AE7: 16922808.33 | AF7: 20309571.91 | AG7: 2521708.701 | AH7: 2301892.876 | AI7: 2762525.832 | AJ7: 14845031.64 | AK7: 13550999.2 | AL7: 16262696.55 | AM7: 2.03784391 | AN7: 1.860560431 | AO7: 2.232065135 | AP7: 11.99657094 | AQ7: 10.95292191 | AR7: 13.13993069 | AS7: 0.7693296384 | AT7: 0.7027139327 | AU7: 0.8423098396 | AV7: 4.528961978 | AW7: 4.136802385 | AX7: 4.958588681 | AY7: 0.6170719578 | AZ7: 0.5637344192 | BA7: 0.6755053895 | BB7: 3.632637162 | BC7: 3.31864473 | BD7: 3.976628577 | BE7: 422038.8141 | BF7: 385323.2889 | BG7: 462262.1575 | BH7: 2484497.732 | BI7: 2268357.33 | BJ7: 2721288.289 | BK7: 159328.6741 | BL7: 145532.5176 | BM7: 174442.9218 | BN7: 937951.0044 | BO7: 856734.4946 | BP7: 1026926.977 | BQ7: 127796.0083 | BR7: 116749.769 | BS7: 139897.6104 | BT7: 752321.5455 | BU7: 687293.5063 | BV7: 823562.3936
... 8 more rows

Sheet Armstrong NPV 3% (hidden)
C1: ACRES all conservation strategies | U1: Countywide demand= all conservation strategies | AM1: Acre value of acquisition and easements | BE1: countywide demand for acquisition and easements
A2: year | B2: rate % | C2: All surface waters PV | D2: (Low 95% CI) PV | E2: (High 95% CI) PV | F2: All surface waters NPV | G2: (Low 95% CI) NPV | H2: (High 95% CI) NPV | I2: Protect Rivers only PV | J2: (Low 95% CI) PV | K2: (High 95% CI) PV | L2: Protect Rivers only NPV | M2: (Low 95% CI) NPV | N2: (High 95% CI) NPV | O2: Protect single site PV | P2: (Low 95% CI) PV | Q2: (High 95% CI) PV | R2: Protect single site NPV | S2: (Low 95% CI) NPV | T2: (High 95% CI) NPV | U2: All surface waters PV | V2: (Low 95% CI) PV | W2: (High 95% CI) PV | X2: All surface waters NPV | Y2: (Low 95% CI) NPV | Z2: (High 95% CI) NPV | AA2: Protect Rivers only PV | AB2: (Low 95% CI) PV | AC2: (High 95% CI) PV | AD2: Protect Rivers only NPV | AE2: (Low 95% CI) NPV | AF2: (High 95% CI) NPV | AG2: Protect single site PV | AH2: (Low 95% CI) PV | AI2: (High 95% CI) PV | AJ2: Protect single site NPV | AK2: (Low 95% CI) NPV | AL2: (High 95% CI) NPV | AM2: All surface waters PV | AN2: (Low 95% CI) PV | AO2: (High 95% CI) PV | AP2: All surface waters NPV | AQ2: (Low 95% CI) NPV | AR2: (High 95% CI) NPV | AS2: Protect Rivers only PV | AT2: (Low 95% CI) PV | AU2: (High 95% CI) PV | AV2: Protect Rivers only NPV | AW2: (Low 95% CI) NPV | AX2: (High 95% CI) NPV | AY2: Protect single site PV | AZ2: (Low 95% CI) PV | BA2: (High 95% CI) PV | BB2: Protect single site NPV | BC2: (Low 95% CI) NPV | BD2: (High 95% CI) NPV | BE2: All surface waters PV | BF2: (Low 95% CI) PV | BG2: (High 95% CI) PV | BH2: All surface waters NPV | BI2: (Low 95% CI) NPV | BJ2: (High 95% CI) NPV | BK2: Protect Rivers only PV | BL2: (Low 95% CI) PV | BM2: (High 95% CI) PV | BN2: Protect Rivers only NPV | BO2: (Low 95% CI) NPV | BP2: (High 95% CI) NPV | BQ2: Protect single site PV | BR2: (Low 95% CI) PV | BS2: (High 95% CI) PV | BT2: Protect single site NPV | BU2: (Low 95% CI) NPV | BV2: (High 95% CI) NPV
A3: 1 | B3: 0.03 | C3: ='WTP Values '!CU4 -> 53.38382204 | D3: ='WTP Values '!CV4 -> 48.72887036 | E3: ='WTP Values '!CW4 -> 58.48350997 | F3: =C3 -> 53.38382204 | G3: =D3 -> 48.72887036 | H3: =E3 -> 58.48350997 | I3: ='WTP Values '!CC4 -> 20.0641455 | J3: ='WTP Values '!CD4 -> 18.31500964 | K3: ='WTP Values '!CF4 -> 1.01511412 | L3: =I3 -> 20.0641455 | M3: =J3 -> 18.31500964 | N3: =K3 -> 1.01511412 | O3: ='WTP Values '!CI4 -> 16.06629894 | P3: ='WTP Values '!CJ4 -> 14.66580936 | Q3: ='WTP Values '!CK4 -> 17.60059194 | R3: =O3 -> 16.06629894 | S3: =P3 -> 14.66580936 | T3: =Q3 -> 17.60059194 | U3: ='WTP Values '!BH4 -> 11055824.65 | V3: ='WTP Values '!BI4 -> 10091781.1 | W3: ='WTP Values '!BJ4 -> 12111973.38 | X3: =U3 -> 11055824.65 | Y3: =V3 -> 10091781.1 | Z3: =W3 -> 12111973.38 | AA3: ='WTP Values '!AV4 -> 4155297.729 | AB3: ='WTP Values '!AW4 -> 3793050.541 | AC3: ='WTP Values '!AX4 -> 4552154.182 | AD3: =AA3 -> 4155297.729 | AE3: =AB3 -> 3793050.541 | AF3: =AC3 -> 4552154.182 | AG3: ='WTP Values '!BB4 -> 3327341.077 | AH3: ='WTP Values '!BC4 -> 3037298.765 | AI3: ='WTP Values '!BD4 -> 3645094.167 | AJ3: =AG3 -> 3327341.077 | AK3: =AH3 -> 3037298.765 | AL3: =AI3 -> 3645094.167 | AM3: ='WTP Values '!CX4 -> 2.688891762 | AN3: ='WTP Values '!CY4 -> 2.454969976 | AO3: ='WTP Values '!CZ4 -> 2.945162543 | AP3: =AM3 -> 2.688891762 | AQ3: =AN3 -> 2.454969976 | AR3: =AO3 -> 2.945162543 | AS3: ='WTP Values '!CF4 -> 1.01511412 | AT3: ='WTP Values '!CG4 -> 0.9272161107 | AU3: ='WTP Values '!CH4 -> 1.111409945 | AV3: =AS3 -> 1.01511412 | AW3: =AT3 -> 0.9272161107 | AX3: =AU3 -> 1.111409945 | AY3: ='WTP Values '!CL4 -> 0.8142133435 | AZ3: ='WTP Values '!CM4 -> 0.7438355941 | BA3: ='WTP Values '!CN4 -> 0.8913150158 | BB3: =AY3 -> 0.8142133435 | BC3: =AZ3 -> 0.7438355941 | BD3: =BA3 -> 0.8913150158 | BE3: ='WTP Values '!BK4 -> 556871.2523 | BF3: ='WTP Values '!BL4 -> 508425.8967 | BG3: ='WTP Values '!BM4 -> 609945.0997 | BH3: =BE3 -> 556871.2523 | BI3: =BF3 -> 508425.8967 | BJ3: =BG3 -> 609945.0997 | BK3: ='WTP Values '!AY4 -> 210230.8018 | BL3: ='WTP Values '!AZ4 -> 192027.0664 | BM3: ='WTP Values '!BA4 -> 230173.7306 | BN3: =BK3 -> 210230.8018 | BO3: =BL3 -> 192027.0664 | BP3: =BM3 -> 230173.7306 | BQ3: ='WTP Values '!BE4 -> 168624.119 | BR3: ='WTP Values '!BF4 -> 154048.8408 | BS3: ='WTP Values '!BG4 -> 184591.926 | BT3: =BQ3 -> 168624.119 | BU3: =BR3 -> 154048.8408 | BV3: =BS3 -> 184591.926
A4: 2 | B4: 0.03 | C4: =C3/(1+B4)^A4 -> 50.31937227 | D4: =D3/(1+B4)^A4 -> 45.93163385 | E4: =E3/(1+B4)^A4 -> 55.12631725 | F4: =F3+C4 -> 103.7031943 | G4: =G3+D4 -> 94.66050421 | H4: =H3+E4 -> 113.6098272 | I4: =I3/(1+B4)^A4 -> 18.91238147 | J4: =J3/(1+B4)^A4 -> 17.26365316 | K4: =K3/(1+B4)^A4 -> 0.9568424165 | L4: =L3+I4 -> 38.97652697 | M4: =M3+J4 -> 35.5786628 | N4: =N3+K4 -> 1.971956536 | O4: =O3/(1+B4)^A4 -> 15.14402766 | P4: =P3/(1+B4)^A4 -> 13.82393191 | Q4: =Q3/(1+B4)^A4 -> 16.59024596 | R4: =R3+O4 -> 31.2103266 | S4: =S3+P4 -> 28.48974127 | T4: =T3+Q4 -> 34.19083791 | U4: =U3/(1+B4)^A4 -> 10421175.09 | V4: =V3/(1+B4)^A4 -> 9512471.58 | W4: =W3/(1+B4)^A4 -> 11416696.56 | X4: =X3+U4 -> 21476999.75 | Y4: =Y3+V4 -> 19604252.68 | Z4: =Z3+W4 -> 23528669.94 | AA4: =AA3/(1+B4)^A4 -> 3916766.641 | AB4: =AB3/(1+B4)^A4 -> 3575313.923 | AC4: =AC3/(1+B4)^A4 -> 4290841.91 | AD4: =AD3+AA4 -> 8072064.37 | AE4: =AE3+AB4 -> 7368364.465 | AF4: =AF3+AC4 -> 8842996.091 | AG4: =AG3/(1+B4)^A4 -> 3136338.088 | AH4: =AH3/(1+B4)^A4 -> 2862945.39 | AI4: =AI3/(1+B4)^A4 -> 3435850.85 | AJ4: =AJ3+AG4 -> 6463679.165 | AK4: =AK3+AH4 -> 5900244.155 | AL4: =AL3+AI4 -> 7080945.018 | AM4: =AM3/(1+B4)^A4 -> 2.534538375 | AN4: =AN3/(1+B4)^A4 -> 2.314044656 | AO4: =AO3/(1+B4)^A4 -> 2.776098165 | AP4: =AP3+AM4 -> 5.223430136 | AQ4: =AQ3+AN4 -> 4.769014632 | AR4: =AR3+AO4 -> 5.721260708 | AS4: =AS3/(1+B4)^A4 -> 0.9568424165 | AT4: =AT3/(1+B4)^A4 -> 0.8739901129 | AU4: =AU3/(1+B4)^A4 -> 1.047610468 | AV4: =AV3+AS4 -> 1.971956536 | AW4: =AW3+AT4 -> 1.801206224 | AX4: =AX3+AU4 -> 2.159020413 | AY4: =AY3/(1+B4)^A4 -> 0.7674741668 | AZ4: =AZ3/(1+B4)^A4 -> 0.7011363881 | BA4: =BA3/(1+B4)^A4 -> 0.8401498876 | BB4: =BB3+AY4 -> 1.58168751 | BC4: =BC3+AZ4 -> 1.444971982 | BD4: =BD3+BA4 -> 1.731464903 | BE4: =BE3/(1+B4)^A4 -> 524904.5644 | BF4: =BF3/(1+B4)^A4 -> 479240.1703 | BG4: =BG3/(1+B4)^A4 -> 574931.7558 | BH4: =BH3+BE4 -> 1081775.817 | BI4: =BI3+BF4 -> 987666.0669 | BJ4: =BJ3+BG4 -> 1184876.856 | BK4: =BK3/(1+B4)^A4 -> 198162.6938 | BL4: =BL3/(1+B4)^A4 -> 181003.9272 | BM4: =BM3/(1+B4)^A4 -> 216960.8169 | BN4: =BN3+BK4 -> 408393.4956 | BO4: =BO3+BL4 -> 373030.9936 | BP4: =BP3+BM4 -> 447134.5475 | BQ4: =BQ3/(1+B4)^A4 -> 158944.4047 | BR4: =BR3/(1+B4)^A4 -> 145205.8071 | BS4: =BS3/(1+B4)^A4 -> 173995.5943 | BT4: =BT3+BQ4 -> 327568.5237 | BU4: =BU3+BR4 -> 299254.6479 | BV4: =BV3+BS4 -> 358587.5203
A5: 3 | B5: 0.03 | C5: =C4/(1+B5)^A5 -> 46.04935384 | D5: =D4/(1+B5)^A5 -> 42.03395162 | E5: =E4/(1+B5)^A5 -> 50.44838944 | F5: =F4+C5 -> 149.7525481 | G5: 136.6944558 | H5: 164.0582167 | I5: =I4/(1+B5)^A5 -> 17.30750816 | J5: =J4/(1+B5)^A5 -> 15.7986882 | K5: =K4/(1+B5)^A5 -> 0.8756463568 | L5: =L4+I5 -> 56.28403513 | M5: 51.37735099 | N5: 2.847602893 | O5: =O4/(1+B5)^A5 -> 13.8589306 | P5: =P4/(1+B5)^A5 -> 12.65085599 | Q5: =Q4/(1+B5)^A5 -> 15.18242522 | R5: =R4+O5 -> 45.0692572 | S5: 41.14059726 | T5: 49.37326313 | U5: =U4/(1+B5)^A5 -> 9536851.466 | V5: =V4/(1+B5)^A5 -> 8705259.026 | W5: =W4/(1+B5)^A5 -> 10447894.63 | X5: =X4+U5 -> 31013851.21 | Y5: 28309511.71 | Z5: 33976564.57 | AA5: =AA4/(1+B5)^A5 -> 3584396.323 | AB5: =AB4/(1+B5)^A5 -> 3271918.717 | AC5: =AC4/(1+B5)^A5 -> 3926728.185 | AD5: =AD4+AA5 -> 11656460.69 | AE5: 10640283.18 | AF5: 12769724.28 | AG5: =AG4/(1+B5)^A5 -> 2870193.642 | AH5: =AH4/(1+B5)^A5 -> 2620000.595 | AI5: =AI4/(1+B5)^A5 -> 3144290.249 | AJ5: =AJ4+AG5 -> 9333872.807 | AK5: 8520244.75 | AL5: 10225235.27 | AM5: =AM4/(1+B5)^A5 -> 2.319461654 | AN5: =AN4/(1+B5)^A5 -> 2.117678667 | AO5: =AO4/(1+B5)^A5 -> 2.540523081 | AP5: =AP4+AM5 -> 7.54289179 | AQ5: 6.886693299 | AR5: 8.26178379 | AS5: =AS4/(1+B5)^A5 -> 0.8756463568 | AT5: =AT4/(1+B5)^A5 -> 0.7998247621 | AU5: =AU4/(1+B5)^A5 -> 0.9587119818 | AV5: =AV4+AS5 -> 2.847602893 | AW5: 2.601030986 | AX5: 3.117732395 | AY5: =AY4/(1+B5)^A5 -> 0.7023475825 | AZ5: =AZ4/(1+B5)^A5 -> 0.6416391176 | BA5: =BA4/(1+B5)^A5 -> 0.7688561622 | BB5: =BB4+AY5 -> 2.284035093 | BC5: 2.0866111 | BD5: 2.500321066 | BE5: =BE4/(1+B5)^A5 -> 480362.034 | BF5: =BF4/(1+B5)^A5 -> 438572.6447 | BG5: =BG4/(1+B5)^A5 -> 526144.001 | BH5: =BH4+BE5 -> 1562137.851 | BI5: 1426238.712 | BJ5: 1711020.857 | BK5: =BK4/(1+B5)^A5 -> 181346.9364 | BL5: =BL4/(1+B5)^A5 -> 165644.2343 | BM5: =BM4/(1+B5)^A5 -> 198549.882 | BN5: =BN4+BK5 -> 589740.432 | BO5: 538675.2278 | BP5: 645684.4295 | BQ5: =BQ4/(1+B5)^A5 -> 145456.6463 | BR5: =BR4/(1+B5)^A5 -> 132883.8833 | BS5: =BS4/(1+B5)^A5 -> 159230.6169 | BT5: =BT4+BQ5 -> 473025.1699 | BU5: 432138.5311 | BV5: 517818.1371
A6: 4 | B6: 0.03 | C6: 40.91425445 | D6: 37.34662159 | E6: 44.8227406 | F6: 190.6668026 | G6: 174.0410774 | H6: 208.8809573 | I6: 15.37749683 | J6: 14.03692984 | K6: 0.7780004466 | L6: 71.66153196 | M6: 65.41428083 | N6: 3.62560334 | O6: 12.31348033 | P6: 11.24012169 | Q6: 13.48938816 | R6: 57.38273753 | S6: 52.38071894 | T6: 62.86265129 | U6: 8473369.005 | V6: 7734509.894 | W6: 9282819.059 | X6: 39487220.22 | Y6: 36044021.6 | Z6: 43259383.63 | AA6: 3184689.708 | AB6: 2907057.402 | AC6: 3488847.133 | AD6: 14841150.4 | AE6: 13547340.58 | AF6: 16258571.41 | AG6: 2550129.876 | AH6: 2327836.594 | AI6: 2793661.161 | AJ6: 11884002.68 | AK6: 10848081.34 | AL6: 13018896.43 | AM6: 2.060811638 | AN6: 1.881530067 | AO6: 2.257221853 | AP6: 9.603703428 | AQ6: 8.768223366 | AR6: 10.51900564 | AS6: 0.7780004466 | AT6: 0.7106339418 | AU6: 0.8518031785 | AV6: 3.62560334 | AW6: 3.311664927 | AX6: 3.969535573 | AY6: 0.6240267302 | AZ6: 0.5700880455 | BA6: 0.6831187419 | BB6: 2.908061823 | BC6: 2.656699145 | BD6: 3.183439807 | BE6: 426795.4455 | BF6: 389666.1144 | BG6: 467472.1303 | BH6: 1988933.296 | BI6: 1815904.826 | BJ6: 2178492.987 | BK6: 161124.4042 | BL6: 147172.7567 | BM6: 176408.9985 | BN6: 750864.8362 | BO6: 685847.9846 | BP6: 822093.428 | BQ6: 129236.3462 | BR6: 118065.6092 | BS6: 141474.3407 | BT6: 602261.5162 | BU6: 550204.1403 | BV6: 659292.4779
A7: 5 | B7: 0.03 | C7: 35.29299529 | D7: 32.21552385 | E7: 38.66448979 | F7: 225.9597979 | G7: 206.2566013 | H7: 247.545447 | I7: 13.26476385 | J7: 12.10837898 | K7: 0.6711100195 | L7: 84.92629581 | M7: 77.52265982 | N7: 4.296713359 | O7: 10.6217163 | P7: 9.695827706 | Q7: 11.63606473 | R7: 68.00445383 | S7: 62.07654665 | T7: 74.49871602 | U7: 7309202.537 | V7: 6671856.177 | W7: 8007441.264 | X7: 46796422.76 | Y7: 42715877.78 | Z7: 51266824.89 | AA7: 2747141.317 | AB7: 2507653.251 | AC7: 3009510.184 | AD7: 17588291.72 | AE7: 16054993.83 | AF7: 19268081.59 | AG7: 2199764.432 | AH7: 2008012.295 | AI7: 2409836.658 | AJ7: 14083767.12 | AK7: 12856093.64 | AL7: 15428733.08 | AM7: 1.777674222 | AN7: 1.623024364 | AO7: 1.947099398 | AP7: 11.38137765 | AQ7: 10.39124773 | AR7: 12.46610504 | AS7: 0.6711100195 | AT7: 0.6129990806 | AU7: 0.7347729044 | AV7: 4.296713359 | AW7: 3.924664008 | AX7: 4.704308478 | AY7: 0.5382909392 | AZ7: 0.4917629559 | BA7: 0.5892642275 | BB7: 3.446352762 | BC7: 3.148462101 | BD7: 3.772704035 | BE7: 368157.5005 | BF7: 336129.4132 | BG7: 403245.566 | BH7: 2357090.797 | BI7: 2152034.239 | BJ7: 2581738.553 | BK7: 138987.3264 | BL7: 126952.5128 | BM7: 152171.9518 | BN7: 889852.1626 | BO7: 812800.4973 | BP7: 974265.3797 | BQ7: 111480.4075 | BR7: 101844.4316 | BS7: 122037.0091 | BT7: 713741.9237 | BU7: 652048.5719 | BV7: 781329.4869
... 8 more rows

Sheet Armstrong NPV 4% (hidden)
C1: ACRES all conservation strategies | U1: Countywide demand= all conservation strategies | AM1: Acre value of acquisition and easements | BE1: countywide demand for acquisition and easements
A2: year | B2: rate % | C2: All surface waters PV | D2: (Low 95% CI) PV | E2: (High 95% CI) PV | F2: All surface waters NPV | G2: (Low 95% CI) NPV | H2: (High 95% CI) NPV | I2: Protect Rivers only PV | J2: (Low 95% CI) PV | K2: (High 95% CI) PV | L2: Protect Rivers only NPV | M2: (Low 95% CI) NPV | N2: (High 95% CI) NPV | O2: Protect single site PV | P2: (Low 95% CI) PV | Q2: (High 95% CI) PV | R2: Protect single site NPV | S2: (Low 95% CI) NPV | T2: (High 95% CI) NPV | U2: All surface waters PV | V2: (Low 95% CI) PV | W2: (High 95% CI) PV | X2: All surface waters NPV | Y2: (Low 95% CI) NPV | Z2: (High 95% CI) NPV | AA2: Protect Rivers only PV | AB2: (Low 95% CI) PV | AC2: (High 95% CI) PV | AD2: Protect Rivers only NPV | AE2: (Low 95% CI) NPV | AF2: (High 95% CI) NPV | AG2: Protect single site PV | AH2: (Low 95% CI) PV | AI2: (High 95% CI) PV | AJ2: Protect single site NPV | AK2: (Low 95% CI) NPV | AL2: (High 95% CI) NPV | AM2: All surface waters PV | AN2: (Low 95% CI) PV | AO2: (High 95% CI) PV | AP2: All surface waters NPV | AQ2: (Low 95% CI) NPV | AR2: (High 95% CI) NPV | AS2: Protect Rivers only PV | AT2: (Low 95% CI) PV | AU2: (High 95% CI) PV | AV2: Protect Rivers only NPV | AW2: (Low 95% CI) NPV | AX2: (High 95% CI) NPV | AY2: Protect single site PV | AZ2: (Low 95% CI) PV | BA2: (High 95% CI) PV | BB2: Protect single site NPV | BC2: (Low 95% CI) NPV | BD2: (High 95% CI) NPV | BE2: All surface waters PV | BF2: (Low 95% CI) PV | BG2: (High 95% CI) PV | BH2: All surface waters NPV | BI2: (Low 95% CI) NPV | BJ2: (High 95% CI) NPV | BK2: Protect Rivers only PV | BL2: (Low 95% CI) PV | BM2: (High 95% CI) PV | BN2: Protect Rivers only NPV | BO2: (Low 95% CI) NPV | BP2: (High 95% CI) NPV | BQ2: Protect single site PV | BR2: (Low 95% CI) PV | BS2: (High 95% CI) PV | BT2: Protect single site NPV | BU2: (Low 95% CI) NPV | BV2: (High 95% CI) NPV
A3: 1 | B3: 0.04 | C3: ='WTP Values '!CU4 -> 53.38382204 | D3: ='WTP Values '!CV4 -> 48.72887036 | E3: ='WTP Values '!CW4 -> 58.48350997 | F3: =C3 -> 53.38382204 | G3: =D3 -> 48.72887036 | H3: =E3 -> 58.48350997 | I3: ='WTP Values '!CC4 -> 20.0641455 | J3: ='WTP Values '!CD4 -> 18.31500964 | K3: ='WTP Values '!CF4 -> 1.01511412 | L3: =I3 -> 20.0641455 | M3: =J3 -> 18.31500964 | N3: =K3 -> 1.01511412 | O3: ='WTP Values '!CI4 -> 16.06629894 | P3: ='WTP Values '!CJ4 -> 14.66580936 | Q3: ='WTP Values '!CK4 -> 17.60059194 | R3: =O3 -> 16.06629894 | S3: =P3 -> 14.66580936 | T3: =Q3 -> 17.60059194 | U3: ='WTP Values '!BH4 -> 11055824.65 | V3: ='WTP Values '!BI4 -> 10091781.1 | W3: ='WTP Values '!BJ4 -> 12111973.38 | X3: =U3 -> 11055824.65 | Y3: =V3 -> 10091781.1 | Z3: =W3 -> 12111973.38 | AA3: ='WTP Values '!AV4 -> 4155297.729 | AB3: ='WTP Values '!AW4 -> 3793050.541 | AC3: ='WTP Values '!AX4 -> 4552154.182 | AD3: =AA3 -> 4155297.729 | AE3: =AB3 -> 3793050.541 | AF3: =AC3 -> 4552154.182 | AG3: ='WTP Values '!BB4 -> 3327341.077 | AH3: ='WTP Values '!BC4 -> 3037298.765 | AI3: ='WTP Values '!BD4 -> 3645094.167 | AJ3: =AG3 -> 3327341.077 | AK3: =AH3 -> 3037298.765 | AL3: =AI3 -> 3645094.167 | AM3: ='WTP Values '!CX4 -> 2.688891762 | AN3: ='WTP Values '!CY4 -> 2.454969976 | AO3: ='WTP Values '!CZ4 -> 2.945162543 | AP3: =AM3 -> 2.688891762 | AQ3: =AN3 -> 2.454969976 | AR3: =AO3 -> 2.945162543 | AS3: ='WTP Values '!CF4 -> 1.01511412 | AT3: ='WTP Values '!CG4 -> 0.9272161107 | AU3: ='WTP Values '!CH4 -> 1.111409945 | AV3: =AS3 -> 1.01511412 | AW3: =AT3 -> 0.9272161107 | AX3: =AU3 -> 1.111409945 | AY3: ='WTP Values '!CL4 -> 0.8142133435 | AZ3: ='WTP Values '!CM4 -> 0.7438355941 | BA3: ='WTP Values '!CN4 -> 0.8913150158 | BB3: =AY3 -> 0.8142133435 | BC3: =AZ3 -> 0.7438355941 | BD3: =BA3 -> 0.8913150158 | BE3: ='WTP Values '!BK4 -> 556871.2523 | BF3: ='WTP Values '!BL4 -> 508425.8967 | BG3: ='WTP Values '!BM4 -> 609945.0997 | BH3: =BE3 -> 556871.2523 | BI3: =BF3 -> 508425.8967 | BJ3: =BG3 -> 609945.0997 | BK3: ='WTP Values '!AY4 -> 210230.8018 | BL3: ='WTP Values '!AZ4 -> 192027.0664 | BM3: ='WTP Values '!BA4 -> 230173.7306 | BN3: =BK3 -> 210230.8018 | BO3: =BL3 -> 192027.0664 | BP3: =BM3 -> 230173.7306 | BQ3: ='WTP Values '!BE4 -> 168624.119 | BR3: ='WTP Values '!BF4 -> 154048.8408 | BS3: ='WTP Values '!BG4 -> 184591.926 | BT3: =BQ3 -> 168624.119 | BU3: =BR3 -> 154048.8408 | BV3: =BS3 -> 184591.926
A4: 2 | B4: 0.04 | C4: =C3/(1+B4)^A4 -> 49.35634434 | D4: =D3/(1+B4)^A4 -> 45.05257984 | E4: =E3/(1+B4)^A4 -> 54.0712925 | F4: =F3+C4 -> 102.7401664 | G4: =G3+D4 -> 93.7814502 | H4: =H3+E4 -> 112.5548025 | I4: =I3/(1+B4)^A4 -> 18.55043038 | J4: =J3/(1+B4)^A4 -> 16.93325595 | K4: =K3/(1+B4)^A4 -> 0.9385300663 | L4: =L3+I4 -> 38.61457588 | M4: =M3+J4 -> 35.24826559 | N4: =N3+K4 -> 1.953644186 | O4: =O3/(1+B4)^A4 -> 14.85419651 | P4: =P3/(1+B4)^A4 -> 13.55936516 | Q4: =Q3/(1+B4)^A4 -> 16.27273663 | R4: =R3+O4 -> 30.92049545 | S4: =S3+P4 -> 28.22517453 | T4: =T3+Q4 -> 33.87332858 | U4: =U3/(1+B4)^A4 -> 10221731.37 | V4: =V3/(1+B4)^A4 -> 9330418.916 | W4: =W3/(1+B4)^A4 -> 11198200.24 | X4: =X3+U4 -> 21277556.03 | Y4: =Y3+V4 -> 19422200.02 | Z4: =Z3+W4 -> 23310173.62 | AA4: =AA3/(1+B4)^A4 -> 3841806.333 | AB4: =AB3/(1+B4)^A4 -> 3506888.444 | AC4: =AC3/(1+B4)^A4 -> 4208722.431 | AD4: =AD3+AA4 -> 7997104.062 | AE4: =AE3+AB4 -> 7299938.986 | AF4: =AF3+AC4 -> 8760876.613 | AG4: =AG3/(1+B4)^A4 -> 3076313.866 | AH4: =AH3/(1+B4)^A4 -> 2808153.444 | AI4: =AI3/(1+B4)^A4 -> 3370094.459 | AJ4: =AJ3+AG4 -> 6403654.943 | AK4: =AK3+AH4 -> 5845452.208 | AL4: =AL3+AI4 -> 7015188.627 | AM4: =AM3/(1+B4)^A4 -> 2.486031584 | AN4: =AN3/(1+B4)^A4 -> 2.269757744 | AO4: =AO3/(1+B4)^A4 -> 2.722968328 | AP4: =AP3+AM4 -> 5.174923346 | AQ4: =AQ3+AN4 -> 4.72472772 | AR4: =AR3+AO4 -> 5.668130871 | AS4: =AS3/(1+B4)^A4 -> 0.9385300663 | AT4: =AT3/(1+B4)^A4 -> 0.857263416 | AU4: =AU3/(1+B4)^A4 -> 1.02756097 | AV4: =AV3+AS4 -> 1.953644186 | AW4: =AW3+AT4 -> 1.784479527 | AX4: =AX3+AU4 -> 2.138970915 | AY4: =AY3/(1+B4)^A4 -> 0.7527860055 | AZ4: =AZ3/(1+B4)^A4 -> 0.68771782 | BA4: =BA3/(1+B4)^A4 -> 0.8240708356 | BB4: =BB3+AY4 -> 1.566999349 | BC4: =BC3+AZ4 -> 1.431553414 | BD4: =BD3+BA4 -> 1.715385851 | BE4: =BE3/(1+B4)^A4 -> 514858.7762 | BF4: =BF3/(1+B4)^A4 -> 470068.3216 | BG4: =BG3/(1+B4)^A4 -> 563928.5316 | BH4: =BH3+BE4 -> 1071730.029 | BI4: =BI3+BF4 -> 978494.2183 | BJ4: =BJ3+BG4 -> 1173873.631 | BK4: =BK3/(1+B4)^A4 -> 194370.194 | BL4: =BL3/(1+B4)^A4 -> 177539.8173 | BM4: =BM3/(1+B4)^A4 -> 212808.5527 | BN4: =BN3+BK4 -> 404600.9958 | BO4: =BO3+BL4 -> 369566.8836 | BP4: =BP3+BM4 -> 442982.2834 | BQ4: =BQ3/(1+B4)^A4 -> 155902.4768 | BR4: =BR3/(1+B4)^A4 -> 142426.8128 | BS4: =BS3/(1+B4)^A4 -> 170665.612 | BT4: =BT3+BQ4 -> 324526.5958 | BU4: =BU3+BR4 -> 296475.6536 | BV4: =BV3+BS4 -> 355257.538
A5: 3 | B5: 0.04 | C5: =C4/(1+B5)^A5 -> 43.8776104 | D5: =D4/(1+B5)^A5 -> 40.05157943 | E5: =E4/(1+B5)^A5 -> 48.06918214 | F5: =F4+C5 -> 146.6177768 | G5: =G4+D5 -> 133.8330296 | H5: =H4+E5 -> 160.6239846 | I5: =I4/(1+B5)^A5 -> 16.49126506 | J5: =J4/(1+B5)^A5 -> 15.05360288 | K5: =K4/(1+B5)^A5 -> 0.8343498114 | L5: =L4+I5 -> 55.10584094 | M5: =M4+J5 -> 50.30186847 | N5: =N4+K5 -> 2.787993997 | O5: =O4/(1+B5)^A5 -> 13.2053266 | P5: =P4/(1+B5)^A5 -> 12.05422626 | Q5: =Q4/(1+B5)^A5 -> 14.46640361 | R5: =R4+O5 -> 44.12582205 | S5: =S4+P5 -> 40.27940078 | T5: =T4+Q5 -> 48.33973219 | U5: =U4/(1+B5)^A5 -> 9087081.971 | V5: =V4/(1+B5)^A5 -> 8294708.441 | W5: =W4/(1+B5)^A5 -> 9955159.236 | X5: =X4+U5 -> 30364638 | Y5: =Y4+V5 -> 27716908.46 | Z5: =Z4+W5 -> 33265332.85 | AA5: =AA4/(1+B5)^A5 -> 3415351.84 | AB5: =AB4/(1+B5)^A5 -> 3117611.057 | AC5: =AC4/(1+B5)^A5 -> 3741538.916 | AD5: =AD4+AA5 -> 11412455.9 | AE5: =AE4+AB5 -> 10417550.04 | AF5: =AF4+AC5 -> 12502415.53 | AG5: =AG4/(1+B5)^A5 -> 2734831.825 | AH5: =AH4/(1+B5)^A5 -> 2496438.186 | AI5: =AI4/(1+B5)^A5 -> 2996001.703 | AJ5: =AJ4+AG5 -> 9138486.768 | AK5: =AK4+AH5 -> 8341890.394 | AL5: =AL4+AI5 -> 10011190.33 | AM5: =AM4/(1+B5)^A5 -> 2.210073026 | AN5: =AN4/(1+B5)^A5 -> 2.01780637 | AO5: =AO4/(1+B5)^A5 -> 2.420708928 | AP5: =AP4+AM5 -> 7.384996372 | AQ5: =AQ4+AN5 -> 6.74253409 | AR5: =AR4+AO5 -> 8.088839799 | AS5: =AS4/(1+B5)^A5 -> 0.8343498114 | AT5: =AT4/(1+B5)^A5 -> 0.7621040552 | AU5: =AU4/(1+B5)^A5 -> 0.9134979607 | AV5: =AV4+AS5 -> 2.787993997 | AW5: =AW4+AT5 -> 2.546583582 | AX5: =AX4+AU5 -> 3.052468876 | AY5: =AY4/(1+B5)^A5 -> 0.6692240177 | AZ5: =AZ4/(1+B5)^A5 -> 0.6113786378 | BA5: =BA4/(1+B5)^A5 -> 0.7325959721 | BB5: =BB4+AY5 -> 2.236223367 | BC5: =BC4+AZ5 -> 2.042932052 | BD5: =BD4+BA5 -> 2.447981823 | BE5: =BE4/(1+B5)^A5 -> 457707.5773 | BF5: =BF4/(1+B5)^A5 -> 417889.0262 | BG5: =BG4/(1+B5)^A5 -> 501330.4111 | BH5: =BH4+BE5 -> 1529437.606 | BI5: =BI4+BF5 -> 1396383.245 | BJ5: =BJ4+BG5 -> 1675204.042 | BK5: =BK4/(1+B5)^A5 -> 172794.3947 | BL5: =BL4/(1+B5)^A5 -> 157832.2511 | BM5: =BM4/(1+B5)^A5 -> 189186.0285 | BN5: =BN4+BK5 -> 577395.3905 | BO5: =BO4+BL5 -> 527399.1347 | BP5: =BP4+BM5 -> 632168.3118 | BQ5: =BQ4/(1+B5)^A5 -> 138596.7342 | BR5: =BR4/(1+B5)^A5 -> 126616.918 | BS5: =BS4/(1+B5)^A5 -> 151721.1076 | BT5: =BT4+BQ5 -> 463123.33 | BU5: =BU4+BR5 -> 423092.5716 | BV5: =BV4+BS5 -> 506978.6457
A6: 4 | B6: 0.04 | C6: 37.50676526 | D6: 34.23625795 | E6: 41.08973835 | F6: 184.124542 | G6: 168.0692876 | H6: 201.713723 | I6: 14.09680249 | J6: 12.86788283 | K6: 0.7132057156 | L6: 69.20264343 | M6: 63.1697513 | N6: 3.501199713 | O6: 11.28796853 | P6: 10.30400312 | Q6: 12.36594244 | R6: 55.41379058 | S6: 50.58340391 | T6: 60.70567463 | U6: 7767675.753 | V6: 7090351.539 | W6: 8509711.837 | X6: 38132313.75 | Y6: 34807259.99 | Z6: 41775044.69 | AA6: 2919457.067 | AB6: 2664946.998 | AC6: 3198283.146 | AD6: 14331912.97 | AE6: 13082497.04 | AF6: 15700698.68 | AG6: 2337745.706 | AH6: 2133965.824 | AI6: 2560994.812 | AJ6: 11476232.47 | AK6: 10475856.22 | AL6: 12572185.14 | AM6: 1.889179685 | AN6: 1.724829341 | AO6: 2.069232137 | AP6: 9.274176057 | AQ6: 8.467363431 | AR6: 10.15807194 | AS6: 0.7132057156 | AT6: 0.6514497404 | AU6: 0.7808618853 | AV6: 3.501199713 | AW6: 3.198033322 | AX6: 3.833330761 | AY6: 0.5720554951 | AZ6: 0.5226090219 | BA6: 0.6262261073 | BB6: 2.808278862 | BC6: 2.565541074 | BD6: 3.074207931 | BE6: 391250.3553 | BF6: 357213.291 | BG6: 428539.3365 | BH6: 1920687.961 | BI6: 1753596.536 | BJ6: 2103743.379 | BK6: 147705.3728 | BL6: 134915.6697 | BM6: 161717.01 | BN6: 725100.7633 | BO6: 662314.8044 | BP6: 793885.3218 | BQ6: 118473.0693 | BR6: 108232.6722 | BS6: 129691.8387 | BT6: 581596.3993 | BU6: 531325.2437 | BV6: 636670.4843
A7: 5 | B7: 0.04 | C7: 30.82782705 | D7: 28.13970844 | E7: 33.77276976 | F7: 214.9523691 | G7: 196.208996 | H7: 235.4864927 | I7: 11.58654409 | J7: 10.57646171 | K7: 0.5862031104 | L7: 80.78918752 | M7: 73.74621301 | N7: 4.087402823 | O7: 9.277887311 | P7: 8.469139476 | Q7: 10.16390329 | R7: 64.69167789 | S7: 59.05254338 | T7: 70.86957792 | U7: 6384463.258 | V7: 5827752.126 | W7: 6994362.83 | X7: 44516777.01 | Y7: 40635012.12 | Z7: 48769407.52 | AA7: 2399580.9 | AB7: 2190392.176 | AC7: 2628755.613 | AD7: 16731493.87 | AE7: 15272889.22 | AF7: 18329454.29 | AG7: 1921456.564 | AH7: 1753964.356 | AI7: 2104951.056 | AJ7: 13397689.04 | AK7: 12229820.57 | AL7: 14677136.2 | AM7: 1.552767993 | AN7: 1.41768399 | AO7: 1.700757984 | AP7: 10.82694405 | AQ7: 9.885047421 | AR7: 11.85882992 | AS7: 0.5862031104 | AT7: 0.5354442003 | AU7: 0.6418115502 | AV7: 4.087402823 | AW7: 3.733477523 | AX7: 4.475142312 | AY7: 0.470187918 | AZ7: 0.4295465213 | BA7: 0.5147122125 | BB7: 3.27846678 | BC7: 2.995087595 | BD7: 3.588920143 | BE7: 321579.2726 | BF7: 293603.2868 | BG7: 352228.097 | BH7: 2242267.234 | BI7: 2047199.822 | BJ7: 2455971.476 | BK7: 121403.0497 | BL7: 110890.846 | BM7: 132919.5942 | BN7: 846503.813 | BO7: 773205.6504 | BP7: 926804.916 | BQ7: 97376.22706 | BR7: 88959.36708 | BS7: 106597.2377 | BT7: 678972.6263 | BU7: 620284.6108 | BV7: 743267.7221
... 8 more rows

Sheet Armstrong NPV 5% (hidden)
C1: ACRES all conservation strategies | U1: Countywide demand= all conservation strategies | AM1: Acre value of acquisition and easements | BE1: countywide demand for acquisition and easements
A2: year | B2: rate % | C2: All surface waters PV | D2: (Low 95% CI) PV | E2: (High 95% CI) PV | F2: All surface waters NPV | G2: (Low 95% CI) NPV | H2: (High 95% CI) NPV | I2: Protect Rivers only PV | J2: (Low 95% CI) PV | K2: (High 95% CI) PV | L2: Protect Rivers only NPV | M2: (Low 95% CI) NPV | N2: (High 95% CI) NPV | O2: Protect single site PV | P2: (Low 95% CI) PV | Q2: (High 95% CI) PV | R2: Protect single site NPV | S2: (Low 95% CI) NPV | T2: (High 95% CI) NPV | U2: All surface waters PV | V2: (Low 95% CI) PV | W2: (High 95% CI) PV | X2: All surface waters NPV | Y2: (Low 95% CI) NPV | Z2: (High 95% CI) NPV | AA2: Protect Rivers only PV | AB2: (Low 95% CI) PV | AC2: (High 95% CI) PV | AD2: Protect Rivers only NPV | AE2: (Low 95% CI) NPV | AF2: (High 95% CI) NPV | AG2: Protect single site PV | AH2: (Low 95% CI) PV | AI2: (High 95% CI) PV | AJ2: Protect single site NPV | AK2: (Low 95% CI) NPV | AL2: (High 95% CI) NPV | AM2: All surface waters PV | AN2: (Low 95% CI) PV | AO2: (High 95% CI) PV | AP2: All surface waters NPV | AQ2: (Low 95% CI) NPV | AR2: (High 95% CI) NPV | AS2: Protect Rivers only PV | AT2: (Low 95% CI) PV | AU2: (High 95% CI) PV | AV2: Protect Rivers only NPV | AW2: (Low 95% CI) NPV | AX2: (High 95% CI) NPV | AY2: Protect single site PV | AZ2: (Low 95% CI) PV | BA2: (High 95% CI) PV | BB2: Protect single site NPV | BC2: (Low 95% CI) NPV | BD2: (High 95% CI) NPV | BE2: All surface waters PV | BF2: (Low 95% CI) PV | BG2: (High 95% CI) PV | BH2: All surface waters NPV | BI2: (Low 95% CI) NPV | BJ2: (High 95% CI) NPV | BK2: Protect Rivers only PV | BL2: (Low 95% CI) PV | BM2: (High 95% CI) PV | BN2: Protect Rivers only NPV | BO2: (Low 95% CI) NPV | BP2: (High 95% CI) NPV | BQ2: Protect single site PV | BR2: (Low 95% CI) PV | BS2: (High 95% CI) PV | BT2: Protect single site NPV | BU2: (Low 95% CI) NPV | BV2: (High 95% CI) NPV
A3: 1 | B3: 0.05 | C3: ='WTP Values '!CU4 -> 53.38382204 | D3: ='WTP Values '!CV4 -> 48.72887036 | E3: ='WTP Values '!CW4 -> 58.48350997 | F3: =C3 -> 53.38382204 | G3: =D3 -> 48.72887036 | H3: =E3 -> 58.48350997 | I3: ='WTP Values '!CC4 -> 20.0641455 | J3: ='WTP Values '!CD4 -> 18.31500964 | K3: ='WTP Values '!CF4 -> 1.01511412 | L3: =I3 -> 20.0641455 | M3: =J3 -> 18.31500964 | N3: =K3 -> 1.01511412 | O3: ='WTP Values '!CI4 -> 16.06629894 | P3: ='WTP Values '!CJ4 -> 14.66580936 | Q3: ='WTP Values '!CK4 -> 17.60059194 | R3: =O3 -> 16.06629894 | S3: =P3 -> 14.66580936 | T3: =Q3 -> 17.60059194 | U3: ='WTP Values '!BH4 -> 11055824.65 | V3: ='WTP Values '!BI4 -> 10091781.1 | W3: ='WTP Values '!BJ4 -> 12111973.38 | X3: =U3 -> 11055824.65 | Y3: =V3 -> 10091781.1 | Z3: =W3 -> 12111973.38 | AA3: ='WTP Values '!AV4 -> 4155297.729 | AB3: ='WTP Values '!AW4 -> 3793050.541 | AC3: ='WTP Values '!AX4 -> 4552154.182 | AD3: =AA3 -> 4155297.729 | AE3: =AB3 -> 3793050.541 | AF3: =AC3 -> 4552154.182 | AG3: ='WTP Values '!BB4 -> 3327341.077 | AH3: ='WTP Values '!BC4 -> 3037298.765 | AI3: ='WTP Values '!BD4 -> 3645094.167 | AJ3: =AG3 -> 3327341.077 | AK3: =AH3 -> 3037298.765 | AL3: =AI3 -> 3645094.167 | AM3: ='WTP Values '!CX4 -> 2.688891762 | AN3: ='WTP Values '!CY4 -> 2.454969976 | AO3: ='WTP Values '!CZ4 -> 2.945162543 | AP3: =AM3 -> 2.688891762 | AQ3: =AN3 -> 2.454969976 | AR3: =AO3 -> 2.945162543 | AS3: ='WTP Values '!CF4 -> 1.01511412 | AT3: ='WTP Values '!CG4 -> 0.9272161107 | AU3: ='WTP Values '!CH4 -> 1.111409945 | AV3: =AS3 -> 1.01511412 | AW3: =AT3 -> 0.9272161107 | AX3: =AU3 -> 1.111409945 | AY3: ='WTP Values '!CL4 -> 0.8142133435 | AZ3: ='WTP Values '!CM4 -> 0.7438355941 | BA3: ='WTP Values '!CN4 -> 0.8913150158 | BB3: =AY3 -> 0.8142133435 | BC3: =AZ3 -> 0.7438355941 | BD3: =BA3 -> 0.8913150158 | BE3: ='WTP Values '!BK4 -> 556871.2523 | BF3: ='WTP Values '!BL4 -> 508425.8967 | BG3: ='WTP Values '!BM4 -> 609945.0997 | BH3: =BE3 -> 556871.2523 | BI3: =BF3 -> 508425.8967 | BJ3: =BG3 -> 609945.0997 | BK3: ='WTP Values '!AY4 -> 210230.8018 | BL3: ='WTP Values '!AZ4 -> 192027.0664 | BM3: ='WTP Values '!BA4 -> 230173.7306 | BN3: =BK3 -> 210230.8018 | BO3: =BL3 -> 192027.0664 | BP3: =BM3 -> 230173.7306 | BQ3: ='WTP Values '!BE4 -> 168624.119 | BR3: ='WTP Values '!BF4 -> 154048.8408 | BS3: ='WTP Values '!BG4 -> 184591.926 | BT3: =BQ3 -> 168624.119 | BU3: =BR3 -> 154048.8408 | BV3: =BS3 -> 184591.926
A4: 2 | B4: 0.05 | C4: =C3/(1+B4)^A4 -> 48.42070026 | D4: =D3/(1+B4)^A4 -> 44.19852186 | E4: =E3/(1+B4)^A4 -> 53.04626754 | F4: =F3+C4 -> 101.8045223 | G4: =G3+D4 -> 92.92739222 | H4: =H3+E4 -> 111.5297775 | I4: =I3/(1+B4)^A4 -> 18.19877143 | J4: =J3/(1+B4)^A4 -> 16.61225364 | K4: =K3/(1+B4)^A4 -> 0.9207384306 | L4: =L3+I4 -> 38.26291693 | M4: =M3+J4 -> 34.92726327 | N4: =N3+K4 -> 1.93585255 | O4: =O3/(1+B4)^A4 -> 14.57260675 | P4: =P3/(1+B4)^A4 -> 13.30232142 | Q4: =Q3/(1+B4)^A4 -> 15.96425573 | R4: =R3+O4 -> 30.63890569 | S4: =S3+P4 -> 27.96813078 | T4: =T3+Q4 -> 33.56484767 | U4: =U3/(1+B4)^A4 -> 10027958.87 | V4: =V3/(1+B4)^A4 -> 9153542.947 | W4: =W3/(1+B4)^A4 -> 10985916.9 | X4: =X3+U4 -> 21083783.53 | Y4: =Y3+V4 -> 19245324.05 | Z4: =Z3+W4 -> 23097890.28 | AA4: =AA3/(1+B4)^A4 -> 3768977.532 | AB4: =AB3/(1+B4)^A4 -> 3440408.654 | AC4: =AC3/(1+B4)^A4 -> 4128938.033 | AD4: =AD3+AA4 -> 7924275.262 | AE4: =AE3+AB4 -> 7233459.196 | AF4: =AF3+AC4 -> 8681092.215 | AG4: =AG3/(1+B4)^A4 -> 3017996.442 | AH4: =AH3/(1+B4)^A4 -> 2754919.514 | AI4: =AI3/(1+B4)^A4 -> 3306207.861 | AJ4: =AJ3+AG4 -> 6345337.519 | AK4: =AK3+AH4 -> 5792218.279 | AL4: =AL3+AI4 -> 6951302.029 | AM4: =AM3/(1+B4)^A4 -> 2.438904092 | AN4: =AN3/(1+B4)^A4 -> 2.226730137 | AO4: =AO3/(1+B4)^A4 -> 2.671349246 | AP4: =AP3+AM4 -> 5.127795854 | AQ4: =AQ3+AN4 -> 4.681700113 | AR4: =AR3+AO4 -> 5.616511789 | AS4: =AS3/(1+B4)^A4 -> 0.9207384306 | AT4: =AT3/(1+B4)^A4 -> 0.8410123453 | AU4: =AU3/(1+B4)^A4 -> 1.008081583 | AV4: =AV3+AS4 -> 1.93585255 | AW4: =AW3+AT4 -> 1.768228456 | AX4: =AX3+AU4 -> 2.119491528 | AY4: =AY3/(1+B4)^A4 -> 0.7385155043 | AZ4: =AZ3/(1+B4)^A4 -> 0.674680811 | BA4: =BA3/(1+B4)^A4 -> 0.8084489939 | BB4: =BB3+AY4 -> 1.552728848 | BC4: =BC3+AZ4 -> 1.418516405 | BD4: =BD3+BA4 -> 1.69976401 | BE4: =BE3/(1+B4)^A4 -> 505098.6416 | BF4: =BF3/(1+B4)^A4 -> 461157.2759 | BG4: =BG3/(1+B4)^A4 -> 553238.1857 | BH4: =BH3+BE4 -> 1061969.894 | BI4: =BI3+BF4 -> 969583.1725 | BJ4: =BJ3+BG4 -> 1163183.285 | BK4: =BK3/(1+B4)^A4 -> 190685.5345 | BL4: =BL3/(1+B4)^A4 -> 174174.2098 | BM4: =BM3/(1+B4)^A4 -> 208774.3588 | BN4: =BN3+BK4 -> 400916.3364 | BO4: =BO3+BL4 -> 366201.2762 | BP4: =BP3+BM4 -> 438948.0895 | BQ4: =BQ3/(1+B4)^A4 -> 152947.0467 | BR4: =BR3/(1+B4)^A4 -> 139726.8397 | BS4: =BS3/(1+B4)^A4 -> 167430.3183 | BT4: =BT3+BQ4 -> 321571.1656 | BU4: =BU3+BR4 -> 293775.6805 | BV4: =BV3+BS4 -> 352022.2443
A5: 3 | B5: 0.05 | C5: =C4/(1+B5)^A5 -> 41.82762143 | D5: =D4/(1+B5)^A5 -> 38.18034499 | E5: =E4/(1+B5)^A5 -> 45.82336037 | F5: =F4+C5 -> 143.6321437 | G5: 131.1077372 | H5: 157.3531379 | I5: =I4/(1+B5)^A5 -> 15.72078301 | J5: =J4/(1+B5)^A5 -> 14.35028929 | K5: =K4/(1+B5)^A5 -> 0.7953684747 | L5: =L4+I5 -> 53.98369994 | M5: 49.27755256 | N5: 2.731221025 | O5: =O4/(1+B5)^A5 -> 12.58836562 | P5: =P4/(1+B5)^A5 -> 11.49104539 | Q5: =Q4/(1+B5)^A5 -> 13.79052433 | R5: =R4+O5 -> 43.22727131 | S5: 39.45917617 | T5: 47.35537201 | U5: =U4/(1+B5)^A5 -> 8662527.909 | V5: =V4/(1+B5)^A5 -> 7907174.558 | W5: =W4/(1+B5)^A5 -> 9490048.07 | X5: =X4+U5 -> 29746311.43 | Y5: 27152498.6 | Z5: 32587938.34 | AA5: =AA4/(1+B5)^A5 -> 3255784.5 | AB5: =AB4/(1+B5)^A5 -> 2971954.35 | AC5: =AC4/(1+B5)^A5 -> 3566731.915 | AD5: =AD4+AA5 -> 11180059.76 | AE5: 10205413.55 | AF5: 12247824.13 | AG5: =AG4/(1+B5)^A5 -> 2607058.799 | AH5: =AH4/(1+B5)^A5 -> 2379803.057 | AI5: =AI4/(1+B5)^A5 -> 2856026.659 | AJ5: =AJ4+AG5 -> 8952396.318 | AK5: 8172021.336 | AL5: 9807328.688 | AM5: =AM4/(1+B5)^A5 -> 2.106817054 | AN5: =AN4/(1+B5)^A5 -> 1.923533214 | AO5: =AO4/(1+B5)^A5 -> 2.307611917 | AP5: =AP4+AM5 -> 7.234612908 | AQ5: 6.605233327 | AR5: 7.924123706 | AS5: =AS4/(1+B5)^A5 -> 0.7953684747 | AT5: =AT4/(1+B5)^A5 -> 0.7264980847 | AU5: =AU4/(1+B5)^A5 -> 0.8708187738 | AV5: =AV4+AS5 -> 2.731221025 | AW5: 2.494726541 | AX5: 2.990310302 | AY5: =AY4/(1+B5)^A5 -> 0.6379574598 | AZ5: =AZ4/(1+B5)^A5 -> 0.5828146516 | BA5: =BA4/(1+B5)^A5 -> 0.6983686374 | BB5: =BB4+AY5 -> 2.190686308 | BC5: 2.001331057 | BD5: 2.398132647 | BE5: =BE4/(1+B5)^A5 -> 436323.1976 | BF5: =BF4/(1+B5)^A5 -> 398364.9937 | BG5: =BG4/(1+B5)^A5 -> 477907.9458 | BH5: =BH4+BE5 -> 1498293.091 | BI5: 1367948.166 | BJ5: 1641091.231 | BK5: =BK4/(1+B5)^A5 -> 164721.3342 | BL5: =BL4/(1+B5)^A5 -> 150458.2312 | BM5: =BM4/(1+B5)^A5 -> 180347.1408 | BN5: =BN4+BK5 -> 565637.6706 | BO5: 516659.5074 | BP5: 619295.2303 | BQ5: =BQ4/(1+B5)^A5 -> 132121.4095 | BR5: =BR4/(1+B5)^A5 -> 120701.2977 | BS5: =BS4/(1+B5)^A5 -> 144632.6041 | BT5: =BT4+BQ5 -> 453692.5751 | BU5: 414476.9781 | BV5: 496654.8484
A6: 4 | B6: 0.05 | C6: 34.41168767 | D6: 31.41106431 | E6: 37.69899198 | F6: 178.0438314 | G6: 162.5188015 | H6: 195.0521299 | I6: 12.93352709 | J6: 11.80601851 | K6: 0.6543516125 | L6: 66.91722703 | M6: 61.08357108 | N6: 3.385572638 | O6: 10.35647955 | P6: 9.453711478 | Q6: 11.3454985 | R6: 53.58375086 | S6: 48.91288764 | T6: 58.7008705 | U6: 7126683.149 | V6: 6505252.077 | W6: 7807486.033 | X6: 36872994.58 | Y6: 33657750.68 | Z6: 40395424.38 | AA6: 2678541.966 | AB6: 2445034.199 | AC6: 2934359.174 | AD6: 13858601.73 | AE6: 12650447.74 | AF6: 15182183.3 | AG6: 2144833.726 | AH6: 1957869.865 | AI6: 2349660.201 | AJ6: 11097230.04 | AK6: 10129891.2 | AL6: 12156988.89 | AM6: 1.733283604 | AN6: 1.582495536 | AO6: 1.898478035 | AP6: 8.967896512 | AQ6: 8.187728863 | AR6: 9.822601741 | AS6: 0.6543516125 | AT6: 0.5976917722 | AU6: 0.7164247603 | AV6: 3.385572638 | AW6: 3.092418313 | AX6: 3.706735062 | AY6: 0.524849181 | AZ6: 0.4794830562 | BA6: 0.5745496063 | BB6: 2.715535489 | BC6: 2.480814113 | BD6: 2.972682253 | BE6: 358964.1744 | BF6: 327735.8662 | BG6: 393176.0497 | BH6: 1857257.266 | BI6: 1695684.032 | BJ6: 2034267.281 | BK6: 135516.6493 | BL6: 123782.3591 | BM6: 148372.039 | BN6: 701154.3199 | BO6: 640441.8665 | BP6: 767667.2693 | BQ6: 108696.6106 | BR6: 99301.25629 | BS6: 118989.6013 | BT6: 562389.1857 | BU6: 513778.2344 | BV6: 615644.4498
A7: 5 | B7: 0.05 | C7: 26.96245772 | D7: 24.6113908 | E7: 29.53814666 | F7: 205.0062891 | G7: 187.1301923 | H7: 224.5902765 | I7: 10.1337569 | J7: 9.250324426 | K7: 0.5127016105 | L7: 77.05098392 | M7: 70.3338955 | N7: 3.898274248 | O7: 8.114572718 | P7: 7.407230313 | Q7: 8.889494944 | R7: 61.69832357 | S7: 56.32011796 | T7: 67.59036545 | U7: 5583942.727 | V7: 5097035.222 | W7: 6117369.601 | X7: 42456937.31 | Y7: 38754785.9 | Z7: 46512793.98 | AA7: 2098707.718 | AB7: 1915748.273 | AC7: 2299147.194 | AD7: 15957309.45 | AE7: 14566196.02 | AF7: 17481330.5 | AG7: 1680533.347 | AH7: 1534042.27 | AI7: 1841020.25 | AJ7: 12777763.39 | AK7: 11663933.47 | AL7: 13998009.14 | AM7: 1.358073058 | AN7: 1.23992666 | AO7: 1.487507217 | AP7: 10.32596957 | AQ7: 9.427655523 | AR7: 11.31010896 | AS7: 0.5127016105 | AT7: 0.468307143 | AU7: 0.561337546 | AV7: 3.898274248 | AW7: 3.560725456 | AX7: 4.268072608 | AY7: 0.4112330667 | AZ7: 0.3756875209 | BA7: 0.4501746505 | BB7: 3.126768555 | BC7: 2.856501634 | BD7: 3.422856904 | BE7: 281257.8235 | BF7: 256789.6269 | BG7: 308063.723 | BH7: 2138515.089 | BI7: 1952473.659 | BJ7: 2342331.004 | BK7: 106180.8407 | BL7: 96986.71733 | BM7: 116253.375 | BN7: 807335.1607 | BO7: 737428.5838 | BP7: 883920.6443 | BQ7: 85166.63859 | BR7: 77805.13267 | BS7: 93231.46619 | BT7: 647555.8243 | BU7: 591583.3671 | BV7: 708875.916
... 8 more rows

Sheet Beaver
B1: County | C1: Beaver
B2: Number of households | C2: ='WTP Values '!C5 -> 69921 | E2: CLICK HERE TO GO BACK TO COUNTY LIST
B3: Percent of county forested | C3: ='WTP Values '!DA5 -> 0.4584230116
B4: Square miles of surface water | C4: ='WTP Values '!BU5 -> 0.2780585376
B5: Miles of major rivers | C5: ='WTP Values '!BV5 -> 195.3664016
B6: Miles of tributaries | C6: ='WTP Values '!BW5 -> 683.3476211
... 7 more rows

Sheet Beaver NPV 1% (hidden)
C1: ACRES all conservation strategies | U1: Countywide demand= all conservation strategies | AM1: Acre value of acquisition and easements | BE1: countywide demand for acquisition and easements
A2: year | B2: rate % | C2: All surface waters PV | D2: (Low 95% CI) PV | E2: (High 95% CI) PV | F2: All surface waters NPV | G2: (Low 95% CI) NPV | H2: (High 95% CI) NPV | I2: Protect Rivers only PV | J2: (Low 95% CI) PV | K2: (High 95% CI) PV | L2: Protect Rivers only NPV | M2: (Low 95% CI) NPV | N2: (High 95% CI) NPV | O2: Protect single site PV | P2: (Low 95% CI) PV | Q2: (High 95% CI) PV | R2: Protect single site NPV | S2: (Low 95% CI) NPV | T2: (High 95% CI) NPV | U2: All surface waters PV | V2: (Low 95% CI) PV | W2: (High 95% CI) PV | X2: All surface waters NPV | Y2: (Low 95% CI) NPV | Z2: (High 95% CI) NPV | AA2: Protect Rivers only PV | AB2: (Low 95% CI) PV | AC2: (High 95% CI) PV | AD2: Protect Rivers only NPV | AE2: (Low 95% CI) NPV | AF2: (High 95% CI) NPV | AG2: Protect single site PV | AH2: (Low 95% CI) PV | AI2: (High 95% CI) PV | AJ2: Protect single site NPV | AK2: (Low 95% CI) NPV | AL2: (High 95% CI) NPV | AM2: All surface waters PV | AN2: (Low 95% CI) PV | AO2: (High 95% CI) PV | AP2: All surface waters NPV | AQ2: (Low 95% CI) NPV | AR2: (High 95% CI) NPV | AS2: Protect Rivers only PV | AT2: (Low 95% CI) PV | AU2: (High 95% CI) PV | AV2: Protect Rivers only NPV | AW2: (Low 95% CI) NPV | AX2: (High 95% CI) NPV | AY2: Protect single site PV | AZ2: (Low 95% CI) PV | BA2: (High 95% CI) PV | BB2: Protect single site NPV | BC2: (Low 95% CI) NPV | BD2: (High 95% CI) NPV | BE2: All surface waters PV | BF2: (Low 95% CI) PV | BG2: (High 95% CI) PV | BH2: All surface waters NPV | BI2: (Low 95% CI) NPV | BJ2: (High 95% CI) NPV | BK2: Protect Rivers only PV | BL2: (Low 95% CI) PV | BM2: (High 95% CI) PV | BN2: Protect Rivers only NPV | BO2: (Low 95% CI) NPV | BP2: (High 95% CI) NPV | BQ2: Protect single site PV | BR2: (Low 95% CI) PV | BS2: (High 95% CI) PV | BT2: Protect single site NPV | BU2: (Low 95% CI) NPV | BV2: (High 95% CI) NPV
A3: 1 | B3: 0.01 | C3: ='WTP Values '!CU5 -> 298.1956449 | D3: ='WTP Values '!CV5 -> 272.1926939 | E3: ='WTP Values '!CW5 -> 326.6829298 | F3: =C3 -> 298.1956449 | G3: =D3 -> 272.1926939 | H3: =E3 -> 326.6829298 | I3: ='WTP Values '!CC5 -> 112.0664665 | J3: ='WTP Values '!CD5 -> 102.2957864 | K3: ='WTP Values '!CF5 -> 5.658499696 | L3: =I3 -> 112.0664665 | M3: =J3 -> 102.2957864 | N3: =K3 -> 5.658499696 | O3: ='WTP Values '!CI5 -> 89.73447934 | P3: ='WTP Values '!CJ5 -> 81.91133886 | Q3: ='WTP Values '!CK5 -> 98.3050463 | R3: =O3 -> 89.73447934 | S3: =P3 -> 81.91133886 | T3: =Q3 -> 98.3050463 | U3: ='WTP Values '!BH5 -> 38887615.89 | V3: ='WTP Values '!BI5 -> 35496577.88 | W3: ='WTP Values '!BJ5 -> 42602635.25 | X3: =U3 -> 38887615.89 | Y3: =V3 -> 35496577.88 | Z3: =W3 -> 42602635.25 | AA3: ='WTP Values '!AV5 -> 14614558.53 | AB3: ='WTP Values '!AW5 -> 13340366.7 | AC3: ='WTP Values '!AX5 -> 16010487.23 | AD3: =AA3 -> 14614558.53 | AE3: =AB3 -> 13340366.7 | AF3: =AC3 -> 16010487.23 | AG3: ='WTP Values '!BB5 -> 11702249.93 | AH3: ='WTP Values '!BC5 -> 10682036.23 | AI3: ='WTP Values '!BD5 -> 12819935.32 | AJ3: =AG3 -> 11702249.93 | AK3: =AH3 -> 10682036.23 | AL3: =AI3 -> 12819935.32 | AM3: ='WTP Values '!CX5 -> 15.00950804 | AN3: ='WTP Values '!CY5 -> 13.7028013 | AO3: ='WTP Values '!CZ5 -> 16.44105814 | AP3: =AM3 -> 15.00950804 | AQ3: =AN3 -> 13.7028013 | AR3: =AO3 -> 16.44105814 | AS3: ='WTP Values '!CF5 -> 5.658499696 | AT3: ='WTP Values '!CG5 -> 5.167501061 | AU3: ='WTP Values '!CH5 -> 6.19640857 | AV3: =AS3 -> 5.658499696 | AW3: =AT3 -> 5.167501061 | AX3: =AU3 -> 6.19640857 | AY3: ='WTP Values '!CL5 -> 4.536267143 | AZ3: ='WTP Values '!CM5 -> 4.143136749 | BA3: ='WTP Values '!CN5 -> 4.966957398 | BB3: =AY3 -> 4.536267143 | BC3: =AZ3 -> 4.143136749 | BD3: =BA3 -> 4.966957398 | BE3: ='WTP Values '!BK5 -> 1957386.009 | BF3: ='WTP Values '!BL5 -> 1786978.726 | BG3: ='WTP Values '!BM5 -> 2144074.083 | BH3: =BE3 -> 1957386.009 | BI3: =BF3 -> 1786978.726 | BJ3: =BG3 -> 2144074.083 | BK3: ='WTP Values '!AY5 -> 737923.4624 | BL3: ='WTP Values '!AZ5 -> 673892.459 | BM3: ='WTP Values '!BA5 -> 808072.0176 | BN3: =BK3 -> 737923.4624 | BO3: =BL3 -> 673892.459 | BP3: =BM3 -> 808072.0176 | BQ3: ='WTP Values '!BE5 -> 591573.4093 | BR3: ='WTP Values '!BF5 -> 540305.3776 | BS3: ='WTP Values '!BG5 -> 647739.6125 | BT3: =BQ3 -> 591573.4093 | BU3: =BR3 -> 540305.3776 | BV3: =BS3 -> 647739.6125
A4: 2 | B4: 0.01 | C4: =C3/(1+B4)^A4 -> 292.3200126 | D4: =D3/(1+B4)^A4 -> 266.8294225 | E4: =E3/(1+B4)^A4 -> 320.2459855 | F4: =F3+C4 -> 590.5156575 | G4: =G3+D4 -> 539.0221164 | H4: =H3+E4 -> 646.9289152 | I4: =I3/(1+B4)^A4 -> 109.8583144 | J4: =J3/(1+B4)^A4 -> 100.2801553 | K4: =K3/(1+B4)^A4 -> 5.547004898 | L4: =L3+I4 -> 221.9247809 | M4: =M3+J4 -> 202.5759418 | N4: =N3+K4 -> 11.20550459 | O4: =O3/(1+B4)^A4 -> 87.96635559 | P4: =P3/(1+B4)^A4 -> 80.29736188 | Q4: =Q3/(1+B4)^A4 -> 96.36804852 | R4: =R3+O4 -> 177.7008349 | S4: =S3+P4 -> 162.2087007 | T4: =T3+Q4 -> 194.6730948 | U4: =U3/(1+B4)^A4 -> 38121376.23 | V4: =V3/(1+B4)^A4 -> 34797155.06 | W4: =W3/(1+B4)^A4 -> 41763195.03 | X4: =X3+U4 -> 77008992.12 | Y4: =Y3+V4 -> 70293732.94 | Z4: =Z3+W4 -> 84365830.29 | AA4: =AA3/(1+B4)^A4 -> 14326593.99 | AB4: =AB3/(1+B4)^A4 -> 13077508.77 | AC4: =AC3/(1+B4)^A4 -> 15695017.38 | AD4: =AD3+AA4 -> 28941152.51 | AE4: =AE3+AB4 -> 26417875.47 | AF4: =AF3+AC4 -> 31705504.61 | AG4: =AG3/(1+B4)^A4 -> 11471669.38 | AH4: =AH3/(1+B4)^A4 -> 10471557.92 | AI4: =AI3/(1+B4)^A4 -> 12567331.95 | AJ4: =AJ3+AG4 -> 23173919.31 | AK4: =AK3+AH4 -> 21153594.15 | AL4: =AL3+AI4 -> 25387267.27 | AM4: =AM3/(1+B4)^A4 -> 14.71376143 | AN4: =AN3/(1+B4)^A4 -> 13.43280198 | AO4: =AO3/(1+B4)^A4 -> 16.11710434 | AP4: =AP3+AM4 -> 29.72326947 | AQ4: =AQ3+AN4 -> 27.13560328 | AR4: =AR3+AO4 -> 32.55816248 | AS4: =AS3/(1+B4)^A4 -> 5.547004898 | AT4: =AT3/(1+B4)^A4 -> 5.065680875 | AU4: =AU3/(1+B4)^A4 -> 6.074314841 | AV4: =AV3+AS4 -> 11.20550459 | AW4: =AW3+AT4 -> 10.23318194 | AX4: =AX3+AU4 -> 12.27072341 | AY4: =AY3/(1+B4)^A4 -> 4.44688476 | AZ4: =AZ3/(1+B4)^A4 -> 4.061500587 | BA4: =BA3/(1+B4)^A4 -> 4.869088715 | BB4: =BB3+AY4 -> 8.983151903 | BC4: =BC3+AZ4 -> 8.204637336 | BD4: =BD3+BA4 -> 9.836046113 | BE4: =BE3/(1+B4)^A4 -> 1918817.772 | BF4: =BF3/(1+B4)^A4 -> 1751768.186 | BG4: =BG3/(1+B4)^A4 -> 2101827.353 | BH4: =BH3+BE4 -> 3876203.781 | BI4: =BI3+BF4 -> 3538746.912 | BJ4: =BJ3+BG4 -> 4245901.436 | BK4: =BK3/(1+B4)^A4 -> 723383.455 | BL4: =BL3/(1+B4)^A4 -> 660614.1153 | BM4: =BM3/(1+B4)^A4 -> 792149.8065 | BN4: =BN3+BK4 -> 1461306.917 | BO4: =BO3+BL4 -> 1334506.574 | BP4: =BP3+BM4 -> 1600221.824 | BQ4: =BQ3/(1+B4)^A4 -> 579917.0761 | BR4: =BR3/(1+B4)^A4 -> 529659.2271 | BS4: =BS3/(1+B4)^A4 -> 634976.5832 | BT4: =BT3+BQ4 -> 1171490.485 | BU4: =BU3+BR4 -> 1069964.605 | BV4: =BV3+BS4 -> 1282716.196
A5: 3 | B5: 0.01 | C5: =C4/(1+B5)^A5 -> 283.7229243 | D5: =D4/(1+B5)^A5 -> 258.9820087 | E5: =E4/(1+B5)^A5 -> 310.8275984 | F5: =F4+C5 -> 874.2385817 | G5: 798.0041251 | H5: 957.7565137 | I5: =I4/(1+B5)^A5 -> 106.6273976 | J5: =J4/(1+B5)^A5 -> 97.33093078 | K5: =K4/(1+B5)^A5 -> 5.383868304 | L5: =L4+I5 -> 328.5521785 | M5: 299.9068725 | N5: 16.5893729 | O5: =O4/(1+B5)^A5 -> 85.37927809 | P5: =P4/(1+B5)^A5 -> 77.93582835 | Q5: =Q4/(1+B5)^A5 -> 93.53387847 | R5: =R4+O5 -> 263.080113 | S5: 240.1445291 | T5: 288.2069733 | U5: =U4/(1+B5)^A5 -> 37000232.2 | V5: =V4/(1+B5)^A5 -> 33773775.88 | W5: =W4/(1+B5)^A5 -> 40534945.65 | X5: =X4+U5 -> 114009224.3 | Y5: 104067508.8 | Z5: 124900775.9 | AA5: =AA4/(1+B5)^A5 -> 13905250.98 | AB5: =AB4/(1+B5)^A5 -> 12692901.17 | AC5: =AC4/(1+B5)^A5 -> 15233429.24 | AD5: =AD4+AA5 -> 42846403.49 | AE5: 39110776.65 | AF5: 46938933.85 | AG5: =AG4/(1+B5)^A5 -> 11134289.28 | AH5: =AH4/(1+B5)^A5 -> 10163590.95 | AI5: =AI4/(1+B5)^A5 -> 12197728.58 | AJ5: =AJ4+AG5 -> 34308208.59 | AK5: 31317185.1 | AL5: 37584995.85 | AM5: =AM4/(1+B5)^A5 -> 14.28103188 | AN5: =AN4/(1+B5)^A5 -> 13.03774526 | AO5: =AO4/(1+B5)^A5 -> 15.64310269 | AP5: =AP4+AM5 -> 44.00430135 | AQ5: 40.17334854 | AR5: 48.20126517 | AS5: =AS4/(1+B5)^A5 -> 5.383868304 | AT5: =AT4/(1+B5)^A5 -> 4.91669995 | AU5: =AU4/(1+B5)^A5 -> 5.89567014 | AV5: =AV4+AS5 -> 16.5893729 | AW5: 15.14988189 | AX5: 18.16639355 | AY5: =AY4/(1+B5)^A5 -> 4.316102537 | AZ5: =AZ4/(1+B5)^A5 -> 3.942052456 | BA5: =BA4/(1+B5)^A5 -> 4.725889536 | BB5: =BB4+AY5 -> 13.29925444 | BC5: 12.14668979 | BD5: 14.56193565 | BE5: =BE4/(1+B5)^A5 -> 1862385.625 | BF5: =BF4/(1+B5)^A5 -> 1700248.943 | BG5: =BG4/(1+B5)^A5 -> 2040012.922 | BH5: =BH4+BE5 -> 5738589.406 | BI5: 5238995.855 | BJ5: 6285914.357 | BK5: =BK4/(1+B5)^A5 -> 702108.8546 | BL5: =BL4/(1+B5)^A5 -> 641185.5519 | BM5: =BM4/(1+B5)^A5 -> 768852.7978 | BN5: =BN4+BK5 -> 2163415.772 | BO5: 1975692.126 | BP5: 2369074.622 | BQ5: =BQ4/(1+B5)^A5 -> 562861.8006 | BR5: =BR4/(1+B5)^A5 -> 514082.0276 | BS5: =BS4/(1+B5)^A5 -> 616302.0158 | BT5: =BT4+BQ5 -> 1734352.286 | BU5: 1584046.632 | BV5: 1899018.212
A6: 4 | B6: 0.01 | C6: 272.6521535 | D6: 248.8766199 | E6: 298.6992126 | F6: 1146.890735 | G6: 1046.880745 | H6: 1256.455726 | I6: 102.4668333 | J6: 93.53311139 | K6: 5.173791618 | L6: 431.0190118 | M6: 393.4399839 | N6: 21.76316452 | O6: 82.04780807 | P6: 74.89479917 | Q6: 89.88421875 | R6: 345.1279211 | S6: 315.0393283 | T6: 378.091192 | U6: 35556495.88 | V6: 32455934.78 | W6: 38953286.03 | X6: 149565720.2 | Y6: 136523443.6 | Z6: 163854062 | AA6: 13362672.87 | AB6: 12197628.54 | AC6: 14639026.08 | AD6: 56209076.36 | AE6: 51308405.19 | AF6: 61577959.93 | AG6: 10699833.15 | AH6: 9767011.132 | AI6: 11721777.41 | AJ6: 45008041.74 | AK6: 41084196.23 | AL6: 49306773.26 | AM6: 13.72379094 | AN6: 12.52901693 | AO6: 15.03271421 | AP6: 57.72809229 | AQ6: 52.70236548 | AR6: 63.23397937 | AS6: 5.173791618 | AT6: 4.724852011 | AU6: 5.665623122 | AV6: 21.76316452 | AW6: 19.8747339 | AX6: 23.83201667 | AY6: 4.147689703 | AZ6: 3.788234927 | BA6: 4.541486954 | BB6: 17.44694414 | BC6: 15.93492472 | BD6: 19.1034226 | BE6: 1789715.98 | BF6: 1633905.815 | BG6: 1960412.32 | BH6: 7528305.386 | BI6: 6872901.67 | BJ6: 8246326.678 | BK6: 674712.8089 | BL6: 616166.7125 | BM6: 738852.4265 | BN6: 2838128.581 | BO6: 2591858.839 | BP6: 3107927.048 | BQ6: 540899.1271 | BR6: 494022.724 | BS6: 592254.1235 | BT6: 2275251.413 | BU6: 2078069.356 | BV6: 2491272.335
A7: 5 | B7: 0.01 | C7: 259.4191687 | D7: 236.7975643 | E7: 284.2020517 | F7: 1406.309904 | G7: 1283.678309 | H7: 1540.657778 | I7: 97.49367598 | J7: 88.99354614 | K7: 4.922685199 | L7: 528.5126877 | M7: 482.4335301 | N7: 26.68584972 | O7: 78.06567412 | P7: 71.25983159 | Q7: 85.52175 | R7: 423.1935952 | S7: 386.2991599 | T7: 463.612942 | U7: 33830785.8 | V7: 30880708.3 | W7: 37062715.08 | X7: 183396506 | Y7: 167404151.9 | Z7: 200916777 | AA7: 12714124.73 | AB7: 11605625.03 | AC7: 13928531.01 | AD7: 68923201.09 | AE7: 62914030.22 | AF7: 75506490.94 | AG7: 10180524.1 | AH7: 9292975.962 | AI7: 11152869 | AJ7: 55188565.84 | AK7: 50377172.2 | AL7: 60459642.27 | AM7: 13.05771618 | AN7: 11.92092971 | AO7: 14.30311176 | AP7: 70.78580847 | AQ7: 64.62329519 | AR7: 77.53709113 | AS7: 4.922685199 | AT7: 4.495534568 | AU7: 5.390646 | AV7: 26.68584972 | AW7: 24.37026846 | AX7: 29.22266267 | AY7: 3.946384435 | AZ7: 3.604375549 | BA7: 4.321069008 | BB7: 21.39332858 | BC7: 19.53930027 | BD7: 23.42449161 | BE7: 1702853.345 | BF7: 1554605.319 | BG7: 1865265.056 | BH7: 9231158.731 | BI7: 8427506.989 | BJ7: 10111591.73 | BK7: 641966.0867 | BL7: 586261.4848 | BM7: 702992.732 | BN7: 3480094.668 | BO7: 3178120.323 | BP7: 3810919.78 | BQ7: 514646.9599 | BR7: 470045.6707 | BS7: 563509.4768 | BT7: 2789898.373 | BU7: 2548115.027 | BV7: 3054781.812
... 8 more rows

Sheet Beaver NPV 2% (hidden)
C1: ACRES all conservation strategies | U1: Countywide demand= all conservation strategies | AM1: Acre value of acquisition and easements | BE1: countywide demand for acquisition and easements
A2: year | B2: rate % | C2: All surface waters PV | D2: (Low 95% CI) PV | E2: (High 95% CI) PV | F2: All surface waters NPV | G2: (Low 95% CI) NPV | H2: (High 95% CI) NPV | I2: Protect Rivers only PV | J2: (Low 95% CI) PV | K2: (High 95% CI) PV | L2: Protect Rivers only NPV | M2: (Low 95% CI) NPV | N2: (High 95% CI) NPV | O2: Protect single site PV | P2: (Low 95% CI) PV | Q2: (High 95% CI) PV | R2: Protect single site NPV | S2: (Low 95% CI) NPV | T2: (High 95% CI) NPV | U2: All surface waters PV | V2: (Low 95% CI) PV | W2: (High 95% CI) PV | X2: All surface waters NPV | Y2: (Low 95% CI) NPV | Z2: (High 95% CI) NPV | AA2: Protect Rivers only PV | AB2: (Low 95% CI) PV | AC2: (High 95% CI) PV | AD2: Protect Rivers only NPV | AE2: (Low 95% CI) NPV | AF2: (High 95% CI) NPV | AG2: Protect single site PV | AH2: (Low 95% CI) PV | AI2: (High 95% CI) PV | AJ2: Protect single site NPV | AK2: (Low 95% CI) NPV | AL2: (High 95% CI) NPV | AM2: All surface waters PV | AN2: (Low 95% CI) PV | AO2: (High 95% CI) PV | AP2: All surface waters NPV | AQ2: (Low 95% CI) NPV | AR2: (High 95% CI) NPV | AS2: Protect Rivers only PV | AT2: (Low 95% CI) PV | AU2: (High 95% CI) PV | AV2: Protect Rivers only NPV | AW2: (Low 95% CI) NPV | AX2: (High 95% CI) NPV | AY2: Protect single site PV | AZ2: (Low 95% CI) PV | BA2: (High 95% CI) PV | BB2: Protect single site NPV | BC2: (Low 95% CI) NPV | BD2: (High 95% CI) NPV | BE2: All surface waters PV | BF2: (Low 95% CI) PV | BG2: (High 95% CI) PV | BH2: All surface waters NPV | BI2: (Low 95% CI) NPV | BJ2: (High 95% CI) NPV | BK2: Protect Rivers only PV | BL2: (Low 95% CI) PV | BM2: (High 95% CI) PV | BN2: Protect Rivers only NPV | BO2: (Low 95% CI) NPV | BP2: (High 95% CI) NPV | BQ2: Protect single site PV | BR2: (Low 95% CI) PV | BS2: (High 95% CI) PV | BT2: Protect single site NPV | BU2: (Low 95% CI) NPV | BV2: (High 95% CI) NPV
A3: 1 | B3: 0.02 | C3: ='WTP Values '!CU5 -> 298.1956449 | D3: ='WTP Values '!CV5 -> 272.1926939 | E3: ='WTP Values '!CW5 -> 326.6829298 | F3: =C3 -> 298.1956449 | G3: =D3 -> 272.1926939 | H3: =E3 -> 326.6829298 | I3: ='WTP Values '!CC5 -> 112.0664665 | J3: ='WTP Values '!CD5 -> 102.2957864 | K3: ='WTP Values '!CF5 -> 5.658499696 | L3: =I3 -> 112.0664665 | M3: =J3 -> 102.2957864 | N3: =K3 -> 5.658499696 | O3: ='WTP Values '!CI5 -> 89.73447934 | P3: ='WTP Values '!CJ5 -> 81.91133886 | Q3: ='WTP Values '!CK5 -> 98.3050463 | R3: =O3 -> 89.73447934 | S3: =P3 -> 81.91133886 | T3: =Q3 -> 98.3050463 | U3: ='WTP Values '!BH5 -> 38887615.89 | V3: ='WTP Values '!BI5 -> 35496577.88 | W3: ='WTP Values '!BJ5 -> 42602635.25 | X3: =U3 -> 38887615.89 | Y3: =V3 -> 35496577.88 | Z3: =W3 -> 42602635.25 | AA3: ='WTP Values '!AV5 -> 14614558.53 | AB3: ='WTP Values '!AW5 -> 13340366.7 | AC3: ='WTP Values '!AX5 -> 16010487.23 | AD3: =AA3 -> 14614558.53 | AE3: =AB3 -> 13340366.7 | AF3: =AC3 -> 16010487.23 | AG3: ='WTP Values '!BB5 -> 11702249.93 | AH3: ='WTP Values '!BC5 -> 10682036.23 | AI3: ='WTP Values '!BD5 -> 12819935.32 | AJ3: =AG3 -> 11702249.93 | AK3: =AH3 -> 10682036.23 | AL3: =AI3 -> 12819935.32 | AM3: ='WTP Values '!CX5 -> 15.00950804 | AN3: ='WTP Values '!CY5 -> 13.7028013 | AO3: ='WTP Values '!CZ5 -> 16.44105814 | AP3: =AM3 -> 15.00950804 | AQ3: =AN3 -> 13.7028013 | AR3: =AO3 -> 16.44105814 | AS3: ='WTP Values '!CF5 -> 5.658499696 | AT3: ='WTP Values '!CG5 -> 5.167501061 | AU3: ='WTP Values '!CH5 -> 6.19640857 | AV3: =AS3 -> 5.658499696 | AW3: =AT3 -> 5.167501061 | AX3: =AU3 -> 6.19640857 | AY3: ='WTP Values '!CL5 -> 4.536267143 | AZ3: ='WTP Values '!CM5 -> 4.143136749 | BA3: ='WTP Values '!CN5 -> 4.966957398 | BB3: =AY3 -> 4.536267143 | BC3: =AZ3 -> 4.143136749 | BD3: =BA3 -> 4.966957398 | BE3: ='WTP Values '!BK5 -> 1957386.009 | BF3: ='WTP Values '!BL5 -> 1786978.726 | BG3: ='WTP Values '!BM5 -> 2144074.083 | BH3: =BE3 -> 1957386.009 | BI3: =BF3 -> 1786978.726 | BJ3: =BG3 -> 2144074.083 | BK3: ='WTP Values '!AY5 -> 737923.4624 | BL3: ='WTP Values '!AZ5 -> 673892.459 | BM3: ='WTP Values '!BA5 -> 808072.0176 | BN3: =BK3 -> 737923.4624 | BO3: =BL3 -> 673892.459 | BP3: =BM3 -> 808072.0176 | BQ3: ='WTP Values '!BE5 -> 591573.4093 | BR3: ='WTP Values '!BF5 -> 540305.3776 | BS3: ='WTP Values '!BG5 -> 647739.6125 | BT3: =BQ3 -> 591573.4093 | BU3: =BR3 -> 540305.3776 | BV3: =BS3 -> 647739.6125
A4: 2 | B4: 0.02 | C4: =C3/(1+B4)^A4 -> 286.6163445 | D4: =D3/(1+B4)^A4 -> 261.6231199 | E4: =E3/(1+B4)^A4 -> 313.9974335 | F4: =F3+C4 -> 584.8119894 | G4: =G3+D4 -> 533.8158138 | H4: =H3+E4 -> 640.6803632 | I4: =I3/(1+B4)^A4 -> 107.714789 | J4: =J3/(1+B4)^A4 -> 98.32351638 | K4: =K3/(1+B4)^A4 -> 5.438773257 | L4: =L3+I4 -> 219.7812555 | M4: =M3+J4 -> 200.6193028 | N4: =N3+K4 -> 11.09727295 | O4: =O3/(1+B4)^A4 -> 86.24998014 | P4: =P3/(1+B4)^A4 -> 78.73062174 | Q4: =Q3/(1+B4)^A4 -> 94.48774154 | R4: =R3+O4 -> 175.9844595 | S4: =S3+P4 -> 160.6419606 | T4: =T3+Q4 -> 192.7927878 | U4: =U3/(1+B4)^A4 -> 37377562.37 | V4: =V3/(1+B4)^A4 -> 34118202.5 | W4: =W3/(1+B4)^A4 -> 40948323.01 | X4: =X3+U4 -> 76265178.27 | Y4: =Y3+V4 -> 69614780.37 | Z4: =Z3+W4 -> 83550958.26 | AA4: =AA3/(1+B4)^A4 -> 14047057.41 | AB4: =AB3/(1+B4)^A4 -> 12822344 | AC4: =AC3/(1+B4)^A4 -> 15388780.5 | AD4: =AD3+AA4 -> 28661615.93 | AE4: =AE3+AB4 -> 26162710.7 | AF4: =AF3+AC4 -> 31399267.73 | AG4: =AG3/(1+B4)^A4 -> 11247837.31 | AH4: =AH3/(1+B4)^A4 -> 10267239.75 | AI4: =AI3/(1+B4)^A4 -> 12322121.61 | AJ4: =AJ3+AG4 -> 22950087.24 | AK4: =AK3+AH4 -> 20949275.98 | AL4: =AL3+AI4 -> 25142056.93 | AM4: =AM3/(1+B4)^A4 -> 14.42667055 | AN4: =AN3/(1+B4)^A4 -> 13.17070483 | AO4: =AO3/(1+B4)^A4 -> 15.80263181 | AP4: =AP3+AM4 -> 29.43617858 | AQ4: =AQ3+AN4 -> 26.87350613 | AR4: =AR3+AO4 -> 32.24368995 | AS4: =AS3/(1+B4)^A4 -> 5.438773257 | AT4: =AT3/(1+B4)^A4 -> 4.966840696 | AU4: =AU3/(1+B4)^A4 -> 5.955794473 | AV4: =AV3+AS4 -> 11.09727295 | AW4: =AW3+AT4 -> 10.13434176 | AX4: =AX3+AU4 -> 12.15220304 | AY4: =AY3/(1+B4)^A4 -> 4.360118361 | AZ4: =AZ3/(1+B4)^A4 -> 3.982253699 | BA4: =BA3/(1+B4)^A4 -> 4.774084389 | BB4: =BB3+AY4 -> 8.896385505 | BC4: =BC3+AZ4 -> 8.125390448 | BD4: =BD3+BA4 -> 9.741041787 | BE4: =BE3/(1+B4)^A4 -> 1881378.325 | BF4: =BF3/(1+B4)^A4 -> 1717588.165 | BG4: =BG3/(1+B4)^A4 -> 2060817.073 | BH4: =BH3+BE4 -> 3838764.334 | BI4: =BI3+BF4 -> 3504566.891 | BJ4: =BJ3+BG4 -> 4204891.156 | BK4: =BK3/(1+B4)^A4 -> 709268.995 | BL4: =BL3/(1+B4)^A4 -> 647724.3935 | BM4: =BM3/(1+B4)^A4 -> 776693.5963 | BN4: =BN3+BK4 -> 1447192.457 | BO4: =BO3+BL4 -> 1321616.852 | BP4: =BP3+BM4 -> 1584765.614 | BQ4: =BQ3/(1+B4)^A4 -> 568601.8928 | BR4: =BR3/(1+B4)^A4 -> 519324.6613 | BS4: =BS3/(1+B4)^A4 -> 622587.0939 | BT4: =BT3+BQ4 -> 1160175.302 | BU4: =BU3+BR4 -> 1059630.039 | BV4: =BV3+BS4 -> 1270326.706
A5: 3 | B5: 0.02 | C5: =C4/(1+B5)^A5 -> 270.0849829 | D5: =D4/(1+B5)^A5 -> 246.5333091 | E5: =E4/(1+B5)^A5 -> 295.8867945 | F5: =F4+C5 -> 854.8969723 | G5: 780.3491229 | H5: 936.5671578 | I5: =I4/(1+B5)^A5 -> 101.5020515 | J5: =J4/(1+B5)^A5 -> 92.65244549 | K5: =K4/(1+B5)^A5 -> 5.125077512 | L5: =L4+I5 -> 321.283307 | M5: 293.2717483 | N5: 16.22235047 | O5: =O4/(1+B5)^A5 -> 81.27528264 | P5: =P4/(1+B5)^A5 -> 74.18962328 | Q5: =Q4/(1+B5)^A5 -> 89.03790919 | R5: =R4+O5 -> 257.2597421 | S5: 234.8315839 | T5: 281.830697 | U5: =U4/(1+B5)^A5 -> 35221711.84 | V5: =V4/(1+B5)^A5 -> 32150344.23 | W5: =W4/(1+B5)^A5 -> 38586519.33 | X5: =X4+U5 -> 111486890.1 | Y5: 101765124.6 | Z5: 122137477.6 | AA5: =AA4/(1+B5)^A5 -> 13236855.93 | AB5: =AB4/(1+B5)^A5 -> 12082781.13 | AC5: =AC4/(1+B5)^A5 -> 14501191.56 | AD5: =AD4+AA5 -> 41898471.86 | AE5: 38245491.84 | AF5: 45900459.29 | AG5: =AG4/(1+B5)^A5 -> 10599088.31 | AH5: =AH4/(1+B5)^A5 -> 9675049.328 | AI5: =AI4/(1+B5)^A5 -> 11611410.4 | AJ5: =AJ4+AG5 -> 33549175.55 | AK5: 30624325.31 | AL5: 36753467.34 | AM5: =AM4/(1+B5)^A5 -> 13.59457387 | AN5: =AN4/(1+B5)^A5 -> 12.41104932 | AO5: =AO4/(1+B5)^A5 -> 14.8911729 | AP5: =AP4+AM5 -> 43.03075245 | AQ5: 39.28455545 | AR5: 47.13486285 | AS5: =AS4/(1+B5)^A5 -> 5.125077512 | AT5: =AT4/(1+B5)^A5 -> 4.68036492 | AU5: =AU4/(1+B5)^A5 -> 5.612278152 | AV5: =AV4+AS5 -> 16.22235047 | AW5: 14.81470668 | AX5: 17.76448119 | AY5: =AY4/(1+B5)^A5 -> 4.108636913 | AZ5: =AZ4/(1+B5)^A5 -> 3.752566603 | BA5: =BA4/(1+B5)^A5 -> 4.498726346 | BB5: =BB4+AY5 -> 13.00502242 | BC5: 11.87795705 | BD5: 14.23976813 | BE5: =BE4/(1+B5)^A5 -> 1772864.815 | BF5: =BF4/(1+B5)^A5 -> 1618521.689 | BG5: =BG4/(1+B5)^A5 -> 1941953.955 | BH5: =BH4+BE5 -> 5611629.149 | BI5: 5123088.58 | BJ5: 6146845.111 | BK5: =BK4/(1+B5)^A5 -> 668360.0152 | BL5: =BL4/(1+B5)^A5 -> 610365.1626 | BM5: =BM4/(1+B5)^A5 -> 731895.7229 | BN5: =BN4+BK5 -> 2115552.473 | BO5: 1931982.015 | BP5: 2316661.337 | BQ5: =BQ4/(1+B5)^A5 -> 535806.2631 | BR5: =BR4/(1+B5)^A5 -> 489371.2272 | BS5: =BS4/(1+B5)^A5 -> 586677.7238 | BT5: =BT4+BQ5 -> 1695981.565 | BU5: 1549001.266 | BV5: 1857004.43
A6: 4 | B6: 0.02 | C6: 249.5167761 | D6: 227.75867 | E6: 273.3536618 | F6: 1104.413748 | G6: 1008.107793 | H6: 1209.92082 | I6: 93.77220597 | J6: 85.59653798 | K6: 4.734779418 | L6: 415.0555129 | M6: 378.8682863 | N6: 20.95712988 | O6: 75.08579812 | P6: 68.53974412 | Q6: 82.25726515 | R6: 332.3455403 | S6: 303.371328 | T6: 364.0879622 | U6: 32539417.38 | V6: 29701948.46 | W6: 35647979.39 | X6: 144026307.5 | Y6: 131467073.1 | Z6: 157785457 | AA6: 12228808.8 | AB6: 11162622.08 | AC6: 13396859.5 | AD6: 54127280.66 | AE6: 49408113.92 | AF6: 59297318.79 | AG6: 9791919.254 | AH6: 8938250.068 | AI6: 10727148.39 | AJ6: 43341094.8 | AK6: 39562575.38 | AL6: 47480615.73 | AM6: 12.55928489 | AN6: 11.46589115 | AO6: 13.75714197 | AP6: 55.59003734 | AQ6: 50.75044659 | AR6: 60.89200483 | AS6: 4.734779418 | AT6: 4.323933724 | AU6: 5.1848775 | AV6: 20.95712988 | AW6: 19.1386404 | AX6: 22.94935869 | AY6: 3.79574542 | AZ6: 3.466791492 | BA6: 4.156127758 | BB6: 16.80076784 | BC6: 15.34474854 | BD6: 18.39589589 | BE6: 1637853.051 | BF6: 1495263.859 | BG6: 1794065.279 | BH6: 7249482.2 | BI6: 6618352.439 | BJ6: 7940910.391 | BK6: 617461.343 | BL6: 563883.0637 | BM6: 676158.5159 | BN6: 2733013.816 | BO6: 2495865.079 | BP6: 2992819.853 | BQ6: 495002.1654 | BR6: 452103.3699 | BS6: 541999.5317 | BT6: 2190983.731 | BU6: 2001104.636 | BV6: 2399003.962
A7: 5 | B7: 0.02 | C7: 225.9950317 | D7: 206.2880446 | E7: 247.5848334 | F7: 1330.40878 | G7: 1214.395837 | H7: 1457.505653 | I7: 84.93237605 | J7: 77.52742166 | K7: 4.288435597 | L7: 499.987889 | M7: 456.3957079 | N7: 25.24556548 | O7: 68.00752074 | P7: 62.07855795 | Q7: 74.50293938 | R7: 400.353061 | S7: 365.449886 | T7: 438.5909016 | U7: 29471952.85 | V7: 26901969.83 | W7: 32287473.24 | X7: 173498260.3 | Y7: 158369042.9 | Z7: 190072930.2 | AA7: 11076008.9 | AB7: 10110330.74 | AC7: 12133948.4 | AD7: 65203289.56 | AE7: 59518444.66 | AF7: 71431267.19 | AG7: 8868842.956 | AH7: 8095648.473 | AI7: 9715908.799 | AJ7: 52209937.76 | AK7: 47658223.85 | AL7: 57196524.53 | AM7: 11.37533127 | AN7: 10.38501087 | AO7: 12.46026734 | AP7: 66.96536861 | AQ7: 61.13545747 | AR7: 73.35227217 | AS7: 4.288435597 | AT7: 3.916319993 | AU7: 4.696103297 | AV7: 25.24556548 | AW7: 23.05496039 | AX7: 27.64546199 | AY7: 3.437923573 | AZ7: 3.139979865 | BA7: 3.76433296 | BB7: 20.23869141 | BC7: 18.48472841 | BD7: 22.16022885 | BE7: 1483453.97 | BF7: 1354306.546 | BG7: 1624940.198 | BH7: 8732936.17 | BI7: 7972658.985 | BJ7: 9565850.589 | BK7: 559253.7622 | BL7: 510726.2639 | BM7: 612417.6002 | BN7: 3292267.578 | BO7: 3006591.343 | BP7: 3605237.453 | BQ7: 448338.7121 | BR7: 409483.9513 | BS7: 490905.6748 | BT7: 2639322.443 | BU7: 2410588.587 | BV7: 2889909.637
... 8 more rows

Sheet Beaver NPV 3% (hidden)
C1: ACRES all conservation strategies | U1: Countywide demand= all conservation strategies | AM1: Acre value of acquisition and easements | BE1: countywide demand for acquisition and easements
A2: year | B2: rate % | C2: All surface waters PV | D2: (Low 95% CI) PV | E2: (High 95% CI) PV | F2: All surface waters NPV | G2: (Low 95% CI) NPV | H2: (High 95% CI) NPV | I2: Protect Rivers only PV | J2: (Low 95% CI) PV | K2: (High 95% CI) PV | L2: Protect Rivers only NPV | M2: (Low 95% CI) NPV | N2: (High 95% CI) NPV | O2: Protect single site PV | P2: (Low 95% CI) PV | Q2: (High 95% CI) PV | R2: Protect single site NPV | S2: (Low 95% CI) NPV | T2: (High 95% CI) NPV | U2: All surface waters PV | V2: (Low 95% CI) PV | W2: (High 95% CI) PV | X2: All surface waters NPV | Y2: (Low 95% CI) NPV | Z2: (High 95% CI) NPV | AA2: Protect Rivers only PV | AB2: (Low 95% CI) PV | AC2: (High 95% CI) PV | AD2: Protect Rivers only NPV | AE2: (Low 95% CI) NPV | AF2: (High 95% CI) NPV | AG2: Protect single site PV | AH2: (Low 95% CI) PV | AI2: (High 95% CI) PV | AJ2: Protect single site NPV | AK2: (Low 95% CI) NPV | AL2: (High 95% CI) NPV | AM2: All surface waters PV | AN2: (Low 95% CI) PV | AO2: (High 95% CI) PV | AP2: All surface waters NPV | AQ2: (Low 95% CI) NPV | AR2: (High 95% CI) NPV | AS2: Protect Rivers only PV | AT2: (Low 95% CI) PV | AU2: (High 95% CI) PV | AV2: Protect Rivers only NPV | AW2: (Low 95% CI) NPV | AX2: (High 95% CI) NPV | AY2: Protect single site PV | AZ2: (Low 95% CI) PV | BA2: (High 95% CI) PV | BB2: Protect single site NPV | BC2: (Low 95% CI) NPV | BD2: (High 95% CI) NPV | BE2: All surface waters PV | BF2: (Low 95% CI) PV | BG2: (High 95% CI) PV | BH2: All surface waters NPV | BI2: (Low 95% CI) NPV | BJ2: (High 95% CI) NPV | BK2: Protect Rivers only PV | BL2: (Low 95% CI) PV | BM2: (High 95% CI) PV | BN2: Protect Rivers only NPV | BO2: (Low 95% CI) NPV | BP2: (High 95% CI) NPV | BQ2: Protect single site PV | BR2: (Low 95% CI) PV | BS2: (High 95% CI) PV | BT2: Protect single site NPV | BU2: (Low 95% CI) NPV | BV2: (High 95% CI) NPV
A3: 1 | B3: 0.03 | C3: ='WTP Values '!CU5 -> 298.1956449 | D3: ='WTP Values '!CV5 -> 272.1926939 | E3: ='WTP Values '!CW5 -> 326.6829298 | F3: =C3 -> 298.1956449 | G3: =D3 -> 272.1926939 | H3: =E3 -> 326.6829298 | I3: ='WTP Values '!CC5 -> 112.0664665 | J3: ='WTP Values '!CD5 -> 102.2957864 | K3: ='WTP Values '!CF5 -> 5.658499696 | L3: =I3 -> 112.0664665 | M3: =J3 -> 102.2957864 | N3: =K3 -> 5.658499696 | O3: ='WTP Values '!CI5 -> 89.73447934 | P3: ='WTP Values '!CJ5 -> 81.91133886 | Q3: ='WTP Values '!CK5 -> 98.3050463 | R3: =O3 -> 89.73447934 | S3: =P3 -> 81.91133886 | T3: =Q3 -> 98.3050463 | U3: ='WTP Values '!BH5 -> 38887615.89 | V3: ='WTP Values '!BI5 -> 35496577.88 | W3: ='WTP Values '!BJ5 -> 42602635.25 | X3: =U3 -> 38887615.89 | Y3: =V3 -> 35496577.88 | Z3: =W3 -> 42602635.25 | AA3: ='WTP Values '!AV5 -> 14614558.53 | AB3: ='WTP Values '!AW5 -> 13340366.7 | AC3: ='WTP Values '!AX5 -> 16010487.23 | AD3: =AA3 -> 14614558.53 | AE3: =AB3 -> 13340366.7 | AF3: =AC3 -> 16010487.23 | AG3: ='WTP Values '!BB5 -> 11702249.93 | AH3: ='WTP Values '!BC5 -> 10682036.23 | AI3: ='WTP Values '!BD5 -> 12819935.32 | AJ3: =AG3 -> 11702249.93 | AK3: =AH3 -> 10682036.23 | AL3: =AI3 -> 12819935.32 | AM3: ='WTP Values '!CX5 -> 15.00950804 | AN3: ='WTP Values '!CY5 -> 13.7028013 | AO3: ='WTP Values '!CZ5 -> 16.44105814 | AP3: =AM3 -> 15.00950804 | AQ3: =AN3 -> 13.7028013 | AR3: =AO3 -> 16.44105814 | AS3: ='WTP Values '!CF5 -> 5.658499696 | AT3: ='WTP Values '!CG5 -> 5.167501061 | AU3: ='WTP Values '!CH5 -> 6.19640857 | AV3: =AS3 -> 5.658499696 | AW3: =AT3 -> 5.167501061 | AX3: =AU3 -> 6.19640857 | AY3: ='WTP Values '!CL5 -> 4.536267143 | AZ3: ='WTP Values '!CM5 -> 4.143136749 | BA3: ='WTP Values '!CN5 -> 4.966957398 | BB3: =AY3 -> 4.536267143 | BC3: =AZ3 -> 4.143136749 | BD3: =BA3 -> 4.966957398 | BE3: ='WTP Values '!BK5 -> 1957386.009 | BF3: ='WTP Values '!BL5 -> 1786978.726 | BG3: ='WTP Values '!BM5 -> 2144074.083 | BH3: =BE3 -> 1957386.009 | BI3: =BF3 -> 1786978.726 | BJ3: =BG3 -> 2144074.083 | BK3: ='WTP Values '!AY5 -> 737923.4624 | BL3: ='WTP Values '!AZ5 -> 673892.459 | BM3: ='WTP Values '!BA5 -> 808072.0176 | BN3: =BK3 -> 737923.4624 | BO3: =BL3 -> 673892.459 | BP3: =BM3 -> 808072.0176 | BQ3: ='WTP Values '!BE5 -> 591573.4093 | BR3: ='WTP Values '!BF5 -> 540305.3776 | BS3: ='WTP Values '!BG5 -> 647739.6125 | BT3: =BQ3 -> 591573.4093 | BU3: =BR3 -> 540305.3776 | BV3: =BS3 -> 647739.6125
A4: 2 | B4: 0.03 | C4: =C3/(1+B4)^A4 -> 281.077995 | D4: =D3/(1+B4)^A4 -> 256.5677198 | E4: =E3/(1+B4)^A4 -> 307.9299932 | F4: =F3+C4 -> 579.2736398 | G4: =G3+D4 -> 528.7604137 | H4: =H3+E4 -> 634.612923 | I4: =I3/(1+B4)^A4 -> 105.6333929 | J4: =J3/(1+B4)^A4 -> 96.42358982 | K4: =K3/(1+B4)^A4 -> 5.333678666 | L4: =L3+I4 -> 217.6998594 | M4: =M3+J4 -> 198.7193763 | N4: =N3+K4 -> 10.99217836 | O4: =O3/(1+B4)^A4 -> 84.58335314 | P4: =P3/(1+B4)^A4 -> 77.20929292 | Q4: =Q3/(1+B4)^A4 -> 92.66193449 | R4: =R3+O4 -> 174.3178325 | S4: =S3+P4 -> 159.1206318 | T4: =T3+Q4 -> 190.9669808 | U4: =U3/(1+B4)^A4 -> 36655307.66 | V4: =V3/(1+B4)^A4 -> 33458929.09 | W4: =W3/(1+B4)^A4 -> 40157069.71 | X4: =X3+U4 -> 75542923.55 | Y4: =Y3+V4 -> 68955506.97 | Z4: =Z3+W4 -> 82759704.96 | AA4: =AA3/(1+B4)^A4 -> 13775623.08 | AB4: =AB3/(1+B4)^A4 -> 12574575.08 | AC4: =AC3/(1+B4)^A4 -> 15091419.76 | AD4: =AD3+AA4 -> 28390181.6 | AE4: =AE3+AB4 -> 25914941.78 | AF4: =AF3+AC4 -> 31101906.99 | AG4: =AG3/(1+B4)^A4 -> 11030492.91 | AH4: =AH3/(1+B4)^A4 -> 10068843.65 | AI4: =AI3/(1+B4)^A4 -> 12084018.59 | AJ4: =AJ3+AG4 -> 22732742.85 | AK4: =AK3+AH4 -> 20750879.89 | AL4: =AL3+AI4 -> 24903953.91 | AM4: =AM3/(1+B4)^A4 -> 14.14790087 | AN4: =AN3/(1+B4)^A4 -> 12.91620445 | AO4: =AO3/(1+B4)^A4 -> 15.49727414 | AP4: =AP3+AM4 -> 29.15740891 | AQ4: =AQ3+AN4 -> 26.61900575 | AR4: =AR3+AO4 -> 31.93833228 | AS4: =AS3/(1+B4)^A4 -> 5.333678666 | AT4: =AT3/(1+B4)^A4 -> 4.87086536 | AU4: =AU3/(1+B4)^A4 -> 5.840709369 | AV4: =AV3+AS4 -> 10.99217836 | AW4: =AW3+AT4 -> 10.03836642 | AX4: =AX3+AU4 -> 12.03711794 | AY4: =AY3/(1+B4)^A4 -> 4.275866852 | AZ4: =AZ3/(1+B4)^A4 -> 3.90530375 | BA4: =BA3/(1+B4)^A4 -> 4.681833724 | BB4: =BB3+AY4 -> 8.812133995 | BC4: =BC3+AZ4 -> 8.048440499 | BD4: =BD3+BA4 -> 9.648791122 | BE4: =BE3/(1+B4)^A4 -> 1845024.045 | BF4: =BF3/(1+B4)^A4 -> 1684398.837 | BG4: =BG3/(1+B4)^A4 -> 2020995.459 | BH4: =BH3+BE4 -> 3802410.054 | BI4: =BI3+BF4 -> 3471377.564 | BJ4: =BJ3+BG4 -> 4165069.542 | BK4: =BK3/(1+B4)^A4 -> 695563.6369 | BL4: =BL3/(1+B4)^A4 -> 635208.275 | BM4: =BM3/(1+B4)^A4 -> 761685.3781 | BN4: =BN3+BK4 -> 1433487.099 | BO4: =BO3+BL4 -> 1309100.734 | BP4: =BP3+BM4 -> 1569757.396 | BQ4: =BQ3/(1+B4)^A4 -> 557614.6755 | BR4: =BR3/(1+B4)^A4 -> 509289.6386 | BS4: =BS3/(1+B4)^A4 -> 610556.7089 | BT4: =BT3+BQ4 -> 1149188.085 | BU4: =BU3+BR4 -> 1049595.016 | BV4: =BV3+BS4 -> 1258296.321
A5: 3 | B5: 0.03 | C5: =C4/(1+B5)^A5 -> 257.2261827 | D5: =D4/(1+B5)^A5 -> 234.7958088 | E5: =E4/(1+B5)^A5 -> 281.7995649 | F5: =F4+C5 -> 836.4998225 | G5: 763.5562225 | H5: 916.4124879 | I5: =I4/(1+B5)^A5 -> 96.66951843 | J5: =J4/(1+B5)^A5 -> 88.24124399 | K5: =K4/(1+B5)^A5 -> 4.881071545 | L5: =L4+I5 -> 314.3693778 | M5: 286.9606202 | N5: 15.87324991 | O5: =O4/(1+B5)^A5 -> 77.40575014 | P5: =P4/(1+B5)^A5 -> 70.65744044 | Q5: =Q4/(1+B5)^A5 -> 84.79879648 | R5: =R4+O5 -> 251.7235826 | S5: 229.7780722 | T5: 275.7657773 | U5: =U4/(1+B5)^A5 -> 33544799.07 | V5: =V4/(1+B5)^A5 -> 30619659.89 | W5: =W4/(1+B5)^A5 -> 36749407.41 | X5: =X4+U5 -> 109087722.6 | Y5: 99575166.86 | Z5: 119509112.4 | AA5: =AA4/(1+B5)^A5 -> 12606646.56 | AB5: =AB4/(1+B5)^A5 -> 11507517.5 | AC5: =AC4/(1+B5)^A5 -> 13810786.93 | AD5: =AD4+AA5 -> 40996828.17 | AE5: 37422459.28 | AF5: 44912693.92 | AG5: =AG4/(1+B5)^A5 -> 10094463.59 | AH5: =AH4/(1+B5)^A5 -> 9214418.29 | AI5: =AI4/(1+B5)^A5 -> 11058588.83 | AJ5: =AJ4+AG5 -> 32827206.44 | AK5: 29965298.18 | AL5: 35962542.74 | AM5: =AM4/(1+B5)^A5 -> 12.94733348 | AN5: =AN4/(1+B5)^A5 -> 11.82015677 | AO5: =AO4/(1+B5)^A5 -> 14.18220117 | AP5: =AP4+AM5 -> 42.10474239 | AQ5: 38.43916252 | AR5: 46.12053346 | AS5: =AS4/(1+B5)^A5 -> 4.881071545 | AT5: =AT4/(1+B5)^A5 -> 4.457531808 | AU5: =AU4/(1+B5)^A5 -> 5.345076464 | AV5: =AV4+AS5 -> 15.87324991 | AW5: 14.49589823 | AX5: 17.3821944 | AY5: =AY4/(1+B5)^A5 -> 3.913023886 | AZ5: =AZ4/(1+B5)^A5 -> 3.573906154 | BA5: =BA4/(1+B5)^A5 -> 4.284541083 | BB5: =BB4+AY5 -> 12.72515788 | BC5: 11.62234665 | BD5: 13.93333221 | BE5: =BE4/(1+B5)^A5 -> 1688458.366 | BF5: =BF4/(1+B5)^A5 -> 1541463.547 | BG5: =BG4/(1+B5)^A5 -> 1849497.138 | BH5: =BH4+BE5 -> 5490868.42 | BI5: 5012841.111 | BJ5: 6014566.681 | BK5: =BK4/(1+B5)^A5 -> 636539.2609 | BL5: =BL4/(1+B5)^A5 -> 581305.5549 | BM5: =BM4/(1+B5)^A5 -> 697050.0208 | BN5: =BN4+BK5 -> 2070026.36 | BO5: 1890406.289 | BP5: 2266807.416 | BQ5: =BQ4/(1+B5)^A5 -> 510296.4195 | BR5: =BR4/(1+B5)^A5 -> 466072.1649 | BS5: =BS4/(1+B5)^A5 -> 558745.8798 | BT5: =BT4+BQ5 -> 1659484.504 | BU5: 1515667.181 | BV5: 1817042.201
A6: 4 | B6: 0.03 | C6: 228.5421317 | D6: 208.613035 | E6: 250.3752636 | F6: 1065.041954 | G6: 972.1692576 | H6: 1166.787751 | I6: 85.88961506 | J6: 78.40120237 | K6: 4.336768847 | L6: 400.2589929 | M6: 365.3618226 | N6: 20.21001875 | O6: 68.77400644 | P6: 62.77822067 | Q6: 75.34263236 | R6: 320.4975891 | S6: 292.5562929 | T6: 351.1084096 | U6: 29804119.5 | V6: 27205171.23 | W6: 32651372.5 | X6: 138891842.1 | Y6: 126780338.1 | Z6: 152160484.9 | AA6: 11200842.19 | AB6: 10224280.25 | AC6: 12270705.3 | AD6: 52197670.36 | AE6: 47646739.53 | AF6: 57183399.22 | AG6: 8968800.155 | AH6: 8186891.304 | AI6: 9825412.939 | AJ6: 41796006.59 | AK6: 38152189.48 | AL6: 45787955.68 | AM6: 11.5035381 | AN6: 10.5020562 | AO6: 12.60070205 | AP6: 53.60828049 | AQ6: 48.94121872 | AR6: 58.72123551 | AS6: 4.336768847 | AT6: 3.960459277 | AU6: 4.749031208 | AV6: 20.21001875 | AW6: 18.45635751 | AX6: 22.13122561 | AY6: 3.476671041 | AZ6: 3.175369329 | BA6: 3.806759259 | BB6: 16.20182892 | BC6: 14.79771598 | BD6: 17.74009146 | BE6: 1500173.389 | BF6: 1369570.396 | BG6: 1643254.252 | BH6: 6991041.809 | BI6: 6382411.507 | BJ6: 7657820.933 | BK6: 565556.8888 | BL6: 516482.4564 | BM6: 619319.9152 | BN6: 2635583.249 | BO6: 2406888.745 | BP6: 2886127.332 | BQ6: 453391.7593 | BR6: 414099.0819 | BS6: 496438.4772 | BT6: 2112876.264 | BU6: 1929766.263 | BV6: 2313480.678
A7: 5 | B7: 0.03 | C7: 197.1424504 | D7: 179.9514366 | E7: 215.9759017 | F7: 1262.184405 | G7: 1152.120694 | H7: 1382.763653 | I7: 74.08913644 | J7: 67.62956587 | K7: 3.740934903 | L7: 474.3481293 | M7: 432.9913885 | N7: 23.95095366 | O7: 59.32506209 | P7: 54.15304462 | Q7: 64.99121651 | R7: 379.8226511 | S7: 346.7093375 | T7: 416.0996261 | U7: 25709295.29 | V7: 23467419.68 | W7: 28165360.74 | X7: 164601137.4 | Y7: 150247757.8 | Z7: 180325845.6 | AA7: 9661944.865 | AB7: 8819553.961 | AC7: 10584818.19 | AD7: 61859615.22 | AE7: 56466293.49 | AF7: 67768217.41 | AG7: 7736565.799 | AH7: 7062084.356 | AI7: 8475487.512 | AJ7: 49532572.39 | AK7: 45214273.84 | AL7: 54263443.19 | AM7: 9.923053019 | AN7: 9.05916593 | AO7: 10.86947628 | AP7: 63.53133351 | AQ7: 58.00038465 | AR7: 69.59071179 | AS7: 3.740934903 | AT7: 3.416326963 | AU7: 4.096556037 | AV7: 23.95095366 | AW7: 21.87268447 | AX7: 26.22778165 | AY7: 2.99900698 | AZ7: 2.739101477 | BA7: 3.283743977 | BB7: 19.2008359 | BC7: 17.53681746 | BD7: 21.02383544 | BE7: 1294062.744 | BF7: 1181403.455 | BG7: 1417485.553 | BH7: 8285104.553 | BI7: 7563814.961 | BJ7: 9075306.486 | BK7: 487854.3403 | BL7: 445522.3038 | BM7: 534230.7992 | BN7: 3123437.589 | BO7: 2852411.049 | BP7: 3420358.131 | BQ7: 391099.7143 | BR7: 357205.5057 | BS7: 428232.1914 | BT7: 2503975.978 | BU7: 2286971.769 | BV7: 2741712.87
... 8 more rows

Sheet Beaver NPV 4% (hidden)
C1: ACRES all conservation strategies | U1: Countywide demand= all conservation strategies | AM1: Acre value of acquisition and easements | BE1: countywide demand for acquisition and easements
A2: year | B2: rate % | C2: All surface waters PV | D2: (Low 95% CI) PV | E2: (High 95% CI) PV | F2: All surface waters NPV | G2: (Low 95% CI) NPV | H2: (High 95% CI) NPV | I2: Protect Rivers only PV | J2: (Low 95% CI) PV | K2: (High 95% CI) PV | L2: Protect Rivers only NPV | M2: (Low 95% CI) NPV | N2: (High 95% CI) NPV | O2: Protect single site PV | P2: (Low 95% CI) PV | Q2: (High 95% CI) PV | R2: Protect single site NPV | S2: (Low 95% CI) NPV | T2: (High 95% CI) NPV | U2: All surface waters PV | V2: (Low 95% CI) PV | W2: (High 95% CI) PV | X2: All surface waters NPV | Y2: (Low 95% CI) NPV | Z2: (High 95% CI) NPV | AA2: Protect Rivers only PV | AB2: (Low 95% CI) PV | AC2: (High 95% CI) PV | AD2: Protect Rivers only NPV | AE2: (Low 95% CI) NPV | AF2: (High 95% CI) NPV | AG2: Protect single site PV | AH2: (Low 95% CI) PV | AI2: (High 95% CI) PV | AJ2: Protect single site NPV | AK2: (Low 95% CI) NPV | AL2: (High 95% CI) NPV | AM2: All surface waters PV | AN2: (Low 95% CI) PV | AO2: (High 95% CI) PV | AP2: All surface waters NPV | AQ2: (Low 95% CI) NPV | AR2: (High 95% CI) NPV | AS2: Protect Rivers only PV | AT2: (Low 95% CI) PV | AU2: (High 95% CI) PV | AV2: Protect Rivers only NPV | AW2: (Low 95% CI) NPV | AX2: (High 95% CI) NPV | AY2: Protect single site PV | AZ2: (Low 95% CI) PV | BA2: (High 95% CI) PV | BB2: Protect single site NPV | BC2: (Low 95% CI) NPV | BD2: (High 95% CI) NPV | BE2: All surface waters PV | BF2: (Low 95% CI) PV | BG2: (High 95% CI) PV | BH2: All surface waters NPV | BI2: (Low 95% CI) NPV | BJ2: (High 95% CI) NPV | BK2: Protect Rivers only PV | BL2: (Low 95% CI) PV | BM2: (High 95% CI) PV | BN2: Protect Rivers only NPV | BO2: (Low 95% CI) NPV | BP2: (High 95% CI) NPV | BQ2: Protect single site PV | BR2: (Low 95% CI) PV | BS2: (High 95% CI) PV | BT2: Protect single site NPV | BU2: (Low 95% CI) NPV | BV2: (High 95% CI) NPV
A3: 1 | B3: 0.04 | C3: ='WTP Values '!CU5 -> 298.1956449 | D3: ='WTP Values '!CV5 -> 272.1926939 | E3: ='WTP Values '!CW5 -> 326.6829298 | F3: =C3 -> 298.1956449 | G3: =D3 -> 272.1926939 | H3: =E3 -> 326.6829298 | I3: ='WTP Values '!CC5 -> 112.0664665 | J3: ='WTP Values '!CD5 -> 102.2957864 | K3: ='WTP Values '!CF5 -> 5.658499696 | L3: =I3 -> 112.0664665 | M3: =J3 -> 102.2957864 | N3: =K3 -> 5.658499696 | O3: ='WTP Values '!CI5 -> 89.73447934 | P3: ='WTP Values '!CJ5 -> 81.91133886 | Q3: ='WTP Values '!CK5 -> 98.3050463 | R3: =O3 -> 89.73447934 | S3: =P3 -> 81.91133886 | T3: =Q3 -> 98.3050463 | U3: ='WTP Values '!BH5 -> 38887615.89 | V3: ='WTP Values '!BI5 -> 35496577.88 | W3: ='WTP Values '!BJ5 -> 42602635.25 | X3: =U3 -> 38887615.89 | Y3: =V3 -> 35496577.88 | Z3: =W3 -> 42602635.25 | AA3: ='WTP Values '!AV5 -> 14614558.53 | AB3: ='WTP Values '!AW5 -> 13340366.7 | AC3: ='WTP Values '!AX5 -> 16010487.23 | AD3: =AA3 -> 14614558.53 | AE3: =AB3 -> 13340366.7 | AF3: =AC3 -> 16010487.23 | AG3: ='WTP Values '!BB5 -> 11702249.93 | AH3: ='WTP Values '!BC5 -> 10682036.23 | AI3: ='WTP Values '!BD5 -> 12819935.32 | AJ3: =AG3 -> 11702249.93 | AK3: =AH3 -> 10682036.23 | AL3: =AI3 -> 12819935.32 | AM3: ='WTP Values '!CX5 -> 15.00950804 | AN3: ='WTP Values '!CY5 -> 13.7028013 | AO3: ='WTP Values '!CZ5 -> 16.44105814 | AP3: =AM3 -> 15.00950804 | AQ3: =AN3 -> 13.7028013 | AR3: =AO3 -> 16.44105814 | AS3: ='WTP Values '!CF5 -> 5.658499696 | AT3: ='WTP Values '!CG5 -> 5.167501061 | AU3: ='WTP Values '!CH5 -> 6.19640857 | AV3: =AS3 -> 5.658499696 | AW3: =AT3 -> 5.167501061 | AX3: =AU3 -> 6.19640857 | AY3: ='WTP Values '!CL5 -> 4.536267143 | AZ3: ='WTP Values '!CM5 -> 4.143136749 | BA3: ='WTP Values '!CN5 -> 4.966957398 | BB3: =AY3 -> 4.536267143 | BC3: =AZ3 -> 4.143136749 | BD3: =BA3 -> 4.966957398 | BE3: ='WTP Values '!BK5 -> 1957386.009 | BF3: ='WTP Values '!BL5 -> 1786978.726 | BG3: ='WTP Values '!BM5 -> 2144074.083 | BH3: =BE3 -> 1957386.009 | BI3: =BF3 -> 1786978.726 | BJ3: =BG3 -> 2144074.083 | BK3: ='WTP Values '!AY5 -> 737923.4624 | BL3: ='WTP Values '!AZ5 -> 673892.459 | BM3: ='WTP Values '!BA5 -> 808072.0176 | BN3: =BK3 -> 737923.4624 | BO3: =BL3 -> 673892.459 | BP3: =BM3 -> 808072.0176 | BQ3: ='WTP Values '!BE5 -> 591573.4093 | BR3: ='WTP Values '!BF5 -> 540305.3776 | BS3: ='WTP Values '!BG5 -> 647739.6125 | BT3: =BQ3 -> 591573.4093 | BU3: =BR3 -> 540305.3776 | BV3: =BS3 -> 647739.6125
A4: 2 | B4: 0.04 | C4: =C3/(1+B4)^A4 -> 275.6986361 | D4: =D3/(1+B4)^A4 -> 251.6574463 | E4: =E3/(1+B4)^A4 -> 302.0367324 | F4: =F3+C4 -> 573.894281 | G4: =G3+D4 -> 523.8501402 | H4: =H3+E4 -> 628.7196622 | I4: =I3/(1+B4)^A4 -> 103.6117479 | J4: =J3/(1+B4)^A4 -> 94.57820492 | K4: =K3/(1+B4)^A4 -> 5.231601051 | L4: =L3+I4 -> 215.6782144 | M4: =M3+J4 -> 196.8739914 | N4: =N3+K4 -> 10.89010075 | O4: =O3/(1+B4)^A4 -> 82.9645704 | P4: =P3/(1+B4)^A4 -> 75.73163726 | Q4: =Q3/(1+B4)^A4 -> 90.88854132 | R4: =R3+O4 -> 172.6990497 | S4: =S3+P4 -> 157.6429761 | T4: =T3+Q4 -> 189.1935876 | U4: =U3/(1+B4)^A4 -> 35953786.88 | V4: =V3/(1+B4)^A4 -> 32818581.62 | W4: =W3/(1+B4)^A4 -> 39388531.12 | X4: =X3+U4 -> 74841402.78 | Y4: =Y3+V4 -> 68315159.49 | Z4: =Z3+W4 -> 81991166.37 | AA4: =AA3/(1+B4)^A4 -> 13511980.88 | AB4: =AB3/(1+B4)^A4 -> 12333918.92 | AC4: =AC3/(1+B4)^A4 -> 14802595.44 | AD4: =AD3+AA4 -> 28126539.41 | AE4: =AE3+AB4 -> 25674285.62 | AF4: =AF3+AC4 -> 30813082.67 | AG4: =AG3/(1+B4)^A4 -> 10819387.88 | AH4: =AH3/(1+B4)^A4 -> 9876142.967 | AI4: =AI3/(1+B4)^A4 -> 11852750.85 | AJ4: =AJ3+AG4 -> 22521637.82 | AK4: =AK3+AH4 -> 20558179.2 | AL4: =AL3+AI4 -> 24672686.18 | AM4: =AM3/(1+B4)^A4 -> 13.87713391 | AN4: =AN3/(1+B4)^A4 -> 12.66901008 | AO4: =AO3/(1+B4)^A4 -> 15.20068245 | AP4: =AP3+AM4 -> 28.88664194 | AQ4: =AQ3+AN4 -> 26.37181138 | AR4: =AR3+AO4 -> 31.64174059 | AS4: =AS3/(1+B4)^A4 -> 5.231601051 | AT4: =AT3/(1+B4)^A4 -> 4.777645211 | AU4: =AU3/(1+B4)^A4 -> 5.728928041 | AV4: =AV3+AS4 -> 10.89010075 | AW4: =AW3+AT4 -> 9.945146272 | AX4: =AX3+AU4 -> 11.92533661 | AY4: =AY3/(1+B4)^A4 -> 4.194033971 | AZ4: =AZ3/(1+B4)^A4 -> 3.830562823 | BA4: =BA3/(1+B4)^A4 -> 4.592231322 | BB4: =BB3+AY4 -> 8.730301115 | BC4: =BC3+AZ4 -> 7.973699571 | BD4: =BD3+BA4 -> 9.55918872 | BE4: =BE3/(1+B4)^A4 -> 1809713.396 | BF4: =BF3/(1+B4)^A4 -> 1652162.284 | BG4: =BG3/(1+B4)^A4 -> 1982317.014 | BH4: =BH3+BE4 -> 3767099.405 | BI4: =BI3+BF4 -> 3439141.01 | BJ4: =BJ3+BG4 -> 4126391.097 | BK4: =BK3/(1+B4)^A4 -> 682251.7219 | BL4: =BL3/(1+B4)^A4 -> 623051.4599 | BM4: =BM3/(1+B4)^A4 -> 747108.0044 | BN4: =BN3+BK4 -> 1420175.184 | BO4: =BO3+BL4 -> 1296943.919 | BP4: =BP3+BM4 -> 1555180.022 | BQ4: =BQ3/(1+B4)^A4 -> 546942.871 | BR4: =BR3/(1+B4)^A4 -> 499542.6938 | BS4: =BS3/(1+B4)^A4 -> 598871.6832 | BT4: =BT3+BQ4 -> 1138516.28 | BU4: =BU3+BR4 -> 1039848.071 | BV4: =BV3+BS4 -> 1246611.296
A5: 3 | B5: 0.04 | C5: =C4/(1+B5)^A5 -> 245.0950836 | D5: =D4/(1+B5)^A5 -> 223.7225534 | E5: =E4/(1+B5)^A5 -> 268.5095553 | F5: =F4+C5 -> 818.9893646 | G5: =G4+D5 -> 747.5726936 | H5: =H4+E5 -> 897.2292175 | I5: =I4/(1+B5)^A5 -> 92.11046657 | J5: =J4/(1+B5)^A5 -> 84.07967978 | K5: =K4/(1+B5)^A5 -> 4.650874284 | L5: =L4+I5 -> 307.7886809 | M5: =M4+J5 -> 280.9536711 | N5: =N4+K5 -> 15.54097503 | O5: =O4/(1+B5)^A5 -> 73.75520098 | P5: =P4/(1+B5)^A5 -> 67.32514976 | Q5: =Q4/(1+B5)^A5 -> 80.79958228 | R5: =R4+O5 -> 246.4542507 | S5: =S4+P5 -> 224.9681259 | T5: =T4+Q5 -> 269.9931699 | U5: =U4/(1+B5)^A5 -> 31962785.62 | V5: =V4/(1+B5)^A5 -> 29175599.55 | W5: =W4/(1+B5)^A5 -> 35016260.74 | X5: =X4+U5 -> 106804188.4 | Y5: =Y4+V5 -> 97490759.05 | Z5: =Z4+W5 -> 117007427.1 | AA5: =AA4/(1+B5)^A5 -> 12012101.81 | AB5: =AB4/(1+B5)^A5 -> 10964809 | AC5: =AC4/(1+B5)^A5 -> 13159453.45 | AD5: =AD4+AA5 -> 40138641.21 | AE5: =AE4+AB5 -> 36639094.62 | AF5: =AF4+AC5 -> 43972536.11 | AG5: =AG4/(1+B5)^A5 -> 9618396.43 | AH5: =AH4/(1+B5)^A5 -> 8779855.135 | AI5: =AI4/(1+B5)^A5 -> 10537052.35 | AJ5: =AJ4+AG5 -> 32140034.25 | AK5: =AK4+AH5 -> 29338034.34 | AL5: =AL4+AI5 -> 35209738.53 | AM5: =AM4/(1+B5)^A5 -> 12.33672151 | AN5: =AN4/(1+B5)^A5 -> 11.26270383 | AO5: =AO4/(1+B5)^A5 -> 13.51335135 | AP5: =AP4+AM5 -> 41.22336346 | AQ5: =AQ4+AN5 -> 37.63451521 | AR5: =AR4+AO5 -> 45.15509194 | AS5: =AS4/(1+B5)^A5 -> 4.650874284 | AT5: =AT4/(1+B5)^A5 -> 4.247309196 | AU5: =AU4/(1+B5)^A5 -> 5.092996168 | AV5: =AV4+AS5 -> 15.54097503 | AW5: =AW4+AT5 -> 14.19245547 | AX5: =AX4+AU5 -> 17.01833278 | AY5: =AY4/(1+B5)^A5 -> 3.728480929 | AZ5: =AZ4/(1+B5)^A5 -> 3.405356401 | BA5: =BA4/(1+B5)^A5 -> 4.082476924 | BB5: =BB4+AY5 -> 12.45878204 | BC5: =BC4+AZ5 -> 11.37905597 | BD5: =BD4+BA5 -> 13.64166564 | BE5: =BE4/(1+B5)^A5 -> 1608828.619 | BF5: =BF4/(1+B5)^A5 -> 1468766.254 | BG5: =BG4/(1+B5)^A5 -> 1762272.608 | BH5: =BH4+BE5 -> 5375928.025 | BI5: =BI4+BF5 -> 4907907.265 | BJ5: =BJ4+BG5 -> 5888663.705 | BK5: =BK4/(1+B5)^A5 -> 606519.2965 | BL5: =BL4/(1+B5)^A5 -> 553890.4791 | BM5: =BM4/(1+B5)^A5 -> 664176.2955 | BN5: =BN4+BK5 -> 2026694.481 | BO5: =BO4+BL5 -> 1850834.398 | BP5: =BP4+BM5 -> 2219356.317 | BQ5: =BQ4/(1+B5)^A5 -> 486230.2207 | BR5: =BR4/(1+B5)^A5 -> 444091.6358 | BS5: =BS4/(1+B5)^A5 -> 532394.7456 | BT5: =BT4+BQ5 -> 1624746.501 | BU5: =BU4+BR5 -> 1483939.707 | BV5: =BV4+BS5 -> 1779006.041
A6: 4 | B6: 0.04 | C6: 209.5083047 | D6: 191.2389763 | E6: 229.5230932 | F6: 1028.497669 | G6: 938.8116699 | H6: 1126.752311 | I6: 78.73641286 | J6: 71.87166266 | K6: 3.97558683 | L6: 386.5250938 | M6: 352.8253338 | N6: 19.51656186 | O6: 63.04625491 | P6: 57.54982018 | Q6: 69.06782157 | R6: 309.5005056 | S6: 282.517946 | T6: 339.0609915 | U6: 27321923.1 | V6: 24939424.77 | W6: 29932046.43 | X6: 134126111.5 | Y6: 122430183.8 | Z6: 146939473.5 | AA6: 10267994.97 | AB6: 9372764.691 | AC6: 11248755.96 | AD6: 50406636.18 | AE6: 46011859.31 | AF6: 55221292.07 | AG6: 8221845.58 | AH6: 7505056.966 | AI6: 9007116.509 | AJ6: 40361879.82 | AK6: 36843091.3 | AL6: 44216855.04 | AM6: 10.54548125 | AN6: 9.627406434 | AO6: 11.55126937 | AP6: 51.76884471 | AQ6: 47.26192164 | AR6: 56.7063613 | AS6: 3.97558683 | AT6: 3.630617701 | AU6: 4.353514469 | AV6: 19.51656186 | AW6: 17.82307317 | AX6: 21.37184725 | AY6: 3.187121124 | AZ6: 2.910912923 | BA6: 3.489718384 | BB6: 15.64590317 | BC6: 14.2899689 | BD6: 17.13138403 | BE6: 1375233.446 | BF6: 1255507.55 | BG6: 1506398.011 | BH6: 6751161.471 | BI6: 6163414.815 | BJ6: 7395061.716 | BK6: 518455.2366 | BL6: 473467.9029 | BM6: 567740.6809 | BN6: 2545149.717 | BO6: 2324302.301 | BP6: 2787096.998 | BQ6: 415631.6305 | BR6: 379611.3914 | BS6: 455093.2599 | BT6: 2040378.131 | BU6: 1863551.099 | BV6: 2234099.301
A7: 5 | B7: 0.04 | C7: 172.2005547 | D7: 157.1844985 | E7: 188.6512519 | F7: 1200.698224 | G7: 1095.996168 | H7: 1315.403563 | I7: 64.71559202 | J7: 59.07326775 | K7: 3.267642581 | L7: 451.2406858 | M7: 411.8986015 | N7: 22.78420444 | O7: 51.81942589 | P7: 47.30175719 | Q7: 56.76871475 | R7: 361.3199315 | S7: 329.8197032 | T7: 395.8297062 | U7: 22456629.21 | V7: 20498389.25 | W7: 24601960.32 | X7: 156582740.7 | Y7: 142928573.1 | Z7: 171541433.9 | AA7: 8439543.395 | AB7: 7703729.365 | AC7: 9245657.438 | AD7: 58846179.58 | AE7: 53715588.67 | AF7: 64466949.51 | AG7: 6757757.749 | AH7: 6168609.758 | AI7: 7403193.213 | AJ7: 47119637.57 | AK7: 43011701.06 | AL7: 51620048.25 | AM7: 8.667616896 | AN7: 7.913026316 | AO7: 9.49430141 | AP7: 60.43646161 | AQ7: 55.17494796 | AR7: 66.20066271 | AS7: 3.267642581 | AT7: 2.984103103 | AU7: 3.578271552 | AV7: 22.78420444 | AW7: 20.80717627 | AX7: 24.9501188 | AY7: 2.619581244 | AZ7: 2.392558237 | BA7: 2.868294135 | BB7: 18.26548441 | BC7: 16.68252713 | BD7: 19.99967816 | BE7: 1130341.648 | BF7: 1031935.688 | BG7: 1238149.359 | BH7: 7881503.119 | BI7: 7195350.503 | BJ7: 8633211.074 | BK7: 426132.4126 | BL7: 389156.1036 | BM7: 466641.4553 | BN7: 2971282.13 | BO7: 2713458.404 | BP7: 3253738.454 | BQ7: 341618.9035 | BR7: 312012.8927 | BS7: 374053.4864 | BT7: 2381997.035 | BU7: 2175563.991 | BV7: 2608152.788
... 8 more rows

Sheet Beaver NPV 5% (hidden)
C1: ACRES all conservation strategies | U1: Countywide demand= all conservation strategies | AM1: Acre value of acquisition and easements | BE1: countywide demand for acquisition and easements
A2: year | B2: rate % | C2: All surface waters PV | D2: (Low 95% CI) PV | E2: (High 95% CI) PV | F2: All surface waters NPV | G2: (Low 95% CI) NPV | H2: (High 95% CI) NPV | I2: Protect Rivers only PV | J2: (Low 95% CI) PV | K2: (High 95% CI) PV | L2: Protect Rivers only NPV | M2: (Low 95% CI) NPV | N2: (High 95% CI) NPV | O2: Protect single site PV | P2: (Low 95% CI) PV | Q2: (High 95% CI) PV | R2: Protect single site NPV | S2: (Low 95% CI) NPV | T2: (High 95% CI) NPV | U2: All surface waters PV | V2: (Low 95% CI) PV | W2: (High 95% CI) PV | X2: All surface waters NPV | Y2: (Low 95% CI) NPV | Z2: (High 95% CI) NPV | AA2: Protect Rivers only PV | AB2: (Low 95% CI) PV | AC2: (High 95% CI) PV | AD2: Protect Rivers only NPV | AE2: (Low 95% CI) NPV | AF2: (High 95% CI) NPV | AG2: Protect single site PV | AH2: (Low 95% CI) PV | AI2: (High 95% CI) PV | AJ2: Protect single site NPV | AK2: (Low 95% CI) NPV | AL2: (High 95% CI) NPV | AM2: All surface waters PV | AN2: (Low 95% CI) PV | AO2: (High 95% CI) PV | AP2: All surface waters NPV | AQ2: (Low 95% CI) NPV | AR2: (High 95% CI) NPV | AS2: Protect Rivers only PV | AT2: (Low 95% CI) PV | AU2: (High 95% CI) PV | AV2: Protect Rivers only NPV | AW2: (Low 95% CI) NPV | AX2: (High 95% CI) NPV | AY2: Protect single site PV | AZ2: (Low 95% CI) PV | BA2: (High 95% CI) PV | BB2: Protect single site NPV | BC2: (Low 95% CI) NPV | BD2: (High 95% CI) NPV | BE2: All surface waters PV | BF2: (Low 95% CI) PV | BG2: (High 95% CI) PV | BH2: All surface waters NPV | BI2: (Low 95% CI) NPV | BJ2: (High 95% CI) NPV | BK2: Protect Rivers only PV | BL2: (Low 95% CI) PV | BM2: (High 95% CI) PV | BN2: Protect Rivers only NPV | BO2: (Low 95% CI) NPV | BP2: (High 95% CI) NPV | BQ2: Protect single site PV | BR2: (Low 95% CI) PV | BS2: (High 95% CI) PV | BT2: Protect single site NPV | BU2: (Low 95% CI) NPV | BV2: (High 95% CI) NPV
A3: 1 | B3: 0.05 | C3: ='WTP Values '!CU5 -> 298.1956449 | D3: ='WTP Values '!CV5 -> 272.1926939 | E3: ='WTP Values '!CW5 -> 326.6829298 | F3: =C3 -> 298.1956449 | G3: =D3 -> 272.1926939 | H3: =E3 -> 326.6829298 | I3: ='WTP Values '!CC5 -> 112.0664665 | J3: ='WTP Values '!CD5 -> 102.2957864 | K3: ='WTP Values '!CF5 -> 5.658499696 | L3: =I3 -> 112.0664665 | M3: =J3 -> 102.2957864 | N3: =K3 -> 5.658499696 | O3: ='WTP Values '!CI5 -> 89.73447934 | P3: ='WTP Values '!CJ5 -> 81.91133886 | Q3: ='WTP Values '!CK5 -> 98.3050463 | R3: =O3 -> 89.73447934 | S3: =P3 -> 81.91133886 | T3: =Q3 -> 98.3050463 | U3: ='WTP Values '!BH5 -> 38887615.89 | V3: ='WTP Values '!BI5 -> 35496577.88 | W3: ='WTP Values '!BJ5 -> 42602635.25 | X3: =U3 -> 38887615.89 | Y3: =V3 -> 35496577.88 | Z3: =W3 -> 42602635.25 | AA3: ='WTP Values '!AV5 -> 14614558.53 | AB3: ='WTP Values '!AW5 -> 13340366.7 | AC3: ='WTP Values '!AX5 -> 16010487.23 | AD3: =AA3 -> 14614558.53 | AE3: =AB3 -> 13340366.7 | AF3: =AC3 -> 16010487.23 | AG3: ='WTP Values '!BB5 -> 11702249.93 | AH3: ='WTP Values '!BC5 -> 10682036.23 | AI3: ='WTP Values '!BD5 -> 12819935.32 | AJ3: =AG3 -> 11702249.93 | AK3: =AH3 -> 10682036.23 | AL3: =AI3 -> 12819935.32 | AM3: ='WTP Values '!CX5 -> 15.00950804 | AN3: ='WTP Values '!CY5 -> 13.7028013 | AO3: ='WTP Values '!CZ5 -> 16.44105814 | AP3: =AM3 -> 15.00950804 | AQ3: =AN3 -> 13.7028013 | AR3: =AO3 -> 16.44105814 | AS3: ='WTP Values '!CF5 -> 5.658499696 | AT3: ='WTP Values '!CG5 -> 5.167501061 | AU3: ='WTP Values '!CH5 -> 6.19640857 | AV3: =AS3 -> 5.658499696 | AW3: =AT3 -> 5.167501061 | AX3: =AU3 -> 6.19640857 | AY3: ='WTP Values '!CL5 -> 4.536267143 | AZ3: ='WTP Values '!CM5 -> 4.143136749 | BA3: ='WTP Values '!CN5 -> 4.966957398 | BB3: =AY3 -> 4.536267143 | BC3: =AZ3 -> 4.143136749 | BD3: =BA3 -> 4.966957398 | BE3: ='WTP Values '!BK5 -> 1957386.009 | BF3: ='WTP Values '!BL5 -> 1786978.726 | BG3: ='WTP Values '!BM5 -> 2144074.083 | BH3: =BE3 -> 1957386.009 | BI3: =BF3 -> 1786978.726 | BJ3: =BG3 -> 2144074.083 | BK3: ='WTP Values '!AY5 -> 737923.4624 | BL3: ='WTP Values '!AZ5 -> 673892.459 | BM3: ='WTP Values '!BA5 -> 808072.0176 | BN3: =BK3 -> 737923.4624 | BO3: =BL3 -> 673892.459 | BP3: =BM3 -> 808072.0176 | BQ3: ='WTP Values '!BE5 -> 591573.4093 | BR3: ='WTP Values '!BF5 -> 540305.3776 | BS3: ='WTP Values '!BG5 -> 647739.6125 | BT3: =BQ3 -> 591573.4093 | BU3: =BR3 -> 540305.3776 | BV3: =BS3 -> 647739.6125
A4: 2 | B4: 0.05 | C4: =C3/(1+B4)^A4 -> 270.4722402 | D4: =D3/(1+B4)^A4 -> 246.8867972 | E4: =E3/(1+B4)^A4 -> 296.3110474 | F4: =F3+C4 -> 568.6678851 | G4: =G3+D4 -> 519.0794911 | H4: =H3+E4 -> 622.9939772 | I4: =I3/(1+B4)^A4 -> 101.6475887 | J4: =J3/(1+B4)^A4 -> 92.78529382 | K4: =K3/(1+B4)^A4 -> 5.132426028 | L4: =L3+I4 -> 213.7140552 | M4: =M3+J4 -> 195.0810803 | N4: =N3+K4 -> 10.79092572 | O4: =O3/(1+B4)^A4 -> 81.391818 | P4: =P3/(1+B4)^A4 -> 74.29599896 | Q4: =Q3/(1+B4)^A4 -> 89.16557487 | R4: =R3+O4 -> 171.1262973 | S4: =S3+P4 -> 156.2073378 | T4: =T3+Q4 -> 187.4706212 | U4: =U3/(1+B4)^A4 -> 35272213.96 | V4: =V3/(1+B4)^A4 -> 32196442.52 | W4: =W3/(1+B4)^A4 -> 38641846.04 | X4: =X3+U4 -> 74159829.86 | Y4: =Y3+V4 -> 67693020.4 | Z4: =Z3+W4 -> 81244481.29 | AA4: =AA3/(1+B4)^A4 -> 13255835.4 | AB4: =AB3/(1+B4)^A4 -> 12100105.85 | AC4: =AC3/(1+B4)^A4 -> 14521983.88 | AD4: =AD3+AA4 -> 27870393.92 | AE4: =AE3+AB4 -> 25440472.55 | AF4: =AF3+AC4 -> 30532471.11 | AG4: =AG3/(1+B4)^A4 -> 10614285.65 | AH4: =AH3/(1+B4)^A4 -> 9688921.753 | AI4: =AI3/(1+B4)^A4 -> 11628059.25 | AJ4: =AJ3+AG4 -> 22316535.59 | AK4: =AK3+AH4 -> 20370957.99 | AL4: =AL3+AI4 -> 24447994.57 | AM4: =AM3/(1+B4)^A4 -> 13.61406625 | AN4: =AN3/(1+B4)^A4 -> 12.42884472 | AO4: =AO3/(1+B4)^A4 -> 14.91252439 | AP4: =AP3+AM4 -> 28.62357428 | AQ4: =AQ3+AN4 -> 26.13164602 | AR4: =AR3+AO4 -> 31.35358253 | AS4: =AS3/(1+B4)^A4 -> 5.132426028 | AT4: =AT3/(1+B4)^A4 -> 4.687075792 | AU4: =AU3/(1+B4)^A4 -> 5.620325233 | AV4: =AV3+AS4 -> 10.79092572 | AW4: =AW3+AT4 -> 9.854576852 | AX4: =AX3+AU4 -> 11.8167338 | AY4: =AY3/(1+B4)^A4 -> 4.114528021 | AZ4: =AZ3/(1+B4)^A4 -> 3.757947164 | BA4: =BA3/(1+B4)^A4 -> 4.505176778 | BB4: =BB3+AY4 -> 8.650795164 | BC4: =BC3+AZ4 -> 7.901083913 | BD4: =BD3+BA4 -> 9.472134176 | BE4: =BE3/(1+B4)^A4 -> 1775406.811 | BF4: =BF3/(1+B4)^A4 -> 1620842.382 | BG4: =BG3/(1+B4)^A4 -> 1944738.397 | BH4: =BH3+BE4 -> 3732792.82 | BI4: =BI3+BF4 -> 3407821.109 | BJ4: =BJ3+BG4 -> 4088812.48 | BK4: =BK3/(1+B4)^A4 -> 669318.3333 | BL4: =BL3/(1+B4)^A4 -> 611240.3256 | BM4: =BM3/(1+B4)^A4 -> 732945.1407 | BN4: =BN3+BK4 -> 1407241.796 | BO4: =BO3+BL4 -> 1285132.785 | BP4: =BP3+BM4 -> 1541017.158 | BQ4: =BQ3/(1+B4)^A4 -> 536574.5209 | BR4: =BR3/(1+B4)^A4 -> 490072.9048 | BS4: =BS3/(1+B4)^A4 -> 587518.9229 | BT4: =BT3+BQ4 -> 1128147.93 | BU4: =BU3+BR4 -> 1030378.282 | BV4: =BV3+BS4 -> 1235258.535
A5: 3 | B5: 0.05 | C5: =C4/(1+B5)^A5 -> 233.6440905 | D5: =D4/(1+B5)^A5 -> 213.270098 | E5: =E4/(1+B5)^A5 -> 255.9646236 | F5: =F4+C5 -> 802.3119755 | G5: 732.3495891 | H5: 878.9586008 | I5: =I4/(1+B5)^A5 -> 87.80700888 | J5: =J4/(1+B5)^A5 -> 80.15142539 | K5: =K4/(1+B5)^A5 -> 4.433582575 | L5: =L4+I5 -> 301.521064 | M5: 275.2325057 | N5: 15.2245083 | O5: =O4/(1+B5)^A5 -> 70.3093126 | P5: =P4/(1+B5)^A5 -> 64.17967733 | Q5: =Q4/(1+B5)^A5 -> 77.02457607 | R5: =R4+O5 -> 241.4356099 | S5: 220.3870151 | T5: 264.4951972 | U5: =U4/(1+B5)^A5 -> 30469464.6 | V5: =V4/(1+B5)^A5 -> 27812497.59 | W5: =W4/(1+B5)^A5 -> 33380279.48 | X5: =X4+U5 -> 104629294.5 | Y5: 95505517.98 | Z5: 114624760.8 | AA5: =AA4/(1+B5)^A5 -> 11450889.02 | AB5: =AB4/(1+B5)^A5 -> 10452526.38 | AC5: =AC4/(1+B5)^A5 -> 12544635.68 | AD5: =AD4+AA5 -> 39321282.94 | AE5: 35892998.93 | AF5: 43077106.79 | AG5: =AG4/(1+B5)^A5 -> 9169019.029 | AH5: =AH4/(1+B5)^A5 -> 8369654.9 | AI5: =AI4/(1+B5)^A5 -> 10044754.78 | AJ5: =AJ4+AG5 -> 31485554.62 | AK5: 28740612.89 | AL5: 34492749.35 | AM5: =AM4/(1+B5)^A5 -> 11.76034229 | AN5: =AN4/(1+B5)^A5 -> 10.73650337 | AO5: =AO4/(1+B5)^A5 -> 12.88199926 | AP5: =AP4+AM5 -> 40.38391657 | AQ5: 36.86814939 | AR5: 44.23558178 | AS5: =AS4/(1+B5)^A5 -> 4.433582575 | AT5: =AT4/(1+B5)^A5 -> 4.048872296 | AU5: =AU4/(1+B5)^A5 -> 4.855048252 | AV5: =AV4+AS5 -> 15.2245083 | AW5: 13.90344915 | AX5: 16.67178206 | AY5: =AY4/(1+B5)^A5 -> 3.554284005 | AZ5: =AZ4/(1+B5)^A5 -> 3.246256054 | BA5: =BA4/(1+B5)^A5 -> 3.891741089 | BB5: =BB4+AY5 -> 12.20507917 | BC5: 11.14733997 | BD5: 13.36387527 | BE5: =BE4/(1+B5)^A5 -> 1533663.156 | BF5: =BF4/(1+B5)^A5 -> 1400144.591 | BG5: =BG4/(1+B5)^A5 -> 1679938.147 | BH5: =BH4+BE5 -> 5266455.976 | BI5: 4807965.7 | BJ5: 5768750.627 | BK5: =BK4/(1+B5)^A5 -> 578182.3417 | BL5: =BL4/(1+B5)^A5 -> 528012.375 | BM5: =BM4/(1+B5)^A5 -> 633145.5702 | BN5: =BN4+BK5 -> 1985424.137 | BO5: 1813145.16 | BP5: 2174162.728 | BQ5: =BQ4/(1+B5)^A5 -> 463513.2456 | BR5: =BR4/(1+B5)^A5 -> 423343.4012 | BS5: =BS4/(1+B5)^A5 -> 507520.9355 | BT5: =BT4+BQ5 -> 1591661.176 | BU5: 1453721.684 | BV5: 1742779.471
A6: 4 | B6: 0.05 | C6: 192.2195714 | D6: 175.4578374 | E6: 210.5827293 | F6: 994.531547 | G6: 907.8074266 | H6: 1089.54133 | I6: 72.23904351 | J6: 65.94077603 | K6: 3.647519357 | L6: 373.7601075 | M6: 341.1732817 | N6: 18.87202766 | O6: 57.84364548 | P6: 52.80077937 | Q6: 63.36830935 | R6: 299.2792554 | S6: 273.1877945 | T6: 327.8635066 | U6: 25067303.94 | V6: 22881410.59 | W6: 27462038.54 | X6: 129696598.4 | Y6: 118386928.6 | Z6: 142086799.3 | AA6: 9420674.732 | AB6: 8599319.32 | AC6: 10320502.82 | AD6: 48741957.67 | AE6: 44492318.25 | AF6: 53397609.61 | AG6: 7543374.647 | AH6: 6885735.799 | AI6: 8263844.615 | AJ6: 39028929.26 | AK6: 35626348.68 | AL6: 42756593.97 | AM6: 9.675262708 | AN6: 8.832947896 | AO6: 10.59805267 | AP6: 50.05917928 | AQ6: 45.70109729 | AR6: 54.83363445 | AS6: 3.647519357 | AT6: 3.331017258 | AU6: 3.994260212 | AV6: 18.87202766 | AW6: 17.23446641 | AX6: 20.66604227 | AY6: 2.924118247 | AZ6: 2.670702889 | BA6: 3.201745025 | BB6: 15.12919742 | BC6: 13.81804286 | BD6: 16.56562029 | BE6: 1261748.474 | BF6: 1151902.42 | BG6: 1382089.271 | BH6: 6528204.45 | BI6: 5959868.12 | BJ6: 7150839.898 | BK6: 475672.0434 | BL6: 434397.0876 | BM6: 520890.4275 | BN6: 2461096.181 | BO6: 2247542.247 | BP6: 2695053.156 | BQ6: 381333.4942 | BR6: 348285.6639 | BS6: 417538.7296 | BT6: 1972994.67 | BU6: 1802007.347 | BV6: 2160318.201
A7: 5 | B7: 0.05 | C7: 150.6090639 | D7: 137.4758067 | E7: 164.9970786 | F7: 1145.140611 | G7: 1045.283233 | H7: 1254.538409 | I7: 56.60118083 | J7: 51.66632346 | K7: 2.857926859 | L7: 430.3612884 | M7: 392.8396051 | N7: 21.72995452 | O7: 45.32200979 | P7: 41.37079224 | Q7: 49.6507285 | R7: 344.6012652 | S7: 314.5585868 | T7: 377.5142351 | U7: 19640888.56 | V7: 17928183.93 | W7: 21517225.78 | X7: 149337487 | Y7: 136315112.5 | Z7: 163604025.1 | AA7: 7381345.158 | AB7: 6737791.701 | AC7: 8086384.011 | AD7: 56123302.83 | AE7: 51230109.95 | AF7: 61483993.62 | AG7: 5910431.419 | AH7: 5395154.174 | AI7: 6474938.491 | AJ7: 44939360.68 | AK7: 41021502.86 | AL7: 49231532.46 | AM7: 7.580821499 | AN7: 6.920845803 | AO7: 8.303851579 | AP7: 57.64000078 | AQ7: 52.62194309 | AR7: 63.13748603 | AS7: 2.857926859 | AT7: 2.609939183 | AU7: 3.129607392 | AV7: 21.72995452 | AW7: 19.84440559 | AX7: 23.79564966 | AY7: 2.29112316 | AZ7: 2.092565597 | BA7: 2.508651006 | BB7: 17.42032058 | BC7: 15.91060845 | BD7: 19.0742713 | BE7: 988612.9449 | BF7: 902545.6874 | BG7: 1082903.108 | BH7: 7516817.395 | BI7: 6862413.807 | BJ7: 8233743.006 | BK7: 372701.4926 | BL7: 340361.4848 | BM7: 408131.2798 | BN7: 2833797.673 | BO7: 2587903.732 | BP7: 3103184.436 | BQ7: 298784.7709 | BR7: 272890.931 | BS7: 327152.5202 | BT7: 2271779.441 | BU7: 2074898.279 | BV7: 2487470.721
... 8 more rows

Sheet Bedford
B1: County | C1: Bedford
B2: Number of households | C2: ='WTP Values '!C6 -> 19757 | E2: CLICK HERE TO GO BACK TO COUNTY LIST
B3: Percent of county forested | C3: ='WTP Values '!DA6 -> 0.5761945315
B4: Square miles of surface water | C4: ='WTP Values '!BU6 -> 1.289540867
B5: Miles of major rivers | C5: ='WTP Values '!BV6 -> 372.3761805
B6: Miles of tributaries | C6: ='WTP Values '!BW6 -> 2059.439684
... 7 more rows

Sheet Bedford NPV 1% (hidden)
C1: ACRES all conservation strategies | U1: Countywide demand= all conservation strategies | AM1: Acre value of acquisition and easements | BE1: countywide demand for acquisition and easements
A2: year | B2: rate % | C2: All surface waters PV | D2: (Low 95% CI) PV | E2: (High 95% CI) PV | F2: All surface waters NPV | G2: (Low 95% CI) NPV | H2: (High 95% CI) NPV | I2: Protect Rivers only PV | J2: (Low 95% CI) PV | K2: (High 95% CI) PV | L2: Protect Rivers only NPV | M2: (Low 95% CI) NPV | N2: (High 95% CI) NPV | O2: Protect single site PV | P2: (Low 95% CI) PV | Q2: (High 95% CI) PV | R2: Protect single site NPV | S2: (Low 95% CI) NPV | T2: (High 95% CI) NPV | U2: All surface waters PV | V2: (Low 95% CI) PV | W2: (High 95% CI) PV | X2: All surface waters NPV | Y2: (Low 95% CI) NPV | Z2: (High 95% CI) NPV | AA2: Protect Rivers only PV | AB2: (Low 95% CI) PV | AC2: (High 95% CI) PV | AD2: Protect Rivers only NPV | AE2: (Low 95% CI) NPV | AF2: (High 95% CI) NPV | AG2: Protect single site PV | AH2: (Low 95% CI) PV | AI2: (High 95% CI) PV | AJ2: Protect single site NPV | AK2: (Low 95% CI) NPV | AL2: (High 95% CI) NPV | AM2: All surface waters PV | AN2: (Low 95% CI) PV | AO2: (High 95% CI) PV | AP2: All surface waters NPV | AQ2: (Low 95% CI) NPV | AR2: (High 95% CI) NPV | AS2: Protect Rivers only PV | AT2: (Low 95% CI) PV | AU2: (High 95% CI) PV | AV2: Protect Rivers only NPV | AW2: (Low 95% CI) NPV | AX2: (High 95% CI) NPV | AY2: Protect single site PV | AZ2: (Low 95% CI) PV | BA2: (High 95% CI) PV | BB2: Protect single site NPV | BC2: (Low 95% CI) NPV | BD2: (High 95% CI) NPV | BE2: All surface waters PV | BF2: (Low 95% CI) PV | BG2: (High 95% CI) PV | BH2: All surface waters NPV | BI2: (Low 95% CI) NPV | BJ2: (High 95% CI) NPV | BK2: Protect Rivers only PV | BL2: (Low 95% CI) PV | BM2: (High 95% CI) PV | BN2: Protect Rivers only NPV | BO2: (Low 95% CI) NPV | BP2: (High 95% CI) NPV | BQ2: Protect single site PV | BR2: (Low 95% CI) PV | BS2: (High 95% CI) PV | BT2: Protect single site NPV | BU2: (Low 95% CI) NPV | BV2: (High 95% CI) NPV
A3: 1 | B3: 0.01 | C3: ='WTP Values '!CU6 -> 21.73128392 | D3: ='WTP Values '!CV6 -> 19.8363523 | E3: ='WTP Values '!CW6 -> 23.80725817 | F3: =C3 -> 21.73128392 | G3: =D3 -> 19.8363523 | H3: =E3 -> 23.80725817 | I3: ='WTP Values '!CC6 -> 8.167127477 | J3: ='WTP Values '!CD6 -> 7.455127587 | K3: ='WTP Values '!CF6 -> 0.413065304 | L3: =I3 -> 8.167127477 | M3: =J3 -> 7.455127587 | N3: =K3 -> 0.413065304 | O3: ='WTP Values '!CI6 -> 6.539771725 | P3: ='WTP Values '!CJ6 -> 5.969691123 | Q3: ='WTP Values '!CK6 -> 7.164318091 | R3: =O3 -> 6.539771725 | S3: =P3 -> 5.969691123 | T3: =Q3 -> 7.164318091 | U3: ='WTP Values '!BH6 -> 8134675.421 | V3: ='WTP Values '!BI6 -> 7425345.33 | W3: ='WTP Values '!BJ6 -> 8911775.237 | X3: =U3 -> 8134675.421 | Y3: =V3 -> 7425345.33 | Z3: =W3 -> 8911775.237 | AA3: ='WTP Values '!AV6 -> 3057202.299 | AB3: ='WTP Values '!AW6 -> 2790679.252 | AC3: ='WTP Values '!AX6 -> 3349189.081 | AD3: =AA3 -> 3057202.299 | AE3: =AB3 -> 2790679.252 | AF3: =AC3 -> 3349189.081 | AG3: ='WTP Values '!BB6 -> 2448033.927 | AH3: ='WTP Values '!BC6 -> 2234635.553 | AI3: ='WTP Values '!BD6 -> 2681820.481 | AJ3: =AG3 -> 2448033.927 | AK3: =AH3 -> 2234635.553 | AL3: =AI3 -> 2681820.481 | AM3: ='WTP Values '!CX6 -> 1.094458364 | AN3: ='WTP Values '!CY6 -> 0.9992337912 | AO3: ='WTP Values '!CZ6 -> 1.198780737 | AP3: =AM3 -> 1.094458364 | AQ3: =AN3 -> 0.9992337912 | AR3: =AO3 -> 1.198780737 | AS3: ='WTP Values '!CF6 -> 0.413065304 | AT3: ='WTP Values '!CG6 -> 0.377285709 | AU3: ='WTP Values '!CH6 -> 0.452263298 | AV3: =AS3 -> 0.413065304 | AW3: =AT3 -> 0.377285709 | AX3: =AU3 -> 0.452263298 | AY3: ='WTP Values '!CL6 -> 0.3312870194 | AZ3: ='WTP Values '!CM6 -> 0.3026391877 | BA3: ='WTP Values '!CN6 -> 0.3626718782 | BB3: =AY3 -> 0.3312870194 | BC3: =AZ3 -> 0.3026391877 | BD3: =BA3 -> 0.3626718782 | BE3: ='WTP Values '!BK6 -> 409688.7965 | BF3: ='WTP Values '!BL6 -> 374043.365 | BG3: ='WTP Values '!BM6 -> 448739.8091 | BH3: =BE3 -> 409688.7965 | BI3: =BF3 -> 374043.365 | BJ3: =BG3 -> 448739.8091 | BK3: ='WTP Values '!AY6 -> 154622.8096 | BL3: ='WTP Values '!AZ6 -> 141229.4274 | BM3: ='WTP Values '!BA6 -> 169295.8018 | BN3: =BK3 -> 154622.8096 | BO3: =BL3 -> 141229.4274 | BP3: =BM3 -> 169295.8018 | BQ3: ='WTP Values '!BE6 -> 124010.7296 | BR3: ='WTP Values '!BF6 -> 113286.9816 | BS3: ='WTP Values '!BG6 -> 135759.0295 | BT3: =BQ3 -> 124010.7296 | BU3: =BR3 -> 113286.9816 | BV3: =BS3 -> 135759.0295
A4: 2 | B4: 0.01 | C4: =C3/(1+B4)^A4 -> 21.30309177 | D4: =D3/(1+B4)^A4 -> 19.4454978 | E4: =E3/(1+B4)^A4 -> 23.33816113 | F4: =F3+C4 -> 43.03437569 | G4: =G3+D4 -> 39.2818501 | H4: =H3+E4 -> 47.1454193 | I4: =I3/(1+B4)^A4 -> 8.0062028 | J4: =J3/(1+B4)^A4 -> 7.308232121 | K4: =K3/(1+B4)^A4 -> 0.4049262856 | L4: =L3+I4 -> 16.17333028 | M4: =M3+J4 -> 14.76335971 | N4: =N3+K4 -> 0.8179915896 | O4: =O3/(1+B4)^A4 -> 6.410912386 | P4: =P3/(1+B4)^A4 -> 5.852064624 | Q4: =Q3/(1+B4)^A4 -> 7.023152721 | R4: =R3+O4 -> 12.95068411 | S4: =S3+P4 -> 11.82175575 | T4: =T3+Q4 -> 14.18747081 | U4: =U3/(1+B4)^A4 -> 7974390.178 | V4: =V3/(1+B4)^A4 -> 7279036.692 | W4: =W3/(1+B4)^A4 -> 8736178.058 | X4: =X3+U4 -> 16109065.6 | Y4: =Y3+V4 -> 14704382.02 | Z4: =Z3+W4 -> 17647953.3 | AA4: =AA3/(1+B4)^A4 -> 2996963.336 | AB4: =AB3/(1+B4)^A4 -> 2735691.846 | AC4: =AC3/(1+B4)^A4 -> 3283196.825 | AD4: =AD3+AA4 -> 6054165.635 | AE4: =AE3+AB4 -> 5526371.098 | AF4: =AF3+AC4 -> 6632385.906 | AG4: =AG3/(1+B4)^A4 -> 2399797.988 | AH4: =AH3/(1+B4)^A4 -> 2190604.404 | AI4: =AI3/(1+B4)^A4 -> 2628978.023 | AJ4: =AJ3+AG4 -> 4847831.915 | AK4: =AK3+AH4 -> 4425239.957 | AL4: =AL3+AI4 -> 5310798.504 | AM4: =AM3/(1+B4)^A4 -> 1.072893211 | AN4: =AN3/(1+B4)^A4 -> 0.979544938 | AO4: =AO3/(1+B4)^A4 -> 1.175160021 | AP4: =AP3+AM4 -> 2.167351575 | AQ4: =AQ3+AN4 -> 1.978778729 | AR4: =AR3+AO4 -> 2.373940757 | AS4: =AS3/(1+B4)^A4 -> 0.4049262856 | AT4: =AT3/(1+B4)^A4 -> 0.3698516901 | AU4: =AU3/(1+B4)^A4 -> 0.4433519243 | AV4: =AV3+AS4 -> 0.8179915896 | AW4: =AW3+AT4 -> 0.7471373991 | AX4: =AX3+AU4 -> 0.8956152223 | AY4: =AY3/(1+B4)^A4 -> 0.3247593563 | AZ4: =AZ3/(1+B4)^A4 -> 0.2966760001 | BA4: =BA3/(1+B4)^A4 -> 0.3555258094 | BB4: =BB3+AY4 -> 0.6560463757 | BC4: =BC3+AZ4 -> 0.5993151879 | BD4: =BD3+BA4 -> 0.7181976876 | BE4: =BE3/(1+B4)^A4 -> 401616.3087 | BF4: =BF3/(1+B4)^A4 -> 366673.233 | BG4: =BG3/(1+B4)^A4 -> 439897.8621 | BH4: =BH3+BE4 -> 811305.1052 | BI4: =BI3+BF4 -> 740716.598 | BJ4: =BJ3+BG4 -> 888637.6711 | BK4: =BK3/(1+B4)^A4 -> 151576.1294 | BL4: =BL3/(1+B4)^A4 -> 138446.6497 | BM4: =BM3/(1+B4)^A4 -> 165960.0056 | BN4: =BN3+BK4 -> 306198.939 | BO4: =BO3+BL4 -> 279676.0771 | BP4: =BP3+BM4 -> 335255.8074 | BQ4: =BQ3/(1+B4)^A4 -> 121567.2283 | BR4: =BR3/(1+B4)^A4 -> 111054.7805 | BS4: =BS3/(1+B4)^A4 -> 133084.0403 | BT4: =BT3+BQ4 -> 245577.958 | BU4: =BU3+BR4 -> 224341.7622 | BV4: =BV3+BS4 -> 268843.0697
A5: 3 | B5: 0.01 | C5: =C4/(1+B5)^A5 -> 20.67657099 | D5: =D4/(1+B5)^A5 -> 18.87360859 | E5: =E4/(1+B5)^A5 -> 22.65178926 | F5: =F4+C5 -> 63.71094668 | G5: 58.15545869 | H5: 69.79720857 | I5: =I4/(1+B5)^A5 -> 7.77074156 | J5: =J4/(1+B5)^A5 -> 7.093298096 | K5: =K4/(1+B5)^A5 -> 0.3930174635 | L5: =L4+I5 -> 23.94407184 | M5: 21.8566578 | N5: 1.211009053 | O5: =O4/(1+B5)^A5 -> 6.222368401 | P5: =P4/(1+B5)^A5 -> 5.679956269 | Q5: =Q4/(1+B5)^A5 -> 6.816602839 | R5: =R4+O5 -> 19.17305251 | S5: 17.50171202 | T5: 21.00407365 | U5: =U4/(1+B5)^A5 -> 7739864.543 | V5: =V4/(1+B5)^A5 -> 7064961.3 | W5: =W4/(1+B5)^A5 -> 8479248.354 | X5: =X4+U5 -> 23848930.14 | Y5: 21769343.32 | Z5: 26127201.65 | AA5: =AA4/(1+B5)^A5 -> 2908823.087 | AB5: =AB4/(1+B5)^A5 -> 2655235.553 | AC5: =AC4/(1+B5)^A5 -> 3186638.492 | AD5: =AD4+AA5 -> 8962988.722 | AE5: 8181606.651 | AF5: 9819024.398 | AG5: =AG4/(1+B5)^A5 -> 2329220.284 | AH5: =AH4/(1+B5)^A5 -> 2126179.053 | AI5: =AI4/(1+B5)^A5 -> 2551660.168 | AJ5: =AJ4+AG5 -> 7177052.199 | AK5: 6551419.01 | AL5: 7862458.672 | AM5: =AM4/(1+B5)^A5 -> 1.04133958 | AN5: =AN4/(1+B5)^A5 -> 0.9507366663 | AO5: =AO4/(1+B5)^A5 -> 1.140598738 | AP5: =AP4+AM5 -> 3.208691155 | AQ5: 2.929515395 | AR5: 3.514539496 | AS5: =AS4/(1+B5)^A5 -> 0.3930174635 | AT5: =AT4/(1+B5)^A5 -> 0.3589744066 | AU5: =AU4/(1+B5)^A5 -> 0.4303130098 | AV5: =AV4+AS5 -> 1.211009053 | AW5: 1.106111806 | AX5: 1.325928232 | AY5: =AY4/(1+B5)^A5 -> 0.3152082317 | AZ5: =AZ4/(1+B5)^A5 -> 0.2879508029 | BA5: =BA4/(1+B5)^A5 -> 0.345069848 | BB5: =BB4+AY5 -> 0.9712546075 | BC5: 0.8872659907 | BD5: 1.063267536 | BE5: =BE4/(1+B5)^A5 -> 389804.8325 | BF5: =BF4/(1+B5)^A5 -> 355889.4275 | BG5: =BG4/(1+B5)^A5 -> 426960.531 | BH5: =BH4+BE5 -> 1201109.938 | BI5: 1096606.025 | BJ5: 1315598.202 | BK5: =BK4/(1+B5)^A5 -> 147118.2979 | BL5: =BL4/(1+B5)^A5 -> 134374.9542 | BM5: =BM4/(1+B5)^A5 -> 161079.1464 | BN5: =BN4+BK5 -> 453317.2369 | BO5: 414051.0314 | BP5: 496334.9538 | BQ5: =BQ4/(1+B5)^A5 -> 117991.9541 | BR5: =BR4/(1+B5)^A5 -> 107788.6759 | BS5: =BS4/(1+B5)^A5 -> 129170.0583 | BT5: =BT4+BQ5 -> 363569.9121 | BU5: 332130.4381 | BV5: 398013.128
A6: 4 | B6: 0.01 | C6: 19.86977832 | D6: 18.13716688 | E6: 21.76792425 | F6: 83.58072499 | G6: 76.29262557 | H6: 91.56513282 | I6: 7.467529901 | J6: 6.816520047 | K6: 0.3776820574 | L6: 31.41160174 | M6: 28.67317785 | N6: 1.58869111 | O6: 5.979573729 | P6: 5.458326332 | Q6: 6.550621344 | R6: 25.15262624 | S6: 22.96003835 | T6: 27.554695 | U6: 7437857.694 | V6: 6789288.944 | W6: 8148391.004 | X6: 31286787.84 | Y6: 28558632.27 | Z6: 34275592.65 | AA6: 2795321.813 | AB6: 2551629.177 | AC6: 3062296.956 | AD6: 11758310.53 | AE6: 10733235.83 | AF6: 12881321.35 | AG6: 2238334.911 | AH6: 2043216.279 | AI6: 2452095.267 | AJ6: 9415387.109 | AK6: 8594635.289 | AL6: 10314553.94 | AM6: 1.000706868 | AN6: 0.9136392491 | AO6: 1.096092968 | AP6: 4.209398023 | AQ6: 3.843154645 | AR6: 4.610632464 | AS6: 0.3776820574 | AT6: 0.3449673489 | AU6: 0.4135223444 | AV6: 1.58869111 | AW6: 1.451079155 | AX6: 1.739450576 | AY6: 0.3029089151 | AZ6: 0.2767150617 | BA6: 0.3316053414 | BB6: 1.274163523 | BC6: 1.163981052 | BD6: 1.394872877 | BE6: 374594.7822 | BF6: 342002.7446 | BG6: 410300.6782 | BH6: 1575704.72 | BI6: 1438608.77 | BJ6: 1725898.88 | BK6: 141377.7926 | BL6: 129131.6898 | BM6: 154793.8936 | BN6: 594695.0294 | BO6: 543182.7212 | BP6: 651128.8475 | BQ6: 113387.9487 | BR6: 103582.7989 | BS6: 124129.8871 | BT6: 476957.8608 | BU6: 435713.2369 | BV6: 522143.0152
A7: 5 | B7: 0.01 | C7: 18.90541229 | D7: 17.25689196 | E7: 20.71143302 | F7: 102.4861373 | G7: 93.54951753 | H7: 112.2765658 | I7: 7.105098472 | J7: 6.485684934 | K7: 0.3593515185 | L7: 38.51670021 | M7: 35.15886278 | N7: 1.948042629 | O7: 5.68935923 | P7: 5.193410217 | Q7: 6.232691441 | R7: 30.84198547 | S7: 28.15344857 | T7: 33.78738644 | U7: 7076866.385 | V7: 6459775.473 | W7: 7752914.45 | X7: 38363654.22 | Y7: 35018407.74 | Z7: 42028507.1 | AA7: 2659652.79 | AB7: 2427787.609 | AC7: 2913670.479 | AD7: 14417963.32 | AE7: 13161023.44 | AF7: 15794991.83 | AG7: 2129698.865 | AH7: 1944050.182 | AI7: 2333084.509 | AJ7: 11545085.97 | AK7: 10538685.47 | AL7: 12647638.45 | AM7: 0.9521382486 | AN7: 0.8692963963 | AO7: 1.04289485 | AP7: 5.161536272 | AQ7: 4.712451041 | AR7: 5.653527314 | AS7: 0.3593515185 | AT7: 0.3282245958 | AU7: 0.3934523217 | AV7: 1.948042629 | AW7: 1.77930375 | AX7: 2.132902898 | AY7: 0.2882074392 | AZ7: 0.2632848865 | BA7: 0.3155111041 | BB7: 1.562370962 | BC7: 1.427265939 | BD7: 1.710383981 | BE7: 356414.082 | BF7: 325403.8766 | BG7: 390387.0169 | BH7: 1932118.802 | BI7: 1764012.647 | BJ7: 2116285.897 | BK7: 134516.1186 | BL7: 122864.372 | BM7: 147281.0784 | BN7: 729211.148 | BO7: 666047.0933 | BP7: 798409.9259 | BQ7: 107884.7426 | BR7: 98555.47896 | BS7: 118105.3284 | BT7: 584842.6034 | BU7: 534268.7159 | BV7: 640248.3436
... 8 more rows

Sheet Bedford NPV 2% (hidden)
C1: ACRES all conservation strategies | U1: Countywide demand= all conservation strategies | AM1: Acre value of acquisition and easements | BE1: countywide demand for acquisition and easements
A2: year | B2: rate % | C2: All surface waters PV | D2: (Low 95% CI) PV | E2: (High 95% CI) PV | F2: All surface waters NPV | G2: (Low 95% CI) NPV | H2: (High 95% CI) NPV | I2: Protect Rivers only PV | J2: (Low 95% CI) PV | K2: (High 95% CI) PV | L2: Protect Rivers only NPV | M2: (Low 95% CI) NPV | N2: (High 95% CI) NPV | O2: Protect single site PV | P2: (Low 95% CI) PV | Q2: (High 95% CI) PV | R2: Protect single site NPV | S2: (Low 95% CI) NPV | T2: (High 95% CI) NPV | U2: All surface waters PV | V2: (Low 95% CI) PV | W2: (High 95% CI) PV | X2: All surface waters NPV | Y2: (Low 95% CI) NPV | Z2: (High 95% CI) NPV | AA2: Protect Rivers only PV | AB2: (Low 95% CI) PV | AC2: (High 95% CI) PV | AD2: Protect Rivers only NPV | AE2: (Low 95% CI) NPV | AF2: (High 95% CI) NPV | AG2: Protect single site PV | AH2: (Low 95% CI) PV | AI2: (High 95% CI) PV | AJ2: Protect single site NPV | AK2: (Low 95% CI) NPV | AL2: (High 95% CI) NPV | AM2: All surface waters PV | AN2: (Low 95% CI) PV | AO2: (High 95% CI) PV | AP2: All surface waters NPV | AQ2: (Low 95% CI) NPV | AR2: (High 95% CI) NPV | AS2: Protect Rivers only PV | AT2: (Low 95% CI) PV | AU2: (High 95% CI) PV | AV2: Protect Rivers only NPV | AW2: (Low 95% CI) NPV | AX2: (High 95% CI) NPV | AY2: Protect single site PV | AZ2: (Low 95% CI) PV | BA2: (High 95% CI) PV | BB2: Protect single site NPV | BC2: (Low 95% CI) NPV | BD2: (High 95% CI) NPV | BE2: All surface waters PV | BF2: (Low 95% CI) PV | BG2: (High 95% CI) PV | BH2: All surface waters NPV | BI2: (Low 95% CI) NPV | BJ2: (High 95% CI) NPV | BK2: Protect Rivers only PV | BL2: (Low 95% CI) PV | BM2: (High 95% CI) PV | BN2: Protect Rivers only NPV | BO2: (Low 95% CI) NPV | BP2: (High 95% CI) NPV | BQ2: Protect single site PV | BR2: (Low 95% CI) PV | BS2: (High 95% CI) PV | BT2: Protect single site NPV | BU2: (Low 95% CI) NPV | BV2: (High 95% CI) NPV
A3: 1 | B3: 0.02 | C3: ='WTP Values '!CU6 -> 21.73128392 | D3: ='WTP Values '!CV6 -> 19.8363523 | E3: ='WTP Values '!CW6 -> 23.80725817 | F3: =C3 -> 21.73128392 | G3: =D3 -> 19.8363523 | H3: =E3 -> 23.80725817 | I3: ='WTP Values '!CC6 -> 8.167127477 | J3: ='WTP Values '!CD6 -> 7.455127587 | K3: ='WTP Values '!CF6 -> 0.413065304 | L3: =I3 -> 8.167127477 | M3: =J3 -> 7.455127587 | N3: =K3 -> 0.413065304 | O3: ='WTP Values '!CI6 -> 6.539771725 | P3: ='WTP Values '!CJ6 -> 5.969691123 | Q3: ='WTP Values '!CK6 -> 7.164318091 | R3: =O3 -> 6.539771725 | S3: =P3 -> 5.969691123 | T3: =Q3 -> 7.164318091 | U3: ='WTP Values '!BH6 -> 8134675.421 | V3: ='WTP Values '!BI6 -> 7425345.33 | W3: ='WTP Values '!BJ6 -> 8911775.237 | X3: =U3 -> 8134675.421 | Y3: =V3 -> 7425345.33 | Z3: =W3 -> 8911775.237 | AA3: ='WTP Values '!AV6 -> 3057202.299 | AB3: ='WTP Values '!AW6 -> 2790679.252 | AC3: ='WTP Values '!AX6 -> 3349189.081 | AD3: =AA3 -> 3057202.299 | AE3: =AB3 -> 2790679.252 | AF3: =AC3 -> 3349189.081 | AG3: ='WTP Values '!BB6 -> 2448033.927 | AH3: ='WTP Values '!BC6 -> 2234635.553 | AI3: ='WTP Values '!BD6 -> 2681820.481 | AJ3: =AG3 -> 2448033.927 | AK3: =AH3 -> 2234635.553 | AL3: =AI3 -> 2681820.481 | AM3: ='WTP Values '!CX6 -> 1.094458364 | AN3: ='WTP Values '!CY6 -> 0.9992337912 | AO3: ='WTP Values '!CZ6 -> 1.198780737 | AP3: =AM3 -> 1.094458364 | AQ3: =AN3 -> 0.9992337912 | AR3: =AO3 -> 1.198780737 | AS3: ='WTP Values '!CF6 -> 0.413065304 | AT3: ='WTP Values '!CG6 -> 0.377285709 | AU3: ='WTP Values '!CH6 -> 0.452263298 | AV3: =AS3 -> 0.413065304 | AW3: =AT3 -> 0.377285709 | AX3: =AU3 -> 0.452263298 | AY3: ='WTP Values '!CL6 -> 0.3312870194 | AZ3: ='WTP Values '!CM6 -> 0.3026391877 | BA3: ='WTP Values '!CN6 -> 0.3626718782 | BB3: =AY3 -> 0.3312870194 | BC3: =AZ3 -> 0.3026391877 | BD3: =BA3 -> 0.3626718782 | BE3: ='WTP Values '!BK6 -> 409688.7965 | BF3: ='WTP Values '!BL6 -> 374043.365 | BG3: ='WTP Values '!BM6 -> 448739.8091 | BH3: =BE3 -> 409688.7965 | BI3: =BF3 -> 374043.365 | BJ3: =BG3 -> 448739.8091 | BK3: ='WTP Values '!AY6 -> 154622.8096 | BL3: ='WTP Values '!AZ6 -> 141229.4274 | BM3: ='WTP Values '!BA6 -> 169295.8018 | BN3: =BK3 -> 154622.8096 | BO3: =BL3 -> 141229.4274 | BP3: =BM3 -> 169295.8018 | BQ3: ='WTP Values '!BE6 -> 124010.7296 | BR3: ='WTP Values '!BF6 -> 113286.9816 | BS3: ='WTP Values '!BG6 -> 135759.0295 | BT3: =BQ3 -> 124010.7296 | BU3: =BR3 -> 113286.9816 | BV3: =BS3 -> 135759.0295
A4: 2 | B4: 0.02 | C4: =C3/(1+B4)^A4 -> 20.88743168 | D4: =D3/(1+B4)^A4 -> 19.06608257 | E4: =E3/(1+B4)^A4 -> 22.88279332 | F4: =F3+C4 -> 42.61871559 | G4: =G3+D4 -> 38.90243487 | H4: =H3+E4 -> 46.69005149 | I4: =I3/(1+B4)^A4 -> 7.849987963 | J4: =J3/(1+B4)^A4 -> 7.165635897 | K4: =K3/(1+B4)^A4 -> 0.3970254748 | L4: =L3+I4 -> 16.01711544 | M4: =M3+J4 -> 14.62076348 | N4: =N3+K4 -> 0.8100907788 | O4: =O3/(1+B4)^A4 -> 6.285824418 | P4: =P3/(1+B4)^A4 -> 5.737880741 | Q4: =Q3/(1+B4)^A4 -> 6.886118888 | R4: =R3+O4 -> 12.82559614 | S4: =S3+P4 -> 11.70757186 | T4: =T3+Q4 -> 14.05043698 | U4: =U3/(1+B4)^A4 -> 7818796.06 | V4: =V3/(1+B4)^A4 -> 7137010.121 | W4: =W3/(1+B4)^A4 -> 8565720.143 | X4: =X3+U4 -> 15953471.48 | Y4: =Y3+V4 -> 14562355.45 | Z4: =Z3+W4 -> 17477495.38 | AA4: =AA3/(1+B4)^A4 -> 2938487.408 | AB4: =AB3/(1+B4)^A4 -> 2682313.775 | AC4: =AC3/(1+B4)^A4 -> 3219135.987 | AD4: =AD3+AA4 -> 5995689.706 | AE4: =AE3+AB4 -> 5472993.027 | AF4: =AF3+AC4 -> 6568325.069 | AG4: =AG3/(1+B4)^A4 -> 2352973.786 | AH4: =AH3/(1+B4)^A4 -> 2147861.931 | AI4: =AI3/(1+B4)^A4 -> 2577682.123 | AJ4: =AJ3+AG4 -> 4801007.713 | AK4: =AK3+AH4 -> 4382497.484 | AL4: =AL3+AI4 -> 5259502.604 | AM4: =AM3/(1+B4)^A4 -> 1.051959212 | AN4: =AN3/(1+B4)^A4 -> 0.9604323253 | AO4: =AO3/(1+B4)^A4 -> 1.15223062 | AP4: =AP3+AM4 -> 2.146417576 | AQ4: =AQ3+AN4 -> 1.959666117 | AR4: =AR3+AO4 -> 2.351011357 | AS4: =AS3/(1+B4)^A4 -> 0.3970254748 | AT4: =AT3/(1+B4)^A4 -> 0.3626352451 | AU4: =AU3/(1+B4)^A4 -> 0.4347013629 | AV4: =AV3+AS4 -> 0.8100907788 | AW4: =AW3+AT4 -> 0.7399209542 | AX4: =AX3+AU4 -> 0.8869646609 | AY4: =AY3/(1+B4)^A4 -> 0.3184227407 | AZ4: =AZ3/(1+B4)^A4 -> 0.2908873392 | BA4: =BA3/(1+B4)^A4 -> 0.3485888872 | BB4: =BB3+AY4 -> 0.6497097601 | BC4: =BC3+AZ4 -> 0.593526527 | BD4: =BD3+BA4 -> 0.7112607653 | BE4: =BE3/(1+B4)^A4 -> 393780.0812 | BF4: =BF3/(1+B4)^A4 -> 359518.8053 | BG4: =BG3/(1+B4)^A4 -> 431314.6954 | BH4: =BH3+BE4 -> 803468.8777 | BI4: =BI3+BF4 -> 733562.1702 | BJ4: =BJ3+BG4 -> 880054.5045 | BK4: =BK3/(1+B4)^A4 -> 148618.6175 | BL4: =BL3/(1+B4)^A4 -> 135745.3166 | BM4: =BM3/(1+B4)^A4 -> 162721.8394 | BN4: =BN3+BK4 -> 303241.4271 | BO4: =BO3+BL4 -> 276974.744 | BP4: =BP3+BM4 -> 332017.6412 | BQ4: =BQ3/(1+B4)^A4 -> 119195.2419 | BR4: =BR3/(1+B4)^A4 -> 108887.9101 | BS4: =BS3/(1+B4)^A4 -> 130487.3409 | BT4: =BT3+BQ4 -> 243205.9715 | BU4: =BU3+BR4 -> 222174.8917 | BV4: =BV3+BS4 -> 266246.3704
A5: 3 | B5: 0.02 | C5: =C4/(1+B5)^A5 -> 19.68269338 | D5: =D4/(1+B5)^A5 -> 17.96639544 | E5: =E4/(1+B5)^A5 -> 21.56296722 | F5: =F4+C5 -> 62.30140897 | G5: 56.86883031 | H5: 68.25301871 | I5: =I4/(1+B5)^A5 -> 7.397218983 | J5: =J4/(1+B5)^A5 -> 6.752338747 | K5: =K4/(1+B5)^A5 -> 0.3741259723 | L5: =L4+I5 -> 23.41433442 | M5: 21.37310223 | N5: 1.184216751 | O5: =O4/(1+B5)^A5 -> 5.92327274 | P5: =P4/(1+B5)^A5 -> 5.406933176 | Q5: =Q4/(1+B5)^A5 -> 6.488943626 | R5: =R4+O5 -> 18.74886888 | S5: 17.11450504 | T5: 20.53938061 | U5: =U4/(1+B5)^A5 -> 7367826.156 | V5: =V4/(1+B5)^A5 -> 6725364.039 | W5: =W4/(1+B5)^A5 -> 8071669.403 | X5: =X4+U5 -> 23321297.64 | Y5: 21287719.49 | Z5: 25549164.78 | AA5: =AA4/(1+B5)^A5 -> 2769002.314 | AB5: =AB4/(1+B5)^A5 -> 2527604.179 | AC5: =AC4/(1+B5)^A5 -> 3033463.739 | AD5: =AD4+AA5 -> 8764692.02 | AE5: 8000597.206 | AF5: 9601788.807 | AG5: =AG4/(1+B5)^A5 -> 2217259.751 | AH5: =AH4/(1+B5)^A5 -> 2023978.269 | AI5: =AI4/(1+B5)^A5 -> 2429007.436 | AJ5: =AJ4+AG5 -> 7018267.465 | AK5: 6406475.753 | AL5: 7688510.04 | AM5: =AM4/(1+B5)^A5 -> 0.9912846605 | AN5: =AN4/(1+B5)^A5 -> 0.9050368309 | AO5: =AO4/(1+B5)^A5 -> 1.085772648 | AP5: =AP4+AM5 -> 3.137702237 | AQ5: 2.864702947 | AR5: 3.436784004 | AS5: =AS4/(1+B5)^A5 -> 0.3741259723 | AT5: =AT4/(1+B5)^A5 -> 0.3417192908 | AU5: =AU4/(1+B5)^A5 -> 0.4096288031 | AV5: =AV4+AS5 -> 1.184216751 | AW5: 1.081640245 | AX5: 1.296593464 | AY5: =AY4/(1+B5)^A5 -> 0.3000568604 | AZ5: =AZ4/(1+B5)^A5 -> 0.2741096366 | BA5: =BA4/(1+B5)^A5 -> 0.3284830939 | BB5: =BB4+AY5 -> 0.9497666205 | BC5: 0.8676361636 | BD5: 1.039743859 | BE5: =BE4/(1+B5)^A5 -> 371067.7654 | BF5: =BF4/(1+B5)^A5 -> 338782.5999 | BG5: =BG4/(1+B5)^A5 -> 406437.4707 | BH5: =BH4+BE5 -> 1174536.643 | BI5: 1072344.77 | BJ5: 1286491.975 | BK5: =BK4/(1+B5)^A5 -> 140046.6426 | BL5: =BL4/(1+B5)^A5 -> 127915.8436 | BM5: =BM4/(1+B5)^A5 -> 153336.4236 | BN5: =BN4+BK5 -> 443288.0696 | BO5: 404890.5876 | BP5: 485354.0648 | BQ5: =BQ4/(1+B5)^A5 -> 112320.3386 | BR5: =BR4/(1+B5)^A5 -> 102607.5096 | BS5: =BS4/(1+B5)^A5 -> 122961.1357 | BT5: =BT4+BQ5 -> 355526.31 | BU5: 324782.4013 | BV5: 389207.506
A6: 4 | B6: 0.02 | C6: 18.18376625 | D6: 16.59817225 | E6: 19.92084864 | F6: 80.48517522 | G6: 73.46700256 | H6: 88.17386735 | I6: 6.833886923 | J6: 6.238117266 | K6: 0.3456345682 | L6: 30.24822135 | M6: 27.6112195 | N6: 1.529851319 | O6: 5.472188428 | P6: 4.995170483 | Q6: 5.994780889 | R6: 24.22105731 | S6: 22.10967552 | T6: 26.53416149 | U6: 6806732.494 | V6: 6213196.806 | W6: 7456974.858 | X6: 30128030.13 | Y6: 27500916.29 | Z6: 33006139.64 | AA6: 2558130.122 | AB6: 2335115.559 | AC6: 2802451.6 | AD6: 11322822.14 | AE6: 10335712.77 | AF6: 12404240.41 | AG6: 2048405.28 | AH6: 1869843.066 | AI6: 2244027.41 | AJ6: 9066672.744 | AK6: 8276318.819 | AL6: 9932537.45 | AM6: 0.9157937995 | AN6: 0.8361141367 | AO6: 1.003086094 | AP6: 4.053496036 | AQ6: 3.700817084 | AR6: 4.439870099 | AS6: 0.3456345682 | AT6: 0.3156958038 | AU6: 0.3784336961 | AV6: 1.529851319 | AW6: 1.397336049 | AX6: 1.67502716 | AY6: 0.277206158 | AZ6: 0.253234934 | BA6: 0.3034676039 | BB6: 1.226972778 | BC6: 1.120871098 | BD6: 1.343211463 | BE6: 342809.2578 | BF6: 312982.7553 | BG6: 375485.3983 | BH6: 1517345.901 | BI6: 1385327.525 | BJ6: 1661977.373 | BK6: 129381.4502 | BL6: 118174.4671 | BM6: 141659.1536 | BN6: 572669.5198 | BO6: 523065.0547 | BP6: 627013.2185 | BQ6: 103766.631 | BR6: 94793.47844 | BS6: 113597.0828 | BT6: 459292.9411 | BU6: 419575.8798 | BV6: 502804.5888
A7: 5 | B7: 0.02 | C7: 16.46959733 | D7: 15.03347599 | E7: 18.04292637 | F7: 96.95477255 | G7: 88.50047855 | H7: 106.2167937 | I7: 6.189661937 | J7: 5.650055003 | K7: 0.3130518774 | L7: 36.43788328 | M7: 33.2612745 | N7: 1.842903197 | O7: 4.956329657 | P7: 4.524279807 | Q7: 5.429657749 | R7: 29.17738697 | S7: 26.63395533 | T7: 31.96381924 | U7: 6165067.334 | V7: 5627483.774 | W7: 6754011.877 | X7: 36293097.47 | Y7: 33128400.07 | Z7: 39760151.52 | AA7: 2316977.267 | AB7: 2114986.107 | AC7: 2538266.757 | AD7: 13639799.41 | AE7: 12450698.87 | AF7: 14942507.16 | AG7: 1855303.773 | AH7: 1693574.475 | AI7: 2032484.763 | AJ7: 10921976.52 | AK7: 9969893.294 | AL7: 11965022.21 | AM7: 0.8294626596 | AN7: 0.7572943341 | AO7: 0.9085259805 | AP7: 4.882958696 | AQ7: 4.458111418 | AR7: 5.348396079 | AS7: 0.3130518774 | AT7: 0.285935416 | AU7: 0.3427590581 | AV7: 1.842903197 | AW7: 1.683271465 | AX7: 2.017786218 | AY7: 0.251074158 | AZ7: 0.2293626819 | BA7: 0.2748599586 | BB7: 1.478046936 | BC7: 1.350233779 | BD7: 1.618071422 | BE7: 310492.9067 | BF7: 283478.1244 | BG7: 340088.6938 | BH7: 1827838.808 | BI7: 1668805.65 | BJ7: 2002066.067 | BK7: 117184.7656 | BL7: 107034.2558 | BM7: 128305.0599 | BN7: 689854.2854 | BO7: 630099.3105 | BP7: 755318.2784 | BQ7: 93984.63476 | BR7: 85857.37399 | BS7: 102888.3778 | BT7: 553277.5758 | BU7: 505433.2538 | BV7: 605692.9666
... 8 more rows

Sheet Bedford NPV 3% (hidden)
C1: ACRES all conservation strategies | U1: Countywide demand= all conservation strategies | AM1: Acre value of acquisition and easements | BE1: countywide demand for acquisition and easements
A2: year | B2: rate % | C2: All surface waters PV | D2: (Low 95% CI) PV | E2: (High 95% CI) PV | F2: All surface waters NPV | G2: (Low 95% CI) NPV | H2: (High 95% CI) NPV | I2: Protect Rivers only PV | J2: (Low 95% CI) PV | K2: (High 95% CI) PV | L2: Protect Rivers only NPV | M2: (Low 95% CI) NPV | N2: (High 95% CI) NPV | O2: Protect single site PV | P2: (Low 95% CI) PV | Q2: (High 95% CI) PV | R2: Protect single site NPV | S2: (Low 95% CI) NPV | T2: (High 95% CI) NPV | U2: All surface waters PV | V2: (Low 95% CI) PV | W2: (High 95% CI) PV | X2: All surface waters NPV | Y2: (Low 95% CI) NPV | Z2: (High 95% CI) NPV | AA2: Protect Rivers only PV | AB2: (Low 95% CI) PV | AC2: (High 95% CI) PV | AD2: Protect Rivers only NPV | AE2: (Low 95% CI) NPV | AF2: (High 95% CI) NPV | AG2: Protect single site PV | AH2: (Low 95% CI) PV | AI2: (High 95% CI) PV | AJ2: Protect single site NPV | AK2: (Low 95% CI) NPV | AL2: (High 95% CI) NPV | AM2: All surface waters PV | AN2: (Low 95% CI) PV | AO2: (High 95% CI) PV | AP2: All surface waters NPV | AQ2: (Low 95% CI) NPV | AR2: (High 95% CI) NPV | AS2: Protect Rivers only PV | AT2: (Low 95% CI) PV | AU2: (High 95% CI) PV | AV2: Protect Rivers only NPV | AW2: (Low 95% CI) NPV | AX2: (High 95% CI) NPV | AY2: Protect single site PV | AZ2: (Low 95% CI) PV | BA2: (High 95% CI) PV | BB2: Protect single site NPV | BC2: (Low 95% CI) NPV | BD2: (High 95% CI) NPV | BE2: All surface waters PV | BF2: (Low 95% CI) PV | BG2: (High 95% CI) PV | BH2: All surface waters NPV | BI2: (Low 95% CI) NPV | BJ2: (High 95% CI) NPV | BK2: Protect Rivers only PV | BL2: (Low 95% CI) PV | BM2: (High 95% CI) PV | BN2: Protect Rivers only NPV | BO2: (Low 95% CI) NPV | BP2: (High 95% CI) NPV | BQ2: Protect single site PV | BR2: (Low 95% CI) PV | BS2: (High 95% CI) PV | BT2: Protect single site NPV | BU2: (Low 95% CI) NPV | BV2: (High 95% CI) NPV
A3: 1 | B3: 0.03 | C3: ='WTP Values '!CU6 -> 21.73128392 | D3: ='WTP Values '!CV6 -> 19.8363523 | E3: ='WTP Values '!CW6 -> 23.80725817 | F3: =C3 -> 21.73128392 | G3: =D3 -> 19.8363523 | H3: =E3 -> 23.80725817 | I3: ='WTP Values '!CC6 -> 8.167127477 | J3: ='WTP Values '!CD6 -> 7.455127587 | K3: ='WTP Values '!CF6 -> 0.413065304 | L3: =I3 -> 8.167127477 | M3: =J3 -> 7.455127587 | N3: =K3 -> 0.413065304 | O3: ='WTP Values '!CI6 -> 6.539771725 | P3: ='WTP Values '!CJ6 -> 5.969691123 | Q3: ='WTP Values '!CK6 -> 7.164318091 | R3: =O3 -> 6.539771725 | S3: =P3 -> 5.969691123 | T3: =Q3 -> 7.164318091 | U3: ='WTP Values '!BH6 -> 8134675.421 | V3: ='WTP Values '!BI6 -> 7425345.33 | W3: ='WTP Values '!BJ6 -> 8911775.237 | X3: =U3 -> 8134675.421 | Y3: =V3 -> 7425345.33 | Z3: =W3 -> 8911775.237 | AA3: ='WTP Values '!AV6 -> 3057202.299 | AB3: ='WTP Values '!AW6 -> 2790679.252 | AC3: ='WTP Values '!AX6 -> 3349189.081 | AD3: =AA3 -> 3057202.299 | AE3: =AB3 -> 2790679.252 | AF3: =AC3 -> 3349189.081 | AG3: ='WTP Values '!BB6 -> 2448033.927 | AH3: ='WTP Values '!BC6 -> 2234635.553 | AI3: ='WTP Values '!BD6 -> 2681820.481 | AJ3: =AG3 -> 2448033.927 | AK3: =AH3 -> 2234635.553 | AL3: =AI3 -> 2681820.481 | AM3: ='WTP Values '!CX6 -> 1.094458364 | AN3: ='WTP Values '!CY6 -> 0.9992337912 | AO3: ='WTP Values '!CZ6 -> 1.198780737 | AP3: =AM3 -> 1.094458364 | AQ3: =AN3 -> 0.9992337912 | AR3: =AO3 -> 1.198780737 | AS3: ='WTP Values '!CF6 -> 0.413065304 | AT3: ='WTP Values '!CG6 -> 0.377285709 | AU3: ='WTP Values '!CH6 -> 0.452263298 | AV3: =AS3 -> 0.413065304 | AW3: =AT3 -> 0.377285709 | AX3: =AU3 -> 0.452263298 | AY3: ='WTP Values '!CL6 -> 0.3312870194 | AZ3: ='WTP Values '!CM6 -> 0.3026391877 | BA3: ='WTP Values '!CN6 -> 0.3626718782 | BB3: =AY3 -> 0.3312870194 | BC3: =AZ3 -> 0.3026391877 | BD3: =BA3 -> 0.3626718782 | BE3: ='WTP Values '!BK6 -> 409688.7965 | BF3: ='WTP Values '!BL6 -> 374043.365 | BG3: ='WTP Values '!BM6 -> 448739.8091 | BH3: =BE3 -> 409688.7965 | BI3: =BF3 -> 374043.365 | BJ3: =BG3 -> 448739.8091 | BK3: ='WTP Values '!AY6 -> 154622.8096 | BL3: ='WTP Values '!AZ6 -> 141229.4274 | BM3: ='WTP Values '!BA6 -> 169295.8018 | BN3: =BK3 -> 154622.8096 | BO3: =BL3 -> 141229.4274 | BP3: =BM3 -> 169295.8018 | BQ3: ='WTP Values '!BE6 -> 124010.7296 | BR3: ='WTP Values '!BF6 -> 113286.9816 | BS3: ='WTP Values '!BG6 -> 135759.0295 | BT3: =BQ3 -> 124010.7296 | BU3: =BR3 -> 113286.9816 | BV3: =BS3 -> 135759.0295
A4: 2 | B4: 0.03 | C4: =C3/(1+B4)^A4 -> 20.48381932 | D4: =D3/(1+B4)^A4 -> 18.69766453 | E4: =E3/(1+B4)^A4 -> 22.44062416 | F4: =F3+C4 -> 42.21510323 | G4: =G3+D4 -> 38.53401684 | H4: =H3+E4 -> 46.24788233 | I4: =I3/(1+B4)^A4 -> 7.698300949 | J4: =J3/(1+B4)^A4 -> 7.027172765 | K4: =K3/(1+B4)^A4 -> 0.3893536657 | L4: =L3+I4 -> 15.86542843 | M4: =M3+J4 -> 14.48230035 | N4: =N3+K4 -> 0.8024189697 | O4: =O3/(1+B4)^A4 -> 6.164362074 | P4: =P3/(1+B4)^A4 -> 5.627006432 | Q4: =Q3/(1+B4)^A4 -> 6.753056924 | R4: =R3+O4 -> 12.7041338 | S4: =S3+P4 -> 11.59669755 | T4: =T3+Q4 -> 13.91737502 | U4: =U3/(1+B4)^A4 -> 7667711.774 | V4: =V3/(1+B4)^A4 -> 6999100.132 | W4: =W3/(1+B4)^A4 -> 8400202.882 | X4: =X3+U4 -> 15802387.19 | Y4: =Y3+V4 -> 14424445.46 | Z4: =Z3+W4 -> 17311978.12 | AA4: =AA3/(1+B4)^A4 -> 2881706.38 | AB4: =AB3/(1+B4)^A4 -> 2630482.846 | AC4: =AC3/(1+B4)^A4 -> 3156931.927 | AD4: =AD3+AA4 -> 5938908.679 | AE4: =AE3+AB4 -> 5421162.098 | AF4: =AF3+AC4 -> 6506121.008 | AG4: =AG3/(1+B4)^A4 -> 2307506.765 | AH4: =AH3/(1+B4)^A4 -> 2106358.331 | AI4: =AI3/(1+B4)^A4 -> 2527873.014 | AJ4: =AJ3+AG4 -> 4755540.692 | AK4: =AK3+AH4 -> 4340993.884 | AL4: =AL3+AI4 -> 5209693.495 | AM4: =AM3/(1+B4)^A4 -> 1.031631977 | AN4: =AN3/(1+B4)^A4 -> 0.9418736839 | AO4: =AO3/(1+B4)^A4 -> 1.129965819 | AP4: =AP3+AM4 -> 2.126090341 | AQ4: =AQ3+AN4 -> 1.941107475 | AR4: =AR3+AO4 -> 2.328746555 | AS4: =AS3/(1+B4)^A4 -> 0.3893536657 | AT4: =AT3/(1+B4)^A4 -> 0.3556279659 | AU4: =AU3/(1+B4)^A4 -> 0.4263015345 | AV4: =AV3+AS4 -> 0.8024189697 | AW4: =AW3+AT4 -> 0.732913675 | AX4: =AX3+AU4 -> 0.8785648325 | AY4: =AY3/(1+B4)^A4 -> 0.3122697892 | AZ4: =AZ3/(1+B4)^A4 -> 0.2852664603 | BA4: =BA3/(1+B4)^A4 -> 0.3418530287 | BB4: =BB3+AY4 -> 0.6435568086 | BC4: =BC3+AZ4 -> 0.587905648 | BD4: =BD3+BA4 -> 0.7045249069 | BE4: =BE3/(1+B4)^A4 -> 386170.9836 | BF4: =BF3/(1+B4)^A4 -> 352571.7457 | BG4: =BG3/(1+B4)^A4 -> 422980.3083 | BH4: =BH3+BE4 -> 795859.7801 | BI4: =BI3+BF4 -> 726615.1107 | BJ4: =BJ3+BG4 -> 871720.1174 | BK4: =BK3/(1+B4)^A4 -> 145746.8278 | BL4: =BL3/(1+B4)^A4 -> 133122.2805 | BM4: =BM3/(1+B4)^A4 -> 159577.5302 | BN4: =BN3+BK4 -> 300369.6374 | BO4: =BO3+BL4 -> 274351.7079 | BP4: =BP3+BM4 -> 328873.3319 | BQ4: =BQ3/(1+B4)^A4 -> 116892.0064 | BR4: =BR3/(1+B4)^A4 -> 106783.8454 | BS4: =BS3/(1+B4)^A4 -> 127965.9058 | BT4: =BT3+BQ4 -> 240902.7361 | BU4: =BU3+BR4 -> 220070.8271 | BV4: =BV3+BS4 -> 263724.9353
A5: 3 | B5: 0.03 | C5: =C4/(1+B5)^A5 -> 18.7455964 | D5: =D4/(1+B5)^A5 -> 17.11101175 | E5: =E4/(1+B5)^A5 -> 20.53635003 | F5: =F4+C5 -> 60.96069963 | G5: 55.64502859 | H5: 66.78423236 | I5: =I4/(1+B5)^A5 -> 7.045035904 | J5: =J4/(1+B5)^A5 -> 6.430858545 | K5: =K4/(1+B5)^A5 -> 0.3563137597 | L5: =L4+I5 -> 22.91046433 | M5: 20.9131589 | N5: 1.158732729 | O5: =O4/(1+B5)^A5 -> 5.641264538 | P5: =P4/(1+B5)^A5 -> 5.149508003 | Q5: =Q4/(1+B5)^A5 -> 6.180003719 | R5: =R4+O5 -> 18.34539834 | S5: 16.74620556 | T5: 20.09737873 | U5: =U4/(1+B5)^A5 -> 7017042.476 | V5: =V4/(1+B5)^A5 -> 6405168.108 | W5: =W4/(1+B5)^A5 -> 7687375.604 | X5: =X4+U5 -> 22819429.67 | Y5: 20829613.57 | Z5: 24999353.72 | AA5: =AA4/(1+B5)^A5 -> 2637169.559 | AB5: =AB4/(1+B5)^A5 -> 2407264.437 | AC5: =AC4/(1+B5)^A5 -> 2889039.922 | AD5: =AD4+AA5 -> 8576078.238 | AE5: 7828426.535 | AF5: 9395160.93 | AG5: =AG4/(1+B5)^A5 -> 2111695.57 | AH5: =AH4/(1+B5)^A5 -> 1927616.258 | AI5: =AI4/(1+B5)^A5 -> 2313361.905 | AJ5: =AJ4+AG5 -> 6867236.262 | AK5: 6268610.142 | AL5: 7523055.4 | AM5: =AM4/(1+B5)^A5 -> 0.9440893991 | AN5: =AN4/(1+B5)^A5 -> 0.861947846 | AO5: =AO4/(1+B5)^A5 -> 1.034078794 | AP5: =AP4+AM5 -> 3.07017974 | AQ5: 2.803055321 | AR5: 3.36282535 | AS5: =AS4/(1+B5)^A5 -> 0.3563137597 | AT5: =AT4/(1+B5)^A5 -> 0.3254499668 | AU5: =AU4/(1+B5)^A5 -> 0.3901262937 | AV5: =AV4+AS5 -> 1.158732729 | AW5: 1.058363642 | AX5: 1.268691126 | AY5: =AY4/(1+B5)^A5 -> 0.2857710931 | AZ5: =AZ4/(1+B5)^A5 -> 0.2610592218 | BA5: =BA4/(1+B5)^A5 -> 0.312843948 | BB5: =BB4+AY5 -> 0.9293279017 | BC5: 0.8489648699 | BD5: 1.017368855 | BE5: =BE4/(1+B5)^A5 -> 353401.1547 | BF5: =BF4/(1+B5)^A5 -> 322653.0924 | BG5: =BG4/(1+B5)^A5 -> 387086.9012 | BH5: =BH4+BE5 -> 1149260.935 | BI5: 1049268.203 | BJ5: 1258807.019 | BK5: =BK4/(1+B5)^A5 -> 133378.9938 | BL5: =BL4/(1+B5)^A5 -> 121825.7447 | BM5: =BM4/(1+B5)^A5 -> 146036.0458 | BN5: =BN4+BK5 -> 433748.6312 | BO5: 396177.4526 | BP5: 474909.3777 | BQ5: =BQ4/(1+B5)^A5 -> 106972.7447 | BR5: =BR4/(1+B5)^A5 -> 97722.34552 | BS5: =BS4/(1+B5)^A5 -> 117106.9314 | BT5: =BT4+BQ5 -> 347875.4808 | BU5: 317793.1726 | BV5: 380831.8666
A6: 4 | B6: 0.03 | C6: 16.65521961 | D6: 15.20291232 | E6: 18.24628101 | F6: 77.61591924 | G6: 70.8479409 | H6: 85.03051337 | I6: 6.259423153 | J6: 5.713734524 | K6: 0.3165801605 | L6: 29.16988748 | M6: 26.62689342 | N6: 1.47531289 | O6: 5.012190475 | P6: 4.575271164 | Q6: 5.490853261 | R6: 23.35758881 | S6: 21.32147672 | T6: 25.588232 | U6: 6234551.355 | V6: 5690908.904 | W6: 6830133.657 | X6: 29053981.02 | Y6: 26520522.47 | Z6: 31829487.38 | AA6: 2343090.996 | AB6: 2138823.273 | AC6: 2566874.552 | AD6: 10919169.23 | AE6: 9967249.809 | AF6: 11962035.48 | AG6: 1876214.163 | AH6: 1712662.079 | AI6: 2055392.09 | AJ6: 8743450.425 | AK6: 7981272.22 | AL6: 9578447.49 | AM6: 0.8388112031 | AN6: 0.7658294971 | AO6: 0.9187656152 | AP6: 3.908990943 | AQ6: 3.568884818 | AR6: 4.281590965 | AS6: 0.3165801605 | AT6: 0.2891580803 | AU6: 0.346622159 | AV6: 1.47531289 | AW6: 1.347521722 | AX6: 1.615313285 | AY6: 0.2539039149 | AZ6: 0.2319477373 | BA6: 0.2779577958 | BB6: 1.183231817 | BC6: 1.080912607 | BD6: 1.295326651 | BE6: 313992.3487 | BF6: 286673.0935 | BG6: 343921.6982 | BH6: 1463253.284 | BI6: 1335941.297 | BJ6: 1602728.717 | BK6: 118505.5085 | BL6: 108240.5963 | BM6: 129751.1352 | BN6: 552254.1397 | BO6: 504418.0489 | BP6: 604660.5129 | BQ6: 95043.89817 | BR6: 86825.03828 | BS6: 104047.9917 | BT6: 442919.379 | BU6: 404618.2109 | BV6: 484879.8584
A7: 5 | B7: 0.03 | C7: 14.36693874 | D7: 13.11416571 | E7: 15.73940228 | F7: 91.98285798 | G7: 83.96210661 | H7: 100.7699157 | I7: 5.399433397 | J7: 4.928717592 | K7: 0.2730848274 | L7: 34.56932088 | M7: 31.55561101 | N7: 1.748397717 | O7: 4.323559533 | P7: 3.946669097 | Q7: 4.736458257 | R7: 27.68114835 | S7: 25.26814582 | T7: 30.32469025 | U7: 5377978.765 | V7: 4909028.012 | W7: 5891733.291 | X7: 34431959.79 | Y7: 31429550.49 | Z7: 37721220.67 | AA7: 2021170.876 | AB7: 1844967.744 | AC7: 2214208.537 | AD7: 12940340.11 | AE7: 11812217.55 | AF7: 14176244.02 | AG7: 1618438.818 | AH7: 1477357.354 | AI7: 1772999.272 | AJ7: 10361889.24 | AK7: 9458629.574 | AL7: 11351446.76 | AM7: 0.7235659123 | AN7: 0.6606112516 | AO7: 0.7925352904 | AP7: 4.632556855 | AQ7: 4.22949607 | AR7: 5.074126255 | AS7: 0.2730848274 | AT7: 0.2494303001 | AU7: 0.2989993192 | AV7: 1.748397717 | AW7: 1.596952022 | AX7: 1.914312604 | AY7: 0.2190197474 | AZ7: 0.2000801558 | BA7: 0.2397688363 | BB7: 1.402251564 | BC7: 1.280992763 | BD7: 1.535095487 | BE7: 270852.5582 | BF7: 247286.7287 | BG7: 296669.878 | BH7: 1734105.842 | BI7: 1583228.025 | BJ7: 1899398.595 | BK7: 102223.8926 | BL7: 93369.28916 | BM7: 111924.469 | BN7: 654478.0323 | BO7: 597787.338 | BP7: 716584.9819 | BQ7: 81985.70147 | BR7: 74896.04073 | BS7: 89752.71168 | BT7: 524905.0804 | BU7: 479514.2516 | BV7: 574632.5701
... 8 more rows

Sheet Bedford NPV 4% (hidden)
C1: ACRES all conservation strategies | U1: Countywide demand= all conservation strategies | AM1: Acre value of acquisition and easements | BE1: countywide demand for acquisition and easements
A2: year | B2: rate % | C2: All surface waters PV | D2: (Low 95% CI) PV | E2: (High 95% CI) PV | F2: All surface waters NPV | G2: (Low 95% CI) NPV | H2: (High 95% CI) NPV | I2: Protect Rivers only PV | J2: (Low 95% CI) PV | K2: (High 95% CI) PV | L2: Protect Rivers only NPV | M2: (Low 95% CI) NPV | N2: (High 95% CI) NPV | O2: Protect single site PV | P2: (Low 95% CI) PV | Q2: (High 95% CI) PV | R2: Protect single site NPV | S2: (Low 95% CI) NPV | T2: (High 95% CI) NPV | U2: All surface waters PV | V2: (Low 95% CI) PV | W2: (High 95% CI) PV | X2: All surface waters NPV | Y2: (Low 95% CI) NPV | Z2: (High 95% CI) NPV | AA2: Protect Rivers only PV | AB2: (Low 95% CI) PV | AC2: (High 95% CI) PV | AD2: Protect Rivers only NPV | AE2: (Low 95% CI) NPV | AF2: (High 95% CI) NPV | AG2: Protect single site PV | AH2: (Low 95% CI) PV | AI2: (High 95% CI) PV | AJ2: Protect single site NPV | AK2: (Low 95% CI) NPV | AL2: (High 95% CI) NPV | AM2: All surface waters PV | AN2: (Low 95% CI) PV | AO2: (High 95% CI) PV | AP2: All surface waters NPV | AQ2: (Low 95% CI) NPV | AR2: (High 95% CI) NPV | AS2: Protect Rivers only PV | AT2: (Low 95% CI) PV | AU2: (High 95% CI) PV | AV2: Protect Rivers only NPV | AW2: (Low 95% CI) NPV | AX2: (High 95% CI) NPV | AY2: Protect single site PV | AZ2: (Low 95% CI) PV | BA2: (High 95% CI) PV | BB2: Protect single site NPV | BC2: (Low 95% CI) NPV | BD2: (High 95% CI) NPV | BE2: All surface waters PV | BF2: (Low 95% CI) PV | BG2: (High 95% CI) PV | BH2: All surface waters NPV | BI2: (Low 95% CI) NPV | BJ2: (High 95% CI) NPV | BK2: Protect Rivers only PV | BL2: (Low 95% CI) PV | BM2: (High 95% CI) PV | BN2: Protect Rivers only NPV | BO2: (Low 95% CI) NPV | BP2: (High 95% CI) NPV | BQ2: Protect single site PV | BR2: (Low 95% CI) PV | BS2: (High 95% CI) PV | BT2: Protect single site NPV | BU2: (Low 95% CI) NPV | BV2: (High 95% CI) NPV
A3: 1 | B3: 0.04 | C3: ='WTP Values '!CU6 -> 21.73128392 | D3: ='WTP Values '!CV6 -> 19.8363523 | E3: ='WTP Values '!CW6 -> 23.80725817 | F3: =C3 -> 21.73128392 | G3: =D3 -> 19.8363523 | H3: =E3 -> 23.80725817 | I3: ='WTP Values '!CC6 -> 8.167127477 | J3: ='WTP Values '!CD6 -> 7.455127587 | K3: ='WTP Values '!CF6 -> 0.413065304 | L3: =I3 -> 8.167127477 | M3: =J3 -> 7.455127587 | N3: =K3 -> 0.413065304 | O3: ='WTP Values '!CI6 -> 6.539771725 | P3: ='WTP Values '!CJ6 -> 5.969691123 | Q3: ='WTP Values '!CK6 -> 7.164318091 | R3: =O3 -> 6.539771725 | S3: =P3 -> 5.969691123 | T3: =Q3 -> 7.164318091 | U3: ='WTP Values '!BH6 -> 8134675.421 | V3: ='WTP Values '!BI6 -> 7425345.33 | W3: ='WTP Values '!BJ6 -> 8911775.237 | X3: =U3 -> 8134675.421 | Y3: =V3 -> 7425345.33 | Z3: =W3 -> 8911775.237 | AA3: ='WTP Values '!AV6 -> 3057202.299 | AB3: ='WTP Values '!AW6 -> 2790679.252 | AC3: ='WTP Values '!AX6 -> 3349189.081 | AD3: =AA3 -> 3057202.299 | AE3: =AB3 -> 2790679.252 | AF3: =AC3 -> 3349189.081 | AG3: ='WTP Values '!BB6 -> 2448033.927 | AH3: ='WTP Values '!BC6 -> 2234635.553 | AI3: ='WTP Values '!BD6 -> 2681820.481 | AJ3: =AG3 -> 2448033.927 | AK3: =AH3 -> 2234635.553 | AL3: =AI3 -> 2681820.481 | AM3: ='WTP Values '!CX6 -> 1.094458364 | AN3: ='WTP Values '!CY6 -> 0.9992337912 | AO3: ='WTP Values '!CZ6 -> 1.198780737 | AP3: =AM3 -> 1.094458364 | AQ3: =AN3 -> 0.9992337912 | AR3: =AO3 -> 1.198780737 | AS3: ='WTP Values '!CF6 -> 0.413065304 | AT3: ='WTP Values '!CG6 -> 0.377285709 | AU3: ='WTP Values '!CH6 -> 0.452263298 | AV3: =AS3 -> 0.413065304 | AW3: =AT3 -> 0.377285709 | AX3: =AU3 -> 0.452263298 | AY3: ='WTP Values '!CL6 -> 0.3312870194 | AZ3: ='WTP Values '!CM6 -> 0.3026391877 | BA3: ='WTP Values '!CN6 -> 0.3626718782 | BB3: =AY3 -> 0.3312870194 | BC3: =AZ3 -> 0.3026391877 | BD3: =BA3 -> 0.3626718782 | BE3: ='WTP Values '!BK6 -> 409688.7965 | BF3: ='WTP Values '!BL6 -> 374043.365 | BG3: ='WTP Values '!BM6 -> 448739.8091 | BH3: =BE3 -> 409688.7965 | BI3: =BF3 -> 374043.365 | BJ3: =BG3 -> 448739.8091 | BK3: ='WTP Values '!AY6 -> 154622.8096 | BL3: ='WTP Values '!AZ6 -> 141229.4274 | BM3: ='WTP Values '!BA6 -> 169295.8018 | BN3: =BK3 -> 154622.8096 | BO3: =BL3 -> 141229.4274 | BP3: =BM3 -> 169295.8018 | BQ3: ='WTP Values '!BE6 -> 124010.7296 | BR3: ='WTP Values '!BF6 -> 113286.9816 | BS3: ='WTP Values '!BG6 -> 135759.0295 | BT3: =BQ3 -> 124010.7296 | BU3: =BR3 -> 113286.9816 | BV3: =BS3 -> 135759.0295
A4: 2 | B4: 0.04 | C4: =C3/(1+B4)^A4 -> 20.09179356 | D4: =D3/(1+B4)^A4 -> 18.33982277 | E4: =E3/(1+B4)^A4 -> 22.01114846 | F4: =F3+C4 -> 41.82307748 | G4: =G3+D4 -> 38.17617507 | H4: =H3+E4 -> 45.81840663 | I4: =I3/(1+B4)^A4 -> 7.550968451 | J4: =J3/(1+B4)^A4 -> 6.892684529 | K4: =K3/(1+B4)^A4 -> 0.3819020932 | L4: =L3+I4 -> 15.71809593 | M4: =M3+J4 -> 14.34781212 | N4: =N3+K4 -> 0.7949673971 | O4: =O3/(1+B4)^A4 -> 6.04638658 | P4: =P3/(1+B4)^A4 -> 5.519315018 | Q4: =Q3/(1+B4)^A4 -> 6.623814803 | R4: =R3+O4 -> 12.5861583 | S4: =S3+P4 -> 11.48900614 | T4: =T3+Q4 -> 13.78813289 | U4: =U3/(1+B4)^A4 -> 7520964.701 | V4: =V3/(1+B4)^A4 -> 6865149.158 | W4: =W3/(1+B4)^A4 -> 8239437.165 | X4: =X3+U4 -> 15655640.12 | Y4: =Y3+V4 -> 14290494.49 | Z4: =Z3+W4 -> 17151212.4 | AA4: =AA3/(1+B4)^A4 -> 2826555.38 | AB4: =AB3/(1+B4)^A4 -> 2580139.841 | AC4: =AC3/(1+B4)^A4 -> 3096513.574 | AD4: =AD3+AA4 -> 5883757.679 | AE4: =AE3+AB4 -> 5370819.093 | AF4: =AF3+AC4 -> 6445702.655 | AG4: =AG3/(1+B4)^A4 -> 2263344.977 | AH4: =AH3/(1+B4)^A4 -> 2066046.184 | AI4: =AI3/(1+B4)^A4 -> 2479493.788 | AJ4: =AJ3+AG4 -> 4711378.904 | AK4: =AK3+AH4 -> 4300681.737 | AL4: =AL3+AI4 -> 5161314.269 | AM4: =AM3/(1+B4)^A4 -> 1.01188828 | AN4: =AN3/(1+B4)^A4 -> 0.9238478099 | AO4: =AO3/(1+B4)^A4 -> 1.108340178 | AP4: =AP3+AM4 -> 2.106346645 | AQ4: =AQ3+AN4 -> 1.923081601 | AR4: =AR3+AO4 -> 2.307120915 | AS4: =AS3/(1+B4)^A4 -> 0.3819020932 | AT4: =AT3/(1+B4)^A4 -> 0.3488218464 | AU4: =AU3/(1+B4)^A4 -> 0.4181428421 | AV4: =AV3+AS4 -> 0.7949673971 | AW4: =AW3+AT4 -> 0.7261075554 | AX4: =AX3+AU4 -> 0.8704061401 | AY4: =AY3/(1+B4)^A4 -> 0.3062934721 | AZ4: =AZ3/(1+B4)^A4 -> 0.2798069413 | BA4: =BA3/(1+B4)^A4 -> 0.3353105383 | BB4: =BB3+AY4 -> 0.6375804915 | BC4: =BC3+AZ4 -> 0.5824461291 | BD4: =BD3+BA4 -> 0.6979824165 | BE4: =BE3/(1+B4)^A4 -> 378780.3222 | BF4: =BF3/(1+B4)^A4 -> 345824.117 | BG4: =BG3/(1+B4)^A4 -> 414885.1785 | BH4: =BH3+BE4 -> 788469.1187 | BI4: =BI3+BF4 -> 719867.482 | BJ4: =BJ3+BG4 -> 863624.9876 | BK4: =BK3/(1+B4)^A4 -> 142957.4793 | BL4: =BL3/(1+B4)^A4 -> 130574.5446 | BM4: =BM3/(1+B4)^A4 -> 156523.4854 | BN4: =BN3+BK4 -> 297580.2889 | BO4: =BO3+BL4 -> 271803.972 | BP4: =BP3+BM4 -> 325819.2871 | BQ4: =BQ3/(1+B4)^A4 -> 114654.8906 | BR4: =BR3/(1+B4)^A4 -> 104740.1827 | BS4: =BS3/(1+B4)^A4 -> 125516.8542 | BT4: =BT3+BQ4 -> 238665.6202 | BU4: =BU3+BR4 -> 218027.1644 | BV4: =BV3+BS4 -> 261275.8836
A5: 3 | B5: 0.04 | C5: =C4/(1+B5)^A5 -> 17.86153131 | D5: =D4/(1+B5)^A5 -> 16.30403566 | E5: =E4/(1+B5)^A5 -> 19.56783083 | F5: =F4+C5 -> 59.68460879 | G5: =G4+D5 -> 54.48021073 | H5: =H4+E5 -> 65.38623745 | I5: =I4/(1+B5)^A5 -> 6.712783457 | J5: =J4/(1+B5)^A5 -> 6.127571448 | K5: =K4/(1+B5)^A5 -> 0.3395095702 | L5: =L4+I5 -> 22.43087938 | M5: =M4+J5 -> 20.47538356 | N5: =N4+K5 -> 1.134476967 | O5: =O4/(1+B5)^A5 -> 5.375215653 | P5: =P4/(1+B5)^A5 -> 4.906650953 | Q5: =Q4/(1+B5)^A5 -> 5.88854724 | R5: =R4+O5 -> 17.96137396 | S5: =S4+P5 -> 16.39565709 | T5: =T4+Q5 -> 19.67668013 | U5: =U4/(1+B5)^A5 -> 6686110.233 | V5: =V4/(1+B5)^A5 -> 6103092.604 | W5: =W4/(1+B5)^A5 -> 7324829.637 | X5: =X4+U5 -> 22341750.35 | Y5: =Y4+V5 -> 20393587.09 | Z5: =Z4+W5 -> 24476042.04 | AA5: =AA4/(1+B5)^A5 -> 2512797.44 | AB5: =AB4/(1+B5)^A5 -> 2293734.923 | AC5: =AC4/(1+B5)^A5 -> 2752789.292 | AD5: =AD4+AA5 -> 8396555.119 | AE5: =AE4+AB5 -> 7664554.016 | AF5: =AF4+AC5 -> 9198491.946 | AG5: =AG4/(1+B5)^A5 -> 2012105.443 | AH5: =AH4/(1+B5)^A5 -> 1836707.535 | AI5: =AI4/(1+B5)^A5 -> 2204260.949 | AJ5: =AJ4+AG5 -> 6723484.347 | AK5: =AK4+AH5 -> 6137389.272 | AL5: =AL4+AI5 -> 7365575.217 | AM5: =AM4/(1+B5)^A5 -> 0.8995649967 | AN5: =AN4/(1+B5)^A5 -> 0.821297339 | AO5: =AO4/(1+B5)^A5 -> 0.9853103827 | AP5: =AP4+AM5 -> 3.005911641 | AQ5: =AQ4+AN5 -> 2.74437894 | AR5: =AR4+AO5 -> 3.292431298 | AS5: =AS4/(1+B5)^A5 -> 0.3395095702 | AT5: =AT4/(1+B5)^A5 -> 0.3101013513 | AU5: =AU4/(1+B5)^A5 -> 0.371727464 | AV5: =AV4+AS5 -> 1.134476967 | AW5: =AW4+AT5 -> 1.036208907 | AX5: =AX4+AU5 -> 1.242133604 | AY5: =AY4/(1+B5)^A5 -> 0.2722937814 | AZ5: =AZ4/(1+B5)^A5 -> 0.248747352 | BA5: =BA4/(1+B5)^A5 -> 0.2980898475 | BB5: =BB4+AY5 -> 0.9098742729 | BC5: =BC4+AZ5 -> 0.831193481 | BD5: =BD4+BA5 -> 0.996072264 | BE5: =BE4/(1+B5)^A5 -> 336734.3272 | BF5: =BF4/(1+B5)^A5 -> 307436.3808 | BG5: =BG4/(1+B5)^A5 -> 368831.413 | BH5: =BH4+BE5 -> 1125203.446 | BI5: =BI4+BF5 -> 1027303.863 | BJ5: =BJ4+BG5 -> 1232456.401 | BK5: =BK4/(1+B5)^A5 -> 127088.6785 | BL5: =BL4/(1+B5)^A5 -> 116080.2946 | BM5: =BM4/(1+B5)^A5 -> 139148.8085 | BN5: =BN4+BK5 -> 424668.9674 | BO5: =BO4+BL5 -> 387884.2666 | BP5: =BP4+BM5 -> 464968.0957 | BQ5: =BQ4/(1+B5)^A5 -> 101927.7802 | BR5: =BR4/(1+B5)^A5 -> 93113.64105 | BS5: =BS4/(1+B5)^A5 -> 111584.0263 | BT5: =BT4+BQ5 -> 340593.4004 | BU5: =BU4+BR5 -> 311140.8054 | BV5: =BV4+BS5 -> 372859.9099
A6: 4 | B6: 0.04 | C6: 15.26811183 | D6: 13.93675801 | E6: 16.7266638 | F6: 74.95272062 | G6: 68.41696874 | H6: 82.11290125 | I6: 5.738115433 | J6: 5.237873754 | K6: 0.2902142035 | L6: 28.16899482 | M6: 25.71325732 | N6: 1.424691171 | O6: 4.594756867 | P6: 4.194225799 | Q6: 5.03355486 | R6: 22.55613082 | S6: 20.58988289 | T6: 24.71023499 | U6: 5715315.049 | V6: 5216949.136 | W6: 6261295.072 | X6: 28057065.4 | Y6: 25610536.23 | Z6: 30737337.11 | AA6: 2147949.783 | AB6: 1960694.226 | AC6: 2353095.823 | AD6: 10544504.9 | AE6: 9625248.242 | AF6: 11551587.77 | AG6: 1719956.165 | AH6: 1570025.298 | AI6: 1884211.497 | AJ6: 8443440.513 | AK6: 7707414.571 | AL6: 9249786.715 | AM6: 0.7689519293 | AN6: 0.7020484075 | AO6: 0.8422474446 | AP6: 3.774863571 | AQ6: 3.446427348 | AR6: 4.134678743 | AS6: 0.2902142035 | AT6: 0.2650759347 | AU6: 0.3177541942 | AV6: 1.424691171 | AW6: 1.301284841 | AX6: 1.559887798 | AY6: 0.2327578655 | AZ6: 0.212630279 | BA6: 0.254808451 | BB6: 1.142632138 | BC6: 1.04382376 | BD6: 1.250880715 | BE6: 287841.9141 | BF6: 262797.9068 | BG6: 315278.6376 | BH6: 1413045.36 | BI6: 1290101.77 | BJ6: 1547735.038 | BK6: 108635.935 | BL6: 99225.92236 | BM6: 118944.9847 | BN6: 533304.9025 | BO6: 487110.189 | BP6: 583913.0804 | BQ6: 87128.2937 | BR6: 79593.93061 | BS6: 95382.49334 | BT6: 427721.6941 | BU6: 390734.736 | BV6: 468242.4033
A7: 5 | B7: 0.04 | C7: 12.54927498 | D7: 11.45499919 | E7: 13.74809838 | F7: 87.50199559 | G7: 79.87196793 | H7: 95.86099964 | I7: 4.716312616 | J7: 4.305150421 | K7: 0.2385349206 | L7: 32.88530743 | M7: 30.01840774 | N7: 1.663226091 | O7: 3.776555218 | P7: 3.447347876 | Q7: 4.137215183 | R7: 26.33268604 | S7: 24.03723077 | T7: 28.84745018 | U7: 4697572.362 | V7: 4287951.909 | W7: 5146328.143 | X7: 32754637.77 | Y7: 29898488.14 | Z7: 35883665.25 | AA7: 1765458.151 | AB7: 1611547.732 | AC7: 1934073.242 | AD7: 12309963.05 | AE7: 11236795.97 | AF7: 13485661.01 | AG7: 1413678.595 | AH7: 1290446.351 | AI7: 1548684.504 | AJ7: 9857119.107 | AK7: 8997860.922 | AL7: 10798471.22 | AM7: 0.6320224345 | AN7: 0.5770326164 | AO7: 0.6922660053 | AP7: 4.406886005 | AQ7: 4.023459964 | AR7: 4.826944748 | AS7: 0.2385349206 | AT7: 0.2178730961 | AU7: 0.2611707855 | AV7: 1.663226091 | AW7: 1.519157937 | AX7: 1.821058584 | AY7: 0.191309999 | AZ7: 0.17476659 | BA7: 0.2094339729 | BB7: 1.333942137 | BC7: 1.21859035 | BD7: 1.460314688 | BE7: 236585.0717 | BF7: 216000.7232 | BG7: 259136.0584 | BH7: 1649630.432 | BI7: 1506102.493 | BJ7: 1806871.097 | BK7: 89290.81978 | BL7: 81556.47528 | BM7: 97764.10714 | BN7: 622595.7223 | BO7: 568666.6642 | BP7: 681677.1875 | BQ7: 71613.10636 | BR7: 65420.4091 | BS7: 78397.45678 | BT7: 499334.8004 | BU7: 456155.1451 | BV7: 546639.86
... 8 more rows

Sheet Bedford NPV 5% (hidden)
C1: ACRES all conservation strategies | U1: Countywide demand= all conservation strategies | AM1: Acre value of acquisition and easements | BE1: countywide demand for acquisition and easements
A2: year | B2: rate % | C2: All surface waters PV | D2: (Low 95% CI) PV | E2: (High 95% CI) PV | F2: All surface waters NPV | G2: (Low 95% CI) NPV | H2: (High 95% CI) NPV | I2: Protect Rivers only PV | J2: (Low 95% CI) PV | K2: (High 95% CI) PV | L2: Protect Rivers only NPV | M2: (Low 95% CI) NPV | N2: (High 95% CI) NPV | O2: Protect single site PV | P2: (Low 95% CI) PV | Q2: (High 95% CI) PV | R2: Protect single site NPV | S2: (Low 95% CI) NPV | T2: (High 95% CI) NPV | U2: All surface waters PV | V2: (Low 95% CI) PV | W2: (High 95% CI) PV | X2: All surface waters NPV | Y2: (Low 95% CI) NPV | Z2: (High 95% CI) NPV | AA2: Protect Rivers only PV | AB2: (Low 95% CI) PV | AC2: (High 95% CI) PV | AD2: Protect Rivers only NPV | AE2: (Low 95% CI) NPV | AF2: (High 95% CI) NPV | AG2: Protect single site PV | AH2: (Low 95% CI) PV | AI2: (High 95% CI) PV | AJ2: Protect single site NPV | AK2: (Low 95% CI) NPV | AL2: (High 95% CI) NPV | AM2: All surface waters PV | AN2: (Low 95% CI) PV | AO2: (High 95% CI) PV | AP2: All surface waters NPV | AQ2: (Low 95% CI) NPV | AR2: (High 95% CI) NPV | AS2: Protect Rivers only PV | AT2: (Low 95% CI) PV | AU2: (High 95% CI) PV | AV2: Protect Rivers only NPV | AW2: (Low 95% CI) NPV | AX2: (High 95% CI) NPV | AY2: Protect single site PV | AZ2: (Low 95% CI) PV | BA2: (High 95% CI) PV | BB2: Protect single site NPV | BC2: (Low 95% CI) NPV | BD2: (High 95% CI) NPV | BE2: All surface waters PV | BF2: (Low 95% CI) PV | BG2: (High 95% CI) PV | BH2: All surface waters NPV | BI2: (Low 95% CI) NPV | BJ2: (High 95% CI) NPV | BK2: Protect Rivers only PV | BL2: (Low 95% CI) PV | BM2: (High 95% CI) PV | BN2: Protect Rivers only NPV | BO2: (Low 95% CI) NPV | BP2: (High 95% CI) NPV | BQ2: Protect single site PV | BR2: (Low 95% CI) PV | BS2: (High 95% CI) PV | BT2: Protect single site NPV | BU2: (Low 95% CI) NPV | BV2: (High 95% CI) NPV
A3: 1 | B3: 0.05 | C3: ='WTP Values '!CU6 -> 21.73128392 | D3: ='WTP Values '!CV6 -> 19.8363523 | E3: ='WTP Values '!CW6 -> 23.80725817 | F3: =C3 -> 21.73128392 | G3: =D3 -> 19.8363523 | H3: =E3 -> 23.80725817 | I3: ='WTP Values '!CC6 -> 8.167127477 | J3: ='WTP Values '!CD6 -> 7.455127587 | K3: ='WTP Values '!CF6 -> 0.413065304 | L3: =I3 -> 8.167127477 | M3: =J3 -> 7.455127587 | N3: =K3 -> 0.413065304 | O3: ='WTP Values '!CI6 -> 6.539771725 | P3: ='WTP Values '!CJ6 -> 5.969691123 | Q3: ='WTP Values '!CK6 -> 7.164318091 | R3: =O3 -> 6.539771725 | S3: =P3 -> 5.969691123 | T3: =Q3 -> 7.164318091 | U3: ='WTP Values '!BH6 -> 8134675.421 | V3: ='WTP Values '!BI6 -> 7425345.33 | W3: ='WTP Values '!BJ6 -> 8911775.237 | X3: =U3 -> 8134675.421 | Y3: =V3 -> 7425345.33 | Z3: =W3 -> 8911775.237 | AA3: ='WTP Values '!AV6 -> 3057202.299 | AB3: ='WTP Values '!AW6 -> 2790679.252 | AC3: ='WTP Values '!AX6 -> 3349189.081 | AD3: =AA3 -> 3057202.299 | AE3: =AB3 -> 2790679.252 | AF3: =AC3 -> 3349189.081 | AG3: ='WTP Values '!BB6 -> 2448033.927 | AH3: ='WTP Values '!BC6 -> 2234635.553 | AI3: ='WTP Values '!BD6 -> 2681820.481 | AJ3: =AG3 -> 2448033.927 | AK3: =AH3 -> 2234635.553 | AL3: =AI3 -> 2681820.481 | AM3: ='WTP Values '!CX6 -> 1.094458364 | AN3: ='WTP Values '!CY6 -> 0.9992337912 | AO3: ='WTP Values '!CZ6 -> 1.198780737 | AP3: =AM3 -> 1.094458364 | AQ3: =AN3 -> 0.9992337912 | AR3: =AO3 -> 1.198780737 | AS3: ='WTP Values '!CF6 -> 0.413065304 | AT3: ='WTP Values '!CG6 -> 0.377285709 | AU3: ='WTP Values '!CH6 -> 0.452263298 | AV3: =AS3 -> 0.413065304 | AW3: =AT3 -> 0.377285709 | AX3: =AU3 -> 0.452263298 | AY3: ='WTP Values '!CL6 -> 0.3312870194 | AZ3: ='WTP Values '!CM6 -> 0.3026391877 | BA3: ='WTP Values '!CN6 -> 0.3626718782 | BB3: =AY3 -> 0.3312870194 | BC3: =AZ3 -> 0.3026391877 | BD3: =BA3 -> 0.3626718782 | BE3: ='WTP Values '!BK6 -> 409688.7965 | BF3: ='WTP Values '!BL6 -> 374043.365 | BG3: ='WTP Values '!BM6 -> 448739.8091 | BH3: =BE3 -> 409688.7965 | BI3: =BF3 -> 374043.365 | BJ3: =BG3 -> 448739.8091 | BK3: ='WTP Values '!AY6 -> 154622.8096 | BL3: ='WTP Values '!AZ6 -> 141229.4274 | BM3: ='WTP Values '!BA6 -> 169295.8018 | BN3: =BK3 -> 154622.8096 | BO3: =BL3 -> 141229.4274 | BP3: =BM3 -> 169295.8018 | BQ3: ='WTP Values '!BE6 -> 124010.7296 | BR3: ='WTP Values '!BF6 -> 113286.9816 | BS3: ='WTP Values '!BG6 -> 135759.0295 | BT3: =BQ3 -> 124010.7296 | BU3: =BR3 -> 113286.9816 | BV3: =BS3 -> 135759.0295
A4: 2 | B4: 0.05 | C4: =C3/(1+B4)^A4 -> 19.71091512 | D4: =D3/(1+B4)^A4 -> 17.99215629 | E4: =E3/(1+B4)^A4 -> 21.59388496 | F4: =F3+C4 -> 41.44219903 | G4: =G3+D4 -> 37.82850859 | H4: =H3+E4 -> 45.40114313 | I4: =I3/(1+B4)^A4 -> 7.407825376 | J4: =J3/(1+B4)^A4 -> 6.762020487 | K4: =K3/(1+B4)^A4 -> 0.3746624072 | L4: =L3+I4 -> 15.57495285 | M4: =M3+J4 -> 14.21714807 | N4: =N3+K4 -> 0.7877277112 | O4: =O3/(1+B4)^A4 -> 5.931765737 | P4: =P3/(1+B4)^A4 -> 5.414685826 | Q4: =Q3/(1+B4)^A4 -> 6.498247702 | R4: =R3+O4 -> 12.47153746 | S4: =S3+P4 -> 11.38437695 | T4: =T3+Q4 -> 13.66256579 | U4: =U3/(1+B4)^A4 -> 7378390.404 | V4: =V3/(1+B4)^A4 -> 6735007.102 | W4: =W3/(1+B4)^A4 -> 8083242.846 | X4: =X3+U4 -> 15513065.82 | Y4: =Y3+V4 -> 14160352.43 | Z4: =Z3+W4 -> 16995018.08 | AA4: =AA3/(1+B4)^A4 -> 2772972.607 | AB4: =AB3/(1+B4)^A4 -> 2531228.346 | AC4: =AC3/(1+B4)^A4 -> 3037813.226 | AD4: =AD3+AA4 -> 5830174.905 | AE4: =AE3+AB4 -> 5321907.598 | AF4: =AF3+AC4 -> 6387002.307 | AG4: =AG3/(1+B4)^A4 -> 2220438.936 | AH4: =AH3/(1+B4)^A4 -> 2026880.32 | AI4: =AI3/(1+B4)^A4 -> 2432490.232 | AJ4: =AJ3+AG4 -> 4668472.863 | AK4: =AK3+AH4 -> 4261515.873 | AL4: =AL3+AI4 -> 5114310.713 | AM4: =AM3/(1+B4)^A4 -> 0.9927059992 | AN4: =AN3/(1+B4)^A4 -> 0.9063345045 | AO4: =AO3/(1+B4)^A4 -> 1.087329467 | AP4: =AP3+AM4 -> 2.087164363 | AQ4: =AQ3+AN4 -> 1.905568296 | AR4: =AR3+AO4 -> 2.286110204 | AS4: =AS3/(1+B4)^A4 -> 0.3746624072 | AT4: =AT3/(1+B4)^A4 -> 0.3422092599 | AU4: =AU3/(1+B4)^A4 -> 0.4102161433 | AV4: =AV3+AS4 -> 0.7877277112 | AW4: =AW3+AT4 -> 0.7194949689 | AX4: =AX3+AU4 -> 0.8624794413 | AY4: =AY3/(1+B4)^A4 -> 0.3004870924 | AZ4: =AZ3/(1+B4)^A4 -> 0.2745026646 | BA4: =BA3/(1+B4)^A4 -> 0.3289540845 | BB4: =BB3+AY4 -> 0.6317741118 | BC4: =BC3+AZ4 -> 0.5771418524 | BD4: =BD3+BA4 -> 0.6916259627 | BE4: =BE3/(1+B4)^A4 -> 371599.8154 | BF4: =BF3/(1+B4)^A4 -> 339268.3583 | BG4: =BG3/(1+B4)^A4 -> 407020.235 | BH4: =BH3+BE4 -> 781288.6119 | BI4: =BI3+BF4 -> 713311.7232 | BJ4: =BJ3+BG4 -> 855760.0441 | BK4: =BK3/(1+B4)^A4 -> 140247.4464 | BL4: =BL3/(1+B4)^A4 -> 128099.2539 | BM4: =BM3/(1+B4)^A4 -> 153556.2828 | BN4: =BN3+BK4 -> 294870.256 | BO4: =BO3+BL4 -> 269328.6813 | BP4: =BP3+BM4 -> 322852.0845 | BQ4: =BQ3/(1+B4)^A4 -> 112481.3874 | BR4: =BR3/(1+B4)^A4 -> 102754.6319 | BS4: =BS3/(1+B4)^A4 -> 123137.4417 | BT4: =BT3+BQ4 -> 236492.117 | BU4: =BU3+BR4 -> 216041.6135 | BV4: =BV3+BS4 -> 258896.4712
A5: 3 | B5: 0.05 | C5: =C4/(1+B5)^A5 -> 17.02702958 | D5: =D4/(1+B5)^A5 -> 15.54230108 | E5: =E4/(1+B5)^A5 -> 18.65360973 | F5: =F4+C5 -> 58.46922861 | G5: 53.37080967 | H5: 64.05475286 | I5: =I4/(1+B5)^A5 -> 6.399158083 | J5: =J4/(1+B5)^A5 -> 5.841287539 | K5: =K4/(1+B5)^A5 -> 0.3236474741 | L5: =L4+I5 -> 21.97411093 | M5: 20.05843561 | N5: 1.111375185 | O5: =O4/(1+B5)^A5 -> 5.124082269 | P5: =P4/(1+B5)^A5 -> 4.677409201 | Q5: =Q4/(1+B5)^A5 -> 5.613430689 | R5: =R4+O5 -> 17.59561973 | S5: 16.06178615 | T5: 19.27599648 | U5: =U4/(1+B5)^A5 -> 6373731.048 | V5: =V4/(1+B5)^A5 -> 5817952.361 | W5: =W4/(1+B5)^A5 -> 6982609.088 | X5: =X4+U5 -> 21886796.87 | Y5: 19978304.79 | Z5: 23977627.17 | AA5: =AA4/(1+B5)^A5 -> 2395397.997 | AB5: =AB4/(1+B5)^A5 -> 2186570.216 | AC5: =AC4/(1+B5)^A5 -> 2624177.282 | AD5: =AD4+AA5 -> 8225572.903 | AE5: 7508477.814 | AF5: 9011179.588 | AG5: =AG4/(1+B5)^A5 -> 1918098.638 | AH5: =AH4/(1+B5)^A5 -> 1750895.428 | AI5: =AI4/(1+B5)^A5 -> 2101276.521 | AJ5: =AJ4+AG5 -> 6586571.502 | AK5: 6012411.302 | AL5: 7215587.234 | AM5: =AM4/(1+B5)^A5 -> 0.8575367664 | AN5: =AN4/(1+B5)^A5 -> 0.7829258219 | AO5: =AO4/(1+B5)^A5 -> 0.9392760752 | AP5: =AP4+AM5 -> 2.94470113 | AQ5: 2.688494118 | AR5: 3.225386279 | AS5: =AS4/(1+B5)^A5 -> 0.3236474741 | AT5: =AT4/(1+B5)^A5 -> 0.2956132253 | AU5: =AU4/(1+B5)^A5 -> 0.3543601281 | AV5: =AV4+AS5 -> 1.111375185 | AW5: 1.015108194 | AX5: 1.216839569 | AY5: =AY4/(1+B5)^A5 -> 0.2595720483 | AZ5: =AZ4/(1+B5)^A5 -> 0.2371257226 | BA5: =BA4/(1+B5)^A5 -> 0.2841629064 | BB5: =BB4+AY5 -> 0.8913461602 | BC5: 0.814267575 | BD5: 0.9757888691 | BE5: =BE4/(1+B5)^A5 -> 321001.8922 | BF5: =BF4/(1+B5)^A5 -> 293072.7639 | BG5: =BG4/(1+B5)^A5 -> 351599.3824 | BH5: =BH4+BE5 -> 1102290.504 | BI5: 1006384.487 | BJ5: 1207359.426 | BK5: =BK4/(1+B5)^A5 -> 121151.0173 | BL5: =BL4/(1+B5)^A5 -> 110656.9518 | BM5: =BM4/(1+B5)^A5 -> 132647.6906 | BN5: =BN4+BK5 -> 416021.2732 | BO5: 379985.6331 | BP5: 455499.7751 | BQ5: =BQ4/(1+B5)^A5 -> 97165.65158 | BR5: =BR4/(1+B5)^A5 -> 88763.31443 | BS5: =BS4/(1+B5)^A5 -> 106370.7519 | BT5: =BT4+BQ5 -> 333657.7686 | BU5: 304804.9279 | BV5: 365267.2231
A6: 4 | B6: 0.05 | C6: 14.00817937 | D6: 12.78668956 | E6: 15.34637089 | F6: 72.47740798 | G6: 66.15749923 | H6: 79.40112375 | I6: 5.264603191 | J6: 4.805641714 | K6: 0.2662655779 | L6: 27.23871413 | M6: 24.86407733 | N6: 1.377640763 | O6: 4.215595164 | P6: 3.848116125 | Q6: 4.61818332 | R6: 21.81121489 | S6: 19.90990228 | T6: 23.8941798 | U6: 5243684.307 | V6: 4786443.806 | W6: 5744609.777 | X6: 27130481.18 | Y6: 24764748.6 | Z6: 29722236.95 | AA6: 1970699.86 | AB6: 1798896.728 | AC6: 2158917.144 | AD6: 10196272.76 | AE6: 9307374.542 | AF6: 11170096.73 | AG6: 1578024.497 | AH6: 1440466.002 | AI6: 1728725.394 | AJ6: 8164595.998 | AK6: 7452877.303 | AL6: 8944312.627 | AM6: 0.70549762 | AN6: 0.6441150112 | AO6: 0.7727447516 | AP6: 3.65019875 | AQ6: 3.332609129 | AR6: 3.99813103 | AS6: 0.2662655779 | AT6: 0.243201732 | AU6: 0.2915329544 | AV6: 1.377640763 | AW6: 1.258309926 | AX6: 1.508372524 | AY6: 0.2135505665 | AZ6: 0.1950839188 | BA6: 0.2337815263 | BB6: 1.104896727 | BC6: 1.009351494 | BD6: 1.209570395 | BE6: 264089.0511 | BF6: 241111.6881 | BG6: 289261.682 | BH6: 1366379.555 | BI6: 1247496.175 | BJ6: 1496621.108 | BK6: 99671.24172 | BL6: 91037.74813 | BM6: 109129.5833 | BN6: 515692.5149 | BO6: 471023.3812 | BP6: 564629.3584 | BQ6: 79938.42202 | BR6: 73025.79845 | BS6: 87511.48085 | BT6: 413596.1906 | BU6: 377830.7264 | BV6: 452778.7039
A7: 5 | B7: 0.05 | C7: 10.97577508 | D7: 10.01870585 | E7: 12.02428315 | F7: 83.45318306 | G7: 76.17620508 | H7: 91.4254069 | I7: 4.124954356 | J7: 3.76534603 | K7: 0.2086260475 | L7: 31.36366848 | M7: 28.62942336 | N7: 1.586266811 | O7: 3.303029118 | P7: 3.015099676 | Q7: 3.618467473 | R7: 25.11424401 | S7: 22.92500195 | T7: 27.51264727 | U7: 4108563.863 | V7: 3750303.966 | W7: 4501052.077 | X7: 31239045.04 | Y7: 28515052.56 | Z7: 34223289.02 | AA7: 1544094.907 | AB7: 1409482.657 | AC7: 1691568.073 | AD7: 11740367.67 | AE7: 10716857.2 | AF7: 12861664.81 | AG7: 1236423.484 | AH7: 1128642.804 | AI7: 1354501.581 | AJ7: 9401019.483 | AK7: 8581520.108 | AL7: 10298814.21 | AM7: 0.5527758456 | AN7: 0.5046809655 | AO7: 0.6054657329 | AP7: 4.202974595 | AQ7: 3.837290094 | AR7: 4.603596763 | AS7: 0.2086260475 | AT7: 0.1905549208 | AU7: 0.2284236981 | AV7: 1.586266811 | AW7: 1.448864847 | AX7: 1.736796222 | AY7: 0.1673224567 | AZ7: 0.152853355 | BA7: 0.1831739431 | BB7: 1.272219183 | BC7: 1.162204849 | BD7: 1.392744339 | BE7: 206920.6818 | BF7: 188917.3167 | BG7: 226644.0968 | BH7: 1573300.237 | BI7: 1436413.492 | BJ7: 1723265.205 | BK7: 78095.02593 | BL7: 71330.4578 | BM7: 85505.88405 | BN7: 593787.5409 | BO7: 542353.839 | BP7: 650135.2424 | BQ7: 62633.84536 | BR7: 57217.62392 | BS7: 68567.53511 | BT7: 476230.036 | BU7: 435048.3503 | BV7: 521346.239
... 8 more rows

Sheet Berks
B1: County | C1: Berks
B2: Number of households | C2: ='WTP Values '!C7 -> 152451 | E2: CLICK HERE TO GO BACK TO COUNTY LIST
B3: Percent of county forested | C3: ='WTP Values '!DA7 -> 0.3554859658
B4: Square miles of surface water | C4: ='WTP Values '!BU7 -> 3.418998068
B5: Miles of major rivers | C5: ='WTP Values '!BV7 -> 280.2682165
B6: Miles of tributaries | C6: ='WTP Values '!BW7 -> 935.085034
... 7 more rows

Sheet Berks NPV 1% (hidden)
C1: ACRES all conservation strategies | U1: Countywide demand= all conservation strategies | AM1: Acre value of acquisition and easements | BE1: countywide demand for acquisition and easements
